Workbook

Sheet Menu
B1: PRÉ-LOA 2023
A17: Instruções de preenchimento
A24: Campo/coluna | E24: Descrição
A25: Sigla Unidade Orçamentária - Coluna C | E25: Na lista suspensa, deverá ser selecionada a sigla referente à sua unidade orçamentária. Em caso de dúvidas, é possível consultar a aba "Apoio - Lista de UOs", para procurar sua unidade e verificar a sigla padronizada que utilizaremos aqui.
A26: Categoria do PO (Plano Orçamentário) - Coluna D | E26: Na lista suspensa, deverá ser selecionada a Categoria do Plano Orçamentário a qual será atribuída a despesa no momento da respectiva execução. Em caso de dúvidas, é possível consultar a aba "Apoio - Catálogo de POs", para verificar todas as categorias disponíveis. Caso não exista nenhuma que se enquadre, há a opção "[Não encontrado]".
A27: Objeto (PO) - Coluna E | E27: Na lista suspensa, deverá ser selecionado o Objeto do Plano Orçamentário a qual será atribuída a despesa no momento da respectiva execução. Em caso de dúvidas, é possível consultar a aba "Apoio - Catálogo de POs", para verificar todas as categorias disponíveis. Caso não exista nenhuma que se enquadre, há a opção "[Não encontrado]".
A28: Desrição da Despesa - Coluna F | E28: Neste campo, solicitamos uma breve descrição que detalhe a despesa em questão, podendo ser o objeto do contrato, por exemplo. A importância de termos despesas bem descritas se refletirá na maior celeridade das análises relativas à execução orçamentária, garantindo maior fluidez ao andamento da execução no ano de 2023.
A29: Função - Coluna G | E29: Neste campo, deverá ser escolhido na lista suspensa o código da função na qual a despesa será alocada. Em caso de dúvidas, é possível consultar a aba "Apoio - Funções-Programas" para verificar todos os códigos e descrições.
A30: Subfunção - Coluna I | E30: Neste campo, deverá ser escolhido na lista suspensa o código da subfunção na qual a despesa será alocada. Em caso de dúvidas, é possível consultar a aba "Apoio - Funções-Programas" para verificar todos os códigos e descrições.
A31: Programa - Coluna K | E31: Neste campo, deverá ser escolhido na lista suspensa o código do Programa no qual a despesa será alocada. Em caso de dúvidas, é possível consultar a aba "Apoio - Funções-Programas" para verificar todos os códigos e descrições.
A32: Ação Orçamentária - Coluna M | E32: Neste campo, deverá ser escolhido na lista suspensa o código da ação orçamentária na qual a despesa será alocada. Em caso de dúvidas, é possível consultar a aba "Apoio - Lista de Ações" para verificar todos os códigos e descrições.
A33: Grupo de Natureza de Despesa (GND) - Coluna O | E33: Neste campo, deverá ser escolhido na lista suspensa o código do Grupo de Natureza de Despesa no qual a despesa será alocada. Em caso de dúvidas, é possível consultar a aba "Apoio - Lista de NDs" para verificar todos os códigos e descrições.
A34: Modalidade de Aplicação (MA) - Coluna P | E34: Neste campo, deverá ser escolhido na lista suspensa o código da Modalidade de Aplicação da despesa. Em caso de dúvidas, é possível consultar a aba "Apoio - Lista de NDs" para verificar todos os códigos e descrições.
A35: Elemento de Despesa - Coluna Q | E35: Neste campo, deverá ser escolhido na lista suspensa o código do Elemento de Despesa. Em caso de dúvidas, é possível consultar a aba "Apoio - Lista de NDs" para verificar todos os códigos e descrições.
A36: Fonte de Recursos (antiga) - Coluna T | E36: Neste campo, deverá ser escolhido na lista suspensa o código da fonte de recursos atualmente utilizada (Exemplo: Fonte 100). Conforme é de amplo conhecimento, a Portaria nº 20/2021 da Secretaria do Tesouro Nacional (STN) estabeleceu nova padronização para as fontes de recursos em todos os entes federativos. Trataremos das novas fontes na coluna a seguir.
A37: Fonte de Recursos (atualizada) - Coluna W | E37: Aqui, a lista suspensa só exibirá para sua unidade as novas fontes a partir do que foi informado na coluna anterior (de fontes antigas). O intuito é tornar mais simplificado o preenchimento das novas fontes, estabelecendo correlação direta às fontes atuais. É obrigatório o preenchimento deste campo, pois, conforme determinação federal, o PLOA 2023 já deverá conter as fontes de recursos padronizada. Em caso de dúvidas, é possível consultar a aba "Apoio - Novas Fontes" para visualizar a fonte que melhor possa se enquadrar.
A38: Detalhamento da Fonte de Recursos (atualizada) - Coluna Z | E38: A portaria federal anteriormente mencionada também possibilitou que as fontes de recursos possuam detalhamentos adicionais, para além de suas especificações. Em caso de dúvidas, é possível consultar a aba "Apoio - Detalhamentos Fontes" para verificar o que melhor se enquadra.
A39: Credor atual (2022) - Coluna AB | E39: Aqui, já irá pré-preenchido alguns credores atuais com base nas nossas informações internas. Esta coluna, especificamente, não é aberta para edição. Entretanto, os mesmos poderão ser alterados ou ratificados na coluna a seguir.
A40: Credor previsto para 2023 (informado pela unidade orçamentária) - Coluna AC | E40: Neste campo, será possível alterar o credor para a execução da referida despesa. Caso não haja alteração em relação a coluna anterior, basta repeti-lo. Caso se trate de despesa ainda a licitar, deverá ser selecionado na lista suspensa a opção "A licitar".
A41: Valor previsto da despesa orçamentária (R$) - SEPLAG - Coluna AD | E41: Neste campo, há um pré-preenchimento de valores com base nas informações atuais que possuímos. Os mesmos deverão ser alterados ou ratificados na coluna a seguir, de preenchimento da unidade orçamentária.
A42: Previsão orçamentária da despesa (R$) - Unidade Orçamentária - Coluna AE | E42: Aqui, é possível alterar os valores previamente preenchidos na coluna anterior. Entretanto, ressalta-se que as alterações deverão ser devidamente detalhadas no campo memória de cálculo.
A43: Memória de cálculo - Coluna AF | E43: Campo de preenchimento obrigatório para todas as linhas de despesa, mesmo as pré-preenchidas. O detalhamento deverá ser mais minucioso nos casos em que forem alterados os valores preenchidos na coluna anterior. Para contratos, principalmente, há a necessidade de indicação de percentuais de reajuste, caso haja previsão de reajuste para 2023.
A44: Despesa com Tecnologia da Informação? (Sim/Não) - Coluna AG | E44: Campo para informar se a despesa em questão refere-se à Tecnologia da Informação e Comunicação. A ser preenchido com "Sim" ou "Não", conforme lista suspensa.
A45: N° Contrato - Coluna AH | E45: Aqui, deverá ser preenchido o número do contrato (caso haja). Importante ressaltar que as entradas possíveis são com a codificação de 3 dígitos para o número do contrato, uma barra (/) e o ano. Exemplo: 123/2022. Nos casos de contratos que possuam apenas dois dígitos (Exemplo: 40/2022), deverá ser inserido um zero à esquerda (040/2022). Qualquer input distinto disso acarretará em erro.
A46: Vigência do Contrato (Início) - Coluna AI | E46: Neste campo, deverá ser inserido o início da vigência contratual.
A47: Vigência do Contrato (Fim) - Coluna AJ | E47: A exemplo do campo anterior, neste campo deverá ser inserido o término previsto da vigência contratual.
A48: Link do Contrato no Portal Transparência - Coluna AK | E48: Aqui, em todas as linhas que houver contrato, deverá ser inserido o respectivo link do contrato no Portal da Transparência, da Prefeitura ou da própria unidade setorial. (https://transparencia.niteroi.rj.gov.br)
A49: Despesa consta no Pacto atual? (Sim/Não) - Coluna AM | E49: Campo a ser preenchido somente pelas unidades que já possuem pactos assinados. Deverá ser sinalizado, se a despesa já estiver em execução em 2022, se ela foi prevista no Pacto de Gestão ou não, conforme as opções da lista suspensa (Sim/Não).
A50: ID do Pacto de Gestão 2022 - Coluna AN | E50: Caso a coluna anterior tenha sido preenchida com "Sim", deverá ser indicado o respectivo ID no qual a despesa foi prevista no Pacto de Gestão de 2022.
A51: Observações - Coluna AP | E51: Campo aberto, para inserção de eventuais observações que a unidade orçamentária julgue pertinente.
A52: N° da Nota Técnica da CPFGF (se houver) - Coluna AQ | E52: Nos casos onde a despesa já contenha Nota Técnica autorizativa da CPFGF para a despesa, deverá ser inserido seu código. Caso haja mais de uma nota técnica, deverá ser inserido com um ponto e vírgula (;) entre as Notas, separando as informações.
A53: Despesa se refere à despesa do Plano de Metas? (para metas de 2022 que ultrapassarão exercício para 2023) - Coluna AR | E53: Aqui, deverá ser indicado se a despesa em questão refere-se à atividades contidas no Plano de Metas 2022, que porventura deixe previsão de execução residual no ano de 2022. Deverá ser preenchido conforme a lista suspensa da coluna (Sim/Não).
A54: ID da Meta 2022 (Preenchível somente caso a coluna AR tenha sido declarada com "sim") - Coluna AS | E54: Caso a coluna anterior tenha sido preenchida com "Sim", deverá ser indicado o respectivo ID do Plano de Metas que se refere a meta.
A55: Despesa potencialmente elegível para compor o Plano de Metas 2023? - Coluna AT | E55: Indique se esta é uma linha de despesa que potencialmente pode ser elencada para o Plano de Metas 2023.

Sheet Pré-LOA 2023
AD1: =SUBTOTAL(9,AD3:AD999973) -> 11802335 | AE1: =SUBTOTAL(9,AE3:AE999973) -> 9615884.67
A2: ID Pré-LOA | B2: Unidade Orçamentária | C2: Sigla Unidade Orçamentária | D2: Categoria (PO) | E2: Objeto (PO) | F2: Descrição da Despesa | G2: Função | H2: Descrição Função | I2: Subfunção | J2: Descrição Subfunção | K2: Programa | L2: Descrição Programa | M2: Ação Orçamentária | N2: Descrição da ação orçamentária | O2: Grupo de Natureza de Despesa (GND) | P2: Modalidade de Aplicação (MA) | Q2: Elemento de Despesa | R2: Descrição do Elemento de Despesa | S2: Classif Fonte | T2: Fonte de Recursos (antiga) | U2: Descrição da Fonte (antiga) | V2: BuscaFonte (Interno) | W2: Fonte de Recursos (atualizada) | X2: Descrição da Fonte (atualizada) | Y2: BuscaDetalhamento (Interno) | Z2: Detalhamento da Fonte de Recursos (atualizada) | AA2: Descrição do Detalhamento da Fonte | AB2: Credor atual (2022) | AC2: Credor previsto para 2023 (informado pela unidade orçamentária) | AD2: Valor previsto da despesa orçamentária (R$) - SEPLAG | AE2: Previsão orçamentária da despesa (R$) - Unidade Orçamentária | AF2: Memória de Cálculo | AG2: Despesa com Tecnologia da Informação? (Sim/Não) | AH2: Nº Contrato | AI2: Vigência do Contrato (Início) | AJ2: Vigência do Contrato (Fim) | AK2: Link do contrato no Portal da Transparência | AL2: Prioridade (Sim/Não) | AM2: Despesa consta no Pacto atual? (Sim/Não) | AN2: ID do Pacto de Gestão 2022 | AO2: Despesa (Identificação no Pacto de Gestão 2022) | AP2: Observações | AQ2: Nº da Nota Técnica da CPFGF (se houver) | AR2: Despesa se refere à despesa do Plano de Metas? (para metas de 2022 que ultrapassarão o exercício para 2023) | AS2: ID da Meta 2022 (Preenchível somente caso a coluna AR tenha sido declarada com "Sim") | AT2: Despesa potencialmente elegível para compor o Plano de Metas 2023? | AU2: Controle preenchimento 1 | AV2: Controle preenchimento 2 | AW2: Controle preenchimento 3 | AX2: Controle preenchimento 4 | AY2: Controle preenchimento 5 | AZ2: Controle preenchimento 6 | BA2: Contole preenchimento 7 | BB2: Controle de preenchimento 8 | BC2: Controle de preenchimento 9 | BD2: Controle de preenchimento 10
A3: 032-SMARHS-PLOA23 | B3: =IF(Tabela1[[#This Row],[Sigla Unidade Orçamentária]]<>"",_xlfn.XLOOKUP(Tabela1[[#This Row],[Sigla Unidade Orçamentária]],'Apoio - Lista de UOs'!A:A,'Apoio - Lista de UOs'!C:C),"") ->  | C3: SMARHS | D3: Pessoal e Folha | E3: Vencimentos Gerais | F3: Despesas com Vencimentos e Vantagens Fixas com Pessoal Civil | G3: 18 | H3: =IFERROR(VLOOKUP(Tabela1[[#This Row],[Função]],'Apoio - Funções-Programas'!A:B,2,0),"") -> GESTAO AMBIENTAL | I3: 122 | J3: =IFERROR(VLOOKUP(Tabela1[[#This Row],[Subfunção]],'Apoio - Funções-Programas'!D:E,2,0),"") -> ADMINISTRACAO GERAL | K3: 145 | L3: =IFERROR(VLOOKUP(Tabela1[[#This Row],[Programa]],'Apoio - Funções-Programas'!G:H,2,0),"") -> APOIO ADMINISTRATIVO | M3: 4955 | N3: =IFERROR(VLOOKUP(Tabela1[[#This Row],[Ação Orçamentária]],'Apoio - Lista de Ações'!A:B,2,0),"") -> Remuneração De Pessoal Ativo | O3: 1 | P3: 90 | Q3: 11 | R3: =IFERROR(VLOOKUP(Tabela1[[#This Row],[Elemento de Despesa]],'Apoio - Lista de NDs'!$A$25:$C$65,2,0),"") -> VENCIMENTOS E VANTAGENS FIXAS - PESSOAL CIVIL | S3: =IFERROR(_xlfn.IFS(Tabela1[[#This Row],[Sigla Unidade Orçamentária]]="FME","FME",Tabela1[[#This Row],[Sigla Unidade Orçamentária]]="FMAS","FMAS",Tabela1[[#This Row],[Sigla Unidade Orçamentária]]="FUNDOSAUDE","FUNDOSAUDE",Tabela1[[#This Row],[Sigla Unidade Orçamentária]]="FUNDACAOSAUDE","FUNDACAOSAUDE",Tabela1[[#This Row],[Sigla Unidade Orçamentária]]="NITPREVFIN","NITPREVFIN",Tabela1[[#This Row],[Sigla Unidade Orçamentária]]="NITPREVPREV","NITPREVPREV",Tabela1[[#This Row],[Sigla Unidade Orçamentária]]="NITPREV","NITPREV",Tabela1[[#This Row],[Sigla Unidade Orçamentária]]="EMUSA","EMUSA",Tabela1[[#This Row],[Sigla Unidade Orçamentária]]="FIA","FIA",Tabela1[[#This Row],[Sigla Unidade Orçamentária]]="CMN","CMN",(_xlfn.XLOOKUP(Tabela1[[#This Row],[Sigla Unidade Orçamentária]],'Apoio - Lista de UOs'!A:A,'Apoio - Lista de UOs'!E:E)="01"),"Direta"),"INDIRETAS_GERAL") -> INDIRETAS_GERAL | T3: 114 | U3: =IFERROR(VLOOKUP(Tabela1[[#This Row],[Fonte de Recursos (antiga)]],'ListaFontes (Interno)'!BP:BQ,2,0),"") -> Transferências Constitucionais Provenientes De Impostos | V3: =IFERROR(IF(Tabela1[[#This Row],[Fonte de Recursos (antiga)]]<>"",_xlfn.CONCAT("FONTE",Tabela1[[#This Row],[Fonte de Recursos (antiga)]],Tabela1[[#This Row],[Classif Fonte]]),""),"") ->  | W3: 500 | X3: =IFERROR(VLOOKUP(Tabela1[[#This Row],[Fonte de Recursos (atualizada)]],'Apoio - Lista de Novas Fontes'!B:C,2,0),"") -> Recursos não Vinculados de Impostos | Y3: =IFERROR(IF(Tabela1[[#This Row],[Fonte de Recursos (antiga)]]<>"",_xlfn.CONCAT("DETALHAMENTO",Tabela1[[#This Row],[Fonte de Recursos (atualizada)]]),""),"") ->  | Z3: 14 | AA3: =IFERROR(VLOOKUP(Tabela1[[#This Row],[Detalhamento da Fonte de Recursos (atualizada)]],'Apoio - Detalhamentos Fontes'!B:C,2,0),"") -> Transferências Constitucionais de Impostos | AB3: MUNICIPIO DE NITEROI | AD3: 4035959 | AE3: 4035959 | AF3: Despesa prevista com folha de pagamento desta unidade. | AG3: Não | AN3: =IFERROR(VLOOKUP(Tabela1[[#This Row],[Subfunção]],'Apoio - Funções-Programas'!AH:AI,2,0),"") ->  | AU3: =IF(Tabela1[[#This Row],[Programa]]="","Não apto","Apto") -> Apto | AV3: =IF(Tabela1[[#This Row],[Ação Orçamentária]]="","Não apto","Apto1") -> Apto1 | AW3: =IF(Tabela1[[#This Row],[Grupo de Natureza de Despesa (GND)]]="","Não apto","Apto4") -> Apto4 | AX3: =IF(Tabela1[[#This Row],[Modalidade de Aplicação (MA)]]="","Não apto","Apto5") -> Apto5 | AY3: =IF(OR(Tabela1[[#This Row],[Fonte de Recursos (antiga)]]="",Tabela1[[#This Row],[Fonte de Recursos (atualizada)]]="",Tabela1[[#This Row],[Detalhamento da Fonte de Recursos (atualizada)]]=""),"Não apto","Apto6") -> Apto6 | AZ3: =IF(OR(Tabela1[[#This Row],[Sigla Unidade Orçamentária]]=""),"Não apto","Apto6") -> Apto6 | BA3: =IF(OR(Tabela1[[#This Row],[Categoria (PO)]]=""),"Não apto","Apto7") -> Apto7 | BB3: =IF(OR(Tabela1[[#This Row],[Descrição da Despesa]]=""),"Não apto","Apto8") -> Apto8 | BC3: =IF(OR(Tabela1[[#This Row],[Função]]=""),"Não apto","Apto9") -> Apto9 | BD3: =IF(OR(Tabela1[[#This Row],[Subfunção]]=""),"Não apto","Apto10") -> Apto10
A4: 034-SMARHS-PLOA23 | B4: =IF(Tabela1[[#This Row],[Sigla Unidade Orçamentária]]<>"",_xlfn.XLOOKUP(Tabela1[[#This Row],[Sigla Unidade Orçamentária]],'Apoio - Lista de UOs'!A:A,'Apoio - Lista de UOs'!C:C),"") ->  | C4: SMARHS | D4: [Não encontrado] | E4: [Não encontrado] | F4: Despesas com a produção do inventário das espécies faunísticas da Enseada de Jurujuba (Convênios EGP). | G4: 18 | H4: =IFERROR(VLOOKUP(Tabela1[[#This Row],[Função]],'Apoio - Funções-Programas'!A:B,2,0),"") -> GESTAO AMBIENTAL | I4: 541 | J4: =IFERROR(VLOOKUP(Tabela1[[#This Row],[Subfunção]],'Apoio - Funções-Programas'!D:E,2,0),"") -> PRESERVACAO E CONSERVACAO AMBIENTAL | K4: 147 | L4: =IFERROR(VLOOKUP(Tabela1[[#This Row],[Programa]],'Apoio - Funções-Programas'!G:H,2,0),"") -> CIDADE VERDE E SUSTENTÁVEL | M4: 5001 | N4: =IFERROR(VLOOKUP(Tabela1[[#This Row],[Ação Orçamentária]],'Apoio - Lista de Ações'!A:B,2,0),"") -> Projeto de Inventário da Biodiversidade faunística da Enseada de Jurujuba | O4: 3 | P4: 90 | Q4: 39 | R4: =IFERROR(VLOOKUP(Tabela1[[#This Row],[Elemento de Despesa]],'Apoio - Lista de NDs'!$A$25:$C$65,2,0),"") -> OUTROS SERVICOS DE TERCEIROS-PESSOA JURIDICA | S4: =IFERROR(_xlfn.IFS(Tabela1[[#This Row],[Sigla Unidade Orçamentária]]="FME","FME",Tabela1[[#This Row],[Sigla Unidade Orçamentária]]="FMAS","FMAS",Tabela1[[#This Row],[Sigla Unidade Orçamentária]]="FUNDOSAUDE","FUNDOSAUDE",Tabela1[[#This Row],[Sigla Unidade Orçamentária]]="FUNDACAOSAUDE","FUNDACAOSAUDE",Tabela1[[#This Row],[Sigla Unidade Orçamentária]]="NITPREVFIN","NITPREVFIN",Tabela1[[#This Row],[Sigla Unidade Orçamentária]]="NITPREVPREV","NITPREVPREV",Tabela1[[#This Row],[Sigla Unidade Orçamentária]]="NITPREV","NITPREV",Tabela1[[#This Row],[Sigla Unidade Orçamentária]]="EMUSA","EMUSA",Tabela1[[#This Row],[Sigla Unidade Orçamentária]]="FIA","FIA",Tabela1[[#This Row],[Sigla Unidade Orçamentária]]="CMN","CMN",(_xlfn.XLOOKUP(Tabela1[[#This Row],[Sigla Unidade Orçamentária]],'Apoio - Lista de UOs'!A:A,'Apoio - Lista de UOs'!E:E)="01"),"Direta"),"INDIRETAS_GERAL") -> INDIRETAS_GERAL | T4: 102 | U4: =IFERROR(VLOOKUP(Tabela1[[#This Row],[Fonte de Recursos (antiga)]],'ListaFontes (Interno)'!BP:BQ,2,0),"") -> Recursos De Convênios | V4: =IFERROR(IF(Tabela1[[#This Row],[Fonte de Recursos (antiga)]]<>"",_xlfn.CONCAT("FONTE",Tabela1[[#This Row],[Fonte de Recursos (antiga)]],Tabela1[[#This Row],[Classif Fonte]]),""),"") ->  | W4: 700 | X4: =IFERROR(VLOOKUP(Tabela1[[#This Row],[Fonte de Recursos (atualizada)]],'Apoio - Lista de Novas Fontes'!B:C,2,0),"") -> Outras Transferências de Convênios ou Instrumentos Congêneres da União | Y4: =IFERROR(IF(Tabela1[[#This Row],[Fonte de Recursos (antiga)]]<>"",_xlfn.CONCAT("DETALHAMENTO",Tabela1[[#This Row],[Fonte de Recursos (atualizada)]]),""),"") ->  | Z4: 00 | AA4: =IFERROR(VLOOKUP(Tabela1[[#This Row],[Detalhamento da Fonte de Recursos (atualizada)]],'Apoio - Detalhamentos Fontes'!B:C,2,0),"") -> Sem especificação de Recurso do Tesouro | AB4: [A Licitar] | AD4: =1803297+827681 -> 2630978 | AE4: 0 | AF4: Dotação Orçamentária deste projeto (Convênio) é administrada pelo Fundo Municipal de Conservação Ambiental. | AG4: Não | AN4: =IFERROR(VLOOKUP(Tabela1[[#This Row],[Subfunção]],'Apoio - Funções-Programas'!AH:AI,2,0),"") ->  | AU4: =IF(Tabela1[[#This Row],[Programa]]="","Não apto","Apto") -> Apto | AV4: =IF(Tabela1[[#This Row],[Ação Orçamentária]]="","Não apto","Apto1") -> Apto1 | AW4: =IF(Tabela1[[#This Row],[Grupo de Natureza de Despesa (GND)]]="","Não apto","Apto4") -> Apto4 | AX4: =IF(Tabela1[[#This Row],[Modalidade de Aplicação (MA)]]="","Não apto","Apto5") -> Apto5 | AY4: =IF(OR(Tabela1[[#This Row],[Fonte de Recursos (antiga)]]="",Tabela1[[#This Row],[Fonte de Recursos (atualizada)]]="",Tabela1[[#This Row],[Detalhamento da Fonte de Recursos (atualizada)]]=""),"Não apto","Apto6") -> Apto6 | AZ4: =IF(OR(Tabela1[[#This Row],[Sigla Unidade Orçamentária]]=""),"Não apto","Apto6") -> Apto6 | BA4: =IF(OR(Tabela1[[#This Row],[Categoria (PO)]]=""),"Não apto","Apto7") -> Apto7 | BB4: =IF(OR(Tabela1[[#This Row],[Descrição da Despesa]]=""),"Não apto","Apto8") -> Apto8 | BC4: =IF(OR(Tabela1[[#This Row],[Função]]=""),"Não apto","Apto9") -> Apto9 | BD4: =IF(OR(Tabela1[[#This Row],[Subfunção]]=""),"Não apto","Apto10") -> Apto10
A5: 042-SMARHS-PLOA23 | B5: =IF(Tabela1[[#This Row],[Sigla Unidade Orçamentária]]<>"",_xlfn.XLOOKUP(Tabela1[[#This Row],[Sigla Unidade Orçamentária]],'Apoio - Lista de UOs'!A:A,'Apoio - Lista de UOs'!C:C),"") ->  | C5: SMARHS | D5: Programas e Projetos | E5: [Não encontrado] | F5: Despesas com Projeto de Restauração Ecológica e Inclusão Social (Convênio BNDES) | G5: 18 | H5: =IFERROR(VLOOKUP(Tabela1[[#This Row],[Função]],'Apoio - Funções-Programas'!A:B,2,0),"") -> GESTAO AMBIENTAL | I5: 541 | J5: =IFERROR(VLOOKUP(Tabela1[[#This Row],[Subfunção]],'Apoio - Funções-Programas'!D:E,2,0),"") -> PRESERVACAO E CONSERVACAO AMBIENTAL | K5: 147 | L5: =IFERROR(VLOOKUP(Tabela1[[#This Row],[Programa]],'Apoio - Funções-Programas'!G:H,2,0),"") -> CIDADE VERDE E SUSTENTÁVEL | M5: 6332 | N5: =IFERROR(VLOOKUP(Tabela1[[#This Row],[Ação Orçamentária]],'Apoio - Lista de Ações'!A:B,2,0),"") -> Estudos e Projetos de Gestão e Inovação | O5: 3 | P5: 90 | Q5: 39 | R5: =IFERROR(VLOOKUP(Tabela1[[#This Row],[Elemento de Despesa]],'Apoio - Lista de NDs'!$A$25:$C$65,2,0),"") -> OUTROS SERVICOS DE TERCEIROS-PESSOA JURIDICA | S5: =IFERROR(_xlfn.IFS(Tabela1[[#This Row],[Sigla Unidade Orçamentária]]="FME","FME",Tabela1[[#This Row],[Sigla Unidade Orçamentária]]="FMAS","FMAS",Tabela1[[#This Row],[Sigla Unidade Orçamentária]]="FUNDOSAUDE","FUNDOSAUDE",Tabela1[[#This Row],[Sigla Unidade Orçamentária]]="FUNDACAOSAUDE","FUNDACAOSAUDE",Tabela1[[#This Row],[Sigla Unidade Orçamentária]]="NITPREVFIN","NITPREVFIN",Tabela1[[#This Row],[Sigla Unidade Orçamentária]]="NITPREVPREV","NITPREVPREV",Tabela1[[#This Row],[Sigla Unidade Orçamentária]]="NITPREV","NITPREV",Tabela1[[#This Row],[Sigla Unidade Orçamentária]]="EMUSA","EMUSA",Tabela1[[#This Row],[Sigla Unidade Orçamentária]]="FIA","FIA",Tabela1[[#This Row],[Sigla Unidade Orçamentária]]="CMN","CMN",(_xlfn.XLOOKUP(Tabela1[[#This Row],[Sigla Unidade Orçamentária]],'Apoio - Lista de UOs'!A:A,'Apoio - Lista de UOs'!E:E)="01"),"Direta"),"INDIRETAS_GERAL") -> INDIRETAS_GERAL | T5: 102 | U5: =IFERROR(VLOOKUP(Tabela1[[#This Row],[Fonte de Recursos (antiga)]],'ListaFontes (Interno)'!BP:BQ,2,0),"") -> Recursos De Convênios | V5: =IFERROR(IF(Tabela1[[#This Row],[Fonte de Recursos (antiga)]]<>"",_xlfn.CONCAT("FONTE",Tabela1[[#This Row],[Fonte de Recursos (antiga)]],Tabela1[[#This Row],[Classif Fonte]]),""),"") ->  | W5: 700 | X5: =IFERROR(VLOOKUP(Tabela1[[#This Row],[Fonte de Recursos (atualizada)]],'Apoio - Lista de Novas Fontes'!B:C,2,0),"") -> Outras Transferências de Convênios ou Instrumentos Congêneres da União | Y5: =IFERROR(IF(Tabela1[[#This Row],[Fonte de Recursos (antiga)]]<>"",_xlfn.CONCAT("DETALHAMENTO",Tabela1[[#This Row],[Fonte de Recursos (atualizada)]]),""),"") ->  | Z5: 00 | AA5: =IFERROR(VLOOKUP(Tabela1[[#This Row],[Detalhamento da Fonte de Recursos (atualizada)]],'Apoio - Detalhamentos Fontes'!B:C,2,0),"") -> Sem especificação de Recurso do Tesouro | AB5: [Diversos] | AC5: [A Licitar] | AD5: 1500000 | AE5: 516625.41 | AF5: Contratação de empresa especializada de para restauro(ações de retirada de plantas exoticas, limpeza,cercamento, remoção , plantio,etc) para área de 16 ha | AG5: Não | AN5: =IFERROR(VLOOKUP(Tabela1[[#This Row],[Subfunção]],'Apoio - Funções-Programas'!AH:AI,2,0),"") ->  | AU5: =IF(Tabela1[[#This Row],[Programa]]="","Não apto","Apto") -> Apto | AV5: =IF(Tabela1[[#This Row],[Ação Orçamentária]]="","Não apto","Apto1") -> Apto1 | AW5: =IF(Tabela1[[#This Row],[Grupo de Natureza de Despesa (GND)]]="","Não apto","Apto4") -> Apto4 | AX5: =IF(Tabela1[[#This Row],[Modalidade de Aplicação (MA)]]="","Não apto","Apto5") -> Apto5 | AY5: =IF(OR(Tabela1[[#This Row],[Fonte de Recursos (antiga)]]="",Tabela1[[#This Row],[Fonte de Recursos (atualizada)]]="",Tabela1[[#This Row],[Detalhamento da Fonte de Recursos (atualizada)]]=""),"Não apto","Apto6") -> Apto6 | AZ5: =IF(OR(Tabela1[[#This Row],[Sigla Unidade Orçamentária]]=""),"Não apto","Apto6") -> Apto6 | BA5: =IF(OR(Tabela1[[#This Row],[Categoria (PO)]]=""),"Não apto","Apto7") -> Apto7 | BB5: =IF(OR(Tabela1[[#This Row],[Descrição da Despesa]]=""),"Não apto","Apto8") -> Apto8 | BC5: =IF(OR(Tabela1[[#This Row],[Função]]=""),"Não apto","Apto9") -> Apto9 | BD5: =IF(OR(Tabela1[[#This Row],[Subfunção]]=""),"Não apto","Apto10") -> Apto10
A6: 033-SMARHS-PLOA23 | B6: =IF(Tabela1[[#This Row],[Sigla Unidade Orçamentária]]<>"",_xlfn.XLOOKUP(Tabela1[[#This Row],[Sigla Unidade Orçamentária]],'Apoio - Lista de UOs'!A:A,'Apoio - Lista de UOs'!C:C),"") ->  | C6: SMARHS | D6: Pessoal e Folha | E6: Vencimentos Gerais | F6: Despesas com Vencimentos e Vantagens Fixas com Pessoal Civil | G6: 18 | H6: =IFERROR(VLOOKUP(Tabela1[[#This Row],[Função]],'Apoio - Funções-Programas'!A:B,2,0),"") -> GESTAO AMBIENTAL | I6: 122 | J6: =IFERROR(VLOOKUP(Tabela1[[#This Row],[Subfunção]],'Apoio - Funções-Programas'!D:E,2,0),"") -> ADMINISTRACAO GERAL | K6: 145 | L6: =IFERROR(VLOOKUP(Tabela1[[#This Row],[Programa]],'Apoio - Funções-Programas'!G:H,2,0),"") -> APOIO ADMINISTRATIVO | M6: 4955 | N6: =IFERROR(VLOOKUP(Tabela1[[#This Row],[Ação Orçamentária]],'Apoio - Lista de Ações'!A:B,2,0),"") -> Remuneração De Pessoal Ativo | O6: 1 | P6: 90 | Q6: 11 | R6: =IFERROR(VLOOKUP(Tabela1[[#This Row],[Elemento de Despesa]],'Apoio - Lista de NDs'!$A$25:$C$65,2,0),"") -> VENCIMENTOS E VANTAGENS FIXAS - PESSOAL CIVIL | S6: =IFERROR(_xlfn.IFS(Tabela1[[#This Row],[Sigla Unidade Orçamentária]]="FME","FME",Tabela1[[#This Row],[Sigla Unidade Orçamentária]]="FMAS","FMAS",Tabela1[[#This Row],[Sigla Unidade Orçamentária]]="FUNDOSAUDE","FUNDOSAUDE",Tabela1[[#This Row],[Sigla Unidade Orçamentária]]="FUNDACAOSAUDE","FUNDACAOSAUDE",Tabela1[[#This Row],[Sigla Unidade Orçamentária]]="NITPREVFIN","NITPREVFIN",Tabela1[[#This Row],[Sigla Unidade Orçamentária]]="NITPREVPREV","NITPREVPREV",Tabela1[[#This Row],[Sigla Unidade Orçamentária]]="NITPREV","NITPREV",Tabela1[[#This Row],[Sigla Unidade Orçamentária]]="EMUSA","EMUSA",Tabela1[[#This Row],[Sigla Unidade Orçamentária]]="FIA","FIA",Tabela1[[#This Row],[Sigla Unidade Orçamentária]]="CMN","CMN",(_xlfn.XLOOKUP(Tabela1[[#This Row],[Sigla Unidade Orçamentária]],'Apoio - Lista de UOs'!A:A,'Apoio - Lista de UOs'!E:E)="01"),"Direta"),"INDIRETAS_GERAL") -> INDIRETAS_GERAL | T6: 114 | U6: =IFERROR(VLOOKUP(Tabela1[[#This Row],[Fonte de Recursos (antiga)]],'ListaFontes (Interno)'!BP:BQ,2,0),"") -> Transferências Constitucionais Provenientes De Impostos | V6: =IFERROR(IF(Tabela1[[#This Row],[Fonte de Recursos (antiga)]]<>"",_xlfn.CONCAT("FONTE",Tabela1[[#This Row],[Fonte de Recursos (antiga)]],Tabela1[[#This Row],[Classif Fonte]]),""),"") ->  | W6: 500 | X6: =IFERROR(VLOOKUP(Tabela1[[#This Row],[Fonte de Recursos (atualizada)]],'Apoio - Lista de Novas Fontes'!B:C,2,0),"") -> Recursos não Vinculados de Impostos | Y6: =IFERROR(IF(Tabela1[[#This Row],[Fonte de Recursos (antiga)]]<>"",_xlfn.CONCAT("DETALHAMENTO",Tabela1[[#This Row],[Fonte de Recursos (atualizada)]]),""),"") ->  | Z6: 14 | AA6: =IFERROR(VLOOKUP(Tabela1[[#This Row],[Detalhamento da Fonte de Recursos (atualizada)]],'Apoio - Detalhamentos Fontes'!B:C,2,0),"") -> Transferências Constitucionais de Impostos | AB6: MUNICIPIO DE NITEROI | AD6: 1415136 | AE6: 1415136 | AF6: Despesa prevista com folha de pagamento desta unidade. | AG6: Não | AN6: =IFERROR(VLOOKUP(Tabela1[[#This Row],[Subfunção]],'Apoio - Funções-Programas'!AH:AI,2,0),"") ->  | AU6: =IF(Tabela1[[#This Row],[Programa]]="","Não apto","Apto") -> Apto | AV6: =IF(Tabela1[[#This Row],[Ação Orçamentária]]="","Não apto","Apto1") -> Apto1 | AW6: =IF(Tabela1[[#This Row],[Grupo de Natureza de Despesa (GND)]]="","Não apto","Apto4") -> Apto4 | AX6: =IF(Tabela1[[#This Row],[Modalidade de Aplicação (MA)]]="","Não apto","Apto5") -> Apto5 | AY6: =IF(OR(Tabela1[[#This Row],[Fonte de Recursos (antiga)]]="",Tabela1[[#This Row],[Fonte de Recursos (atualizada)]]="",Tabela1[[#This Row],[Detalhamento da Fonte de Recursos (atualizada)]]=""),"Não apto","Apto6") -> Apto6 | AZ6: =IF(OR(Tabela1[[#This Row],[Sigla Unidade Orçamentária]]=""),"Não apto","Apto6") -> Apto6 | BA6: =IF(OR(Tabela1[[#This Row],[Categoria (PO)]]=""),"Não apto","Apto7") -> Apto7 | BB6: =IF(OR(Tabela1[[#This Row],[Descrição da Despesa]]=""),"Não apto","Apto8") -> Apto8 | BC6: =IF(OR(Tabela1[[#This Row],[Função]]=""),"Não apto","Apto9") -> Apto9 | BD6: =IF(OR(Tabela1[[#This Row],[Subfunção]]=""),"Não apto","Apto10") -> Apto10
A7: 038-SMARHS-PLOA23 | B7: =IF(Tabela1[[#This Row],[Sigla Unidade Orçamentária]]<>"",_xlfn.XLOOKUP(Tabela1[[#This Row],[Sigla Unidade Orçamentária]],'Apoio - Lista de UOs'!A:A,'Apoio - Lista de UOs'!C:C),"") ->  | C7: SMARHS | D7: [Não encontrado] | E7: [Não encontrado] | F7: Despesas com manutenção do Programa Veterinário Municipal (Emenda LDO). | G7: 18 | H7: =IFERROR(VLOOKUP(Tabela1[[#This Row],[Função]],'Apoio - Funções-Programas'!A:B,2,0),"") -> GESTAO AMBIENTAL | I7: 305 | J7: =IFERROR(VLOOKUP(Tabela1[[#This Row],[Subfunção]],'Apoio - Funções-Programas'!D:E,2,0),"") -> VIGILANCIA EPIDEMIOLOGICA | K7: 114 | L7: =IFERROR(VLOOKUP(Tabela1[[#This Row],[Programa]],'Apoio - Funções-Programas'!G:H,2,0),"") -> PROTEÇÃO À FAUNA | M7: 6593 | N7: =IFERROR(VLOOKUP(Tabela1[[#This Row],[Ação Orçamentária]],'Apoio - Lista de Ações'!A:B,2,0),"") -> Manutenção do Programa Veterinário Municipal | O7: 3 | P7: 90 | Q7: 39 | R7: =IFERROR(VLOOKUP(Tabela1[[#This Row],[Elemento de Despesa]],'Apoio - Lista de NDs'!$A$25:$C$65,2,0),"") -> OUTROS SERVICOS DE TERCEIROS-PESSOA JURIDICA | S7: =IFERROR(_xlfn.IFS(Tabela1[[#This Row],[Sigla Unidade Orçamentária]]="FME","FME",Tabela1[[#This Row],[Sigla Unidade Orçamentária]]="FMAS","FMAS",Tabela1[[#This Row],[Sigla Unidade Orçamentária]]="FUNDOSAUDE","FUNDOSAUDE",Tabela1[[#This Row],[Sigla Unidade Orçamentária]]="FUNDACAOSAUDE","FUNDACAOSAUDE",Tabela1[[#This Row],[Sigla Unidade Orçamentária]]="NITPREVFIN","NITPREVFIN",Tabela1[[#This Row],[Sigla Unidade Orçamentária]]="NITPREVPREV","NITPREVPREV",Tabela1[[#This Row],[Sigla Unidade Orçamentária]]="NITPREV","NITPREV",Tabela1[[#This Row],[Sigla Unidade Orçamentária]]="EMUSA","EMUSA",Tabela1[[#This Row],[Sigla Unidade Orçamentária]]="FIA","FIA",Tabela1[[#This Row],[Sigla Unidade Orçamentária]]="CMN","CMN",(_xlfn.XLOOKUP(Tabela1[[#This Row],[Sigla Unidade Orçamentária]],'Apoio - Lista de UOs'!A:A,'Apoio - Lista de UOs'!E:E)="01"),"Direta"),"INDIRETAS_GERAL") -> INDIRETAS_GERAL | T7: 138 | U7: =IFERROR(VLOOKUP(Tabela1[[#This Row],[Fonte de Recursos (antiga)]],'ListaFontes (Interno)'!BP:BQ,2,0),"") -> Compensação Financeira Pela Exploração E Produção do Petróleo | V7: =IFERROR(IF(Tabela1[[#This Row],[Fonte de Recursos (antiga)]]<>"",_xlfn.CONCAT("FONTE",Tabela1[[#This Row],[Fonte de Recursos (antiga)]],Tabela1[[#This Row],[Classif Fonte]]),""),"") ->  | W7: 704 | X7: =IFERROR(VLOOKUP(Tabela1[[#This Row],[Fonte de Recursos (atualizada)]],'Apoio - Lista de Novas Fontes'!B:C,2,0),"") -> Transferência da União Referente a Royalties do Petróleo e Gás Natural | Y7: =IFERROR(IF(Tabela1[[#This Row],[Fonte de Recursos (antiga)]]<>"",_xlfn.CONCAT("DETALHAMENTO",Tabela1[[#This Row],[Fonte de Recursos (atualizada)]]),""),"") ->  | Z7: 00 | AA7: =IFERROR(VLOOKUP(Tabela1[[#This Row],[Detalhamento da Fonte de Recursos (atualizada)]],'Apoio - Detalhamentos Fontes'!B:C,2,0),"") -> Sem especificação de Recurso do Tesouro | AB7: [A Licitar] | AD7: 1000000 | AE7: 500000 | AF7: Despesa destinada a toda estrutura da Coordenadoria, Castramóvel e CCPAD. Contratação do quadro técnico. Necessária para ampliar o atendimento de castração, com isso minimizar a grande demanda. | AN7: =IFERROR(VLOOKUP(Tabela1[[#This Row],[Subfunção]],'Apoio - Funções-Programas'!AH:AI,2,0),"") ->  | AU7: =IF(Tabela1[[#This Row],[Programa]]="","Não apto","Apto") -> Apto | AV7: =IF(Tabela1[[#This Row],[Ação Orçamentária]]="","Não apto","Apto1") -> Apto1 | AW7: =IF(Tabela1[[#This Row],[Grupo de Natureza de Despesa (GND)]]="","Não apto","Apto4") -> Apto4 | AX7: =IF(Tabela1[[#This Row],[Modalidade de Aplicação (MA)]]="","Não apto","Apto5") -> Apto5 | AY7: =IF(OR(Tabela1[[#This Row],[Fonte de Recursos (antiga)]]="",Tabela1[[#This Row],[Fonte de Recursos (atualizada)]]="",Tabela1[[#This Row],[Detalhamento da Fonte de Recursos (atualizada)]]=""),"Não apto","Apto6") -> Apto6 | AZ7: =IF(OR(Tabela1[[#This Row],[Sigla Unidade Orçamentária]]=""),"Não apto","Apto6") -> Apto6 | BA7: =IF(OR(Tabela1[[#This Row],[Categoria (PO)]]=""),"Não apto","Apto7") -> Apto7 | BB7: =IF(OR(Tabela1[[#This Row],[Descrição da Despesa]]=""),"Não apto","Apto8") -> Apto8 | BC7: =IF(OR(Tabela1[[#This Row],[Função]]=""),"Não apto","Apto9") -> Apto9 | BD7: =IF(OR(Tabela1[[#This Row],[Subfunção]]=""),"Não apto","Apto10") -> Apto10
A8: 040-SMARHS-PLOA23 | B8: =IF(Tabela1[[#This Row],[Sigla Unidade Orçamentária]]<>"",_xlfn.XLOOKUP(Tabela1[[#This Row],[Sigla Unidade Orçamentária]],'Apoio - Lista de UOs'!A:A,'Apoio - Lista de UOs'!C:C),"") ->  | C8: SMARHS | D8: [Não encontrado] | E8: [Não encontrado] | F8: Despesas com Censo de Identificação e Levantamento de Fauna e Flora das Universidades Unidades de Conservação (Emenda LDO). | G8: 18 | H8: =IFERROR(VLOOKUP(Tabela1[[#This Row],[Função]],'Apoio - Funções-Programas'!A:B,2,0),"") -> GESTAO AMBIENTAL | I8: 541 | J8: =IFERROR(VLOOKUP(Tabela1[[#This Row],[Subfunção]],'Apoio - Funções-Programas'!D:E,2,0),"") -> PRESERVACAO E CONSERVACAO AMBIENTAL | K8: 114 | L8: =IFERROR(VLOOKUP(Tabela1[[#This Row],[Programa]],'Apoio - Funções-Programas'!G:H,2,0),"") -> PROTEÇÃO À FAUNA | M8: 5203 | N8: =IFERROR(VLOOKUP(Tabela1[[#This Row],[Ação Orçamentária]],'Apoio - Lista de Ações'!A:B,2,0),"") -> Censo de Identificação e Levantamento de Fauna e Flora das Universidades Unidades de Conservação | O8: 3 | P8: 90 | Q8: 39 | R8: =IFERROR(VLOOKUP(Tabela1[[#This Row],[Elemento de Despesa]],'Apoio - Lista de NDs'!$A$25:$C$65,2,0),"") -> OUTROS SERVICOS DE TERCEIROS-PESSOA JURIDICA | S8: =IFERROR(_xlfn.IFS(Tabela1[[#This Row],[Sigla Unidade Orçamentária]]="FME","FME",Tabela1[[#This Row],[Sigla Unidade Orçamentária]]="FMAS","FMAS",Tabela1[[#This Row],[Sigla Unidade Orçamentária]]="FUNDOSAUDE","FUNDOSAUDE",Tabela1[[#This Row],[Sigla Unidade Orçamentária]]="FUNDACAOSAUDE","FUNDACAOSAUDE",Tabela1[[#This Row],[Sigla Unidade Orçamentária]]="NITPREVFIN","NITPREVFIN",Tabela1[[#This Row],[Sigla Unidade Orçamentária]]="NITPREVPREV","NITPREVPREV",Tabela1[[#This Row],[Sigla Unidade Orçamentária]]="NITPREV","NITPREV",Tabela1[[#This Row],[Sigla Unidade Orçamentária]]="EMUSA","EMUSA",Tabela1[[#This Row],[Sigla Unidade Orçamentária]]="FIA","FIA",Tabela1[[#This Row],[Sigla Unidade Orçamentária]]="CMN","CMN",(_xlfn.XLOOKUP(Tabela1[[#This Row],[Sigla Unidade Orçamentária]],'Apoio - Lista de UOs'!A:A,'Apoio - Lista de UOs'!E:E)="01"),"Direta"),"INDIRETAS_GERAL") -> INDIRETAS_GERAL | T8: 138 | U8: =IFERROR(VLOOKUP(Tabela1[[#This Row],[Fonte de Recursos (antiga)]],'ListaFontes (Interno)'!BP:BQ,2,0),"") -> Compensação Financeira Pela Exploração E Produção do Petróleo | V8: =IFERROR(IF(Tabela1[[#This Row],[Fonte de Recursos (antiga)]]<>"",_xlfn.CONCAT("FONTE",Tabela1[[#This Row],[Fonte de Recursos (antiga)]],Tabela1[[#This Row],[Classif Fonte]]),""),"") ->  | W8: 704 | X8: =IFERROR(VLOOKUP(Tabela1[[#This Row],[Fonte de Recursos (atualizada)]],'Apoio - Lista de Novas Fontes'!B:C,2,0),"") -> Transferência da União Referente a Royalties do Petróleo e Gás Natural | Y8: =IFERROR(IF(Tabela1[[#This Row],[Fonte de Recursos (antiga)]]<>"",_xlfn.CONCAT("DETALHAMENTO",Tabela1[[#This Row],[Fonte de Recursos (atualizada)]]),""),"") ->  | Z8: 00 | AA8: =IFERROR(VLOOKUP(Tabela1[[#This Row],[Detalhamento da Fonte de Recursos (atualizada)]],'Apoio - Detalhamentos Fontes'!B:C,2,0),"") -> Sem especificação de Recurso do Tesouro | AB8: [A Licitar] | AD8: 350000 | AE8: 0 | AF8: Despesa prevista no FMCA | AN8: =IFERROR(VLOOKUP(Tabela1[[#This Row],[Subfunção]],'Apoio - Funções-Programas'!AH:AI,2,0),"") ->  | AU8: =IF(Tabela1[[#This Row],[Programa]]="","Não apto","Apto") -> Apto | AV8: =IF(Tabela1[[#This Row],[Ação Orçamentária]]="","Não apto","Apto1") -> Apto1 | AW8: =IF(Tabela1[[#This Row],[Grupo de Natureza de Despesa (GND)]]="","Não apto","Apto4") -> Apto4 | AX8: =IF(Tabela1[[#This Row],[Modalidade de Aplicação (MA)]]="","Não apto","Apto5") -> Apto5 | AY8: =IF(OR(Tabela1[[#This Row],[Fonte de Recursos (antiga)]]="",Tabela1[[#This Row],[Fonte de Recursos (atualizada)]]="",Tabela1[[#This Row],[Detalhamento da Fonte de Recursos (atualizada)]]=""),"Não apto","Apto6") -> Apto6 | AZ8: =IF(OR(Tabela1[[#This Row],[Sigla Unidade Orçamentária]]=""),"Não apto","Apto6") -> Apto6 | BA8: =IF(OR(Tabela1[[#This Row],[Categoria (PO)]]=""),"Não apto","Apto7") -> Apto7 | BB8: =IF(OR(Tabela1[[#This Row],[Descrição da Despesa]]=""),"Não apto","Apto8") -> Apto8 | BC8: =IF(OR(Tabela1[[#This Row],[Função]]=""),"Não apto","Apto9") -> Apto9 | BD8: =IF(OR(Tabela1[[#This Row],[Subfunção]]=""),"Não apto","Apto10") -> Apto10
A9: 037-SMARHS-PLOA23 | B9: =IF(Tabela1[[#This Row],[Sigla Unidade Orçamentária]]<>"",_xlfn.XLOOKUP(Tabela1[[#This Row],[Sigla Unidade Orçamentária]],'Apoio - Lista de UOs'!A:A,'Apoio - Lista de UOs'!C:C),"") ->  | C9: SMARHS | D9: [Não encontrado] | E9: [Não encontrado] | F9: Despesas com implementação e Operacionalização da Agricultura Urbana (Emenda LDO). | G9: 18 | H9: =IFERROR(VLOOKUP(Tabela1[[#This Row],[Função]],'Apoio - Funções-Programas'!A:B,2,0),"") -> GESTAO AMBIENTAL | I9: 541 | J9: =IFERROR(VLOOKUP(Tabela1[[#This Row],[Subfunção]],'Apoio - Funções-Programas'!D:E,2,0),"") -> PRESERVACAO E CONSERVACAO AMBIENTAL | K9: 147 | L9: =IFERROR(VLOOKUP(Tabela1[[#This Row],[Programa]],'Apoio - Funções-Programas'!G:H,2,0),"") -> CIDADE VERDE E SUSTENTÁVEL | M9: 4164 | N9: =IFERROR(VLOOKUP(Tabela1[[#This Row],[Ação Orçamentária]],'Apoio - Lista de Ações'!A:B,2,0),"") -> Implementação e Operacionalização da Agricultura Urbana | O9: 3 | P9: 90 | Q9: 39 | R9: =IFERROR(VLOOKUP(Tabela1[[#This Row],[Elemento de Despesa]],'Apoio - Lista de NDs'!$A$25:$C$65,2,0),"") -> OUTROS SERVICOS DE TERCEIROS-PESSOA JURIDICA | S9: =IFERROR(_xlfn.IFS(Tabela1[[#This Row],[Sigla Unidade Orçamentária]]="FME","FME",Tabela1[[#This Row],[Sigla Unidade Orçamentária]]="FMAS","FMAS",Tabela1[[#This Row],[Sigla Unidade Orçamentária]]="FUNDOSAUDE","FUNDOSAUDE",Tabela1[[#This Row],[Sigla Unidade Orçamentária]]="FUNDACAOSAUDE","FUNDACAOSAUDE",Tabela1[[#This Row],[Sigla Unidade Orçamentária]]="NITPREVFIN","NITPREVFIN",Tabela1[[#This Row],[Sigla Unidade Orçamentária]]="NITPREVPREV","NITPREVPREV",Tabela1[[#This Row],[Sigla Unidade Orçamentária]]="NITPREV","NITPREV",Tabela1[[#This Row],[Sigla Unidade Orçamentária]]="EMUSA","EMUSA",Tabela1[[#This Row],[Sigla Unidade Orçamentária]]="FIA","FIA",Tabela1[[#This Row],[Sigla Unidade Orçamentária]]="CMN","CMN",(_xlfn.XLOOKUP(Tabela1[[#This Row],[Sigla Unidade Orçamentária]],'Apoio - Lista de UOs'!A:A,'Apoio - Lista de UOs'!E:E)="01"),"Direta"),"INDIRETAS_GERAL") -> INDIRETAS_GERAL | T9: 138 | U9: =IFERROR(VLOOKUP(Tabela1[[#This Row],[Fonte de Recursos (antiga)]],'ListaFontes (Interno)'!BP:BQ,2,0),"") -> Compensação Financeira Pela Exploração E Produção do Petróleo | V9: =IFERROR(IF(Tabela1[[#This Row],[Fonte de Recursos (antiga)]]<>"",_xlfn.CONCAT("FONTE",Tabela1[[#This Row],[Fonte de Recursos (antiga)]],Tabela1[[#This Row],[Classif Fonte]]),""),"") ->  | W9: 704 | X9: =IFERROR(VLOOKUP(Tabela1[[#This Row],[Fonte de Recursos (atualizada)]],'Apoio - Lista de Novas Fontes'!B:C,2,0),"") -> Transferência da União Referente a Royalties do Petróleo e Gás Natural | Y9: =IFERROR(IF(Tabela1[[#This Row],[Fonte de Recursos (antiga)]]<>"",_xlfn.CONCAT("DETALHAMENTO",Tabela1[[#This Row],[Fonte de Recursos (atualizada)]]),""),"") ->  | Z9: 00 | AA9: =IFERROR(VLOOKUP(Tabela1[[#This Row],[Detalhamento da Fonte de Recursos (atualizada)]],'Apoio - Detalhamentos Fontes'!B:C,2,0),"") -> Sem especificação de Recurso do Tesouro | AB9: [A Licitar] | AC9: [A Licitar] | AD9: 300000 | AE9: 300000 | AF9: 1.0- Execução de Circuito Municipal de Feiras Agroecológicas de Niterói - Trimestral. 1.1 Aluguel de barracas padronizadas com projeto, designer e material agroecológico que privilegiem tanto os artesãos quanto os insumos renováveis locais para sua confecção (total: R$ 21.200,00). Custo de aluguel de barracas pequenas: valor individual médio R$ 300,00. subtotal de 30 barracas pequenas R$ 9.000,00 (2 diárias para 4 feiras anuais); Custo de aluguel de barracas/balcão grandes: valor individual médio R$ 1.220,00. Subtotal de 10 barracas grande R$ 12.200,00 (2 diárias para 4 feiras anuais) . 1.2 Estrutura e registro - Montagem de palco, cadeira e mesas para oficinas e recepção dos visitantes. _ R$ 80.000,00 1.3 Coordenação do Evento - Coordenar, Apoiar, Organizar e recepcionar os expesitores, convidados e visitantes durante _R$80.000,00. 1.3.1. Identidade Visual - Material de apoio , divulgação e identificação visual dos espaços no evento - R$ 20.000,00 2.0 - Prestar suporte técnico e fornecer equipamentos aos produtores agroecológicos de Niterói, com implantação e desenvolvimento das atividades agrárias em áreas produtivas do Município, incluindo criação de centros de distribuição, processamento e estocagem por regiões estratégicas. (total: R$ 120.000,00). Custo médio das ações nas principais áreas produtivas do municipio: valor médio por área produtiva R$ 30.000,00. Total de 4 áreas produtivas. 3.0 - Projeto Redes da Agroecologia Objetivo: Realizar 6 oficinas práticas de capacitação 20 produtores de Niterói a cada oficina, no decorrer do ano, em áreas de referência em produção agroecológica, criando redes de multiplicadores entre os produtores. 3.1 -Contratação de consultoria técnica especializada em agroecologia urbana. R$ 24.000,00 3.2 - Contratação e nivelamento da equipe de apoio com 2 monitores R$ 7.000,00 3.3 - Fase 1: Elaborar modelo de capacitação itinerante com visitas aos Produtores que já desenvolvem modelos de produção sustentável em Niterói onde serão aplicadas práticas de manejo colaborativo que aumentem a eficiência dos sistemas. R$ 20.000,00 Fase 2: Aplicação colaborativa de um modelo de produção escalonada de hortaliças e PANC’s em uma unidade urbana de agricultor familiar já Dapeado com 1000m². R$ 5.000,00 Fase 3: Consolidação de Práticas de comercialização em rede para atendimento a compras públicas e mercados privados. Valor Total : 76.000,00. | AN9: =IFERROR(VLOOKUP(Tabela1[[#This Row],[Subfunção]],'Apoio - Funções-Programas'!AH:AI,2,0),"") ->  | AU9: =IF(Tabela1[[#This Row],[Programa]]="","Não apto","Apto") -> Apto | AV9: =IF(Tabela1[[#This Row],[Ação Orçamentária]]="","Não apto","Apto1") -> Apto1 | AW9: =IF(Tabela1[[#This Row],[Grupo de Natureza de Despesa (GND)]]="","Não apto","Apto4") -> Apto4 | AX9: =IF(Tabela1[[#This Row],[Modalidade de Aplicação (MA)]]="","Não apto","Apto5") -> Apto5 | AY9: =IF(OR(Tabela1[[#This Row],[Fonte de Recursos (antiga)]]="",Tabela1[[#This Row],[Fonte de Recursos (atualizada)]]="",Tabela1[[#This Row],[Detalhamento da Fonte de Recursos (atualizada)]]=""),"Não apto","Apto6") -> Apto6 | AZ9: =IF(OR(Tabela1[[#This Row],[Sigla Unidade Orçamentária]]=""),"Não apto","Apto6") -> Apto6 | BA9: =IF(OR(Tabela1[[#This Row],[Categoria (PO)]]=""),"Não apto","Apto7") -> Apto7 | BB9: =IF(OR(Tabela1[[#This Row],[Descrição da Despesa]]=""),"Não apto","Apto8") -> Apto8 | BC9: =IF(OR(Tabela1[[#This Row],[Função]]=""),"Não apto","Apto9") -> Apto9 | BD9: =IF(OR(Tabela1[[#This Row],[Subfunção]]=""),"Não apto","Apto10") -> Apto10
A10: 012-SMARHS-PLOA23 | B10: =IF(Tabela1[[#This Row],[Sigla Unidade Orçamentária]]<>"",_xlfn.XLOOKUP(Tabela1[[#This Row],[Sigla Unidade Orçamentária]],'Apoio - Lista de UOs'!A:A,'Apoio - Lista de UOs'!C:C),"") ->  | C10: SMARHS | D10: Contratos e Serviços Continuados | E10: Gestão de Combustível | F10: Despesas com Transferência Orçamentária - Gasolina dos carros da SMARHS | G10: 4 | H10: =IFERROR(VLOOKUP(Tabela1[[#This Row],[Função]],'Apoio - Funções-Programas'!A:B,2,0),"") -> ADMINISTRACAO | I10: 122 | J10: =IFERROR(VLOOKUP(Tabela1[[#This Row],[Subfunção]],'Apoio - Funções-Programas'!D:E,2,0),"") -> ADMINISTRACAO GERAL | K10: 145 | L10: =IFERROR(VLOOKUP(Tabela1[[#This Row],[Programa]],'Apoio - Funções-Programas'!G:H,2,0),"") -> APOIO ADMINISTRATIVO | M10: 4191 | N10: =IFERROR(VLOOKUP(Tabela1[[#This Row],[Ação Orçamentária]],'Apoio - Lista de Ações'!A:B,2,0),"") -> Administração da Unidade | O10: 3 | P10: 90 | Q10: 39 | R10: =IFERROR(VLOOKUP(Tabela1[[#This Row],[Elemento de Despesa]],'Apoio - Lista de NDs'!$A$25:$C$65,2,0),"") -> OUTROS SERVICOS DE TERCEIROS-PESSOA JURIDICA | S10: =IFERROR(_xlfn.IFS(Tabela1[[#This Row],[Sigla Unidade Orçamentária]]="FME","FME",Tabela1[[#This Row],[Sigla Unidade Orçamentária]]="FMAS","FMAS",Tabela1[[#This Row],[Sigla Unidade Orçamentária]]="FUNDOSAUDE","FUNDOSAUDE",Tabela1[[#This Row],[Sigla Unidade Orçamentária]]="FUNDACAOSAUDE","FUNDACAOSAUDE",Tabela1[[#This Row],[Sigla Unidade Orçamentária]]="NITPREVFIN","NITPREVFIN",Tabela1[[#This Row],[Sigla Unidade Orçamentária]]="NITPREVPREV","NITPREVPREV",Tabela1[[#This Row],[Sigla Unidade Orçamentária]]="NITPREV","NITPREV",Tabela1[[#This Row],[Sigla Unidade Orçamentária]]="EMUSA","EMUSA",Tabela1[[#This Row],[Sigla Unidade Orçamentária]]="FIA","FIA",Tabela1[[#This Row],[Sigla Unidade Orçamentária]]="CMN","CMN",(_xlfn.XLOOKUP(Tabela1[[#This Row],[Sigla Unidade Orçamentária]],'Apoio - Lista de UOs'!A:A,'Apoio - Lista de UOs'!E:E)="01"),"Direta"),"INDIRETAS_GERAL") -> INDIRETAS_GERAL | T10: 138 | U10: =IFERROR(VLOOKUP(Tabela1[[#This Row],[Fonte de Recursos (antiga)]],'ListaFontes (Interno)'!BP:BQ,2,0),"") -> Compensação Financeira Pela Exploração E Produção do Petróleo | V10: =IFERROR(IF(Tabela1[[#This Row],[Fonte de Recursos (antiga)]]<>"",_xlfn.CONCAT("FONTE",Tabela1[[#This Row],[Fonte de Recursos (antiga)]],Tabela1[[#This Row],[Classif Fonte]]),""),"") ->  | W10: 704 | X10: =IFERROR(VLOOKUP(Tabela1[[#This Row],[Fonte de Recursos (atualizada)]],'Apoio - Lista de Novas Fontes'!B:C,2,0),"") -> Transferência da União Referente a Royalties do Petróleo e Gás Natural | Y10: =IFERROR(IF(Tabela1[[#This Row],[Fonte de Recursos (antiga)]]<>"",_xlfn.CONCAT("DETALHAMENTO",Tabela1[[#This Row],[Fonte de Recursos (atualizada)]]),""),"") ->  | Z10: 00 | AA10: =IFERROR(VLOOKUP(Tabela1[[#This Row],[Detalhamento da Fonte de Recursos (atualizada)]],'Apoio - Detalhamentos Fontes'!B:C,2,0),"") -> Sem especificação de Recurso do Tesouro | AB10: [Diversos] | AD10: 250000 | AE10: 250000 | AF10: Despesa prevista com uso de locomoção desta Secretaria | AN10: =IFERROR(VLOOKUP(Tabela1[[#This Row],[Subfunção]],'Apoio - Funções-Programas'!AH:AI,2,0),"") ->  | AU10: =IF(Tabela1[[#This Row],[Programa]]="","Não apto","Apto") -> Apto | AV10: =IF(Tabela1[[#This Row],[Ação Orçamentária]]="","Não apto","Apto1") -> Apto1 | AW10: =IF(Tabela1[[#This Row],[Grupo de Natureza de Despesa (GND)]]="","Não apto","Apto4") -> Apto4 | AX10: =IF(Tabela1[[#This Row],[Modalidade de Aplicação (MA)]]="","Não apto","Apto5") -> Apto5 | AY10: =IF(OR(Tabela1[[#This Row],[Fonte de Recursos (antiga)]]="",Tabela1[[#This Row],[Fonte de Recursos (atualizada)]]="",Tabela1[[#This Row],[Detalhamento da Fonte de Recursos (atualizada)]]=""),"Não apto","Apto6") -> Apto6 | AZ10: =IF(OR(Tabela1[[#This Row],[Sigla Unidade Orçamentária]]=""),"Não apto","Apto6") -> Apto6 | BA10: =IF(OR(Tabela1[[#This Row],[Categoria (PO)]]=""),"Não apto","Apto7") -> Apto7 | BB10: =IF(OR(Tabela1[[#This Row],[Descrição da Despesa]]=""),"Não apto","Apto8") -> Apto8 | BC10: =IF(OR(Tabela1[[#This Row],[Função]]=""),"Não apto","Apto9") -> Apto9 | BD10: =IF(OR(Tabela1[[#This Row],[Subfunção]]=""),"Não apto","Apto10") -> Apto10
A11: 003-SMARHS-PLOA23 | B11: =IF(Tabela1[[#This Row],[Sigla Unidade Orçamentária]]<>"",_xlfn.XLOOKUP(Tabela1[[#This Row],[Sigla Unidade Orçamentária]],'Apoio - Lista de UOs'!A:A,'Apoio - Lista de UOs'!C:C),"") ->  | C11: SMARHS | D11: Programas e Projetos | E11: PDPA | F11: Despesas com Projetos do PDPA. | G11: 18 | H11: =IFERROR(VLOOKUP(Tabela1[[#This Row],[Função]],'Apoio - Funções-Programas'!A:B,2,0),"") -> GESTAO AMBIENTAL | I11: 571 | J11: =IFERROR(VLOOKUP(Tabela1[[#This Row],[Subfunção]],'Apoio - Funções-Programas'!D:E,2,0),"") -> DESENVOLVIMENTO CIENTIFICO | K11: 149 | L11: =IFERROR(VLOOKUP(Tabela1[[#This Row],[Programa]],'Apoio - Funções-Programas'!G:H,2,0),"") -> GESTÃO PÚBLICA INOVADORA | M11: 3420 | N11: =IFERROR(VLOOKUP(Tabela1[[#This Row],[Ação Orçamentária]],'Apoio - Lista de Ações'!A:B,2,0),"") -> PDPA – Programa de Desenvolvimento de Projetos Aplicados | O11: 3 | P11: 20 | Q11: 41 | R11: =IFERROR(VLOOKUP(Tabela1[[#This Row],[Elemento de Despesa]],'Apoio - Lista de NDs'!$A$25:$C$65,2,0),"") -> CONTRIBUICOES | S11: =IFERROR(_xlfn.IFS(Tabela1[[#This Row],[Sigla Unidade Orçamentária]]="FME","FME",Tabela1[[#This Row],[Sigla Unidade Orçamentária]]="FMAS","FMAS",Tabela1[[#This Row],[Sigla Unidade Orçamentária]]="FUNDOSAUDE","FUNDOSAUDE",Tabela1[[#This Row],[Sigla Unidade Orçamentária]]="FUNDACAOSAUDE","FUNDACAOSAUDE",Tabela1[[#This Row],[Sigla Unidade Orçamentária]]="NITPREVFIN","NITPREVFIN",Tabela1[[#This Row],[Sigla Unidade Orçamentária]]="NITPREVPREV","NITPREVPREV",Tabela1[[#This Row],[Sigla Unidade Orçamentária]]="NITPREV","NITPREV",Tabela1[[#This Row],[Sigla Unidade Orçamentária]]="EMUSA","EMUSA",Tabela1[[#This Row],[Sigla Unidade Orçamentária]]="FIA","FIA",Tabela1[[#This Row],[Sigla Unidade Orçamentária]]="CMN","CMN",(_xlfn.XLOOKUP(Tabela1[[#This Row],[Sigla Unidade Orçamentária]],'Apoio - Lista de UOs'!A:A,'Apoio - Lista de UOs'!E:E)="01"),"Direta"),"INDIRETAS_GERAL") -> INDIRETAS_GERAL | T11: 138 | U11: =IFERROR(VLOOKUP(Tabela1[[#This Row],[Fonte de Recursos (antiga)]],'ListaFontes (Interno)'!BP:BQ,2,0),"") -> Compensação Financeira Pela Exploração E Produção do Petróleo | V11: =IFERROR(IF(Tabela1[[#This Row],[Fonte de Recursos (antiga)]]<>"",_xlfn.CONCAT("FONTE",Tabela1[[#This Row],[Fonte de Recursos (antiga)]],Tabela1[[#This Row],[Classif Fonte]]),""),"") ->  | W11: 704 | X11: =IFERROR(VLOOKUP(Tabela1[[#This Row],[Fonte de Recursos (atualizada)]],'Apoio - Lista de Novas Fontes'!B:C,2,0),"") -> Transferência da União Referente a Royalties do Petróleo e Gás Natural | Y11: =IFERROR(IF(Tabela1[[#This Row],[Fonte de Recursos (antiga)]]<>"",_xlfn.CONCAT("DETALHAMENTO",Tabela1[[#This Row],[Fonte de Recursos (atualizada)]]),""),"") ->  | Z11: 00 | AA11: =IFERROR(VLOOKUP(Tabela1[[#This Row],[Detalhamento da Fonte de Recursos (atualizada)]],'Apoio - Detalhamentos Fontes'!B:C,2,0),"") -> Sem especificação de Recurso do Tesouro | AB11: FUNDACAO EUCLIDES DA CUNHA DE APOIO INS | AD11: 142849 | AE11: 142849 | AF11: Garantir a execução dos projetos do PDPA, com o objetivo de estimular a sinergia entre a Universidade e a Prefeitura, em prol de melhor desenvolvimento da gestão e desempenho das questões ambientais . Em um total de 7 projetos acompanhados por essa SMARHS. | AG11: Não | AN11: =IFERROR(VLOOKUP(Tabela1[[#This Row],[Subfunção]],'Apoio - Funções-Programas'!AH:AI,2,0),"") ->  | AU11: =IF(Tabela1[[#This Row],[Programa]]="","Não apto","Apto") -> Apto | AV11: =IF(Tabela1[[#This Row],[Ação Orçamentária]]="","Não apto","Apto1") -> Apto1 | AW11: =IF(Tabela1[[#This Row],[Grupo de Natureza de Despesa (GND)]]="","Não apto","Apto4") -> Apto4 | AX11: =IF(Tabela1[[#This Row],[Modalidade de Aplicação (MA)]]="","Não apto","Apto5") -> Apto5 | AY11: =IF(OR(Tabela1[[#This Row],[Fonte de Recursos (antiga)]]="",Tabela1[[#This Row],[Fonte de Recursos (atualizada)]]="",Tabela1[[#This Row],[Detalhamento da Fonte de Recursos (atualizada)]]=""),"Não apto","Apto6") -> Apto6 | AZ11: =IF(OR(Tabela1[[#This Row],[Sigla Unidade Orçamentária]]=""),"Não apto","Apto6") -> Apto6 | BA11: =IF(OR(Tabela1[[#This Row],[Categoria (PO)]]=""),"Não apto","Apto7") -> Apto7 | BB11: =IF(OR(Tabela1[[#This Row],[Descrição da Despesa]]=""),"Não apto","Apto8") -> Apto8 | BC11: =IF(OR(Tabela1[[#This Row],[Função]]=""),"Não apto","Apto9") -> Apto9 | BD11: =IF(OR(Tabela1[[#This Row],[Subfunção]]=""),"Não apto","Apto10") -> Apto10
A12: 039-SMARHS-PLOA23 | B12: =IF(Tabela1[[#This Row],[Sigla Unidade Orçamentária]]<>"",_xlfn.XLOOKUP(Tabela1[[#This Row],[Sigla Unidade Orçamentária]],'Apoio - Lista de UOs'!A:A,'Apoio - Lista de UOs'!C:C),"") ->  | C12: SMARHS | D12: [Não encontrado] | E12: [Não encontrado] | F12: Despesas com realização da Campanha de Adoção de Animais (Emenda LDO). | G12: 18 | H12: =IFERROR(VLOOKUP(Tabela1[[#This Row],[Função]],'Apoio - Funções-Programas'!A:B,2,0),"") -> GESTAO AMBIENTAL | I12: 305 | J12: =IFERROR(VLOOKUP(Tabela1[[#This Row],[Subfunção]],'Apoio - Funções-Programas'!D:E,2,0),"") -> VIGILANCIA EPIDEMIOLOGICA | K12: 114 | L12: =IFERROR(VLOOKUP(Tabela1[[#This Row],[Programa]],'Apoio - Funções-Programas'!G:H,2,0),"") -> PROTEÇÃO À FAUNA | M12: 6594 | N12: =IFERROR(VLOOKUP(Tabela1[[#This Row],[Ação Orçamentária]],'Apoio - Lista de Ações'!A:B,2,0),"") -> Realização da Campanha de Adoção de Animais | O12: 3 | P12: 90 | Q12: 39 | R12: =IFERROR(VLOOKUP(Tabela1[[#This Row],[Elemento de Despesa]],'Apoio - Lista de NDs'!$A$25:$C$65,2,0),"") -> OUTROS SERVICOS DE TERCEIROS-PESSOA JURIDICA | S12: =IFERROR(_xlfn.IFS(Tabela1[[#This Row],[Sigla Unidade Orçamentária]]="FME","FME",Tabela1[[#This Row],[Sigla Unidade Orçamentária]]="FMAS","FMAS",Tabela1[[#This Row],[Sigla Unidade Orçamentária]]="FUNDOSAUDE","FUNDOSAUDE",Tabela1[[#This Row],[Sigla Unidade Orçamentária]]="FUNDACAOSAUDE","FUNDACAOSAUDE",Tabela1[[#This Row],[Sigla Unidade Orçamentária]]="NITPREVFIN","NITPREVFIN",Tabela1[[#This Row],[Sigla Unidade Orçamentária]]="NITPREVPREV","NITPREVPREV",Tabela1[[#This Row],[Sigla Unidade Orçamentária]]="NITPREV","NITPREV",Tabela1[[#This Row],[Sigla Unidade Orçamentária]]="EMUSA","EMUSA",Tabela1[[#This Row],[Sigla Unidade Orçamentária]]="FIA","FIA",Tabela1[[#This Row],[Sigla Unidade Orçamentária]]="CMN","CMN",(_xlfn.XLOOKUP(Tabela1[[#This Row],[Sigla Unidade Orçamentária]],'Apoio - Lista de UOs'!A:A,'Apoio - Lista de UOs'!E:E)="01"),"Direta"),"INDIRETAS_GERAL") -> INDIRETAS_GERAL | T12: 138 | U12: =IFERROR(VLOOKUP(Tabela1[[#This Row],[Fonte de Recursos (antiga)]],'ListaFontes (Interno)'!BP:BQ,2,0),"") -> Compensação Financeira Pela Exploração E Produção do Petróleo | V12: =IFERROR(IF(Tabela1[[#This Row],[Fonte de Recursos (antiga)]]<>"",_xlfn.CONCAT("FONTE",Tabela1[[#This Row],[Fonte de Recursos (antiga)]],Tabela1[[#This Row],[Classif Fonte]]),""),"") ->  | W12: 704 | X12: =IFERROR(VLOOKUP(Tabela1[[#This Row],[Fonte de Recursos (atualizada)]],'Apoio - Lista de Novas Fontes'!B:C,2,0),"") -> Transferência da União Referente a Royalties do Petróleo e Gás Natural | Y12: =IFERROR(IF(Tabela1[[#This Row],[Fonte de Recursos (antiga)]]<>"",_xlfn.CONCAT("DETALHAMENTO",Tabela1[[#This Row],[Fonte de Recursos (atualizada)]]),""),"") ->  | Z12: 00 | AA12: =IFERROR(VLOOKUP(Tabela1[[#This Row],[Detalhamento da Fonte de Recursos (atualizada)]],'Apoio - Detalhamentos Fontes'!B:C,2,0),"") -> Sem especificação de Recurso do Tesouro | AB12: [A Licitar] | AD12: 77500 | AE12: 25000 | AF12: Manutenção do Programa “Adota Niterói!” | AG12: não | AN12: =IFERROR(VLOOKUP(Tabela1[[#This Row],[Subfunção]],'Apoio - Funções-Programas'!AH:AI,2,0),"") ->  | AU12: =IF(Tabela1[[#This Row],[Programa]]="","Não apto","Apto") -> Apto | AV12: =IF(Tabela1[[#This Row],[Ação Orçamentária]]="","Não apto","Apto1") -> Apto1 | AW12: =IF(Tabela1[[#This Row],[Grupo de Natureza de Despesa (GND)]]="","Não apto","Apto4") -> Apto4 | AX12: =IF(Tabela1[[#This Row],[Modalidade de Aplicação (MA)]]="","Não apto","Apto5") -> Apto5 | AY12: =IF(OR(Tabela1[[#This Row],[Fonte de Recursos (antiga)]]="",Tabela1[[#This Row],[Fonte de Recursos (atualizada)]]="",Tabela1[[#This Row],[Detalhamento da Fonte de Recursos (atualizada)]]=""),"Não apto","Apto6") -> Apto6 | AZ12: =IF(OR(Tabela1[[#This Row],[Sigla Unidade Orçamentária]]=""),"Não apto","Apto6") -> Apto6 | BA12: =IF(OR(Tabela1[[#This Row],[Categoria (PO)]]=""),"Não apto","Apto7") -> Apto7 | BB12: =IF(OR(Tabela1[[#This Row],[Descrição da Despesa]]=""),"Não apto","Apto8") -> Apto8 | BC12: =IF(OR(Tabela1[[#This Row],[Função]]=""),"Não apto","Apto9") -> Apto9 | BD12: =IF(OR(Tabela1[[#This Row],[Subfunção]]=""),"Não apto","Apto10") -> Apto10
A13: 041-SMARHS-PLOA23 | B13: =IF(Tabela1[[#This Row],[Sigla Unidade Orçamentária]]<>"",_xlfn.XLOOKUP(Tabela1[[#This Row],[Sigla Unidade Orçamentária]],'Apoio - Lista de UOs'!A:A,'Apoio - Lista de UOs'!C:C),"") ->  | C13: SMARHS | D13: [Não encontrado] | E13: [Não encontrado] | F13: Despesas com Operação e manutenção de pistas, trilhas e caminhos das Unidades de Conservação e Áreas de Proteção Permanente (Emenda LDO). | G13: 18 | H13: =IFERROR(VLOOKUP(Tabela1[[#This Row],[Função]],'Apoio - Funções-Programas'!A:B,2,0),"") -> GESTAO AMBIENTAL | I13: 541 | J13: =IFERROR(VLOOKUP(Tabela1[[#This Row],[Subfunção]],'Apoio - Funções-Programas'!D:E,2,0),"") -> PRESERVACAO E CONSERVACAO AMBIENTAL | K13: 147 | L13: =IFERROR(VLOOKUP(Tabela1[[#This Row],[Programa]],'Apoio - Funções-Programas'!G:H,2,0),"") -> CIDADE VERDE E SUSTENTÁVEL | M13: 6048 | N13: =IFERROR(VLOOKUP(Tabela1[[#This Row],[Ação Orçamentária]],'Apoio - Lista de Ações'!A:B,2,0),"") -> Operação e manutenção de pistas, trilhas e caminhos das Unidades de Conservação e Áreas de Proteção Permanente | O13: 4 | P13: 90 | Q13: 51 | R13: =IFERROR(VLOOKUP(Tabela1[[#This Row],[Elemento de Despesa]],'Apoio - Lista de NDs'!$A$25:$C$65,2,0),"") -> OBRAS E INSTALAÇÕES | S13: =IFERROR(_xlfn.IFS(Tabela1[[#This Row],[Sigla Unidade Orçamentária]]="FME","FME",Tabela1[[#This Row],[Sigla Unidade Orçamentária]]="FMAS","FMAS",Tabela1[[#This Row],[Sigla Unidade Orçamentária]]="FUNDOSAUDE","FUNDOSAUDE",Tabela1[[#This Row],[Sigla Unidade Orçamentária]]="FUNDACAOSAUDE","FUNDACAOSAUDE",Tabela1[[#This Row],[Sigla Unidade Orçamentária]]="NITPREVFIN","NITPREVFIN",Tabela1[[#This Row],[Sigla Unidade Orçamentária]]="NITPREVPREV","NITPREVPREV",Tabela1[[#This Row],[Sigla Unidade Orçamentária]]="NITPREV","NITPREV",Tabela1[[#This Row],[Sigla Unidade Orçamentária]]="EMUSA","EMUSA",Tabela1[[#This Row],[Sigla Unidade Orçamentária]]="FIA","FIA",Tabela1[[#This Row],[Sigla Unidade Orçamentária]]="CMN","CMN",(_xlfn.XLOOKUP(Tabela1[[#This Row],[Sigla Unidade Orçamentária]],'Apoio - Lista de UOs'!A:A,'Apoio - Lista de UOs'!E:E)="01"),"Direta"),"INDIRETAS_GERAL") -> INDIRETAS_GERAL | T13: 138 | U13: =IFERROR(VLOOKUP(Tabela1[[#This Row],[Fonte de Recursos (antiga)]],'ListaFontes (Interno)'!BP:BQ,2,0),"") -> Compensação Financeira Pela Exploração E Produção do Petróleo | V13: =IFERROR(IF(Tabela1[[#This Row],[Fonte de Recursos (antiga)]]<>"",_xlfn.CONCAT("FONTE",Tabela1[[#This Row],[Fonte de Recursos (antiga)]],Tabela1[[#This Row],[Classif Fonte]]),""),"") ->  | W13: 704 | X13: =IFERROR(VLOOKUP(Tabela1[[#This Row],[Fonte de Recursos (atualizada)]],'Apoio - Lista de Novas Fontes'!B:C,2,0),"") -> Transferência da União Referente a Royalties do Petróleo e Gás Natural | Y13: =IFERROR(IF(Tabela1[[#This Row],[Fonte de Recursos (antiga)]]<>"",_xlfn.CONCAT("DETALHAMENTO",Tabela1[[#This Row],[Fonte de Recursos (atualizada)]]),""),"") ->  | Z13: 00 | AA13: =IFERROR(VLOOKUP(Tabela1[[#This Row],[Detalhamento da Fonte de Recursos (atualizada)]],'Apoio - Detalhamentos Fontes'!B:C,2,0),"") -> Sem especificação de Recurso do Tesouro | AB13: [A Licitar] | AD13: 50000 | AE13: 0 | AF13: Projeto sendo desempenhado junto a prevista junto com o NELTUR. | AN13: =IFERROR(VLOOKUP(Tabela1[[#This Row],[Subfunção]],'Apoio - Funções-Programas'!AH:AI,2,0),"") ->  | AU13: =IF(Tabela1[[#This Row],[Programa]]="","Não apto","Apto") -> Apto | AV13: =IF(Tabela1[[#This Row],[Ação Orçamentária]]="","Não apto","Apto1") -> Apto1 | AW13: =IF(Tabela1[[#This Row],[Grupo de Natureza de Despesa (GND)]]="","Não apto","Apto4") -> Apto4 | AX13: =IF(Tabela1[[#This Row],[Modalidade de Aplicação (MA)]]="","Não apto","Apto5") -> Apto5 | AY13: =IF(OR(Tabela1[[#This Row],[Fonte de Recursos (antiga)]]="",Tabela1[[#This Row],[Fonte de Recursos (atualizada)]]="",Tabela1[[#This Row],[Detalhamento da Fonte de Recursos (atualizada)]]=""),"Não apto","Apto6") -> Apto6 | AZ13: =IF(OR(Tabela1[[#This Row],[Sigla Unidade Orçamentária]]=""),"Não apto","Apto6") -> Apto6 | BA13: =IF(OR(Tabela1[[#This Row],[Categoria (PO)]]=""),"Não apto","Apto7") -> Apto7 | BB13: =IF(OR(Tabela1[[#This Row],[Descrição da Despesa]]=""),"Não apto","Apto8") -> Apto8 | BC13: =IF(OR(Tabela1[[#This Row],[Função]]=""),"Não apto","Apto9") -> Apto9 | BD13: =IF(OR(Tabela1[[#This Row],[Subfunção]]=""),"Não apto","Apto10") -> Apto10
A14: 006-SMARHS-PLOA23 | B14: =IF(Tabela1[[#This Row],[Sigla Unidade Orçamentária]]<>"",_xlfn.XLOOKUP(Tabela1[[#This Row],[Sigla Unidade Orçamentária]],'Apoio - Lista de UOs'!A:A,'Apoio - Lista de UOs'!C:C),"") ->  | C14: SMARHS | D14: Suprimento de Fundos e Ajudas de Custo | E14: Ajudas de Custo | F14: Despesas com Ajudas de Custo - Passagens | G14: 4 | H14: =IFERROR(VLOOKUP(Tabela1[[#This Row],[Função]],'Apoio - Funções-Programas'!A:B,2,0),"") -> ADMINISTRACAO | I14: 122 | J14: =IFERROR(VLOOKUP(Tabela1[[#This Row],[Subfunção]],'Apoio - Funções-Programas'!D:E,2,0),"") -> ADMINISTRACAO GERAL | K14: 145 | L14: =IFERROR(VLOOKUP(Tabela1[[#This Row],[Programa]],'Apoio - Funções-Programas'!G:H,2,0),"") -> APOIO ADMINISTRATIVO | M14: 4191 | N14: =IFERROR(VLOOKUP(Tabela1[[#This Row],[Ação Orçamentária]],'Apoio - Lista de Ações'!A:B,2,0),"") -> Administração da Unidade | O14: 3 | P14: 90 | Q14: 33 | R14: =IFERROR(VLOOKUP(Tabela1[[#This Row],[Elemento de Despesa]],'Apoio - Lista de NDs'!$A$25:$C$65,2,0),"") -> PASSAGENS E DESPESAS COM LOCOMOCAO | S14: =IFERROR(_xlfn.IFS(Tabela1[[#This Row],[Sigla Unidade Orçamentária]]="FME","FME",Tabela1[[#This Row],[Sigla Unidade Orçamentária]]="FMAS","FMAS",Tabela1[[#This Row],[Sigla Unidade Orçamentária]]="FUNDOSAUDE","FUNDOSAUDE",Tabela1[[#This Row],[Sigla Unidade Orçamentária]]="FUNDACAOSAUDE","FUNDACAOSAUDE",Tabela1[[#This Row],[Sigla Unidade Orçamentária]]="NITPREVFIN","NITPREVFIN",Tabela1[[#This Row],[Sigla Unidade Orçamentária]]="NITPREVPREV","NITPREVPREV",Tabela1[[#This Row],[Sigla Unidade Orçamentária]]="NITPREV","NITPREV",Tabela1[[#This Row],[Sigla Unidade Orçamentária]]="EMUSA","EMUSA",Tabela1[[#This Row],[Sigla Unidade Orçamentária]]="FIA","FIA",Tabela1[[#This Row],[Sigla Unidade Orçamentária]]="CMN","CMN",(_xlfn.XLOOKUP(Tabela1[[#This Row],[Sigla Unidade Orçamentária]],'Apoio - Lista de UOs'!A:A,'Apoio - Lista de UOs'!E:E)="01"),"Direta"),"INDIRETAS_GERAL") -> INDIRETAS_GERAL | T14: 100 | U14: =IFERROR(VLOOKUP(Tabela1[[#This Row],[Fonte de Recursos (antiga)]],'ListaFontes (Interno)'!BP:BQ,2,0),"") -> Ordinários Provenientes De Impostos | V14: =IFERROR(IF(Tabela1[[#This Row],[Fonte de Recursos (antiga)]]<>"",_xlfn.CONCAT("FONTE",Tabela1[[#This Row],[Fonte de Recursos (antiga)]],Tabela1[[#This Row],[Classif Fonte]]),""),"") ->  | W14: 500 | X14: =IFERROR(VLOOKUP(Tabela1[[#This Row],[Fonte de Recursos (atualizada)]],'Apoio - Lista de Novas Fontes'!B:C,2,0),"") -> Recursos não Vinculados de Impostos | Y14: =IFERROR(IF(Tabela1[[#This Row],[Fonte de Recursos (antiga)]]<>"",_xlfn.CONCAT("DETALHAMENTO",Tabela1[[#This Row],[Fonte de Recursos (atualizada)]]),""),"") ->  | Z14: 00 | AA14: =IFERROR(VLOOKUP(Tabela1[[#This Row],[Detalhamento da Fonte de Recursos (atualizada)]],'Apoio - Detalhamentos Fontes'!B:C,2,0),"") -> Sem especificação de Recurso do Tesouro | AB14: [Diversos] | AC14: [Diversos] | AD14: 27000 | AE14: 27000 | AF14: Valor estimado, afim de cobrir todas as demandas com viagens em conferência, eventos e cursos destinados ao tema Meio Ambiente . | AG14: Não | AN14: =IFERROR(VLOOKUP(Tabela1[[#This Row],[Subfunção]],'Apoio - Funções-Programas'!AH:AI,2,0),"") ->  | AU14: =IF(Tabela1[[#This Row],[Programa]]="","Não apto","Apto") -> Apto | AV14: =IF(Tabela1[[#This Row],[Ação Orçamentária]]="","Não apto","Apto1") -> Apto1 | AW14: =IF(Tabela1[[#This Row],[Grupo de Natureza de Despesa (GND)]]="","Não apto","Apto4") -> Apto4 | AX14: =IF(Tabela1[[#This Row],[Modalidade de Aplicação (MA)]]="","Não apto","Apto5") -> Apto5 | AY14: =IF(OR(Tabela1[[#This Row],[Fonte de Recursos (antiga)]]="",Tabela1[[#This Row],[Fonte de Recursos (atualizada)]]="",Tabela1[[#This Row],[Detalhamento da Fonte de Recursos (atualizada)]]=""),"Não apto","Apto6") -> Apto6 | AZ14: =IF(OR(Tabela1[[#This Row],[Sigla Unidade Orçamentária]]=""),"Não apto","Apto6") -> Apto6 | BA14: =IF(OR(Tabela1[[#This Row],[Categoria (PO)]]=""),"Não apto","Apto7") -> Apto7 | BB14: =IF(OR(Tabela1[[#This Row],[Descrição da Despesa]]=""),"Não apto","Apto8") -> Apto8 | BC14: =IF(OR(Tabela1[[#This Row],[Função]]=""),"Não apto","Apto9") -> Apto9 | BD14: =IF(OR(Tabela1[[#This Row],[Subfunção]]=""),"Não apto","Apto10") -> Apto10
A15: 043-SMARHS-PLOA23 | B15: =IF(Tabela1[[#This Row],[Sigla Unidade Orçamentária]]<>"",_xlfn.XLOOKUP(Tabela1[[#This Row],[Sigla Unidade Orçamentária]],'Apoio - Lista de UOs'!A:A,'Apoio - Lista de UOs'!C:C),"") ->  | C15: SMARHS | D15: Suprimento de Fundos e Ajudas de Custo | E15: Suprimentos de Fundo | F15: Despesas com Ajudas de Custo - Diárias | G15: 18 | H15: =IFERROR(VLOOKUP(Tabela1[[#This Row],[Função]],'Apoio - Funções-Programas'!A:B,2,0),"") -> GESTAO AMBIENTAL | I15: 122 | J15: =IFERROR(VLOOKUP(Tabela1[[#This Row],[Subfunção]],'Apoio - Funções-Programas'!D:E,2,0),"") -> ADMINISTRACAO GERAL | K15: 145 | L15: =IFERROR(VLOOKUP(Tabela1[[#This Row],[Programa]],'Apoio - Funções-Programas'!G:H,2,0),"") -> APOIO ADMINISTRATIVO | M15: 4191 | N15: =IFERROR(VLOOKUP(Tabela1[[#This Row],[Ação Orçamentária]],'Apoio - Lista de Ações'!A:B,2,0),"") -> Administração da Unidade | O15: 3 | P15: 90 | Q15: 14 | R15: =IFERROR(VLOOKUP(Tabela1[[#This Row],[Elemento de Despesa]],'Apoio - Lista de NDs'!$A$25:$C$65,2,0),"") -> DIARIAS - PESSOAL CIVIL | S15: =IFERROR(_xlfn.IFS(Tabela1[[#This Row],[Sigla Unidade Orçamentária]]="FME","FME",Tabela1[[#This Row],[Sigla Unidade Orçamentária]]="FMAS","FMAS",Tabela1[[#This Row],[Sigla Unidade Orçamentária]]="FUNDOSAUDE","FUNDOSAUDE",Tabela1[[#This Row],[Sigla Unidade Orçamentária]]="FUNDACAOSAUDE","FUNDACAOSAUDE",Tabela1[[#This Row],[Sigla Unidade Orçamentária]]="NITPREVFIN","NITPREVFIN",Tabela1[[#This Row],[Sigla Unidade Orçamentária]]="NITPREVPREV","NITPREVPREV",Tabela1[[#This Row],[Sigla Unidade Orçamentária]]="NITPREV","NITPREV",Tabela1[[#This Row],[Sigla Unidade Orçamentária]]="EMUSA","EMUSA",Tabela1[[#This Row],[Sigla Unidade Orçamentária]]="FIA","FIA",Tabela1[[#This Row],[Sigla Unidade Orçamentária]]="CMN","CMN",(_xlfn.XLOOKUP(Tabela1[[#This Row],[Sigla Unidade Orçamentária]],'Apoio - Lista de UOs'!A:A,'Apoio - Lista de UOs'!E:E)="01"),"Direta"),"INDIRETAS_GERAL") -> INDIRETAS_GERAL | T15: 100 | U15: =IFERROR(VLOOKUP(Tabela1[[#This Row],[Fonte de Recursos (antiga)]],'ListaFontes (Interno)'!BP:BQ,2,0),"") -> Ordinários Provenientes De Impostos | V15: =IFERROR(IF(Tabela1[[#This Row],[Fonte de Recursos (antiga)]]<>"",_xlfn.CONCAT("FONTE",Tabela1[[#This Row],[Fonte de Recursos (antiga)]],Tabela1[[#This Row],[Classif Fonte]]),""),"") ->  | W15: 500 | X15: =IFERROR(VLOOKUP(Tabela1[[#This Row],[Fonte de Recursos (atualizada)]],'Apoio - Lista de Novas Fontes'!B:C,2,0),"") -> Recursos não Vinculados de Impostos | Y15: =IFERROR(IF(Tabela1[[#This Row],[Fonte de Recursos (antiga)]]<>"",_xlfn.CONCAT("DETALHAMENTO",Tabela1[[#This Row],[Fonte de Recursos (atualizada)]]),""),"") ->  | Z15: 00 | AA15: =IFERROR(VLOOKUP(Tabela1[[#This Row],[Detalhamento da Fonte de Recursos (atualizada)]],'Apoio - Detalhamentos Fontes'!B:C,2,0),"") -> Sem especificação de Recurso do Tesouro | AB15: [Diversos] | AC15: [Diversos] | AD15: 14913 | AE15: 14913 | AF15: Valor estimado, afim de cobrir todas as demandas com viagens em conferência, eventos e cursos destinados ao tema Meio Ambiente . | AG15: Não | AN15: =IFERROR(VLOOKUP(Tabela1[[#This Row],[Subfunção]],'Apoio - Funções-Programas'!AH:AI,2,0),"") ->  | AU15: =IF(Tabela1[[#This Row],[Programa]]="","Não apto","Apto") -> Apto | AV15: =IF(Tabela1[[#This Row],[Ação Orçamentária]]="","Não apto","Apto1") -> Apto1 | AW15: =IF(Tabela1[[#This Row],[Grupo de Natureza de Despesa (GND)]]="","Não apto","Apto4") -> Apto4 | AX15: =IF(Tabela1[[#This Row],[Modalidade de Aplicação (MA)]]="","Não apto","Apto5") -> Apto5 | AY15: =IF(OR(Tabela1[[#This Row],[Fonte de Recursos (antiga)]]="",Tabela1[[#This Row],[Fonte de Recursos (atualizada)]]="",Tabela1[[#This Row],[Detalhamento da Fonte de Recursos (atualizada)]]=""),"Não apto","Apto6") -> Apto6 | AZ15: =IF(OR(Tabela1[[#This Row],[Sigla Unidade Orçamentária]]=""),"Não apto","Apto6") -> Apto6 | BA15: =IF(OR(Tabela1[[#This Row],[Categoria (PO)]]=""),"Não apto","Apto7") -> Apto7 | BB15: =IF(OR(Tabela1[[#This Row],[Descrição da Despesa]]=""),"Não apto","Apto8") -> Apto8 | BC15: =IF(OR(Tabela1[[#This Row],[Função]]=""),"Não apto","Apto9") -> Apto9 | BD15: =IF(OR(Tabela1[[#This Row],[Subfunção]]=""),"Não apto","Apto10") -> Apto10
A16: 001-SMARHS-PLOA23 | B16: =IF(Tabela1[[#This Row],[Sigla Unidade Orçamentária]]<>"",_xlfn.XLOOKUP(Tabela1[[#This Row],[Sigla Unidade Orçamentária]],'Apoio - Lista de UOs'!A:A,'Apoio - Lista de UOs'!C:C),"") ->  | C16: SMARHS | D16: Suprimento de Fundos e Ajudas de Custo | E16: Suprimentos de Fundo | F16: Despesas com Adiantamentos - Serviços | G16: 4 | H16: =IFERROR(VLOOKUP(Tabela1[[#This Row],[Função]],'Apoio - Funções-Programas'!A:B,2,0),"") -> ADMINISTRACAO | I16: 122 | J16: =IFERROR(VLOOKUP(Tabela1[[#This Row],[Subfunção]],'Apoio - Funções-Programas'!D:E,2,0),"") -> ADMINISTRACAO GERAL | K16: 145 | L16: =IFERROR(VLOOKUP(Tabela1[[#This Row],[Programa]],'Apoio - Funções-Programas'!G:H,2,0),"") -> APOIO ADMINISTRATIVO | M16: 4191 | N16: =IFERROR(VLOOKUP(Tabela1[[#This Row],[Ação Orçamentária]],'Apoio - Lista de Ações'!A:B,2,0),"") -> Administração da Unidade | O16: 3 | P16: 90 | Q16: 39 | R16: =IFERROR(VLOOKUP(Tabela1[[#This Row],[Elemento de Despesa]],'Apoio - Lista de NDs'!$A$25:$C$65,2,0),"") -> OUTROS SERVICOS DE TERCEIROS-PESSOA JURIDICA | S16: =IFERROR(_xlfn.IFS(Tabela1[[#This Row],[Sigla Unidade Orçamentária]]="FME","FME",Tabela1[[#This Row],[Sigla Unidade Orçamentária]]="FMAS","FMAS",Tabela1[[#This Row],[Sigla Unidade Orçamentária]]="FUNDOSAUDE","FUNDOSAUDE",Tabela1[[#This Row],[Sigla Unidade Orçamentária]]="FUNDACAOSAUDE","FUNDACAOSAUDE",Tabela1[[#This Row],[Sigla Unidade Orçamentária]]="NITPREVFIN","NITPREVFIN",Tabela1[[#This Row],[Sigla Unidade Orçamentária]]="NITPREVPREV","NITPREVPREV",Tabela1[[#This Row],[Sigla Unidade Orçamentária]]="NITPREV","NITPREV",Tabela1[[#This Row],[Sigla Unidade Orçamentária]]="EMUSA","EMUSA",Tabela1[[#This Row],[Sigla Unidade Orçamentária]]="FIA","FIA",Tabela1[[#This Row],[Sigla Unidade Orçamentária]]="CMN","CMN",(_xlfn.XLOOKUP(Tabela1[[#This Row],[Sigla Unidade Orçamentária]],'Apoio - Lista de UOs'!A:A,'Apoio - Lista de UOs'!E:E)="01"),"Direta"),"INDIRETAS_GERAL") -> INDIRETAS_GERAL | T16: 100 | U16: =IFERROR(VLOOKUP(Tabela1[[#This Row],[Fonte de Recursos (antiga)]],'ListaFontes (Interno)'!BP:BQ,2,0),"") -> Ordinários Provenientes De Impostos | V16: =IFERROR(IF(Tabela1[[#This Row],[Fonte de Recursos (antiga)]]<>"",_xlfn.CONCAT("FONTE",Tabela1[[#This Row],[Fonte de Recursos (antiga)]],Tabela1[[#This Row],[Classif Fonte]]),""),"") ->  | W16: 500 | X16: =IFERROR(VLOOKUP(Tabela1[[#This Row],[Fonte de Recursos (atualizada)]],'Apoio - Lista de Novas Fontes'!B:C,2,0),"") -> Recursos não Vinculados de Impostos | Y16: =IFERROR(IF(Tabela1[[#This Row],[Fonte de Recursos (antiga)]]<>"",_xlfn.CONCAT("DETALHAMENTO",Tabela1[[#This Row],[Fonte de Recursos (atualizada)]]),""),"") ->  | Z16: 00 | AA16: =IFERROR(VLOOKUP(Tabela1[[#This Row],[Detalhamento da Fonte de Recursos (atualizada)]],'Apoio - Detalhamentos Fontes'!B:C,2,0),"") -> Sem especificação de Recurso do Tesouro | AB16: [Diversos] | AC16: [Não Encontrado] | AD16: 4000 | AE16: 4000 | AF16: Valor referente a adiantamento de verbas ,para o CCPAD E A SMARHS | AG16: Não | AN16: =IFERROR(VLOOKUP(Tabela1[[#This Row],[Subfunção]],'Apoio - Funções-Programas'!AH:AI,2,0),"") ->  | AU16: =IF(Tabela1[[#This Row],[Programa]]="","Não apto","Apto") -> Apto | AV16: =IF(Tabela1[[#This Row],[Ação Orçamentária]]="","Não apto","Apto1") -> Apto1 | AW16: =IF(Tabela1[[#This Row],[Grupo de Natureza de Despesa (GND)]]="","Não apto","Apto4") -> Apto4 | AX16: =IF(Tabela1[[#This Row],[Modalidade de Aplicação (MA)]]="","Não apto","Apto5") -> Apto5 | AY16: =IF(OR(Tabela1[[#This Row],[Fonte de Recursos (antiga)]]="",Tabela1[[#This Row],[Fonte de Recursos (atualizada)]]="",Tabela1[[#This Row],[Detalhamento da Fonte de Recursos (atualizada)]]=""),"Não apto","Apto6") -> Apto6 | AZ16: =IF(OR(Tabela1[[#This Row],[Sigla Unidade Orçamentária]]=""),"Não apto","Apto6") -> Apto6 | BA16: =IF(OR(Tabela1[[#This Row],[Categoria (PO)]]=""),"Não apto","Apto7") -> Apto7 | BB16: =IF(OR(Tabela1[[#This Row],[Descrição da Despesa]]=""),"Não apto","Apto8") -> Apto8 | BC16: =IF(OR(Tabela1[[#This Row],[Função]]=""),"Não apto","Apto9") -> Apto9 | BD16: =IF(OR(Tabela1[[#This Row],[Subfunção]]=""),"Não apto","Apto10") -> Apto10
A17: 044-SMARHS-PLOA23 | B17: =IF(Tabela1[[#This Row],[Sigla Unidade Orçamentária]]<>"",_xlfn.XLOOKUP(Tabela1[[#This Row],[Sigla Unidade Orçamentária]],'Apoio - Lista de UOs'!A:A,'Apoio - Lista de UOs'!C:C),"") ->  | C17: SMARHS | D17: Suprimento de Fundos e Ajudas de Custo | E17: Suprimentos de Fundo | F17: Despesas com Adiantamento - Material de Consumo | G17: 18 | H17: =IFERROR(VLOOKUP(Tabela1[[#This Row],[Função]],'Apoio - Funções-Programas'!A:B,2,0),"") -> GESTAO AMBIENTAL | I17: 122 | J17: =IFERROR(VLOOKUP(Tabela1[[#This Row],[Subfunção]],'Apoio - Funções-Programas'!D:E,2,0),"") -> ADMINISTRACAO GERAL | K17: 145 | L17: =IFERROR(VLOOKUP(Tabela1[[#This Row],[Programa]],'Apoio - Funções-Programas'!G:H,2,0),"") -> APOIO ADMINISTRATIVO | M17: 4191 | N17: =IFERROR(VLOOKUP(Tabela1[[#This Row],[Ação Orçamentária]],'Apoio - Lista de Ações'!A:B,2,0),"") -> Administração da Unidade | O17: 3 | P17: 90 | Q17: 30 | R17: =IFERROR(VLOOKUP(Tabela1[[#This Row],[Elemento de Despesa]],'Apoio - Lista de NDs'!$A$25:$C$65,2,0),"") -> MATERIAL DE CONSUMO | S17: =IFERROR(_xlfn.IFS(Tabela1[[#This Row],[Sigla Unidade Orçamentária]]="FME","FME",Tabela1[[#This Row],[Sigla Unidade Orçamentária]]="FMAS","FMAS",Tabela1[[#This Row],[Sigla Unidade Orçamentária]]="FUNDOSAUDE","FUNDOSAUDE",Tabela1[[#This Row],[Sigla Unidade Orçamentária]]="FUNDACAOSAUDE","FUNDACAOSAUDE",Tabela1[[#This Row],[Sigla Unidade Orçamentária]]="NITPREVFIN","NITPREVFIN",Tabela1[[#This Row],[Sigla Unidade Orçamentária]]="NITPREVPREV","NITPREVPREV",Tabela1[[#This Row],[Sigla Unidade Orçamentária]]="NITPREV","NITPREV",Tabela1[[#This Row],[Sigla Unidade Orçamentária]]="EMUSA","EMUSA",Tabela1[[#This Row],[Sigla Unidade Orçamentária]]="FIA","FIA",Tabela1[[#This Row],[Sigla Unidade Orçamentária]]="CMN","CMN",(_xlfn.XLOOKUP(Tabela1[[#This Row],[Sigla Unidade Orçamentária]],'Apoio - Lista de UOs'!A:A,'Apoio - Lista de UOs'!E:E)="01"),"Direta"),"INDIRETAS_GERAL") -> INDIRETAS_GERAL | T17: 100 | U17: =IFERROR(VLOOKUP(Tabela1[[#This Row],[Fonte de Recursos (antiga)]],'ListaFontes (Interno)'!BP:BQ,2,0),"") -> Ordinários Provenientes De Impostos | V17: =IFERROR(IF(Tabela1[[#This Row],[Fonte de Recursos (antiga)]]<>"",_xlfn.CONCAT("FONTE",Tabela1[[#This Row],[Fonte de Recursos (antiga)]],Tabela1[[#This Row],[Classif Fonte]]),""),"") ->  | W17: 500 | X17: =IFERROR(VLOOKUP(Tabela1[[#This Row],[Fonte de Recursos (atualizada)]],'Apoio - Lista de Novas Fontes'!B:C,2,0),"") -> Recursos não Vinculados de Impostos | Y17: =IFERROR(IF(Tabela1[[#This Row],[Fonte de Recursos (antiga)]]<>"",_xlfn.CONCAT("DETALHAMENTO",Tabela1[[#This Row],[Fonte de Recursos (atualizada)]]),""),"") ->  | Z17: 00 | AA17: =IFERROR(VLOOKUP(Tabela1[[#This Row],[Detalhamento da Fonte de Recursos (atualizada)]],'Apoio - Detalhamentos Fontes'!B:C,2,0),"") -> Sem especificação de Recurso do Tesouro | AB17: [Diversos] | AC17: [Não Encontrado] | AD17: 4000 | AE17: 4000 | AF17: Valor referente a adiantamento de verbas , para o CCPAD E A SMARHS | AG17: Não | AN17: =IFERROR(VLOOKUP(Tabela1[[#This Row],[Subfunção]],'Apoio - Funções-Programas'!AH:AI,2,0),"") ->  | AU17: =IF(Tabela1[[#This Row],[Programa]]="","Não apto","Apto") -> Apto | AV17: =IF(Tabela1[[#This Row],[Ação Orçamentária]]="","Não apto","Apto1") -> Apto1 | AW17: =IF(Tabela1[[#This Row],[Grupo de Natureza de Despesa (GND)]]="","Não apto","Apto4") -> Apto4 | AX17: =IF(Tabela1[[#This Row],[Modalidade de Aplicação (MA)]]="","Não apto","Apto5") -> Apto5 | AY17: =IF(OR(Tabela1[[#This Row],[Fonte de Recursos (antiga)]]="",Tabela1[[#This Row],[Fonte de Recursos (atualizada)]]="",Tabela1[[#This Row],[Detalhamento da Fonte de Recursos (atualizada)]]=""),"Não apto","Apto6") -> Apto6 | AZ17: =IF(OR(Tabela1[[#This Row],[Sigla Unidade Orçamentária]]=""),"Não apto","Apto6") -> Apto6 | BA17: =IF(OR(Tabela1[[#This Row],[Categoria (PO)]]=""),"Não apto","Apto7") -> Apto7 | BB17: =IF(OR(Tabela1[[#This Row],[Descrição da Despesa]]=""),"Não apto","Apto8") -> Apto8 | BC17: =IF(OR(Tabela1[[#This Row],[Função]]=""),"Não apto","Apto9") -> Apto9 | BD17: =IF(OR(Tabela1[[#This Row],[Subfunção]]=""),"Não apto","Apto10") -> Apto10
A18: 045-SMARHS-PLOA23 | B18: =IF(Tabela1[[#This Row],[Sigla Unidade Orçamentária]]<>"",_xlfn.XLOOKUP(Tabela1[[#This Row],[Sigla Unidade Orçamentária]],'Apoio - Lista de UOs'!A:A,'Apoio - Lista de UOs'!C:C),"") ->  | C18: SMARHS | D18: [Não encontrado] | E18: [Não encontrado] | F18: Despesa com a compostagem urbana e o gerenciamento de resíduos sólidos da cidade de Niterói | G18: 18 | H18: =IFERROR(VLOOKUP(Tabela1[[#This Row],[Função]],'Apoio - Funções-Programas'!A:B,2,0),"") -> GESTAO AMBIENTAL | I18: 541 | J18: =IFERROR(VLOOKUP(Tabela1[[#This Row],[Subfunção]],'Apoio - Funções-Programas'!D:E,2,0),"") -> PRESERVACAO E CONSERVACAO AMBIENTAL | K18: 147 | L18: =IFERROR(VLOOKUP(Tabela1[[#This Row],[Programa]],'Apoio - Funções-Programas'!G:H,2,0),"") -> CIDADE VERDE E SUSTENTÁVEL | M18: 4163 | N18: =IFERROR(VLOOKUP(Tabela1[[#This Row],[Ação Orçamentária]],'Apoio - Lista de Ações'!A:B,2,0),"") -> Estimulo à Agricultura Familiar, Hortas Comunitárias, Feiras e Pescadores Artesanais | O18: 3 | P18: 90 | Q18: 30 | R18: =IFERROR(VLOOKUP(Tabela1[[#This Row],[Elemento de Despesa]],'Apoio - Lista de NDs'!$A$25:$C$65,2,0),"") -> MATERIAL DE CONSUMO | S18: =IFERROR(_xlfn.IFS(Tabela1[[#This Row],[Sigla Unidade Orçamentária]]="FME","FME",Tabela1[[#This Row],[Sigla Unidade Orçamentária]]="FMAS","FMAS",Tabela1[[#This Row],[Sigla Unidade Orçamentária]]="FUNDOSAUDE","FUNDOSAUDE",Tabela1[[#This Row],[Sigla Unidade Orçamentária]]="FUNDACAOSAUDE","FUNDACAOSAUDE",Tabela1[[#This Row],[Sigla Unidade Orçamentária]]="NITPREVFIN","NITPREVFIN",Tabela1[[#This Row],[Sigla Unidade Orçamentária]]="NITPREVPREV","NITPREVPREV",Tabela1[[#This Row],[Sigla Unidade Orçamentária]]="NITPREV","NITPREV",Tabela1[[#This Row],[Sigla Unidade Orçamentária]]="EMUSA","EMUSA",Tabela1[[#This Row],[Sigla Unidade Orçamentária]]="FIA","FIA",Tabela1[[#This Row],[Sigla Unidade Orçamentária]]="CMN","CMN",(_xlfn.XLOOKUP(Tabela1[[#This Row],[Sigla Unidade Orçamentária]],'Apoio - Lista de UOs'!A:A,'Apoio - Lista de UOs'!E:E)="01"),"Direta"),"INDIRETAS_GERAL") -> INDIRETAS_GERAL | T18: 138 | U18: =IFERROR(VLOOKUP(Tabela1[[#This Row],[Fonte de Recursos (antiga)]],'ListaFontes (Interno)'!BP:BQ,2,0),"") -> Compensação Financeira Pela Exploração E Produção do Petróleo | V18: =IFERROR(IF(Tabela1[[#This Row],[Fonte de Recursos (antiga)]]<>"",_xlfn.CONCAT("FONTE",Tabela1[[#This Row],[Fonte de Recursos (antiga)]],Tabela1[[#This Row],[Classif Fonte]]),""),"") ->  | W18: 704 | X18: =IFERROR(VLOOKUP(Tabela1[[#This Row],[Fonte de Recursos (atualizada)]],'Apoio - Lista de Novas Fontes'!B:C,2,0),"") -> Transferência da União Referente a Royalties do Petróleo e Gás Natural | Y18: =IFERROR(IF(Tabela1[[#This Row],[Fonte de Recursos (antiga)]]<>"",_xlfn.CONCAT("DETALHAMENTO",Tabela1[[#This Row],[Fonte de Recursos (atualizada)]]),""),"") ->  | Z18: 00 | AA18: =IFERROR(VLOOKUP(Tabela1[[#This Row],[Detalhamento da Fonte de Recursos (atualizada)]],'Apoio - Detalhamentos Fontes'!B:C,2,0),"") -> Sem especificação de Recurso do Tesouro | AC18: [Diversos] | AE18: 30000 | AF18: Fomentar a compostagem urbana e o gerenciamento de resíduos sólidos da cidade de Niterói com a criação de projetos específicos para esse fim que também estão contemplados no plano municipal de saneamento básico de Niterói. (Total de R$ 50.000,00) | AG18: Não | AQ18: NAO | AU18: =IF(Tabela1[[#This Row],[Programa]]="","Não apto","Apto") -> Apto | AV18: =IF(Tabela1[[#This Row],[Ação Orçamentária]]="","Não apto","Apto1") -> Apto1 | AW18: =IF(Tabela1[[#This Row],[Grupo de Natureza de Despesa (GND)]]="","Não apto","Apto4") -> Apto4 | AX18: =IF(Tabela1[[#This Row],[Modalidade de Aplicação (MA)]]="","Não apto","Apto5") -> Apto5 | AY18: =IF(OR(Tabela1[[#This Row],[Fonte de Recursos (antiga)]]="",Tabela1[[#This Row],[Fonte de Recursos (atualizada)]]="",Tabela1[[#This Row],[Detalhamento da Fonte de Recursos (atualizada)]]=""),"Não apto","Apto6") -> Apto6 | AZ18: =IF(OR(Tabela1[[#This Row],[Sigla Unidade Orçamentária]]=""),"Não apto","Apto6") -> Apto6 | BA18: =IF(OR(Tabela1[[#This Row],[Categoria (PO)]]=""),"Não apto","Apto7") -> Apto7 | BB18: =IF(OR(Tabela1[[#This Row],[Descrição da Despesa]]=""),"Não apto","Apto8") -> Apto8 | BC18: =IF(OR(Tabela1[[#This Row],[Função]]=""),"Não apto","Apto9") -> Apto9 | BD18: =IF(OR(Tabela1[[#This Row],[Subfunção]]=""),"Não apto","Apto10") -> Apto10
A19: =IF(Tabela1[[#This Row],[Sigla Unidade Orçamentária]]<>"",TEXT(MID(A18,1,3)+1,"000")&"-"&Tabela1[[#This Row],[Sigla Unidade Orçamentária]]&"-PLOA23","") -> 046-SMARHS-PLOA23 | B19: =IF(Tabela1[[#This Row],[Sigla Unidade Orçamentária]]<>"",_xlfn.XLOOKUP(Tabela1[[#This Row],[Sigla Unidade Orçamentária]],'Apoio - Lista de UOs'!A:A,'Apoio - Lista de UOs'!C:C),"") ->  | C19: SMARHS | D19: Contratos e Serviços Continuados | E19: Sobre Compras e Serviços Contratados | F19: Compensatória da Transoceânica - | G19: 18 | H19: =IFERROR(VLOOKUP(Tabela1[[#This Row],[Função]],'Apoio - Funções-Programas'!A:B,2,0),"") -> GESTAO AMBIENTAL | I19: 543 | J19: =IFERROR(VLOOKUP(Tabela1[[#This Row],[Subfunção]],'Apoio - Funções-Programas'!D:E,2,0),"") -> RECUPERACAO DE AREAS DEGRADADAS | K19: 132 | L19: =IFERROR(VLOOKUP(Tabela1[[#This Row],[Programa]],'Apoio - Funções-Programas'!G:H,2,0),"") -> RESILIÊNCIA A DESASTRES | M19: 3074 | N19: =IFERROR(VLOOKUP(Tabela1[[#This Row],[Ação Orçamentária]],'Apoio - Lista de Ações'!A:B,2,0),"") -> Reflorestamento De Encostas E Áreas Estratégicas | O19: 3 | P19: 90 | Q19: 39 | R19: =IFERROR(VLOOKUP(Tabela1[[#This Row],[Elemento de Despesa]],'Apoio - Lista de NDs'!$A$25:$C$65,2,0),"") -> OUTROS SERVICOS DE TERCEIROS-PESSOA JURIDICA | S19: =IFERROR(_xlfn.IFS(Tabela1[[#This Row],[Sigla Unidade Orçamentária]]="FME","FME",Tabela1[[#This Row],[Sigla Unidade Orçamentária]]="FMAS","FMAS",Tabela1[[#This Row],[Sigla Unidade Orçamentária]]="FUNDOSAUDE","FUNDOSAUDE",Tabela1[[#This Row],[Sigla Unidade Orçamentária]]="FUNDACAOSAUDE","FUNDACAOSAUDE",Tabela1[[#This Row],[Sigla Unidade Orçamentária]]="NITPREVFIN","NITPREVFIN",Tabela1[[#This Row],[Sigla Unidade Orçamentária]]="NITPREVPREV","NITPREVPREV",Tabela1[[#This Row],[Sigla Unidade Orçamentária]]="NITPREV","NITPREV",Tabela1[[#This Row],[Sigla Unidade Orçamentária]]="EMUSA","EMUSA",Tabela1[[#This Row],[Sigla Unidade Orçamentária]]="FIA","FIA",Tabela1[[#This Row],[Sigla Unidade Orçamentária]]="CMN","CMN",(_xlfn.XLOOKUP(Tabela1[[#This Row],[Sigla Unidade Orçamentária]],'Apoio - Lista de UOs'!A:A,'Apoio - Lista de UOs'!E:E)="01"),"Direta"),"INDIRETAS_GERAL") -> INDIRETAS_GERAL | T19: 138 | U19: =IFERROR(VLOOKUP(Tabela1[[#This Row],[Fonte de Recursos (antiga)]],'ListaFontes (Interno)'!BP:BQ,2,0),"") -> Compensação Financeira Pela Exploração E Produção do Petróleo | V19: =IFERROR(IF(Tabela1[[#This Row],[Fonte de Recursos (antiga)]]<>"",_xlfn.CONCAT("FONTE",Tabela1[[#This Row],[Fonte de Recursos (antiga)]],Tabela1[[#This Row],[Classif Fonte]]),""),"") ->  | W19: 704 | X19: =IFERROR(VLOOKUP(Tabela1[[#This Row],[Fonte de Recursos (atualizada)]],'Apoio - Lista de Novas Fontes'!B:C,2,0),"") -> Transferência da União Referente a Royalties do Petróleo e Gás Natural | Y19: =IFERROR(IF(Tabela1[[#This Row],[Fonte de Recursos (antiga)]]<>"",_xlfn.CONCAT("DETALHAMENTO",Tabela1[[#This Row],[Fonte de Recursos (atualizada)]]),""),"") ->  | Z19: 00 | AA19: =IFERROR(VLOOKUP(Tabela1[[#This Row],[Detalhamento da Fonte de Recursos (atualizada)]],'Apoio - Detalhamentos Fontes'!B:C,2,0),"") -> Sem especificação de Recurso do Tesouro | AC19: [A Licitar] | AE19: 250000 | AF19: Despesa com o reflorestamento dos Bairros de Jurujuba e São Francisco. Despesa licitada com a empresa Agrominas no ano 2022, na qual não ficará mais responsável pela prestação . Sendo assim , o valor está estimado para uma nova licitação no exercício de 2023 , com um novo credor. | AN19: =IFERROR(VLOOKUP(Tabela1[[#This Row],[Subfunção]],'Apoio - Funções-Programas'!AH:AI,2,0),"") ->  | AU19: =IF(Tabela1[[#This Row],[Programa]]="","Não apto","Apto") -> Apto | AV19: =IF(Tabela1[[#This Row],[Ação Orçamentária]]="","Não apto","Apto1") -> Apto1 | AW19: =IF(Tabela1[[#This Row],[Grupo de Natureza de Despesa (GND)]]="","Não apto","Apto4") -> Apto4 | AX19: =IF(Tabela1[[#This Row],[Modalidade de Aplicação (MA)]]="","Não apto","Apto5") -> Apto5 | AY19: =IF(OR(Tabela1[[#This Row],[Fonte de Recursos (antiga)]]="",Tabela1[[#This Row],[Fonte de Recursos (atualizada)]]="",Tabela1[[#This Row],[Detalhamento da Fonte de Recursos (atualizada)]]=""),"Não apto","Apto6") -> Apto6 | AZ19: =IF(OR(Tabela1[[#This Row],[Sigla Unidade Orçamentária]]=""),"Não apto","Apto6") -> Apto6 | BA19: =IF(OR(Tabela1[[#This Row],[Categoria (PO)]]=""),"Não apto","Apto7") -> Apto7 | BB19: =IF(OR(Tabela1[[#This Row],[Descrição da Despesa]]=""),"Não apto","Apto8") -> Apto8 | BC19: =IF(OR(Tabela1[[#This Row],[Função]]=""),"Não apto","Apto9") -> Apto9 | BD19: =IF(OR(Tabela1[[#This Row],[Subfunção]]=""),"Não apto","Apto10") -> Apto10
A20: =IF(Tabela1[[#This Row],[Sigla Unidade Orçamentária]]<>"",TEXT(MID(A19,1,3)+1,"000")&"-"&Tabela1[[#This Row],[Sigla Unidade Orçamentária]]&"-PLOA23","") -> 047-SMARHS-PLOA23 | B20: =IF(Tabela1[[#This Row],[Sigla Unidade Orçamentária]]<>"",_xlfn.XLOOKUP(Tabela1[[#This Row],[Sigla Unidade Orçamentária]],'Apoio - Lista de UOs'!A:A,'Apoio - Lista de UOs'!C:C),"") ->  | C20: SMARHS | D20: Programas e Projetos | E20: BNDES | F20: Despesa com Projeto de Restauração Ecológica e Inclusão Social (Convênio BNDES)- Efetuar ações de restauro ecologico Restinga | G20: 18 | H20: =IFERROR(VLOOKUP(Tabela1[[#This Row],[Função]],'Apoio - Funções-Programas'!A:B,2,0),"") -> GESTAO AMBIENTAL | I20: 541 | J20: =IFERROR(VLOOKUP(Tabela1[[#This Row],[Subfunção]],'Apoio - Funções-Programas'!D:E,2,0),"") -> PRESERVACAO E CONSERVACAO AMBIENTAL | K20: 147 | L20: =IFERROR(VLOOKUP(Tabela1[[#This Row],[Programa]],'Apoio - Funções-Programas'!G:H,2,0),"") -> CIDADE VERDE E SUSTENTÁVEL | M20: 6332 | N20: =IFERROR(VLOOKUP(Tabela1[[#This Row],[Ação Orçamentária]],'Apoio - Lista de Ações'!A:B,2,0),"") -> Estudos e Projetos de Gestão e Inovação | O20: 3 | P20: 90 | Q20: 39 | R20: =IFERROR(VLOOKUP(Tabela1[[#This Row],[Elemento de Despesa]],'Apoio - Lista de NDs'!$A$25:$C$65,2,0),"") -> OUTROS SERVICOS DE TERCEIROS-PESSOA JURIDICA | S20: =IFERROR(_xlfn.IFS(Tabela1[[#This Row],[Sigla Unidade Orçamentária]]="FME","FME",Tabela1[[#This Row],[Sigla Unidade Orçamentária]]="FMAS","FMAS",Tabela1[[#This Row],[Sigla Unidade Orçamentária]]="FUNDOSAUDE","FUNDOSAUDE",Tabela1[[#This Row],[Sigla Unidade Orçamentária]]="FUNDACAOSAUDE","FUNDACAOSAUDE",Tabela1[[#This Row],[Sigla Unidade Orçamentária]]="NITPREVFIN","NITPREVFIN",Tabela1[[#This Row],[Sigla Unidade Orçamentária]]="NITPREVPREV","NITPREVPREV",Tabela1[[#This Row],[Sigla Unidade Orçamentária]]="NITPREV","NITPREV",Tabela1[[#This Row],[Sigla Unidade Orçamentária]]="EMUSA","EMUSA",Tabela1[[#This Row],[Sigla Unidade Orçamentária]]="FIA","FIA",Tabela1[[#This Row],[Sigla Unidade Orçamentária]]="CMN","CMN",(_xlfn.XLOOKUP(Tabela1[[#This Row],[Sigla Unidade Orçamentária]],'Apoio - Lista de UOs'!A:A,'Apoio - Lista de UOs'!E:E)="01"),"Direta"),"INDIRETAS_GERAL") -> INDIRETAS_GERAL | T20: 102 | U20: =IFERROR(VLOOKUP(Tabela1[[#This Row],[Fonte de Recursos (antiga)]],'ListaFontes (Interno)'!BP:BQ,2,0),"") -> Recursos De Convênios | V20: =IFERROR(IF(Tabela1[[#This Row],[Fonte de Recursos (antiga)]]<>"",_xlfn.CONCAT("FONTE",Tabela1[[#This Row],[Fonte de Recursos (antiga)]],Tabela1[[#This Row],[Classif Fonte]]),""),"") ->  | W20: 700 | X20: =IFERROR(VLOOKUP(Tabela1[[#This Row],[Fonte de Recursos (atualizada)]],'Apoio - Lista de Novas Fontes'!B:C,2,0),"") -> Outras Transferências de Convênios ou Instrumentos Congêneres da União | Y20: =IFERROR(IF(Tabela1[[#This Row],[Fonte de Recursos (antiga)]]<>"",_xlfn.CONCAT("DETALHAMENTO",Tabela1[[#This Row],[Fonte de Recursos (atualizada)]]),""),"") ->  | Z20: 00 | AA20: =IFERROR(VLOOKUP(Tabela1[[#This Row],[Detalhamento da Fonte de Recursos (atualizada)]],'Apoio - Detalhamentos Fontes'!B:C,2,0),"") -> Sem especificação de Recurso do Tesouro | AC20: [A Licitar] | AE20: 300000 | AF20: Contratação de empresa especializada de para restauro em Ilhas (Pai, Mae ,Menina e Ilha do Veado ) média de R$9.878,16 por hectar , contando com toda logistica , material e mão de obra de restauro. | AG20: Não | AN20: =IFERROR(VLOOKUP(Tabela1[[#This Row],[Subfunção]],'Apoio - Funções-Programas'!AH:AI,2,0),"") ->  | AU20: =IF(Tabela1[[#This Row],[Programa]]="","Não apto","Apto") -> Apto | AV20: =IF(Tabela1[[#This Row],[Ação Orçamentária]]="","Não apto","Apto1") -> Apto1 | AW20: =IF(Tabela1[[#This Row],[Grupo de Natureza de Despesa (GND)]]="","Não apto","Apto4") -> Apto4 | AX20: =IF(Tabela1[[#This Row],[Modalidade de Aplicação (MA)]]="","Não apto","Apto5") -> Apto5 | AY20: =IF(OR(Tabela1[[#This Row],[Fonte de Recursos (antiga)]]="",Tabela1[[#This Row],[Fonte de Recursos (atualizada)]]="",Tabela1[[#This Row],[Detalhamento da Fonte de Recursos (atualizada)]]=""),"Não apto","Apto6") -> Apto6 | AZ20: =IF(OR(Tabela1[[#This Row],[Sigla Unidade Orçamentária]]=""),"Não apto","Apto6") -> Apto6 | BA20: =IF(OR(Tabela1[[#This Row],[Categoria (PO)]]=""),"Não apto","Apto7") -> Apto7 | BB20: =IF(OR(Tabela1[[#This Row],[Descrição da Despesa]]=""),"Não apto","Apto8") -> Apto8 | BC20: =IF(OR(Tabela1[[#This Row],[Função]]=""),"Não apto","Apto9") -> Apto9 | BD20: =IF(OR(Tabela1[[#This Row],[Subfunção]]=""),"Não apto","Apto10") -> Apto10
A21: =IF(Tabela1[[#This Row],[Sigla Unidade Orçamentária]]<>"",TEXT(MID(A20,1,3)+1,"000")&"-"&Tabela1[[#This Row],[Sigla Unidade Orçamentária]]&"-PLOA23","") -> 048-SMARHS-PLOA23 | B21: =IF(Tabela1[[#This Row],[Sigla Unidade Orçamentária]]<>"",_xlfn.XLOOKUP(Tabela1[[#This Row],[Sigla Unidade Orçamentária]],'Apoio - Lista de UOs'!A:A,'Apoio - Lista de UOs'!C:C),"") ->  | C21: SMARHS | D21: Programas e Projetos | E21: BNDES | F21: Despesa com o Projeto Restauração Ecologica e iclusão Social - Aquisição de maquinas e equimentos | G21: 18 | H21: =IFERROR(VLOOKUP(Tabela1[[#This Row],[Função]],'Apoio - Funções-Programas'!A:B,2,0),"") -> GESTAO AMBIENTAL | I21: 541 | J21: =IFERROR(VLOOKUP(Tabela1[[#This Row],[Subfunção]],'Apoio - Funções-Programas'!D:E,2,0),"") -> PRESERVACAO E CONSERVACAO AMBIENTAL | K21: 147 | L21: =IFERROR(VLOOKUP(Tabela1[[#This Row],[Programa]],'Apoio - Funções-Programas'!G:H,2,0),"") -> CIDADE VERDE E SUSTENTÁVEL | M21: 6332 | N21: =IFERROR(VLOOKUP(Tabela1[[#This Row],[Ação Orçamentária]],'Apoio - Lista de Ações'!A:B,2,0),"") -> Estudos e Projetos de Gestão e Inovação | O21: 4 | P21: 90 | Q21: 52 | R21: =IFERROR(VLOOKUP(Tabela1[[#This Row],[Elemento de Despesa]],'Apoio - Lista de NDs'!$A$25:$C$65,2,0),"") -> EQUIPAMENTOS E MATERIAL PERMANENTE | S21: =IFERROR(_xlfn.IFS(Tabela1[[#This Row],[Sigla Unidade Orçamentária]]="FME","FME",Tabela1[[#This Row],[Sigla Unidade Orçamentária]]="FMAS","FMAS",Tabela1[[#This Row],[Sigla Unidade Orçamentária]]="FUNDOSAUDE","FUNDOSAUDE",Tabela1[[#This Row],[Sigla Unidade Orçamentária]]="FUNDACAOSAUDE","FUNDACAOSAUDE",Tabela1[[#This Row],[Sigla Unidade Orçamentária]]="NITPREVFIN","NITPREVFIN",Tabela1[[#This Row],[Sigla Unidade Orçamentária]]="NITPREVPREV","NITPREVPREV",Tabela1[[#This Row],[Sigla Unidade Orçamentária]]="NITPREV","NITPREV",Tabela1[[#This Row],[Sigla Unidade Orçamentária]]="EMUSA","EMUSA",Tabela1[[#This Row],[Sigla Unidade Orçamentária]]="FIA","FIA",Tabela1[[#This Row],[Sigla Unidade Orçamentária]]="CMN","CMN",(_xlfn.XLOOKUP(Tabela1[[#This Row],[Sigla Unidade Orçamentária]],'Apoio - Lista de UOs'!A:A,'Apoio - Lista de UOs'!E:E)="01"),"Direta"),"INDIRETAS_GERAL") -> INDIRETAS_GERAL | T21: 102 | U21: =IFERROR(VLOOKUP(Tabela1[[#This Row],[Fonte de Recursos (antiga)]],'ListaFontes (Interno)'!BP:BQ,2,0),"") -> Recursos De Convênios | V21: =IFERROR(IF(Tabela1[[#This Row],[Fonte de Recursos (antiga)]]<>"",_xlfn.CONCAT("FONTE",Tabela1[[#This Row],[Fonte de Recursos (antiga)]],Tabela1[[#This Row],[Classif Fonte]]),""),"") ->  | W21: 700 | X21: =IFERROR(VLOOKUP(Tabela1[[#This Row],[Fonte de Recursos (atualizada)]],'Apoio - Lista de Novas Fontes'!B:C,2,0),"") -> Outras Transferências de Convênios ou Instrumentos Congêneres da União | Y21: =IFERROR(IF(Tabela1[[#This Row],[Fonte de Recursos (antiga)]]<>"",_xlfn.CONCAT("DETALHAMENTO",Tabela1[[#This Row],[Fonte de Recursos (atualizada)]]),""),"") ->  | Z21: 00 | AA21: =IFERROR(VLOOKUP(Tabela1[[#This Row],[Detalhamento da Fonte de Recursos (atualizada)]],'Apoio - Detalhamentos Fontes'!B:C,2,0),"") -> Sem especificação de Recurso do Tesouro | AC21: [A Licitar] | AE21: 30000 | AF21: Valor estima para a compra de equipamentos permanente no projeto. | AG21: Não | AN21: =IFERROR(VLOOKUP(Tabela1[[#This Row],[Subfunção]],'Apoio - Funções-Programas'!AH:AI,2,0),"") ->  | AU21: =IF(Tabela1[[#This Row],[Programa]]="","Não apto","Apto") -> Apto | AV21: =IF(Tabela1[[#This Row],[Ação Orçamentária]]="","Não apto","Apto1") -> Apto1 | AW21: =IF(Tabela1[[#This Row],[Grupo de Natureza de Despesa (GND)]]="","Não apto","Apto4") -> Apto4 | AX21: =IF(Tabela1[[#This Row],[Modalidade de Aplicação (MA)]]="","Não apto","Apto5") -> Apto5 | AY21: =IF(OR(Tabela1[[#This Row],[Fonte de Recursos (antiga)]]="",Tabela1[[#This Row],[Fonte de Recursos (atualizada)]]="",Tabela1[[#This Row],[Detalhamento da Fonte de Recursos (atualizada)]]=""),"Não apto","Apto6") -> Apto6 | AZ21: =IF(OR(Tabela1[[#This Row],[Sigla Unidade Orçamentária]]=""),"Não apto","Apto6") -> Apto6 | BA21: =IF(OR(Tabela1[[#This Row],[Categoria (PO)]]=""),"Não apto","Apto7") -> Apto7 | BB21: =IF(OR(Tabela1[[#This Row],[Descrição da Despesa]]=""),"Não apto","Apto8") -> Apto8 | BC21: =IF(OR(Tabela1[[#This Row],[Função]]=""),"Não apto","Apto9") -> Apto9 | BD21: =IF(OR(Tabela1[[#This Row],[Subfunção]]=""),"Não apto","Apto10") -> Apto10
A22: =IF(Tabela1[[#This Row],[Sigla Unidade Orçamentária]]<>"",TEXT(MID(A21,1,3)+1,"000")&"-"&Tabela1[[#This Row],[Sigla Unidade Orçamentária]]&"-PLOA23","") -> 049-SMARHS-PLOA23 | B22: =IF(Tabela1[[#This Row],[Sigla Unidade Orçamentária]]<>"",_xlfn.XLOOKUP(Tabela1[[#This Row],[Sigla Unidade Orçamentária]],'Apoio - Lista de UOs'!A:A,'Apoio - Lista de UOs'!C:C),"") ->  | C22: SMARHS | D22: Programas e Projetos | E22: BNDES | F22: Projeto de Restauração ecológica e inclusão social BNDES- Serviços de assessoria técnica | G22: 18 | H22: =IFERROR(VLOOKUP(Tabela1[[#This Row],[Função]],'Apoio - Funções-Programas'!A:B,2,0),"") -> GESTAO AMBIENTAL | I22: 541 | J22: =IFERROR(VLOOKUP(Tabela1[[#This Row],[Subfunção]],'Apoio - Funções-Programas'!D:E,2,0),"") -> PRESERVACAO E CONSERVACAO AMBIENTAL | K22: 147 | L22: =IFERROR(VLOOKUP(Tabela1[[#This Row],[Programa]],'Apoio - Funções-Programas'!G:H,2,0),"") -> CIDADE VERDE E SUSTENTÁVEL | M22: 6332 | N22: =IFERROR(VLOOKUP(Tabela1[[#This Row],[Ação Orçamentária]],'Apoio - Lista de Ações'!A:B,2,0),"") -> Estudos e Projetos de Gestão e Inovação | O22: 3 | P22: 90 | Q22: 35 | R22: =IFERROR(VLOOKUP(Tabela1[[#This Row],[Elemento de Despesa]],'Apoio - Lista de NDs'!$A$25:$C$65,2,0),"") -> SERVICOS DE CONSULTORIA | S22: =IFERROR(_xlfn.IFS(Tabela1[[#This Row],[Sigla Unidade Orçamentária]]="FME","FME",Tabela1[[#This Row],[Sigla Unidade Orçamentária]]="FMAS","FMAS",Tabela1[[#This Row],[Sigla Unidade Orçamentária]]="FUNDOSAUDE","FUNDOSAUDE",Tabela1[[#This Row],[Sigla Unidade Orçamentária]]="FUNDACAOSAUDE","FUNDACAOSAUDE",Tabela1[[#This Row],[Sigla Unidade Orçamentária]]="NITPREVFIN","NITPREVFIN",Tabela1[[#This Row],[Sigla Unidade Orçamentária]]="NITPREVPREV","NITPREVPREV",Tabela1[[#This Row],[Sigla Unidade Orçamentária]]="NITPREV","NITPREV",Tabela1[[#This Row],[Sigla Unidade Orçamentária]]="EMUSA","EMUSA",Tabela1[[#This Row],[Sigla Unidade Orçamentária]]="FIA","FIA",Tabela1[[#This Row],[Sigla Unidade Orçamentária]]="CMN","CMN",(_xlfn.XLOOKUP(Tabela1[[#This Row],[Sigla Unidade Orçamentária]],'Apoio - Lista de UOs'!A:A,'Apoio - Lista de UOs'!E:E)="01"),"Direta"),"INDIRETAS_GERAL") -> INDIRETAS_GERAL | T22: 102 | U22: =IFERROR(VLOOKUP(Tabela1[[#This Row],[Fonte de Recursos (antiga)]],'ListaFontes (Interno)'!BP:BQ,2,0),"") -> Recursos De Convênios | V22: =IFERROR(IF(Tabela1[[#This Row],[Fonte de Recursos (antiga)]]<>"",_xlfn.CONCAT("FONTE",Tabela1[[#This Row],[Fonte de Recursos (antiga)]],Tabela1[[#This Row],[Classif Fonte]]),""),"") ->  | W22: 700 | X22: =IFERROR(VLOOKUP(Tabela1[[#This Row],[Fonte de Recursos (atualizada)]],'Apoio - Lista de Novas Fontes'!B:C,2,0),"") -> Outras Transferências de Convênios ou Instrumentos Congêneres da União | Y22: =IFERROR(IF(Tabela1[[#This Row],[Fonte de Recursos (antiga)]]<>"",_xlfn.CONCAT("DETALHAMENTO",Tabela1[[#This Row],[Fonte de Recursos (atualizada)]]),""),"") ->  | Z22: 00 | AA22: =IFERROR(VLOOKUP(Tabela1[[#This Row],[Detalhamento da Fonte de Recursos (atualizada)]],'Apoio - Detalhamentos Fontes'!B:C,2,0),"") -> Sem especificação de Recurso do Tesouro | AC22: AGRAR CONSULTORIA E ESTUDOS TECNICOS S/C | AE22: 164500 | AF22: Pagamento da empresa AGRAR. Termo Aditivo. Contrato com duração de 40 meses | AG22: Não | AN22: =IFERROR(VLOOKUP(Tabela1[[#This Row],[Subfunção]],'Apoio - Funções-Programas'!AH:AI,2,0),"") ->  | AP22: Será realizado Termo Aditivo para renovação do contrato com o credor atual | AU22: =IF(Tabela1[[#This Row],[Programa]]="","Não apto","Apto") -> Apto | AV22: =IF(Tabela1[[#This Row],[Ação Orçamentária]]="","Não apto","Apto1") -> Apto1 | AW22: =IF(Tabela1[[#This Row],[Grupo de Natureza de Despesa (GND)]]="","Não apto","Apto4") -> Apto4 | AX22: =IF(Tabela1[[#This Row],[Modalidade de Aplicação (MA)]]="","Não apto","Apto5") -> Apto5 | AY22: =IF(OR(Tabela1[[#This Row],[Fonte de Recursos (antiga)]]="",Tabela1[[#This Row],[Fonte de Recursos (atualizada)]]="",Tabela1[[#This Row],[Detalhamento da Fonte de Recursos (atualizada)]]=""),"Não apto","Apto6") -> Apto6 | AZ22: =IF(OR(Tabela1[[#This Row],[Sigla Unidade Orçamentária]]=""),"Não apto","Apto6") -> Apto6 | BA22: =IF(OR(Tabela1[[#This Row],[Categoria (PO)]]=""),"Não apto","Apto7") -> Apto7 | BB22: =IF(OR(Tabela1[[#This Row],[Descrição da Despesa]]=""),"Não apto","Apto8") -> Apto8 | BC22: =IF(OR(Tabela1[[#This Row],[Função]]=""),"Não apto","Apto9") -> Apto9 | BD22: =IF(OR(Tabela1[[#This Row],[Subfunção]]=""),"Não apto","Apto10") -> Apto10
A23: =IF(Tabela1[[#This Row],[Sigla Unidade Orçamentária]]<>"",TEXT(MID(A22,1,3)+1,"000")&"-"&Tabela1[[#This Row],[Sigla Unidade Orçamentária]]&"-PLOA23","") -> 050-SMARHS-PLOA23 | B23: =IF(Tabela1[[#This Row],[Sigla Unidade Orçamentária]]<>"",_xlfn.XLOOKUP(Tabela1[[#This Row],[Sigla Unidade Orçamentária]],'Apoio - Lista de UOs'!A:A,'Apoio - Lista de UOs'!C:C),"") ->  | C23: SMARHS | D23: Programas e Projetos | E23: BNDES | F23: Projeto de Restauração Ecológica e Inclusão Social -Repassar de Ajuda de Custo aos Voluntarios | G23: 18 | H23: =IFERROR(VLOOKUP(Tabela1[[#This Row],[Função]],'Apoio - Funções-Programas'!A:B,2,0),"") -> GESTAO AMBIENTAL | I23: 541 | J23: =IFERROR(VLOOKUP(Tabela1[[#This Row],[Subfunção]],'Apoio - Funções-Programas'!D:E,2,0),"") -> PRESERVACAO E CONSERVACAO AMBIENTAL | K23: 147 | L23: =IFERROR(VLOOKUP(Tabela1[[#This Row],[Programa]],'Apoio - Funções-Programas'!G:H,2,0),"") -> CIDADE VERDE E SUSTENTÁVEL | M23: 6332 | N23: =IFERROR(VLOOKUP(Tabela1[[#This Row],[Ação Orçamentária]],'Apoio - Lista de Ações'!A:B,2,0),"") -> Estudos e Projetos de Gestão e Inovação | O23: 3 | P23: 90 | Q23: 39 | R23: =IFERROR(VLOOKUP(Tabela1[[#This Row],[Elemento de Despesa]],'Apoio - Lista de NDs'!$A$25:$C$65,2,0),"") -> OUTROS SERVICOS DE TERCEIROS-PESSOA JURIDICA | S23: =IFERROR(_xlfn.IFS(Tabela1[[#This Row],[Sigla Unidade Orçamentária]]="FME","FME",Tabela1[[#This Row],[Sigla Unidade Orçamentária]]="FMAS","FMAS",Tabela1[[#This Row],[Sigla Unidade Orçamentária]]="FUNDOSAUDE","FUNDOSAUDE",Tabela1[[#This Row],[Sigla Unidade Orçamentária]]="FUNDACAOSAUDE","FUNDACAOSAUDE",Tabela1[[#This Row],[Sigla Unidade Orçamentária]]="NITPREVFIN","NITPREVFIN",Tabela1[[#This Row],[Sigla Unidade Orçamentária]]="NITPREVPREV","NITPREVPREV",Tabela1[[#This Row],[Sigla Unidade Orçamentária]]="NITPREV","NITPREV",Tabela1[[#This Row],[Sigla Unidade Orçamentária]]="EMUSA","EMUSA",Tabela1[[#This Row],[Sigla Unidade Orçamentária]]="FIA","FIA",Tabela1[[#This Row],[Sigla Unidade Orçamentária]]="CMN","CMN",(_xlfn.XLOOKUP(Tabela1[[#This Row],[Sigla Unidade Orçamentária]],'Apoio - Lista de UOs'!A:A,'Apoio - Lista de UOs'!E:E)="01"),"Direta"),"INDIRETAS_GERAL") -> INDIRETAS_GERAL | T23: 102 | U23: =IFERROR(VLOOKUP(Tabela1[[#This Row],[Fonte de Recursos (antiga)]],'ListaFontes (Interno)'!BP:BQ,2,0),"") -> Recursos De Convênios | V23: =IFERROR(IF(Tabela1[[#This Row],[Fonte de Recursos (antiga)]]<>"",_xlfn.CONCAT("FONTE",Tabela1[[#This Row],[Fonte de Recursos (antiga)]],Tabela1[[#This Row],[Classif Fonte]]),""),"") ->  | W23: 700 | X23: =IFERROR(VLOOKUP(Tabela1[[#This Row],[Fonte de Recursos (atualizada)]],'Apoio - Lista de Novas Fontes'!B:C,2,0),"") -> Outras Transferências de Convênios ou Instrumentos Congêneres da União | Y23: =IFERROR(IF(Tabela1[[#This Row],[Fonte de Recursos (antiga)]]<>"",_xlfn.CONCAT("DETALHAMENTO",Tabela1[[#This Row],[Fonte de Recursos (atualizada)]]),""),"") ->  | Z23: 00 | AA23: =IFERROR(VLOOKUP(Tabela1[[#This Row],[Detalhamento da Fonte de Recursos (atualizada)]],'Apoio - Detalhamentos Fontes'!B:C,2,0),"") -> Sem especificação de Recurso do Tesouro | AC23: ESPACO CIDADANIA E OPORTUNIDADES SOCIAIS | AE23: 52800 | AF23: Ajuda de Custo aos Voluntários do Projeto. Empresa Ecos. Duração 36 meses. | AN23: =IFERROR(VLOOKUP(Tabela1[[#This Row],[Subfunção]],'Apoio - Funções-Programas'!AH:AI,2,0),"") ->  | AU23: =IF(Tabela1[[#This Row],[Programa]]="","Não apto","Apto") -> Apto | AV23: =IF(Tabela1[[#This Row],[Ação Orçamentária]]="","Não apto","Apto1") -> Apto1 | AW23: =IF(Tabela1[[#This Row],[Grupo de Natureza de Despesa (GND)]]="","Não apto","Apto4") -> Apto4 | AX23: =IF(Tabela1[[#This Row],[Modalidade de Aplicação (MA)]]="","Não apto","Apto5") -> Apto5 | AY23: =IF(OR(Tabela1[[#This Row],[Fonte de Recursos (antiga)]]="",Tabela1[[#This Row],[Fonte de Recursos (atualizada)]]="",Tabela1[[#This Row],[Detalhamento da Fonte de Recursos (atualizada)]]=""),"Não apto","Apto6") -> Apto6 | AZ23: =IF(OR(Tabela1[[#This Row],[Sigla Unidade Orçamentária]]=""),"Não apto","Apto6") -> Apto6 | BA23: =IF(OR(Tabela1[[#This Row],[Categoria (PO)]]=""),"Não apto","Apto7") -> Apto7 | BB23: =IF(OR(Tabela1[[#This Row],[Descrição da Despesa]]=""),"Não apto","Apto8") -> Apto8 | BC23: =IF(OR(Tabela1[[#This Row],[Função]]=""),"Não apto","Apto9") -> Apto9 | BD23: =IF(OR(Tabela1[[#This Row],[Subfunção]]=""),"Não apto","Apto10") -> Apto10
A24: =IF(Tabela1[[#This Row],[Sigla Unidade Orçamentária]]<>"",TEXT(MID(A23,1,3)+1,"000")&"-"&Tabela1[[#This Row],[Sigla Unidade Orçamentária]]&"-PLOA23","") -> 051-SMARHS-PLOA23 | B24: =IF(Tabela1[[#This Row],[Sigla Unidade Orçamentária]]<>"",_xlfn.XLOOKUP(Tabela1[[#This Row],[Sigla Unidade Orçamentária]],'Apoio - Lista de UOs'!A:A,'Apoio - Lista de UOs'!C:C),"") ->  | C24: SMARHS | D24: Programas e Projetos | E24: BNDES | F24: Projeto de Restauração Ecológica e Inclusão Social - convenio para bolsa iniciação cientifica - estagiarios | G24: 18 | H24: =IFERROR(VLOOKUP(Tabela1[[#This Row],[Função]],'Apoio - Funções-Programas'!A:B,2,0),"") -> GESTAO AMBIENTAL | I24: 541 | J24: =IFERROR(VLOOKUP(Tabela1[[#This Row],[Subfunção]],'Apoio - Funções-Programas'!D:E,2,0),"") -> PRESERVACAO E CONSERVACAO AMBIENTAL | K24: 147 | L24: =IFERROR(VLOOKUP(Tabela1[[#This Row],[Programa]],'Apoio - Funções-Programas'!G:H,2,0),"") -> CIDADE VERDE E SUSTENTÁVEL | M24: 6332 | N24: =IFERROR(VLOOKUP(Tabela1[[#This Row],[Ação Orçamentária]],'Apoio - Lista de Ações'!A:B,2,0),"") -> Estudos e Projetos de Gestão e Inovação | O24: 3 | P24: 90 | Q24: 36 | R24: =IFERROR(VLOOKUP(Tabela1[[#This Row],[Elemento de Despesa]],'Apoio - Lista de NDs'!$A$25:$C$65,2,0),"") -> OUTROS SERVICOS DE TERCEIROS - PESSOA FISICA | S24: =IFERROR(_xlfn.IFS(Tabela1[[#This Row],[Sigla Unidade Orçamentária]]="FME","FME",Tabela1[[#This Row],[Sigla Unidade Orçamentária]]="FMAS","FMAS",Tabela1[[#This Row],[Sigla Unidade Orçamentária]]="FUNDOSAUDE","FUNDOSAUDE",Tabela1[[#This Row],[Sigla Unidade Orçamentária]]="FUNDACAOSAUDE","FUNDACAOSAUDE",Tabela1[[#This Row],[Sigla Unidade Orçamentária]]="NITPREVFIN","NITPREVFIN",Tabela1[[#This Row],[Sigla Unidade Orçamentária]]="NITPREVPREV","NITPREVPREV",Tabela1[[#This Row],[Sigla Unidade Orçamentária]]="NITPREV","NITPREV",Tabela1[[#This Row],[Sigla Unidade Orçamentária]]="EMUSA","EMUSA",Tabela1[[#This Row],[Sigla Unidade Orçamentária]]="FIA","FIA",Tabela1[[#This Row],[Sigla Unidade Orçamentária]]="CMN","CMN",(_xlfn.XLOOKUP(Tabela1[[#This Row],[Sigla Unidade Orçamentária]],'Apoio - Lista de UOs'!A:A,'Apoio - Lista de UOs'!E:E)="01"),"Direta"),"INDIRETAS_GERAL") -> INDIRETAS_GERAL | T24: 102 | U24: =IFERROR(VLOOKUP(Tabela1[[#This Row],[Fonte de Recursos (antiga)]],'ListaFontes (Interno)'!BP:BQ,2,0),"") -> Recursos De Convênios | V24: =IFERROR(IF(Tabela1[[#This Row],[Fonte de Recursos (antiga)]]<>"",_xlfn.CONCAT("FONTE",Tabela1[[#This Row],[Fonte de Recursos (antiga)]],Tabela1[[#This Row],[Classif Fonte]]),""),"") ->  | W24: 700 | X24: =IFERROR(VLOOKUP(Tabela1[[#This Row],[Fonte de Recursos (atualizada)]],'Apoio - Lista de Novas Fontes'!B:C,2,0),"") -> Outras Transferências de Convênios ou Instrumentos Congêneres da União | Y24: =IFERROR(IF(Tabela1[[#This Row],[Fonte de Recursos (antiga)]]<>"",_xlfn.CONCAT("DETALHAMENTO",Tabela1[[#This Row],[Fonte de Recursos (atualizada)]]),""),"") ->  | Z24: 00 | AA24: =IFERROR(VLOOKUP(Tabela1[[#This Row],[Detalhamento da Fonte de Recursos (atualizada)]],'Apoio - Detalhamentos Fontes'!B:C,2,0),"") -> Sem especificação de Recurso do Tesouro | AC24: [Diversos] | AE24: 14400 | AF24: 3 bolsas cientifica por 12 meses pelo valor unitario de $400,00 (400,00x3 = $800,00 ) $1200,00x 12 meses = $14.400,00 | AG24: Não | AN24: =IFERROR(VLOOKUP(Tabela1[[#This Row],[Subfunção]],'Apoio - Funções-Programas'!AH:AI,2,0),"") ->  | AU24: =IF(Tabela1[[#This Row],[Programa]]="","Não apto","Apto") -> Apto | AV24: =IF(Tabela1[[#This Row],[Ação Orçamentária]]="","Não apto","Apto1") -> Apto1 | AW24: =IF(Tabela1[[#This Row],[Grupo de Natureza de Despesa (GND)]]="","Não apto","Apto4") -> Apto4 | AX24: =IF(Tabela1[[#This Row],[Modalidade de Aplicação (MA)]]="","Não apto","Apto5") -> Apto5 | AY24: =IF(OR(Tabela1[[#This Row],[Fonte de Recursos (antiga)]]="",Tabela1[[#This Row],[Fonte de Recursos (atualizada)]]="",Tabela1[[#This Row],[Detalhamento da Fonte de Recursos (atualizada)]]=""),"Não apto","Apto6") -> Apto6 | AZ24: =IF(OR(Tabela1[[#This Row],[Sigla Unidade Orçamentária]]=""),"Não apto","Apto6") -> Apto6 | BA24: =IF(OR(Tabela1[[#This Row],[Categoria (PO)]]=""),"Não apto","Apto7") -> Apto7 | BB24: =IF(OR(Tabela1[[#This Row],[Descrição da Despesa]]=""),"Não apto","Apto8") -> Apto8 | BC24: =IF(OR(Tabela1[[#This Row],[Função]]=""),"Não apto","Apto9") -> Apto9 | BD24: =IF(OR(Tabela1[[#This Row],[Subfunção]]=""),"Não apto","Apto10") -> Apto10
A25: =IF(Tabela1[[#This Row],[Sigla Unidade Orçamentária]]<>"",TEXT(MID(A24,1,3)+1,"000")&"-"&Tabela1[[#This Row],[Sigla Unidade Orçamentária]]&"-PLOA23","") -> 052-SMARHS-PLOA23 | B25: =IF(Tabela1[[#This Row],[Sigla Unidade Orçamentária]]<>"",_xlfn.XLOOKUP(Tabela1[[#This Row],[Sigla Unidade Orçamentária]],'Apoio - Lista de UOs'!A:A,'Apoio - Lista de UOs'!C:C),"") ->  | C25: SMARHS | D25: Programas e Projetos | E25: BNDES | F25: Projeto de Restauração Ecológica e Inclusão Social - Realização de obras e manutençao viveiros de mudas | G25: 18 | H25: =IFERROR(VLOOKUP(Tabela1[[#This Row],[Função]],'Apoio - Funções-Programas'!A:B,2,0),"") -> GESTAO AMBIENTAL | I25: 541 | J25: =IFERROR(VLOOKUP(Tabela1[[#This Row],[Subfunção]],'Apoio - Funções-Programas'!D:E,2,0),"") -> PRESERVACAO E CONSERVACAO AMBIENTAL | K25: 147 | L25: =IFERROR(VLOOKUP(Tabela1[[#This Row],[Programa]],'Apoio - Funções-Programas'!G:H,2,0),"") -> CIDADE VERDE E SUSTENTÁVEL | M25: 6332 | N25: =IFERROR(VLOOKUP(Tabela1[[#This Row],[Ação Orçamentária]],'Apoio - Lista de Ações'!A:B,2,0),"") -> Estudos e Projetos de Gestão e Inovação | O25: 4 | P25: 90 | Q25: 51 | R25: =IFERROR(VLOOKUP(Tabela1[[#This Row],[Elemento de Despesa]],'Apoio - Lista de NDs'!$A$25:$C$65,2,0),"") -> OBRAS E INSTALAÇÕES | S25: =IFERROR(_xlfn.IFS(Tabela1[[#This Row],[Sigla Unidade Orçamentária]]="FME","FME",Tabela1[[#This Row],[Sigla Unidade Orçamentária]]="FMAS","FMAS",Tabela1[[#This Row],[Sigla Unidade Orçamentária]]="FUNDOSAUDE","FUNDOSAUDE",Tabela1[[#This Row],[Sigla Unidade Orçamentária]]="FUNDACAOSAUDE","FUNDACAOSAUDE",Tabela1[[#This Row],[Sigla Unidade Orçamentária]]="NITPREVFIN","NITPREVFIN",Tabela1[[#This Row],[Sigla Unidade Orçamentária]]="NITPREVPREV","NITPREVPREV",Tabela1[[#This Row],[Sigla Unidade Orçamentária]]="NITPREV","NITPREV",Tabela1[[#This Row],[Sigla Unidade Orçamentária]]="EMUSA","EMUSA",Tabela1[[#This Row],[Sigla Unidade Orçamentária]]="FIA","FIA",Tabela1[[#This Row],[Sigla Unidade Orçamentária]]="CMN","CMN",(_xlfn.XLOOKUP(Tabela1[[#This Row],[Sigla Unidade Orçamentária]],'Apoio - Lista de UOs'!A:A,'Apoio - Lista de UOs'!E:E)="01"),"Direta"),"INDIRETAS_GERAL") -> INDIRETAS_GERAL | T25: 102 | U25: =IFERROR(VLOOKUP(Tabela1[[#This Row],[Fonte de Recursos (antiga)]],'ListaFontes (Interno)'!BP:BQ,2,0),"") -> Recursos De Convênios | V25: =IFERROR(IF(Tabela1[[#This Row],[Fonte de Recursos (antiga)]]<>"",_xlfn.CONCAT("FONTE",Tabela1[[#This Row],[Fonte de Recursos (antiga)]],Tabela1[[#This Row],[Classif Fonte]]),""),"") ->  | W25: 700 | X25: =IFERROR(VLOOKUP(Tabela1[[#This Row],[Fonte de Recursos (atualizada)]],'Apoio - Lista de Novas Fontes'!B:C,2,0),"") -> Outras Transferências de Convênios ou Instrumentos Congêneres da União | Y25: =IFERROR(IF(Tabela1[[#This Row],[Fonte de Recursos (antiga)]]<>"",_xlfn.CONCAT("DETALHAMENTO",Tabela1[[#This Row],[Fonte de Recursos (atualizada)]]),""),"") ->  | Z25: 00 | AA25: =IFERROR(VLOOKUP(Tabela1[[#This Row],[Detalhamento da Fonte de Recursos (atualizada)]],'Apoio - Detalhamentos Fontes'!B:C,2,0),"") -> Sem especificação de Recurso do Tesouro | AC25: [Diversos] | AE25: 50000 | AF25: Valor Estimado, para reparos e obras pequenas referente ao projeto. | AG25: Não | AN25: =IFERROR(VLOOKUP(Tabela1[[#This Row],[Subfunção]],'Apoio - Funções-Programas'!AH:AI,2,0),"") ->  | AU25: =IF(Tabela1[[#This Row],[Programa]]="","Não apto","Apto") -> Apto | AV25: =IF(Tabela1[[#This Row],[Ação Orçamentária]]="","Não apto","Apto1") -> Apto1 | AW25: =IF(Tabela1[[#This Row],[Grupo de Natureza de Despesa (GND)]]="","Não apto","Apto4") -> Apto4 | AX25: =IF(Tabela1[[#This Row],[Modalidade de Aplicação (MA)]]="","Não apto","Apto5") -> Apto5 | AY25: =IF(OR(Tabela1[[#This Row],[Fonte de Recursos (antiga)]]="",Tabela1[[#This Row],[Fonte de Recursos (atualizada)]]="",Tabela1[[#This Row],[Detalhamento da Fonte de Recursos (atualizada)]]=""),"Não apto","Apto6") -> Apto6 | AZ25: =IF(OR(Tabela1[[#This Row],[Sigla Unidade Orçamentária]]=""),"Não apto","Apto6") -> Apto6 | BA25: =IF(OR(Tabela1[[#This Row],[Categoria (PO)]]=""),"Não apto","Apto7") -> Apto7 | BB25: =IF(OR(Tabela1[[#This Row],[Descrição da Despesa]]=""),"Não apto","Apto8") -> Apto8 | BC25: =IF(OR(Tabela1[[#This Row],[Função]]=""),"Não apto","Apto9") -> Apto9 | BD25: =IF(OR(Tabela1[[#This Row],[Subfunção]]=""),"Não apto","Apto10") -> Apto10
A26: =IF(Tabela1[[#This Row],[Sigla Unidade Orçamentária]]<>"",TEXT(MID(A25,1,3)+1,"000")&"-"&Tabela1[[#This Row],[Sigla Unidade Orçamentária]]&"-PLOA23","") -> 053-SMARHS-PLOA23 | B26: =IF(Tabela1[[#This Row],[Sigla Unidade Orçamentária]]<>"",_xlfn.XLOOKUP(Tabela1[[#This Row],[Sigla Unidade Orçamentária]],'Apoio - Lista de UOs'!A:A,'Apoio - Lista de UOs'!C:C),"") ->  | C26: SMARHS | D26: Programas e Projetos | E26: BNDES | F26: Projeto de Restauração Ecológica e Inclusão Social - Administração da Unidade | G26: 18 | H26: =IFERROR(VLOOKUP(Tabela1[[#This Row],[Função]],'Apoio - Funções-Programas'!A:B,2,0),"") -> GESTAO AMBIENTAL | I26: 541 | J26: =IFERROR(VLOOKUP(Tabela1[[#This Row],[Subfunção]],'Apoio - Funções-Programas'!D:E,2,0),"") -> PRESERVACAO E CONSERVACAO AMBIENTAL | K26: 147 | L26: =IFERROR(VLOOKUP(Tabela1[[#This Row],[Programa]],'Apoio - Funções-Programas'!G:H,2,0),"") -> CIDADE VERDE E SUSTENTÁVEL | M26: 6332 | N26: =IFERROR(VLOOKUP(Tabela1[[#This Row],[Ação Orçamentária]],'Apoio - Lista de Ações'!A:B,2,0),"") -> Estudos e Projetos de Gestão e Inovação | O26: 3 | P26: 90 | Q26: 30 | R26: =IFERROR(VLOOKUP(Tabela1[[#This Row],[Elemento de Despesa]],'Apoio - Lista de NDs'!$A$25:$C$65,2,0),"") -> MATERIAL DE CONSUMO | S26: =IFERROR(_xlfn.IFS(Tabela1[[#This Row],[Sigla Unidade Orçamentária]]="FME","FME",Tabela1[[#This Row],[Sigla Unidade Orçamentária]]="FMAS","FMAS",Tabela1[[#This Row],[Sigla Unidade Orçamentária]]="FUNDOSAUDE","FUNDOSAUDE",Tabela1[[#This Row],[Sigla Unidade Orçamentária]]="FUNDACAOSAUDE","FUNDACAOSAUDE",Tabela1[[#This Row],[Sigla Unidade Orçamentária]]="NITPREVFIN","NITPREVFIN",Tabela1[[#This Row],[Sigla Unidade Orçamentária]]="NITPREVPREV","NITPREVPREV",Tabela1[[#This Row],[Sigla Unidade Orçamentária]]="NITPREV","NITPREV",Tabela1[[#This Row],[Sigla Unidade Orçamentária]]="EMUSA","EMUSA",Tabela1[[#This Row],[Sigla Unidade Orçamentária]]="FIA","FIA",Tabela1[[#This Row],[Sigla Unidade Orçamentária]]="CMN","CMN",(_xlfn.XLOOKUP(Tabela1[[#This Row],[Sigla Unidade Orçamentária]],'Apoio - Lista de UOs'!A:A,'Apoio - Lista de UOs'!E:E)="01"),"Direta"),"INDIRETAS_GERAL") -> INDIRETAS_GERAL | T26: 102 | U26: =IFERROR(VLOOKUP(Tabela1[[#This Row],[Fonte de Recursos (antiga)]],'ListaFontes (Interno)'!BP:BQ,2,0),"") -> Recursos De Convênios | V26: =IFERROR(IF(Tabela1[[#This Row],[Fonte de Recursos (antiga)]]<>"",_xlfn.CONCAT("FONTE",Tabela1[[#This Row],[Fonte de Recursos (antiga)]],Tabela1[[#This Row],[Classif Fonte]]),""),"") ->  | W26: 700 | X26: =IFERROR(VLOOKUP(Tabela1[[#This Row],[Fonte de Recursos (atualizada)]],'Apoio - Lista de Novas Fontes'!B:C,2,0),"") -> Outras Transferências de Convênios ou Instrumentos Congêneres da União | Y26: =IFERROR(IF(Tabela1[[#This Row],[Fonte de Recursos (antiga)]]<>"",_xlfn.CONCAT("DETALHAMENTO",Tabela1[[#This Row],[Fonte de Recursos (atualizada)]]),""),"") ->  | Z26: 00 | AA26: =IFERROR(VLOOKUP(Tabela1[[#This Row],[Detalhamento da Fonte de Recursos (atualizada)]],'Apoio - Detalhamentos Fontes'!B:C,2,0),"") -> Sem especificação de Recurso do Tesouro | AC26: [Diversos] | AE26: 38000 | AF26: Valor estimado para gastos com pequenos com apoio as necessidades de apoio administratrivo ao projeto. | AG26: Não | AN26: =IFERROR(VLOOKUP(Tabela1[[#This Row],[Subfunção]],'Apoio - Funções-Programas'!AH:AI,2,0),"") ->  | AU26: =IF(Tabela1[[#This Row],[Programa]]="","Não apto","Apto") -> Apto | AV26: =IF(Tabela1[[#This Row],[Ação Orçamentária]]="","Não apto","Apto1") -> Apto1 | AW26: =IF(Tabela1[[#This Row],[Grupo de Natureza de Despesa (GND)]]="","Não apto","Apto4") -> Apto4 | AX26: =IF(Tabela1[[#This Row],[Modalidade de Aplicação (MA)]]="","Não apto","Apto5") -> Apto5 | AY26: =IF(OR(Tabela1[[#This Row],[Fonte de Recursos (antiga)]]="",Tabela1[[#This Row],[Fonte de Recursos (atualizada)]]="",Tabela1[[#This Row],[Detalhamento da Fonte de Recursos (atualizada)]]=""),"Não apto","Apto6") -> Apto6 | AZ26: =IF(OR(Tabela1[[#This Row],[Sigla Unidade Orçamentária]]=""),"Não apto","Apto6") -> Apto6 | BA26: =IF(OR(Tabela1[[#This Row],[Categoria (PO)]]=""),"Não apto","Apto7") -> Apto7 | BB26: =IF(OR(Tabela1[[#This Row],[Descrição da Despesa]]=""),"Não apto","Apto8") -> Apto8 | BC26: =IF(OR(Tabela1[[#This Row],[Função]]=""),"Não apto","Apto9") -> Apto9 | BD26: =IF(OR(Tabela1[[#This Row],[Subfunção]]=""),"Não apto","Apto10") -> Apto10
A27: =IF(Tabela1[[#This Row],[Sigla Unidade Orçamentária]]<>"",TEXT(MID(A26,1,3)+1,"000")&"-"&Tabela1[[#This Row],[Sigla Unidade Orçamentária]]&"-PLOA23","") -> 054-SMARHS-PLOA23 | B27: =IF(Tabela1[[#This Row],[Sigla Unidade Orçamentária]]<>"",_xlfn.XLOOKUP(Tabela1[[#This Row],[Sigla Unidade Orçamentária]],'Apoio - Lista de UOs'!A:A,'Apoio - Lista de UOs'!C:C),"") ->  | C27: SMARHS | D27: Programas e Projetos | E27: BNDES | F27: Projeto de Restauração Ecológica e Inclusão Social - Administração da Unidade e Serviço de locação de veiculos | G27: 18 | H27: =IFERROR(VLOOKUP(Tabela1[[#This Row],[Função]],'Apoio - Funções-Programas'!A:B,2,0),"") -> GESTAO AMBIENTAL | I27: 541 | J27: =IFERROR(VLOOKUP(Tabela1[[#This Row],[Subfunção]],'Apoio - Funções-Programas'!D:E,2,0),"") -> PRESERVACAO E CONSERVACAO AMBIENTAL | K27: 147 | L27: =IFERROR(VLOOKUP(Tabela1[[#This Row],[Programa]],'Apoio - Funções-Programas'!G:H,2,0),"") -> CIDADE VERDE E SUSTENTÁVEL | M27: 6332 | N27: =IFERROR(VLOOKUP(Tabela1[[#This Row],[Ação Orçamentária]],'Apoio - Lista de Ações'!A:B,2,0),"") -> Estudos e Projetos de Gestão e Inovação | O27: 3 | P27: 90 | Q27: 39 | R27: =IFERROR(VLOOKUP(Tabela1[[#This Row],[Elemento de Despesa]],'Apoio - Lista de NDs'!$A$25:$C$65,2,0),"") -> OUTROS SERVICOS DE TERCEIROS-PESSOA JURIDICA | S27: =IFERROR(_xlfn.IFS(Tabela1[[#This Row],[Sigla Unidade Orçamentária]]="FME","FME",Tabela1[[#This Row],[Sigla Unidade Orçamentária]]="FMAS","FMAS",Tabela1[[#This Row],[Sigla Unidade Orçamentária]]="FUNDOSAUDE","FUNDOSAUDE",Tabela1[[#This Row],[Sigla Unidade Orçamentária]]="FUNDACAOSAUDE","FUNDACAOSAUDE",Tabela1[[#This Row],[Sigla Unidade Orçamentária]]="NITPREVFIN","NITPREVFIN",Tabela1[[#This Row],[Sigla Unidade Orçamentária]]="NITPREVPREV","NITPREVPREV",Tabela1[[#This Row],[Sigla Unidade Orçamentária]]="NITPREV","NITPREV",Tabela1[[#This Row],[Sigla Unidade Orçamentária]]="EMUSA","EMUSA",Tabela1[[#This Row],[Sigla Unidade Orçamentária]]="FIA","FIA",Tabela1[[#This Row],[Sigla Unidade Orçamentária]]="CMN","CMN",(_xlfn.XLOOKUP(Tabela1[[#This Row],[Sigla Unidade Orçamentária]],'Apoio - Lista de UOs'!A:A,'Apoio - Lista de UOs'!E:E)="01"),"Direta"),"INDIRETAS_GERAL") -> INDIRETAS_GERAL | T27: 102 | U27: =IFERROR(VLOOKUP(Tabela1[[#This Row],[Fonte de Recursos (antiga)]],'ListaFontes (Interno)'!BP:BQ,2,0),"") -> Recursos De Convênios | V27: =IFERROR(IF(Tabela1[[#This Row],[Fonte de Recursos (antiga)]]<>"",_xlfn.CONCAT("FONTE",Tabela1[[#This Row],[Fonte de Recursos (antiga)]],Tabela1[[#This Row],[Classif Fonte]]),""),"") ->  | W27: 700 | X27: =IFERROR(VLOOKUP(Tabela1[[#This Row],[Fonte de Recursos (atualizada)]],'Apoio - Lista de Novas Fontes'!B:C,2,0),"") -> Outras Transferências de Convênios ou Instrumentos Congêneres da União | Y27: =IFERROR(IF(Tabela1[[#This Row],[Fonte de Recursos (antiga)]]<>"",_xlfn.CONCAT("DETALHAMENTO",Tabela1[[#This Row],[Fonte de Recursos (atualizada)]]),""),"") ->  | Z27: 00 | AA27: =IFERROR(VLOOKUP(Tabela1[[#This Row],[Detalhamento da Fonte de Recursos (atualizada)]],'Apoio - Detalhamentos Fontes'!B:C,2,0),"") -> Sem especificação de Recurso do Tesouro | AC27: [Diversos] | AE27: 100702.26 | AF27: Projeto de Restauração Ecológica e Inclusão Social - Plantio de Mudas - Aluguel de Veículos para execução dos serviços (BNDES) TOP FLEX VALOR GLOBAL DE R$ 48.199,98(MENSAL R$4.016,67) E PAVCUNHA VALOR GLOBAL DE R$51.872,28(VALOR MENSAL DE R$4.322,69) | AG27: Não | AN27: =IFERROR(VLOOKUP(Tabela1[[#This Row],[Subfunção]],'Apoio - Funções-Programas'!AH:AI,2,0),"") ->  | AU27: =IF(Tabela1[[#This Row],[Programa]]="","Não apto","Apto") -> Apto | AV27: =IF(Tabela1[[#This Row],[Ação Orçamentária]]="","Não apto","Apto1") -> Apto1 | AW27: =IF(Tabela1[[#This Row],[Grupo de Natureza de Despesa (GND)]]="","Não apto","Apto4") -> Apto4 | AX27: =IF(Tabela1[[#This Row],[Modalidade de Aplicação (MA)]]="","Não apto","Apto5") -> Apto5 | AY27: =IF(OR(Tabela1[[#This Row],[Fonte de Recursos (antiga)]]="",Tabela1[[#This Row],[Fonte de Recursos (atualizada)]]="",Tabela1[[#This Row],[Detalhamento da Fonte de Recursos (atualizada)]]=""),"Não apto","Apto6") -> Apto6 | AZ27: =IF(OR(Tabela1[[#This Row],[Sigla Unidade Orçamentária]]=""),"Não apto","Apto6") -> Apto6 | BA27: =IF(OR(Tabela1[[#This Row],[Categoria (PO)]]=""),"Não apto","Apto7") -> Apto7 | BB27: =IF(OR(Tabela1[[#This Row],[Descrição da Despesa]]=""),"Não apto","Apto8") -> Apto8 | BC27: =IF(OR(Tabela1[[#This Row],[Função]]=""),"Não apto","Apto9") -> Apto9 | BD27: =IF(OR(Tabela1[[#This Row],[Subfunção]]=""),"Não apto","Apto10") -> Apto10
A28: =IF(Tabela1[[#This Row],[Sigla Unidade Orçamentária]]<>"",TEXT(MID(A27,1,3)+1,"000")&"-"&Tabela1[[#This Row],[Sigla Unidade Orçamentária]]&"-PLOA23","") -> 055-SMARHS-PLOA23 | B28: =IF(Tabela1[[#This Row],[Sigla Unidade Orçamentária]]<>"",_xlfn.XLOOKUP(Tabela1[[#This Row],[Sigla Unidade Orçamentária]],'Apoio - Lista de UOs'!A:A,'Apoio - Lista de UOs'!C:C),"") ->  | C28: SMARHS | D28: Programas e Projetos | E28: BNDES | F28: Projeto de Restauração Ecológica e Inclusão Social - Administração da Unidade /Capacitação de Pessoal | G28: 18 | H28: =IFERROR(VLOOKUP(Tabela1[[#This Row],[Função]],'Apoio - Funções-Programas'!A:B,2,0),"") -> GESTAO AMBIENTAL | I28: 541 | J28: =IFERROR(VLOOKUP(Tabela1[[#This Row],[Subfunção]],'Apoio - Funções-Programas'!D:E,2,0),"") -> PRESERVACAO E CONSERVACAO AMBIENTAL | K28: 147 | L28: =IFERROR(VLOOKUP(Tabela1[[#This Row],[Programa]],'Apoio - Funções-Programas'!G:H,2,0),"") -> CIDADE VERDE E SUSTENTÁVEL | M28: 6332 | N28: =IFERROR(VLOOKUP(Tabela1[[#This Row],[Ação Orçamentária]],'Apoio - Lista de Ações'!A:B,2,0),"") -> Estudos e Projetos de Gestão e Inovação | O28: 3 | P28: 90 | Q28: 39 | R28: =IFERROR(VLOOKUP(Tabela1[[#This Row],[Elemento de Despesa]],'Apoio - Lista de NDs'!$A$25:$C$65,2,0),"") -> OUTROS SERVICOS DE TERCEIROS-PESSOA JURIDICA | S28: =IFERROR(_xlfn.IFS(Tabela1[[#This Row],[Sigla Unidade Orçamentária]]="FME","FME",Tabela1[[#This Row],[Sigla Unidade Orçamentária]]="FMAS","FMAS",Tabela1[[#This Row],[Sigla Unidade Orçamentária]]="FUNDOSAUDE","FUNDOSAUDE",Tabela1[[#This Row],[Sigla Unidade Orçamentária]]="FUNDACAOSAUDE","FUNDACAOSAUDE",Tabela1[[#This Row],[Sigla Unidade Orçamentária]]="NITPREVFIN","NITPREVFIN",Tabela1[[#This Row],[Sigla Unidade Orçamentária]]="NITPREVPREV","NITPREVPREV",Tabela1[[#This Row],[Sigla Unidade Orçamentária]]="NITPREV","NITPREV",Tabela1[[#This Row],[Sigla Unidade Orçamentária]]="EMUSA","EMUSA",Tabela1[[#This Row],[Sigla Unidade Orçamentária]]="FIA","FIA",Tabela1[[#This Row],[Sigla Unidade Orçamentária]]="CMN","CMN",(_xlfn.XLOOKUP(Tabela1[[#This Row],[Sigla Unidade Orçamentária]],'Apoio - Lista de UOs'!A:A,'Apoio - Lista de UOs'!E:E)="01"),"Direta"),"INDIRETAS_GERAL") -> INDIRETAS_GERAL | T28: 102 | U28: =IFERROR(VLOOKUP(Tabela1[[#This Row],[Fonte de Recursos (antiga)]],'ListaFontes (Interno)'!BP:BQ,2,0),"") -> Recursos De Convênios | V28: =IFERROR(IF(Tabela1[[#This Row],[Fonte de Recursos (antiga)]]<>"",_xlfn.CONCAT("FONTE",Tabela1[[#This Row],[Fonte de Recursos (antiga)]],Tabela1[[#This Row],[Classif Fonte]]),""),"") ->  | W28: 700 | X28: =IFERROR(VLOOKUP(Tabela1[[#This Row],[Fonte de Recursos (atualizada)]],'Apoio - Lista de Novas Fontes'!B:C,2,0),"") -> Outras Transferências de Convênios ou Instrumentos Congêneres da União | Y28: =IFERROR(IF(Tabela1[[#This Row],[Fonte de Recursos (antiga)]]<>"",_xlfn.CONCAT("DETALHAMENTO",Tabela1[[#This Row],[Fonte de Recursos (atualizada)]]),""),"") ->  | Z28: 00 | AA28: =IFERROR(VLOOKUP(Tabela1[[#This Row],[Detalhamento da Fonte de Recursos (atualizada)]],'Apoio - Detalhamentos Fontes'!B:C,2,0),"") -> Sem especificação de Recurso do Tesouro | AC28: [Diversos] | AE28: 50000 | AF28: Valor estimado para capacitação em ArcGis e participações em congressos. | AG28: Não | AN28: =IFERROR(VLOOKUP(Tabela1[[#This Row],[Subfunção]],'Apoio - Funções-Programas'!AH:AI,2,0),"") ->  | AU28: =IF(Tabela1[[#This Row],[Programa]]="","Não apto","Apto") -> Apto | AV28: =IF(Tabela1[[#This Row],[Ação Orçamentária]]="","Não apto","Apto1") -> Apto1 | AW28: =IF(Tabela1[[#This Row],[Grupo de Natureza de Despesa (GND)]]="","Não apto","Apto4") -> Apto4 | AX28: =IF(Tabela1[[#This Row],[Modalidade de Aplicação (MA)]]="","Não apto","Apto5") -> Apto5 | AY28: =IF(OR(Tabela1[[#This Row],[Fonte de Recursos (antiga)]]="",Tabela1[[#This Row],[Fonte de Recursos (atualizada)]]="",Tabela1[[#This Row],[Detalhamento da Fonte de Recursos (atualizada)]]=""),"Não apto","Apto6") -> Apto6 | AZ28: =IF(OR(Tabela1[[#This Row],[Sigla Unidade Orçamentária]]=""),"Não apto","Apto6") -> Apto6 | BA28: =IF(OR(Tabela1[[#This Row],[Categoria (PO)]]=""),"Não apto","Apto7") -> Apto7 | BB28: =IF(OR(Tabela1[[#This Row],[Descrição da Despesa]]=""),"Não apto","Apto8") -> Apto8 | BC28: =IF(OR(Tabela1[[#This Row],[Função]]=""),"Não apto","Apto9") -> Apto9 | BD28: =IF(OR(Tabela1[[#This Row],[Subfunção]]=""),"Não apto","Apto10") -> Apto10
A29: =IF(Tabela1[[#This Row],[Sigla Unidade Orçamentária]]<>"",TEXT(MID(A28,1,3)+1,"000")&"-"&Tabela1[[#This Row],[Sigla Unidade Orçamentária]]&"-PLOA23","") -> 056-SMARHS-PLOA23 | B29: =IF(Tabela1[[#This Row],[Sigla Unidade Orçamentária]]<>"",_xlfn.XLOOKUP(Tabela1[[#This Row],[Sigla Unidade Orçamentária]],'Apoio - Lista de UOs'!A:A,'Apoio - Lista de UOs'!C:C),"") ->  | C29: SMARHS | D29: Programas e Projetos | E29: [Não encontrado] | F29: Despesa com ações de infraestrutura, implementação e programas de educação ambiental nas praias. Como também realizar análises fisico-quimicas de qualidade da água, dentre outras para enquadrar as praias aos parâmetros exigidos pelo programa Bandeira Azul. | G29: 18 | H29: =IFERROR(VLOOKUP(Tabela1[[#This Row],[Função]],'Apoio - Funções-Programas'!A:B,2,0),"") -> GESTAO AMBIENTAL | I29: 541 | J29: =IFERROR(VLOOKUP(Tabela1[[#This Row],[Subfunção]],'Apoio - Funções-Programas'!D:E,2,0),"") -> PRESERVACAO E CONSERVACAO AMBIENTAL | K29: 147 | L29: =IFERROR(VLOOKUP(Tabela1[[#This Row],[Programa]],'Apoio - Funções-Programas'!G:H,2,0),"") -> CIDADE VERDE E SUSTENTÁVEL | M29: 5005 | N29: =IFERROR(VLOOKUP(Tabela1[[#This Row],[Ação Orçamentária]],'Apoio - Lista de Ações'!A:B,2,0),"") -> Implantação e Manutenção do Programa Bandeira Azul nas praias | O29: 3 | P29: 90 | Q29: 39 | R29: =IFERROR(VLOOKUP(Tabela1[[#This Row],[Elemento de Despesa]],'Apoio - Lista de NDs'!$A$25:$C$65,2,0),"") -> OUTROS SERVICOS DE TERCEIROS-PESSOA JURIDICA | S29: =IFERROR(_xlfn.IFS(Tabela1[[#This Row],[Sigla Unidade Orçamentária]]="FME","FME",Tabela1[[#This Row],[Sigla Unidade Orçamentária]]="FMAS","FMAS",Tabela1[[#This Row],[Sigla Unidade Orçamentária]]="FUNDOSAUDE","FUNDOSAUDE",Tabela1[[#This Row],[Sigla Unidade Orçamentária]]="FUNDACAOSAUDE","FUNDACAOSAUDE",Tabela1[[#This Row],[Sigla Unidade Orçamentária]]="NITPREVFIN","NITPREVFIN",Tabela1[[#This Row],[Sigla Unidade Orçamentária]]="NITPREVPREV","NITPREVPREV",Tabela1[[#This Row],[Sigla Unidade Orçamentária]]="NITPREV","NITPREV",Tabela1[[#This Row],[Sigla Unidade Orçamentária]]="EMUSA","EMUSA",Tabela1[[#This Row],[Sigla Unidade Orçamentária]]="FIA","FIA",Tabela1[[#This Row],[Sigla Unidade Orçamentária]]="CMN","CMN",(_xlfn.XLOOKUP(Tabela1[[#This Row],[Sigla Unidade Orçamentária]],'Apoio - Lista de UOs'!A:A,'Apoio - Lista de UOs'!E:E)="01"),"Direta"),"INDIRETAS_GERAL") -> INDIRETAS_GERAL | T29: 138 | U29: =IFERROR(VLOOKUP(Tabela1[[#This Row],[Fonte de Recursos (antiga)]],'ListaFontes (Interno)'!BP:BQ,2,0),"") -> Compensação Financeira Pela Exploração E Produção do Petróleo | V29: =IFERROR(IF(Tabela1[[#This Row],[Fonte de Recursos (antiga)]]<>"",_xlfn.CONCAT("FONTE",Tabela1[[#This Row],[Fonte de Recursos (antiga)]],Tabela1[[#This Row],[Classif Fonte]]),""),"") ->  | W29: 704 | X29: =IFERROR(VLOOKUP(Tabela1[[#This Row],[Fonte de Recursos (atualizada)]],'Apoio - Lista de Novas Fontes'!B:C,2,0),"") -> Transferência da União Referente a Royalties do Petróleo e Gás Natural | Y29: =IFERROR(IF(Tabela1[[#This Row],[Fonte de Recursos (antiga)]]<>"",_xlfn.CONCAT("DETALHAMENTO",Tabela1[[#This Row],[Fonte de Recursos (atualizada)]]),""),"") ->  | Z29: 00 | AA29: =IFERROR(VLOOKUP(Tabela1[[#This Row],[Detalhamento da Fonte de Recursos (atualizada)]],'Apoio - Detalhamentos Fontes'!B:C,2,0),"") -> Sem especificação de Recurso do Tesouro | AC29: [Diversos] | AE29: 50000 | AF29: Programa previsto para ser trabalhado em duas áreas. Taxa anual do programa: R$10.000,00 Análises físico-químicas e microbiológicas da água: R$15.000,00 Confecção de placas e comunicação: R$20,000 Obras e reformas: R$25.000 | AG29: Não | AN29: =IFERROR(VLOOKUP(Tabela1[[#This Row],[Subfunção]],'Apoio - Funções-Programas'!AH:AI,2,0),"") ->  | AU29: =IF(Tabela1[[#This Row],[Programa]]="","Não apto","Apto") -> Apto | AV29: =IF(Tabela1[[#This Row],[Ação Orçamentária]]="","Não apto","Apto1") -> Apto1 | AW29: =IF(Tabela1[[#This Row],[Grupo de Natureza de Despesa (GND)]]="","Não apto","Apto4") -> Apto4 | AX29: =IF(Tabela1[[#This Row],[Modalidade de Aplicação (MA)]]="","Não apto","Apto5") -> Apto5 | AY29: =IF(OR(Tabela1[[#This Row],[Fonte de Recursos (antiga)]]="",Tabela1[[#This Row],[Fonte de Recursos (atualizada)]]="",Tabela1[[#This Row],[Detalhamento da Fonte de Recursos (atualizada)]]=""),"Não apto","Apto6") -> Apto6 | AZ29: =IF(OR(Tabela1[[#This Row],[Sigla Unidade Orçamentária]]=""),"Não apto","Apto6") -> Apto6 | BA29: =IF(OR(Tabela1[[#This Row],[Categoria (PO)]]=""),"Não apto","Apto7") -> Apto7 | BB29: =IF(OR(Tabela1[[#This Row],[Descrição da Despesa]]=""),"Não apto","Apto8") -> Apto8 | BC29: =IF(OR(Tabela1[[#This Row],[Função]]=""),"Não apto","Apto9") -> Apto9 | BD29: =IF(OR(Tabela1[[#This Row],[Subfunção]]=""),"Não apto","Apto10") -> Apto10
A30: =IF(Tabela1[[#This Row],[Sigla Unidade Orçamentária]]<>"",TEXT(MID(A29,1,3)+1,"000")&"-"&Tabela1[[#This Row],[Sigla Unidade Orçamentária]]&"-PLOA23","") -> 057-SMARHS-PLOA23 | B30: =IF(Tabela1[[#This Row],[Sigla Unidade Orçamentária]]<>"",_xlfn.XLOOKUP(Tabela1[[#This Row],[Sigla Unidade Orçamentária]],'Apoio - Lista de UOs'!A:A,'Apoio - Lista de UOs'!C:C),"") ->  | C30: SMARHS | D30: Programas e Projetos | E30: [Não encontrado] | F30: Implementar a Agenda Ambiental na Administração Pública (A3P) e projetos de práticas de sustentabilidade no prédio da prefeitura | G30: 18 | H30: =IFERROR(VLOOKUP(Tabela1[[#This Row],[Função]],'Apoio - Funções-Programas'!A:B,2,0),"") -> GESTAO AMBIENTAL | I30: 541 | J30: =IFERROR(VLOOKUP(Tabela1[[#This Row],[Subfunção]],'Apoio - Funções-Programas'!D:E,2,0),"") -> PRESERVACAO E CONSERVACAO AMBIENTAL | K30: 147 | L30: =IFERROR(VLOOKUP(Tabela1[[#This Row],[Programa]],'Apoio - Funções-Programas'!G:H,2,0),"") -> CIDADE VERDE E SUSTENTÁVEL | M30: 5781 | N30: =IFERROR(VLOOKUP(Tabela1[[#This Row],[Ação Orçamentária]],'Apoio - Lista de Ações'!A:B,2,0),"") -> Implementação da Agenda Ambiental na Administração Pública do Município | O30: 3 | P30: 90 | Q30: 39 | R30: =IFERROR(VLOOKUP(Tabela1[[#This Row],[Elemento de Despesa]],'Apoio - Lista de NDs'!$A$25:$C$65,2,0),"") -> OUTROS SERVICOS DE TERCEIROS-PESSOA JURIDICA | S30: =IFERROR(_xlfn.IFS(Tabela1[[#This Row],[Sigla Unidade Orçamentária]]="FME","FME",Tabela1[[#This Row],[Sigla Unidade Orçamentária]]="FMAS","FMAS",Tabela1[[#This Row],[Sigla Unidade Orçamentária]]="FUNDOSAUDE","FUNDOSAUDE",Tabela1[[#This Row],[Sigla Unidade Orçamentária]]="FUNDACAOSAUDE","FUNDACAOSAUDE",Tabela1[[#This Row],[Sigla Unidade Orçamentária]]="NITPREVFIN","NITPREVFIN",Tabela1[[#This Row],[Sigla Unidade Orçamentária]]="NITPREVPREV","NITPREVPREV",Tabela1[[#This Row],[Sigla Unidade Orçamentária]]="NITPREV","NITPREV",Tabela1[[#This Row],[Sigla Unidade Orçamentária]]="EMUSA","EMUSA",Tabela1[[#This Row],[Sigla Unidade Orçamentária]]="FIA","FIA",Tabela1[[#This Row],[Sigla Unidade Orçamentária]]="CMN","CMN",(_xlfn.XLOOKUP(Tabela1[[#This Row],[Sigla Unidade Orçamentária]],'Apoio - Lista de UOs'!A:A,'Apoio - Lista de UOs'!E:E)="01"),"Direta"),"INDIRETAS_GERAL") -> INDIRETAS_GERAL | T30: 138 | U30: =IFERROR(VLOOKUP(Tabela1[[#This Row],[Fonte de Recursos (antiga)]],'ListaFontes (Interno)'!BP:BQ,2,0),"") -> Compensação Financeira Pela Exploração E Produção do Petróleo | V30: =IFERROR(IF(Tabela1[[#This Row],[Fonte de Recursos (antiga)]]<>"",_xlfn.CONCAT("FONTE",Tabela1[[#This Row],[Fonte de Recursos (antiga)]],Tabela1[[#This Row],[Classif Fonte]]),""),"") ->  | W30: 704 | X30: =IFERROR(VLOOKUP(Tabela1[[#This Row],[Fonte de Recursos (atualizada)]],'Apoio - Lista de Novas Fontes'!B:C,2,0),"") -> Transferência da União Referente a Royalties do Petróleo e Gás Natural | Y30: =IFERROR(IF(Tabela1[[#This Row],[Fonte de Recursos (antiga)]]<>"",_xlfn.CONCAT("DETALHAMENTO",Tabela1[[#This Row],[Fonte de Recursos (atualizada)]]),""),"") ->  | Z30: 00 | AA30: =IFERROR(VLOOKUP(Tabela1[[#This Row],[Detalhamento da Fonte de Recursos (atualizada)]],'Apoio - Detalhamentos Fontes'!B:C,2,0),"") -> Sem especificação de Recurso do Tesouro | AC30: [Diversos] | AE30: 50000 | AF30: Aquisição e instalação de materiais e dispositivos que intereferem na economia/consumo de água, luz, dentre outros, incluindo aquisição de dispositivos para acondiconamento de resíduo - R$ 20.000. Contrataçao de prestação de serviço de ginastica laboral - R$ 20.000. Comunicaçao - R$ 10.000. | AG30: Não | AN30: =IFERROR(VLOOKUP(Tabela1[[#This Row],[Subfunção]],'Apoio - Funções-Programas'!AH:AI,2,0),"") ->  | AU30: =IF(Tabela1[[#This Row],[Programa]]="","Não apto","Apto") -> Apto | AV30: =IF(Tabela1[[#This Row],[Ação Orçamentária]]="","Não apto","Apto1") -> Apto1 | AW30: =IF(Tabela1[[#This Row],[Grupo de Natureza de Despesa (GND)]]="","Não apto","Apto4") -> Apto4 | AX30: =IF(Tabela1[[#This Row],[Modalidade de Aplicação (MA)]]="","Não apto","Apto5") -> Apto5 | AY30: =IF(OR(Tabela1[[#This Row],[Fonte de Recursos (antiga)]]="",Tabela1[[#This Row],[Fonte de Recursos (atualizada)]]="",Tabela1[[#This Row],[Detalhamento da Fonte de Recursos (atualizada)]]=""),"Não apto","Apto6") -> Apto6 | AZ30: =IF(OR(Tabela1[[#This Row],[Sigla Unidade Orçamentária]]=""),"Não apto","Apto6") -> Apto6 | BA30: =IF(OR(Tabela1[[#This Row],[Categoria (PO)]]=""),"Não apto","Apto7") -> Apto7 | BB30: =IF(OR(Tabela1[[#This Row],[Descrição da Despesa]]=""),"Não apto","Apto8") -> Apto8 | BC30: =IF(OR(Tabela1[[#This Row],[Função]]=""),"Não apto","Apto9") -> Apto9 | BD30: =IF(OR(Tabela1[[#This Row],[Subfunção]]=""),"Não apto","Apto10") -> Apto10
A31: =IF(Tabela1[[#This Row],[Sigla Unidade Orçamentária]]<>"",TEXT(MID(A30,1,3)+1,"000")&"-"&Tabela1[[#This Row],[Sigla Unidade Orçamentária]]&"-PLOA23","") -> 058-SMARHS-PLOA23 | B31: =IF(Tabela1[[#This Row],[Sigla Unidade Orçamentária]]<>"",_xlfn.XLOOKUP(Tabela1[[#This Row],[Sigla Unidade Orçamentária]],'Apoio - Lista de UOs'!A:A,'Apoio - Lista de UOs'!C:C),"") ->  | C31: SMARHS | D31: Programas e Projetos | E31: [Não encontrado] | F31: Despesas com Realizações de Atividades e Eventos sóciosambientais e sustentáveis | G31: 18 | H31: =IFERROR(VLOOKUP(Tabela1[[#This Row],[Função]],'Apoio - Funções-Programas'!A:B,2,0),"") -> GESTAO AMBIENTAL | I31: 541 | J31: =IFERROR(VLOOKUP(Tabela1[[#This Row],[Subfunção]],'Apoio - Funções-Programas'!D:E,2,0),"") -> PRESERVACAO E CONSERVACAO AMBIENTAL | K31: 147 | L31: =IFERROR(VLOOKUP(Tabela1[[#This Row],[Programa]],'Apoio - Funções-Programas'!G:H,2,0),"") -> CIDADE VERDE E SUSTENTÁVEL | M31: 4187 | N31: =IFERROR(VLOOKUP(Tabela1[[#This Row],[Ação Orçamentária]],'Apoio - Lista de Ações'!A:B,2,0),"") -> Realização de Atividades e Eventos | O31: 3 | P31: 90 | Q31: 39 | R31: =IFERROR(VLOOKUP(Tabela1[[#This Row],[Elemento de Despesa]],'Apoio - Lista de NDs'!$A$25:$C$65,2,0),"") -> OUTROS SERVICOS DE TERCEIROS-PESSOA JURIDICA | S31: =IFERROR(_xlfn.IFS(Tabela1[[#This Row],[Sigla Unidade Orçamentária]]="FME","FME",Tabela1[[#This Row],[Sigla Unidade Orçamentária]]="FMAS","FMAS",Tabela1[[#This Row],[Sigla Unidade Orçamentária]]="FUNDOSAUDE","FUNDOSAUDE",Tabela1[[#This Row],[Sigla Unidade Orçamentária]]="FUNDACAOSAUDE","FUNDACAOSAUDE",Tabela1[[#This Row],[Sigla Unidade Orçamentária]]="NITPREVFIN","NITPREVFIN",Tabela1[[#This Row],[Sigla Unidade Orçamentária]]="NITPREVPREV","NITPREVPREV",Tabela1[[#This Row],[Sigla Unidade Orçamentária]]="NITPREV","NITPREV",Tabela1[[#This Row],[Sigla Unidade Orçamentária]]="EMUSA","EMUSA",Tabela1[[#This Row],[Sigla Unidade Orçamentária]]="FIA","FIA",Tabela1[[#This Row],[Sigla Unidade Orçamentária]]="CMN","CMN",(_xlfn.XLOOKUP(Tabela1[[#This Row],[Sigla Unidade Orçamentária]],'Apoio - Lista de UOs'!A:A,'Apoio - Lista de UOs'!E:E)="01"),"Direta"),"INDIRETAS_GERAL") -> INDIRETAS_GERAL | T31: 138 | U31: =IFERROR(VLOOKUP(Tabela1[[#This Row],[Fonte de Recursos (antiga)]],'ListaFontes (Interno)'!BP:BQ,2,0),"") -> Compensação Financeira Pela Exploração E Produção do Petróleo | V31: =IFERROR(IF(Tabela1[[#This Row],[Fonte de Recursos (antiga)]]<>"",_xlfn.CONCAT("FONTE",Tabela1[[#This Row],[Fonte de Recursos (antiga)]],Tabela1[[#This Row],[Classif Fonte]]),""),"") ->  | W31: 704 | X31: =IFERROR(VLOOKUP(Tabela1[[#This Row],[Fonte de Recursos (atualizada)]],'Apoio - Lista de Novas Fontes'!B:C,2,0),"") -> Transferência da União Referente a Royalties do Petróleo e Gás Natural | Y31: =IFERROR(IF(Tabela1[[#This Row],[Fonte de Recursos (antiga)]]<>"",_xlfn.CONCAT("DETALHAMENTO",Tabela1[[#This Row],[Fonte de Recursos (atualizada)]]),""),"") ->  | Z31: 00 | AA31: =IFERROR(VLOOKUP(Tabela1[[#This Row],[Detalhamento da Fonte de Recursos (atualizada)]],'Apoio - Detalhamentos Fontes'!B:C,2,0),"") -> Sem especificação de Recurso do Tesouro | AC31: [Diversos] | AE31: 50000 | AF31: Despesa estimada para realização dos eventos sócios econômico , ambientais e sustentáveis; como Clean UP Day e Semana do Meio Ambiente, afim de disseminar educação ambiental e sócioeconômica. Clean Up Day - R$ 50.000,00. Semana do Meio Ambiente - R$50.000,00. | AG31: Não | AN31: =IFERROR(VLOOKUP(Tabela1[[#This Row],[Subfunção]],'Apoio - Funções-Programas'!AH:AI,2,0),"") ->  | AU31: =IF(Tabela1[[#This Row],[Programa]]="","Não apto","Apto") -> Apto | AV31: =IF(Tabela1[[#This Row],[Ação Orçamentária]]="","Não apto","Apto1") -> Apto1 | AW31: =IF(Tabela1[[#This Row],[Grupo de Natureza de Despesa (GND)]]="","Não apto","Apto4") -> Apto4 | AX31: =IF(Tabela1[[#This Row],[Modalidade de Aplicação (MA)]]="","Não apto","Apto5") -> Apto5 | AY31: =IF(OR(Tabela1[[#This Row],[Fonte de Recursos (antiga)]]="",Tabela1[[#This Row],[Fonte de Recursos (atualizada)]]="",Tabela1[[#This Row],[Detalhamento da Fonte de Recursos (atualizada)]]=""),"Não apto","Apto6") -> Apto6 | AZ31: =IF(OR(Tabela1[[#This Row],[Sigla Unidade Orçamentária]]=""),"Não apto","Apto6") -> Apto6 | BA31: =IF(OR(Tabela1[[#This Row],[Categoria (PO)]]=""),"Não apto","Apto7") -> Apto7 | BB31: =IF(OR(Tabela1[[#This Row],[Descrição da Despesa]]=""),"Não apto","Apto8") -> Apto8 | BC31: =IF(OR(Tabela1[[#This Row],[Função]]=""),"Não apto","Apto9") -> Apto9 | BD31: =IF(OR(Tabela1[[#This Row],[Subfunção]]=""),"Não apto","Apto10") -> Apto10
A32: =IF(Tabela1[[#This Row],[Sigla Unidade Orçamentária]]<>"",TEXT(MID(A31,1,3)+1,"000")&"-"&Tabela1[[#This Row],[Sigla Unidade Orçamentária]]&"-PLOA23","") -> 059-SMARHS-PLOA23 | B32: =IF(Tabela1[[#This Row],[Sigla Unidade Orçamentária]]<>"",_xlfn.XLOOKUP(Tabela1[[#This Row],[Sigla Unidade Orçamentária]],'Apoio - Lista de UOs'!A:A,'Apoio - Lista de UOs'!C:C),"") ->  | C32: SMARHS | D32: Programas e Projetos | E32: Programa de Reflorestamento em São Francisco, Charitas e Jurujuba | F32: Despesa com o Projeto Programa Enseada Limpa de Jurujuba - Contratação de Prestação de Serviço | G32: 18 | H32: =IFERROR(VLOOKUP(Tabela1[[#This Row],[Função]],'Apoio - Funções-Programas'!A:B,2,0),"") -> GESTAO AMBIENTAL | I32: 543 | J32: =IFERROR(VLOOKUP(Tabela1[[#This Row],[Subfunção]],'Apoio - Funções-Programas'!D:E,2,0),"") -> RECUPERACAO DE AREAS DEGRADADAS | K32: 147 | L32: =IFERROR(VLOOKUP(Tabela1[[#This Row],[Programa]],'Apoio - Funções-Programas'!G:H,2,0),"") -> CIDADE VERDE E SUSTENTÁVEL | M32: 1502 | N32: =IFERROR(VLOOKUP(Tabela1[[#This Row],[Ação Orçamentária]],'Apoio - Lista de Ações'!A:B,2,0),"") -> Implementação do Programa Enseada Limpa | O32: 3 | P32: 90 | Q32: 39 | R32: =IFERROR(VLOOKUP(Tabela1[[#This Row],[Elemento de Despesa]],'Apoio - Lista de NDs'!$A$25:$C$65,2,0),"") -> OUTROS SERVICOS DE TERCEIROS-PESSOA JURIDICA | S32: =IFERROR(_xlfn.IFS(Tabela1[[#This Row],[Sigla Unidade Orçamentária]]="FME","FME",Tabela1[[#This Row],[Sigla Unidade Orçamentária]]="FMAS","FMAS",Tabela1[[#This Row],[Sigla Unidade Orçamentária]]="FUNDOSAUDE","FUNDOSAUDE",Tabela1[[#This Row],[Sigla Unidade Orçamentária]]="FUNDACAOSAUDE","FUNDACAOSAUDE",Tabela1[[#This Row],[Sigla Unidade Orçamentária]]="NITPREVFIN","NITPREVFIN",Tabela1[[#This Row],[Sigla Unidade Orçamentária]]="NITPREVPREV","NITPREVPREV",Tabela1[[#This Row],[Sigla Unidade Orçamentária]]="NITPREV","NITPREV",Tabela1[[#This Row],[Sigla Unidade Orçamentária]]="EMUSA","EMUSA",Tabela1[[#This Row],[Sigla Unidade Orçamentária]]="FIA","FIA",Tabela1[[#This Row],[Sigla Unidade Orçamentária]]="CMN","CMN",(_xlfn.XLOOKUP(Tabela1[[#This Row],[Sigla Unidade Orçamentária]],'Apoio - Lista de UOs'!A:A,'Apoio - Lista de UOs'!E:E)="01"),"Direta"),"INDIRETAS_GERAL") -> INDIRETAS_GERAL | T32: 138 | U32: =IFERROR(VLOOKUP(Tabela1[[#This Row],[Fonte de Recursos (antiga)]],'ListaFontes (Interno)'!BP:BQ,2,0),"") -> Compensação Financeira Pela Exploração E Produção do Petróleo | V32: =IFERROR(IF(Tabela1[[#This Row],[Fonte de Recursos (antiga)]]<>"",_xlfn.CONCAT("FONTE",Tabela1[[#This Row],[Fonte de Recursos (antiga)]],Tabela1[[#This Row],[Classif Fonte]]),""),"") ->  | W32: 704 | X32: =IFERROR(VLOOKUP(Tabela1[[#This Row],[Fonte de Recursos (atualizada)]],'Apoio - Lista de Novas Fontes'!B:C,2,0),"") -> Transferência da União Referente a Royalties do Petróleo e Gás Natural | Y32: =IFERROR(IF(Tabela1[[#This Row],[Fonte de Recursos (antiga)]]<>"",_xlfn.CONCAT("DETALHAMENTO",Tabela1[[#This Row],[Fonte de Recursos (atualizada)]]),""),"") ->  | Z32: 00 | AA32: =IFERROR(VLOOKUP(Tabela1[[#This Row],[Detalhamento da Fonte de Recursos (atualizada)]],'Apoio - Detalhamentos Fontes'!B:C,2,0),"") -> Sem especificação de Recurso do Tesouro | AC32: [Diversos] | AE32: 70000 | AF32: Orçamento estimado para contratação de empresa destinada a executar trabalho técnico social para implantação de educação sanitária, patrimonial e ambiental nas comunidades de Salinas e Peixe-Galo, com base no edital TP Nº 001/2020 do Programa Região Oceânica Sustentável. | AG32: Não | AN32: =IFERROR(VLOOKUP(Tabela1[[#This Row],[Subfunção]],'Apoio - Funções-Programas'!AH:AI,2,0),"") ->  | AU32: =IF(Tabela1[[#This Row],[Programa]]="","Não apto","Apto") -> Apto | AV32: =IF(Tabela1[[#This Row],[Ação Orçamentária]]="","Não apto","Apto1") -> Apto1 | AW32: =IF(Tabela1[[#This Row],[Grupo de Natureza de Despesa (GND)]]="","Não apto","Apto4") -> Apto4 | AX32: =IF(Tabela1[[#This Row],[Modalidade de Aplicação (MA)]]="","Não apto","Apto5") -> Apto5 | AY32: =IF(OR(Tabela1[[#This Row],[Fonte de Recursos (antiga)]]="",Tabela1[[#This Row],[Fonte de Recursos (atualizada)]]="",Tabela1[[#This Row],[Detalhamento da Fonte de Recursos (atualizada)]]=""),"Não apto","Apto6") -> Apto6 | AZ32: =IF(OR(Tabela1[[#This Row],[Sigla Unidade Orçamentária]]=""),"Não apto","Apto6") -> Apto6 | BA32: =IF(OR(Tabela1[[#This Row],[Categoria (PO)]]=""),"Não apto","Apto7") -> Apto7 | BB32: =IF(OR(Tabela1[[#This Row],[Descrição da Despesa]]=""),"Não apto","Apto8") -> Apto8 | BC32: =IF(OR(Tabela1[[#This Row],[Função]]=""),"Não apto","Apto9") -> Apto9 | BD32: =IF(OR(Tabela1[[#This Row],[Subfunção]]=""),"Não apto","Apto10") -> Apto10
A33: =IF(Tabela1[[#This Row],[Sigla Unidade Orçamentária]]<>"",TEXT(MID(A32,1,3)+1,"000")&"-"&Tabela1[[#This Row],[Sigla Unidade Orçamentária]]&"-PLOA23","") -> 060-SMARHS-PLOA23 | B33: =IF(Tabela1[[#This Row],[Sigla Unidade Orçamentária]]<>"",_xlfn.XLOOKUP(Tabela1[[#This Row],[Sigla Unidade Orçamentária]],'Apoio - Lista de UOs'!A:A,'Apoio - Lista de UOs'!C:C),"") ->  | C33: SMARHS | D33: Programas e Projetos | E33: Instrumentos e Insumos para atendimento veterinário | F33: Despesa com a manutenção e ampliação da parceria com o Hospital Veterinário da Universidade Federal Fluminense - Prestação de Serviço | G33: 18 | H33: =IFERROR(VLOOKUP(Tabela1[[#This Row],[Função]],'Apoio - Funções-Programas'!A:B,2,0),"") -> GESTAO AMBIENTAL | I33: 305 | J33: =IFERROR(VLOOKUP(Tabela1[[#This Row],[Subfunção]],'Apoio - Funções-Programas'!D:E,2,0),"") -> VIGILANCIA EPIDEMIOLOGICA | K33: 114 | L33: =IFERROR(VLOOKUP(Tabela1[[#This Row],[Programa]],'Apoio - Funções-Programas'!G:H,2,0),"") -> PROTEÇÃO À FAUNA | M33: 6597 | N33: =IFERROR(VLOOKUP(Tabela1[[#This Row],[Ação Orçamentária]],'Apoio - Lista de Ações'!A:B,2,0),"") -> Implantação do Programa Veterinário Municipal | O33: 3 | P33: 90 | Q33: 39 | R33: =IFERROR(VLOOKUP(Tabela1[[#This Row],[Elemento de Despesa]],'Apoio - Lista de NDs'!$A$25:$C$65,2,0),"") -> OUTROS SERVICOS DE TERCEIROS-PESSOA JURIDICA | S33: =IFERROR(_xlfn.IFS(Tabela1[[#This Row],[Sigla Unidade Orçamentária]]="FME","FME",Tabela1[[#This Row],[Sigla Unidade Orçamentária]]="FMAS","FMAS",Tabela1[[#This Row],[Sigla Unidade Orçamentária]]="FUNDOSAUDE","FUNDOSAUDE",Tabela1[[#This Row],[Sigla Unidade Orçamentária]]="FUNDACAOSAUDE","FUNDACAOSAUDE",Tabela1[[#This Row],[Sigla Unidade Orçamentária]]="NITPREVFIN","NITPREVFIN",Tabela1[[#This Row],[Sigla Unidade Orçamentária]]="NITPREVPREV","NITPREVPREV",Tabela1[[#This Row],[Sigla Unidade Orçamentária]]="NITPREV","NITPREV",Tabela1[[#This Row],[Sigla Unidade Orçamentária]]="EMUSA","EMUSA",Tabela1[[#This Row],[Sigla Unidade Orçamentária]]="FIA","FIA",Tabela1[[#This Row],[Sigla Unidade Orçamentária]]="CMN","CMN",(_xlfn.XLOOKUP(Tabela1[[#This Row],[Sigla Unidade Orçamentária]],'Apoio - Lista de UOs'!A:A,'Apoio - Lista de UOs'!E:E)="01"),"Direta"),"INDIRETAS_GERAL") -> INDIRETAS_GERAL | T33: 102 | U33: =IFERROR(VLOOKUP(Tabela1[[#This Row],[Fonte de Recursos (antiga)]],'ListaFontes (Interno)'!BP:BQ,2,0),"") -> Recursos De Convênios | V33: =IFERROR(IF(Tabela1[[#This Row],[Fonte de Recursos (antiga)]]<>"",_xlfn.CONCAT("FONTE",Tabela1[[#This Row],[Fonte de Recursos (antiga)]],Tabela1[[#This Row],[Classif Fonte]]),""),"") ->  | W33: 700 | X33: =IFERROR(VLOOKUP(Tabela1[[#This Row],[Fonte de Recursos (atualizada)]],'Apoio - Lista de Novas Fontes'!B:C,2,0),"") -> Outras Transferências de Convênios ou Instrumentos Congêneres da União | Y33: =IFERROR(IF(Tabela1[[#This Row],[Fonte de Recursos (antiga)]]<>"",_xlfn.CONCAT("DETALHAMENTO",Tabela1[[#This Row],[Fonte de Recursos (atualizada)]]),""),"") ->  | Z33: 00 | AA33: =IFERROR(VLOOKUP(Tabela1[[#This Row],[Detalhamento da Fonte de Recursos (atualizada)]],'Apoio - Detalhamentos Fontes'!B:C,2,0),"") -> Sem especificação de Recurso do Tesouro | AC33: UNIVERSIDADE FEDERAL FLUMINENSE | AE33: 500000 | AF33: Despesa com a manutenção e ampliação da parceria com o Hospital Veterinário da Universidade Federal Fluminense para atendimento de baixa complexidade, exames básicos.Esses atendimentos são destinados a população de baixa renda da cidade. Processo aberto : 250/00/2022. | AG33: Não | AN33: =IFERROR(VLOOKUP(Tabela1[[#This Row],[Subfunção]],'Apoio - Funções-Programas'!AH:AI,2,0),"") ->  | AU33: =IF(Tabela1[[#This Row],[Programa]]="","Não apto","Apto") -> Apto | AV33: =IF(Tabela1[[#This Row],[Ação Orçamentária]]="","Não apto","Apto1") -> Apto1 | AW33: =IF(Tabela1[[#This Row],[Grupo de Natureza de Despesa (GND)]]="","Não apto","Apto4") -> Apto4 | AX33: =IF(Tabela1[[#This Row],[Modalidade de Aplicação (MA)]]="","Não apto","Apto5") -> Apto5 | AY33: =IF(OR(Tabela1[[#This Row],[Fonte de Recursos (antiga)]]="",Tabela1[[#This Row],[Fonte de Recursos (atualizada)]]="",Tabela1[[#This Row],[Detalhamento da Fonte de Recursos (atualizada)]]=""),"Não apto","Apto6") -> Apto6 | AZ33: =IF(OR(Tabela1[[#This Row],[Sigla Unidade Orçamentária]]=""),"Não apto","Apto6") -> Apto6 | BA33: =IF(OR(Tabela1[[#This Row],[Categoria (PO)]]=""),"Não apto","Apto7") -> Apto7 | BB33: =IF(OR(Tabela1[[#This Row],[Descrição da Despesa]]=""),"Não apto","Apto8") -> Apto8 | BC33: =IF(OR(Tabela1[[#This Row],[Função]]=""),"Não apto","Apto9") -> Apto9 | BD33: =IF(OR(Tabela1[[#This Row],[Subfunção]]=""),"Não apto","Apto10") -> Apto10
A34: =IF(Tabela1[[#This Row],[Sigla Unidade Orçamentária]]<>"",TEXT(MID(A33,1,3)+1,"000")&"-"&Tabela1[[#This Row],[Sigla Unidade Orçamentária]]&"-PLOA23","") -> 061-SMARHS-PLOA23 | B34: =IF(Tabela1[[#This Row],[Sigla Unidade Orçamentária]]<>"",_xlfn.XLOOKUP(Tabela1[[#This Row],[Sigla Unidade Orçamentária]],'Apoio - Lista de UOs'!A:A,'Apoio - Lista de UOs'!C:C),"") ->  | C34: SMARHS | D34: Programas e Projetos | E34: Instrumentos e Insumos para atendimento veterinário | F34: Despesa com Manutenção do Programa Veterinário Municipal (Emenda LDO) - Material de Consumo | G34: 18 | H34: =IFERROR(VLOOKUP(Tabela1[[#This Row],[Função]],'Apoio - Funções-Programas'!A:B,2,0),"") -> GESTAO AMBIENTAL | I34: 305 | J34: =IFERROR(VLOOKUP(Tabela1[[#This Row],[Subfunção]],'Apoio - Funções-Programas'!D:E,2,0),"") -> VIGILANCIA EPIDEMIOLOGICA | K34: 114 | L34: =IFERROR(VLOOKUP(Tabela1[[#This Row],[Programa]],'Apoio - Funções-Programas'!G:H,2,0),"") -> PROTEÇÃO À FAUNA | M34: 6593 | N34: =IFERROR(VLOOKUP(Tabela1[[#This Row],[Ação Orçamentária]],'Apoio - Lista de Ações'!A:B,2,0),"") -> Manutenção do Programa Veterinário Municipal | O34: 3 | P34: 90 | Q34: 30 | R34: =IFERROR(VLOOKUP(Tabela1[[#This Row],[Elemento de Despesa]],'Apoio - Lista de NDs'!$A$25:$C$65,2,0),"") -> MATERIAL DE CONSUMO | S34: =IFERROR(_xlfn.IFS(Tabela1[[#This Row],[Sigla Unidade Orçamentária]]="FME","FME",Tabela1[[#This Row],[Sigla Unidade Orçamentária]]="FMAS","FMAS",Tabela1[[#This Row],[Sigla Unidade Orçamentária]]="FUNDOSAUDE","FUNDOSAUDE",Tabela1[[#This Row],[Sigla Unidade Orçamentária]]="FUNDACAOSAUDE","FUNDACAOSAUDE",Tabela1[[#This Row],[Sigla Unidade Orçamentária]]="NITPREVFIN","NITPREVFIN",Tabela1[[#This Row],[Sigla Unidade Orçamentária]]="NITPREVPREV","NITPREVPREV",Tabela1[[#This Row],[Sigla Unidade Orçamentária]]="NITPREV","NITPREV",Tabela1[[#This Row],[Sigla Unidade Orçamentária]]="EMUSA","EMUSA",Tabela1[[#This Row],[Sigla Unidade Orçamentária]]="FIA","FIA",Tabela1[[#This Row],[Sigla Unidade Orçamentária]]="CMN","CMN",(_xlfn.XLOOKUP(Tabela1[[#This Row],[Sigla Unidade Orçamentária]],'Apoio - Lista de UOs'!A:A,'Apoio - Lista de UOs'!E:E)="01"),"Direta"),"INDIRETAS_GERAL") -> INDIRETAS_GERAL | T34: 138 | U34: =IFERROR(VLOOKUP(Tabela1[[#This Row],[Fonte de Recursos (antiga)]],'ListaFontes (Interno)'!BP:BQ,2,0),"") -> Compensação Financeira Pela Exploração E Produção do Petróleo | V34: =IFERROR(IF(Tabela1[[#This Row],[Fonte de Recursos (antiga)]]<>"",_xlfn.CONCAT("FONTE",Tabela1[[#This Row],[Fonte de Recursos (antiga)]],Tabela1[[#This Row],[Classif Fonte]]),""),"") ->  | W34: 704 | X34: =IFERROR(VLOOKUP(Tabela1[[#This Row],[Fonte de Recursos (atualizada)]],'Apoio - Lista de Novas Fontes'!B:C,2,0),"") -> Transferência da União Referente a Royalties do Petróleo e Gás Natural | Y34: =IFERROR(IF(Tabela1[[#This Row],[Fonte de Recursos (antiga)]]<>"",_xlfn.CONCAT("DETALHAMENTO",Tabela1[[#This Row],[Fonte de Recursos (atualizada)]]),""),"") ->  | Z34: 00 | AA34: =IFERROR(VLOOKUP(Tabela1[[#This Row],[Detalhamento da Fonte de Recursos (atualizada)]],'Apoio - Detalhamentos Fontes'!B:C,2,0),"") -> Sem especificação de Recurso do Tesouro | AC34: [Diversos] | AE34: 250000 | AF34: Despesa destinada a toda estrutura da Coordenadoria, Castramóvel e CCPAD. Compra de insumos, medicamentos, anestésicos, oxigênio, manutenção de equipamentos, renovação de equipamentos e novas aquisições. | AG34: Não | AN34: =IFERROR(VLOOKUP(Tabela1[[#This Row],[Subfunção]],'Apoio - Funções-Programas'!AH:AI,2,0),"") ->  | AU34: =IF(Tabela1[[#This Row],[Programa]]="","Não apto","Apto") -> Apto | AV34: =IF(Tabela1[[#This Row],[Ação Orçamentária]]="","Não apto","Apto1") -> Apto1 | AW34: =IF(Tabela1[[#This Row],[Grupo de Natureza de Despesa (GND)]]="","Não apto","Apto4") -> Apto4 | AX34: =IF(Tabela1[[#This Row],[Modalidade de Aplicação (MA)]]="","Não apto","Apto5") -> Apto5 | AY34: =IF(OR(Tabela1[[#This Row],[Fonte de Recursos (antiga)]]="",Tabela1[[#This Row],[Fonte de Recursos (atualizada)]]="",Tabela1[[#This Row],[Detalhamento da Fonte de Recursos (atualizada)]]=""),"Não apto","Apto6") -> Apto6 | AZ34: =IF(OR(Tabela1[[#This Row],[Sigla Unidade Orçamentária]]=""),"Não apto","Apto6") -> Apto6 | BA34: =IF(OR(Tabela1[[#This Row],[Categoria (PO)]]=""),"Não apto","Apto7") -> Apto7 | BB34: =IF(OR(Tabela1[[#This Row],[Descrição da Despesa]]=""),"Não apto","Apto8") -> Apto8 | BC34: =IF(OR(Tabela1[[#This Row],[Função]]=""),"Não apto","Apto9") -> Apto9 | BD34: =IF(OR(Tabela1[[#This Row],[Subfunção]]=""),"Não apto","Apto10") -> Apto10
A35: =IF(Tabela1[[#This Row],[Sigla Unidade Orçamentária]]<>"",TEXT(MID(A34,1,3)+1,"000")&"-"&Tabela1[[#This Row],[Sigla Unidade Orçamentária]]&"-PLOA23","") -> 062-SMARHS-PLOA23 | B35: =IF(Tabela1[[#This Row],[Sigla Unidade Orçamentária]]<>"",_xlfn.XLOOKUP(Tabela1[[#This Row],[Sigla Unidade Orçamentária]],'Apoio - Lista de UOs'!A:A,'Apoio - Lista de UOs'!C:C),"") ->  | C35: SMARHS | D35: Programas e Projetos | E35: [Não encontrado] | F35: Despesa coma manutenção do Aplicativo para Proteção Animal | G35: 18 | H35: =IFERROR(VLOOKUP(Tabela1[[#This Row],[Função]],'Apoio - Funções-Programas'!A:B,2,0),"") -> GESTAO AMBIENTAL | I35: 305 | J35: =IFERROR(VLOOKUP(Tabela1[[#This Row],[Subfunção]],'Apoio - Funções-Programas'!D:E,2,0),"") -> VIGILANCIA EPIDEMIOLOGICA | K35: 114 | L35: =IFERROR(VLOOKUP(Tabela1[[#This Row],[Programa]],'Apoio - Funções-Programas'!G:H,2,0),"") -> PROTEÇÃO À FAUNA | M35: 6659 | N35: =IFERROR(VLOOKUP(Tabela1[[#This Row],[Ação Orçamentária]],'Apoio - Lista de Ações'!A:B,2,0),"") -> Manutenção do Aplicativo para Proteção Animal | O35: 3 | P35: 30 | Q35: 39 | R35: =IFERROR(VLOOKUP(Tabela1[[#This Row],[Elemento de Despesa]],'Apoio - Lista de NDs'!$A$25:$C$65,2,0),"") -> OUTROS SERVICOS DE TERCEIROS-PESSOA JURIDICA | S35: =IFERROR(_xlfn.IFS(Tabela1[[#This Row],[Sigla Unidade Orçamentária]]="FME","FME",Tabela1[[#This Row],[Sigla Unidade Orçamentária]]="FMAS","FMAS",Tabela1[[#This Row],[Sigla Unidade Orçamentária]]="FUNDOSAUDE","FUNDOSAUDE",Tabela1[[#This Row],[Sigla Unidade Orçamentária]]="FUNDACAOSAUDE","FUNDACAOSAUDE",Tabela1[[#This Row],[Sigla Unidade Orçamentária]]="NITPREVFIN","NITPREVFIN",Tabela1[[#This Row],[Sigla Unidade Orçamentária]]="NITPREVPREV","NITPREVPREV",Tabela1[[#This Row],[Sigla Unidade Orçamentária]]="NITPREV","NITPREV",Tabela1[[#This Row],[Sigla Unidade Orçamentária]]="EMUSA","EMUSA",Tabela1[[#This Row],[Sigla Unidade Orçamentária]]="FIA","FIA",Tabela1[[#This Row],[Sigla Unidade Orçamentária]]="CMN","CMN",(_xlfn.XLOOKUP(Tabela1[[#This Row],[Sigla Unidade Orçamentária]],'Apoio - Lista de UOs'!A:A,'Apoio - Lista de UOs'!E:E)="01"),"Direta"),"INDIRETAS_GERAL") -> INDIRETAS_GERAL | T35: 138 | U35: =IFERROR(VLOOKUP(Tabela1[[#This Row],[Fonte de Recursos (antiga)]],'ListaFontes (Interno)'!BP:BQ,2,0),"") -> Compensação Financeira Pela Exploração E Produção do Petróleo | V35: =IFERROR(IF(Tabela1[[#This Row],[Fonte de Recursos (antiga)]]<>"",_xlfn.CONCAT("FONTE",Tabela1[[#This Row],[Fonte de Recursos (antiga)]],Tabela1[[#This Row],[Classif Fonte]]),""),"") ->  | W35: 704 | X35: =IFERROR(VLOOKUP(Tabela1[[#This Row],[Fonte de Recursos (atualizada)]],'Apoio - Lista de Novas Fontes'!B:C,2,0),"") -> Transferência da União Referente a Royalties do Petróleo e Gás Natural | Y35: =IFERROR(IF(Tabela1[[#This Row],[Fonte de Recursos (antiga)]]<>"",_xlfn.CONCAT("DETALHAMENTO",Tabela1[[#This Row],[Fonte de Recursos (atualizada)]]),""),"") ->  | Z35: 00 | AA35: =IFERROR(VLOOKUP(Tabela1[[#This Row],[Detalhamento da Fonte de Recursos (atualizada)]],'Apoio - Detalhamentos Fontes'!B:C,2,0),"") -> Sem especificação de Recurso do Tesouro | AC35: [Diversos] | AE35: 50000 | AF35: Estimativa de despesa com contratação de serviço para a manutenção do Aplicativo para Proteção Animal. | AG35: Não | AN35: =IFERROR(VLOOKUP(Tabela1[[#This Row],[Subfunção]],'Apoio - Funções-Programas'!AH:AI,2,0),"") ->  | AU35: =IF(Tabela1[[#This Row],[Programa]]="","Não apto","Apto") -> Apto | AV35: =IF(Tabela1[[#This Row],[Ação Orçamentária]]="","Não apto","Apto1") -> Apto1 | AW35: =IF(Tabela1[[#This Row],[Grupo de Natureza de Despesa (GND)]]="","Não apto","Apto4") -> Apto4 | AX35: =IF(Tabela1[[#This Row],[Modalidade de Aplicação (MA)]]="","Não apto","Apto5") -> Apto5 | AY35: =IF(OR(Tabela1[[#This Row],[Fonte de Recursos (antiga)]]="",Tabela1[[#This Row],[Fonte de Recursos (atualizada)]]="",Tabela1[[#This Row],[Detalhamento da Fonte de Recursos (atualizada)]]=""),"Não apto","Apto6") -> Apto6 | AZ35: =IF(OR(Tabela1[[#This Row],[Sigla Unidade Orçamentária]]=""),"Não apto","Apto6") -> Apto6 | BA35: =IF(OR(Tabela1[[#This Row],[Categoria (PO)]]=""),"Não apto","Apto7") -> Apto7 | BB35: =IF(OR(Tabela1[[#This Row],[Descrição da Despesa]]=""),"Não apto","Apto8") -> Apto8 | BC35: =IF(OR(Tabela1[[#This Row],[Função]]=""),"Não apto","Apto9") -> Apto9 | BD35: =IF(OR(Tabela1[[#This Row],[Subfunção]]=""),"Não apto","Apto10") -> Apto10
A36: =IF(Tabela1[[#This Row],[Sigla Unidade Orçamentária]]<>"",TEXT(MID(A35,1,3)+1,"000")&"-"&Tabela1[[#This Row],[Sigla Unidade Orçamentária]]&"-PLOA23","") -> 063-SMARHS-PLOA23 | B36: =IF(Tabela1[[#This Row],[Sigla Unidade Orçamentária]]<>"",_xlfn.XLOOKUP(Tabela1[[#This Row],[Sigla Unidade Orçamentária]],'Apoio - Lista de UOs'!A:A,'Apoio - Lista de UOs'!C:C),"") ->  | C36: SMARHS | D36: Programas e Projetos | E36: Educação | F36: Despesa com a manutenção e ampliação do programa de educação animalista nas escolas da cidade. | G36: 18 | H36: =IFERROR(VLOOKUP(Tabela1[[#This Row],[Função]],'Apoio - Funções-Programas'!A:B,2,0),"") -> GESTAO AMBIENTAL | I36: 305 | J36: =IFERROR(VLOOKUP(Tabela1[[#This Row],[Subfunção]],'Apoio - Funções-Programas'!D:E,2,0),"") -> VIGILANCIA EPIDEMIOLOGICA | K36: 114 | L36: =IFERROR(VLOOKUP(Tabela1[[#This Row],[Programa]],'Apoio - Funções-Programas'!G:H,2,0),"") -> PROTEÇÃO À FAUNA | M36: 6598 | N36: =IFERROR(VLOOKUP(Tabela1[[#This Row],[Ação Orçamentária]],'Apoio - Lista de Ações'!A:B,2,0),"") -> Implementação do Programa Educação Animalista | O36: 3 | P36: 90 | Q36: 30 | R36: =IFERROR(VLOOKUP(Tabela1[[#This Row],[Elemento de Despesa]],'Apoio - Lista de NDs'!$A$25:$C$65,2,0),"") -> MATERIAL DE CONSUMO | S36: =IFERROR(_xlfn.IFS(Tabela1[[#This Row],[Sigla Unidade Orçamentária]]="FME","FME",Tabela1[[#This Row],[Sigla Unidade Orçamentária]]="FMAS","FMAS",Tabela1[[#This Row],[Sigla Unidade Orçamentária]]="FUNDOSAUDE","FUNDOSAUDE",Tabela1[[#This Row],[Sigla Unidade Orçamentária]]="FUNDACAOSAUDE","FUNDACAOSAUDE",Tabela1[[#This Row],[Sigla Unidade Orçamentária]]="NITPREVFIN","NITPREVFIN",Tabela1[[#This Row],[Sigla Unidade Orçamentária]]="NITPREVPREV","NITPREVPREV",Tabela1[[#This Row],[Sigla Unidade Orçamentária]]="NITPREV","NITPREV",Tabela1[[#This Row],[Sigla Unidade Orçamentária]]="EMUSA","EMUSA",Tabela1[[#This Row],[Sigla Unidade Orçamentária]]="FIA","FIA",Tabela1[[#This Row],[Sigla Unidade Orçamentária]]="CMN","CMN",(_xlfn.XLOOKUP(Tabela1[[#This Row],[Sigla Unidade Orçamentária]],'Apoio - Lista de UOs'!A:A,'Apoio - Lista de UOs'!E:E)="01"),"Direta"),"INDIRETAS_GERAL") -> INDIRETAS_GERAL | T36: 138 | U36: =IFERROR(VLOOKUP(Tabela1[[#This Row],[Fonte de Recursos (antiga)]],'ListaFontes (Interno)'!BP:BQ,2,0),"") -> Compensação Financeira Pela Exploração E Produção do Petróleo | V36: =IFERROR(IF(Tabela1[[#This Row],[Fonte de Recursos (antiga)]]<>"",_xlfn.CONCAT("FONTE",Tabela1[[#This Row],[Fonte de Recursos (antiga)]],Tabela1[[#This Row],[Classif Fonte]]),""),"") ->  | W36: 704 | X36: =IFERROR(VLOOKUP(Tabela1[[#This Row],[Fonte de Recursos (atualizada)]],'Apoio - Lista de Novas Fontes'!B:C,2,0),"") -> Transferência da União Referente a Royalties do Petróleo e Gás Natural | Y36: =IFERROR(IF(Tabela1[[#This Row],[Fonte de Recursos (antiga)]]<>"",_xlfn.CONCAT("DETALHAMENTO",Tabela1[[#This Row],[Fonte de Recursos (atualizada)]]),""),"") ->  | Z36: 00 | AA36: =IFERROR(VLOOKUP(Tabela1[[#This Row],[Detalhamento da Fonte de Recursos (atualizada)]],'Apoio - Detalhamentos Fontes'!B:C,2,0),"") -> Sem especificação de Recurso do Tesouro | AC36: [Diversos] | AE36: 30000 | AF36: Valor para compra de material educacional relacionado a Educação Animalista implantado na cidade e na rede de educação municipal. | AG36: Não | AN36: =IFERROR(VLOOKUP(Tabela1[[#This Row],[Subfunção]],'Apoio - Funções-Programas'!AH:AI,2,0),"") ->  | AU36: =IF(Tabela1[[#This Row],[Programa]]="","Não apto","Apto") -> Apto | AV36: =IF(Tabela1[[#This Row],[Ação Orçamentária]]="","Não apto","Apto1") -> Apto1 | AW36: =IF(Tabela1[[#This Row],[Grupo de Natureza de Despesa (GND)]]="","Não apto","Apto4") -> Apto4 | AX36: =IF(Tabela1[[#This Row],[Modalidade de Aplicação (MA)]]="","Não apto","Apto5") -> Apto5 | AY36: =IF(OR(Tabela1[[#This Row],[Fonte de Recursos (antiga)]]="",Tabela1[[#This Row],[Fonte de Recursos (atualizada)]]="",Tabela1[[#This Row],[Detalhamento da Fonte de Recursos (atualizada)]]=""),"Não apto","Apto6") -> Apto6 | AZ36: =IF(OR(Tabela1[[#This Row],[Sigla Unidade Orçamentária]]=""),"Não apto","Apto6") -> Apto6 | BA36: =IF(OR(Tabela1[[#This Row],[Categoria (PO)]]=""),"Não apto","Apto7") -> Apto7 | BB36: =IF(OR(Tabela1[[#This Row],[Descrição da Despesa]]=""),"Não apto","Apto8") -> Apto8 | BC36: =IF(OR(Tabela1[[#This Row],[Função]]=""),"Não apto","Apto9") -> Apto9 | BD36: =IF(OR(Tabela1[[#This Row],[Subfunção]]=""),"Não apto","Apto10") -> Apto10
A37: =IF(Tabela1[[#This Row],[Sigla Unidade Orçamentária]]<>"",TEXT(MID(A36,1,3)+1,"000")&"-"&Tabela1[[#This Row],[Sigla Unidade Orçamentária]]&"-PLOA23","") -> 064-SMARHS-PLOA23 | B37: =IF(Tabela1[[#This Row],[Sigla Unidade Orçamentária]]<>"",_xlfn.XLOOKUP(Tabela1[[#This Row],[Sigla Unidade Orçamentária]],'Apoio - Lista de UOs'!A:A,'Apoio - Lista de UOs'!C:C),"") ->  | C37: SMARHS | D37: Contratos e Serviços Continuados | E37: Sobre Compras e Serviços Contratados | F37: Despesa com a manutenção dos Parques Naturais Municipais | G37: 18 | H37: =IFERROR(VLOOKUP(Tabela1[[#This Row],[Função]],'Apoio - Funções-Programas'!A:B,2,0),"") -> GESTAO AMBIENTAL | I37: 541 | J37: =IFERROR(VLOOKUP(Tabela1[[#This Row],[Subfunção]],'Apoio - Funções-Programas'!D:E,2,0),"") -> PRESERVACAO E CONSERVACAO AMBIENTAL | K37: 147 | L37: =IFERROR(VLOOKUP(Tabela1[[#This Row],[Programa]],'Apoio - Funções-Programas'!G:H,2,0),"") -> CIDADE VERDE E SUSTENTÁVEL | M37: 6581 | N37: =IFERROR(VLOOKUP(Tabela1[[#This Row],[Ação Orçamentária]],'Apoio - Lista de Ações'!A:B,2,0),"") -> Manutenção de Parque Naturais Municipais | O37: 3 | P37: 90 | Q37: 39 | R37: =IFERROR(VLOOKUP(Tabela1[[#This Row],[Elemento de Despesa]],'Apoio - Lista de NDs'!$A$25:$C$65,2,0),"") -> OUTROS SERVICOS DE TERCEIROS-PESSOA JURIDICA | S37: =IFERROR(_xlfn.IFS(Tabela1[[#This Row],[Sigla Unidade Orçamentária]]="FME","FME",Tabela1[[#This Row],[Sigla Unidade Orçamentária]]="FMAS","FMAS",Tabela1[[#This Row],[Sigla Unidade Orçamentária]]="FUNDOSAUDE","FUNDOSAUDE",Tabela1[[#This Row],[Sigla Unidade Orçamentária]]="FUNDACAOSAUDE","FUNDACAOSAUDE",Tabela1[[#This Row],[Sigla Unidade Orçamentária]]="NITPREVFIN","NITPREVFIN",Tabela1[[#This Row],[Sigla Unidade Orçamentária]]="NITPREVPREV","NITPREVPREV",Tabela1[[#This Row],[Sigla Unidade Orçamentária]]="NITPREV","NITPREV",Tabela1[[#This Row],[Sigla Unidade Orçamentária]]="EMUSA","EMUSA",Tabela1[[#This Row],[Sigla Unidade Orçamentária]]="FIA","FIA",Tabela1[[#This Row],[Sigla Unidade Orçamentária]]="CMN","CMN",(_xlfn.XLOOKUP(Tabela1[[#This Row],[Sigla Unidade Orçamentária]],'Apoio - Lista de UOs'!A:A,'Apoio - Lista de UOs'!E:E)="01"),"Direta"),"INDIRETAS_GERAL") -> INDIRETAS_GERAL | T37: 138 | U37: =IFERROR(VLOOKUP(Tabela1[[#This Row],[Fonte de Recursos (antiga)]],'ListaFontes (Interno)'!BP:BQ,2,0),"") -> Compensação Financeira Pela Exploração E Produção do Petróleo | V37: =IFERROR(IF(Tabela1[[#This Row],[Fonte de Recursos (antiga)]]<>"",_xlfn.CONCAT("FONTE",Tabela1[[#This Row],[Fonte de Recursos (antiga)]],Tabela1[[#This Row],[Classif Fonte]]),""),"") ->  | W37: 704 | X37: =IFERROR(VLOOKUP(Tabela1[[#This Row],[Fonte de Recursos (atualizada)]],'Apoio - Lista de Novas Fontes'!B:C,2,0),"") -> Transferência da União Referente a Royalties do Petróleo e Gás Natural | Y37: =IFERROR(IF(Tabela1[[#This Row],[Fonte de Recursos (antiga)]]<>"",_xlfn.CONCAT("DETALHAMENTO",Tabela1[[#This Row],[Fonte de Recursos (atualizada)]]),""),"") ->  | Z37: 00 | AA37: =IFERROR(VLOOKUP(Tabela1[[#This Row],[Detalhamento da Fonte de Recursos (atualizada)]],'Apoio - Detalhamentos Fontes'!B:C,2,0),"") -> Sem especificação de Recurso do Tesouro | AC37: [A Licitar] | AE37: 0 | AF37: Projeto referente á Manutenção dos Parques Municipais. - Despesa referente a gestão, apoio e implementação dos Parques (Guarda-Parque), totalizando 3 parques (PARNIT, Água Escondida, Baldeador) . Orçamento estimado para um Parque Municipal (PARNIT) em R$ 750.000,00 - Processo em andamento 250/19702022. - Despesas dentro da exigência dos projetos citados pelo prefeito Axel Grael. Valor da prestação de serviço, estimado por pesquisa de mercado. | AN37: =IFERROR(VLOOKUP(Tabela1[[#This Row],[Subfunção]],'Apoio - Funções-Programas'!AH:AI,2,0),"") ->  | AU37: =IF(Tabela1[[#This Row],[Programa]]="","Não apto","Apto") -> Apto | AV37: =IF(Tabela1[[#This Row],[Ação Orçamentária]]="","Não apto","Apto1") -> Apto1 | AW37: =IF(Tabela1[[#This Row],[Grupo de Natureza de Despesa (GND)]]="","Não apto","Apto4") -> Apto4 | AX37: =IF(Tabela1[[#This Row],[Modalidade de Aplicação (MA)]]="","Não apto","Apto5") -> Apto5 | AY37: =IF(OR(Tabela1[[#This Row],[Fonte de Recursos (antiga)]]="",Tabela1[[#This Row],[Fonte de Recursos (atualizada)]]="",Tabela1[[#This Row],[Detalhamento da Fonte de Recursos (atualizada)]]=""),"Não apto","Apto6") -> Apto6 | AZ37: =IF(OR(Tabela1[[#This Row],[Sigla Unidade Orçamentária]]=""),"Não apto","Apto6") -> Apto6 | BA37: =IF(OR(Tabela1[[#This Row],[Categoria (PO)]]=""),"Não apto","Apto7") -> Apto7 | BB37: =IF(OR(Tabela1[[#This Row],[Descrição da Despesa]]=""),"Não apto","Apto8") -> Apto8 | BC37: =IF(OR(Tabela1[[#This Row],[Função]]=""),"Não apto","Apto9") -> Apto9 | BD37: =IF(OR(Tabela1[[#This Row],[Subfunção]]=""),"Não apto","Apto10") -> Apto10
A38: =IF(Tabela1[[#This Row],[Sigla Unidade Orçamentária]]<>"",TEXT(MID(A37,1,3)+1,"000")&"-"&Tabela1[[#This Row],[Sigla Unidade Orçamentária]]&"-PLOA23","") -> 065-SMARHS-PLOA23 | B38: =IF(Tabela1[[#This Row],[Sigla Unidade Orçamentária]]<>"",_xlfn.XLOOKUP(Tabela1[[#This Row],[Sigla Unidade Orçamentária]],'Apoio - Lista de UOs'!A:A,'Apoio - Lista de UOs'!C:C),"") ->  | C38: SMARHS | D38: Programas e Projetos | E38: [Não encontrado] | F38: Despesa com Aquisição da Unidade Móvel de Castração | G38: 18 | H38: =IFERROR(VLOOKUP(Tabela1[[#This Row],[Função]],'Apoio - Funções-Programas'!A:B,2,0),"") -> GESTAO AMBIENTAL | I38: 305 | J38: =IFERROR(VLOOKUP(Tabela1[[#This Row],[Subfunção]],'Apoio - Funções-Programas'!D:E,2,0),"") -> VIGILANCIA EPIDEMIOLOGICA | K38: 114 | L38: =IFERROR(VLOOKUP(Tabela1[[#This Row],[Programa]],'Apoio - Funções-Programas'!G:H,2,0),"") -> PROTEÇÃO À FAUNA | M38: 6593 | N38: =IFERROR(VLOOKUP(Tabela1[[#This Row],[Ação Orçamentária]],'Apoio - Lista de Ações'!A:B,2,0),"") -> Manutenção do Programa Veterinário Municipal | O38: 4 | P38: 90 | Q38: 52 | R38: =IFERROR(VLOOKUP(Tabela1[[#This Row],[Elemento de Despesa]],'Apoio - Lista de NDs'!$A$25:$C$65,2,0),"") -> EQUIPAMENTOS E MATERIAL PERMANENTE | S38: =IFERROR(_xlfn.IFS(Tabela1[[#This Row],[Sigla Unidade Orçamentária]]="FME","FME",Tabela1[[#This Row],[Sigla Unidade Orçamentária]]="FMAS","FMAS",Tabela1[[#This Row],[Sigla Unidade Orçamentária]]="FUNDOSAUDE","FUNDOSAUDE",Tabela1[[#This Row],[Sigla Unidade Orçamentária]]="FUNDACAOSAUDE","FUNDACAOSAUDE",Tabela1[[#This Row],[Sigla Unidade Orçamentária]]="NITPREVFIN","NITPREVFIN",Tabela1[[#This Row],[Sigla Unidade Orçamentária]]="NITPREVPREV","NITPREVPREV",Tabela1[[#This Row],[Sigla Unidade Orçamentária]]="NITPREV","NITPREV",Tabela1[[#This Row],[Sigla Unidade Orçamentária]]="EMUSA","EMUSA",Tabela1[[#This Row],[Sigla Unidade Orçamentária]]="FIA","FIA",Tabela1[[#This Row],[Sigla Unidade Orçamentária]]="CMN","CMN",(_xlfn.XLOOKUP(Tabela1[[#This Row],[Sigla Unidade Orçamentária]],'Apoio - Lista de UOs'!A:A,'Apoio - Lista de UOs'!E:E)="01"),"Direta"),"INDIRETAS_GERAL") -> INDIRETAS_GERAL | T38: 138 | U38: =IFERROR(VLOOKUP(Tabela1[[#This Row],[Fonte de Recursos (antiga)]],'ListaFontes (Interno)'!BP:BQ,2,0),"") -> Compensação Financeira Pela Exploração E Produção do Petróleo | V38: =IFERROR(IF(Tabela1[[#This Row],[Fonte de Recursos (antiga)]]<>"",_xlfn.CONCAT("FONTE",Tabela1[[#This Row],[Fonte de Recursos (antiga)]],Tabela1[[#This Row],[Classif Fonte]]),""),"") ->  | W38: 704 | X38: =IFERROR(VLOOKUP(Tabela1[[#This Row],[Fonte de Recursos (atualizada)]],'Apoio - Lista de Novas Fontes'!B:C,2,0),"") -> Transferência da União Referente a Royalties do Petróleo e Gás Natural | Y38: =IFERROR(IF(Tabela1[[#This Row],[Fonte de Recursos (antiga)]]<>"",_xlfn.CONCAT("DETALHAMENTO",Tabela1[[#This Row],[Fonte de Recursos (atualizada)]]),""),"") ->  | Z38: 00 | AA38: =IFERROR(VLOOKUP(Tabela1[[#This Row],[Detalhamento da Fonte de Recursos (atualizada)]],'Apoio - Detalhamentos Fontes'!B:C,2,0),"") -> Sem especificação de Recurso do Tesouro | AC38: [A Licitar] | AE38: 150000 | AF38: Compra de uma unidade fixa (Container) completa para castração | AG38: Não | AN38: =IFERROR(VLOOKUP(Tabela1[[#This Row],[Subfunção]],'Apoio - Funções-Programas'!AH:AI,2,0),"") ->  | AU38: =IF(Tabela1[[#This Row],[Programa]]="","Não apto","Apto") -> Apto | AV38: =IF(Tabela1[[#This Row],[Ação Orçamentária]]="","Não apto","Apto1") -> Apto1 | AW38: =IF(Tabela1[[#This Row],[Grupo de Natureza de Despesa (GND)]]="","Não apto","Apto4") -> Apto4 | AX38: =IF(Tabela1[[#This Row],[Modalidade de Aplicação (MA)]]="","Não apto","Apto5") -> Apto5 | AY38: =IF(OR(Tabela1[[#This Row],[Fonte de Recursos (antiga)]]="",Tabela1[[#This Row],[Fonte de Recursos (atualizada)]]="",Tabela1[[#This Row],[Detalhamento da Fonte de Recursos (atualizada)]]=""),"Não apto","Apto6") -> Apto6 | AZ38: =IF(OR(Tabela1[[#This Row],[Sigla Unidade Orçamentária]]=""),"Não apto","Apto6") -> Apto6 | BA38: =IF(OR(Tabela1[[#This Row],[Categoria (PO)]]=""),"Não apto","Apto7") -> Apto7 | BB38: =IF(OR(Tabela1[[#This Row],[Descrição da Despesa]]=""),"Não apto","Apto8") -> Apto8 | BC38: =IF(OR(Tabela1[[#This Row],[Função]]=""),"Não apto","Apto9") -> Apto9 | BD38: =IF(OR(Tabela1[[#This Row],[Subfunção]]=""),"Não apto","Apto10") -> Apto10
A39: =IF(Tabela1[[#This Row],[Sigla Unidade Orçamentária]]<>"",TEXT(MID(A38,1,3)+1,"000")&"-"&Tabela1[[#This Row],[Sigla Unidade Orçamentária]]&"-PLOA23","") -> 066-SMARHS-PLOA23 | B39: =IF(Tabela1[[#This Row],[Sigla Unidade Orçamentária]]<>"",_xlfn.XLOOKUP(Tabela1[[#This Row],[Sigla Unidade Orçamentária]],'Apoio - Lista de UOs'!A:A,'Apoio - Lista de UOs'!C:C),"") ->  | C39: SMARHS | D39: [Não encontrado] | E39: [Não encontrado] | F39: Despesa com Realização de Eventos de Proteção Animal | G39: 18 | H39: =IFERROR(VLOOKUP(Tabela1[[#This Row],[Função]],'Apoio - Funções-Programas'!A:B,2,0),"") -> GESTAO AMBIENTAL | I39: 305 | J39: =IFERROR(VLOOKUP(Tabela1[[#This Row],[Subfunção]],'Apoio - Funções-Programas'!D:E,2,0),"") -> VIGILANCIA EPIDEMIOLOGICA | K39: 114 | L39: =IFERROR(VLOOKUP(Tabela1[[#This Row],[Programa]],'Apoio - Funções-Programas'!G:H,2,0),"") -> PROTEÇÃO À FAUNA | M39: 6599 | N39: =IFERROR(VLOOKUP(Tabela1[[#This Row],[Ação Orçamentária]],'Apoio - Lista de Ações'!A:B,2,0),"") -> Realização de eventos de Proteção Animal | O39: 3 | P39: 90 | Q39: 39 | R39: =IFERROR(VLOOKUP(Tabela1[[#This Row],[Elemento de Despesa]],'Apoio - Lista de NDs'!$A$25:$C$65,2,0),"") -> OUTROS SERVICOS DE TERCEIROS-PESSOA JURIDICA | S39: =IFERROR(_xlfn.IFS(Tabela1[[#This Row],[Sigla Unidade Orçamentária]]="FME","FME",Tabela1[[#This Row],[Sigla Unidade Orçamentária]]="FMAS","FMAS",Tabela1[[#This Row],[Sigla Unidade Orçamentária]]="FUNDOSAUDE","FUNDOSAUDE",Tabela1[[#This Row],[Sigla Unidade Orçamentária]]="FUNDACAOSAUDE","FUNDACAOSAUDE",Tabela1[[#This Row],[Sigla Unidade Orçamentária]]="NITPREVFIN","NITPREVFIN",Tabela1[[#This Row],[Sigla Unidade Orçamentária]]="NITPREVPREV","NITPREVPREV",Tabela1[[#This Row],[Sigla Unidade Orçamentária]]="NITPREV","NITPREV",Tabela1[[#This Row],[Sigla Unidade Orçamentária]]="EMUSA","EMUSA",Tabela1[[#This Row],[Sigla Unidade Orçamentária]]="FIA","FIA",Tabela1[[#This Row],[Sigla Unidade Orçamentária]]="CMN","CMN",(_xlfn.XLOOKUP(Tabela1[[#This Row],[Sigla Unidade Orçamentária]],'Apoio - Lista de UOs'!A:A,'Apoio - Lista de UOs'!E:E)="01"),"Direta"),"INDIRETAS_GERAL") -> INDIRETAS_GERAL | T39: 138 | U39: =IFERROR(VLOOKUP(Tabela1[[#This Row],[Fonte de Recursos (antiga)]],'ListaFontes (Interno)'!BP:BQ,2,0),"") -> Compensação Financeira Pela Exploração E Produção do Petróleo | V39: =IFERROR(IF(Tabela1[[#This Row],[Fonte de Recursos (antiga)]]<>"",_xlfn.CONCAT("FONTE",Tabela1[[#This Row],[Fonte de Recursos (antiga)]],Tabela1[[#This Row],[Classif Fonte]]),""),"") ->  | X39: =IFERROR(VLOOKUP(Tabela1[[#This Row],[Fonte de Recursos (atualizada)]],'Apoio - Lista de Novas Fontes'!B:C,2,0),"") ->  | Y39: =IFERROR(IF(Tabela1[[#This Row],[Fonte de Recursos (antiga)]]<>"",_xlfn.CONCAT("DETALHAMENTO",Tabela1[[#This Row],[Fonte de Recursos (atualizada)]]),""),"") ->  | AA39: =IFERROR(VLOOKUP(Tabela1[[#This Row],[Detalhamento da Fonte de Recursos (atualizada)]],'Apoio - Detalhamentos Fontes'!B:C,2,0),"") ->  | AC39: [A Licitar] | AE39: 50000 | AF39: Promoção de eventos , seminários e peças piblicitárias sobre proteção animal | AG39: Não | AN39: =IFERROR(VLOOKUP(Tabela1[[#This Row],[Subfunção]],'Apoio - Funções-Programas'!AH:AI,2,0),"") ->  | AU39: =IF(Tabela1[[#This Row],[Programa]]="","Não apto","Apto") -> Apto | AV39: =IF(Tabela1[[#This Row],[Ação Orçamentária]]="","Não apto","Apto1") -> Apto1 | AW39: =IF(Tabela1[[#This Row],[Grupo de Natureza de Despesa (GND)]]="","Não apto","Apto4") -> Apto4 | AX39: =IF(Tabela1[[#This Row],[Modalidade de Aplicação (MA)]]="","Não apto","Apto5") -> Apto5 | AY39: =IF(OR(Tabela1[[#This Row],[Fonte de Recursos (antiga)]]="",Tabela1[[#This Row],[Fonte de Recursos (atualizada)]]="",Tabela1[[#This Row],[Detalhamento da Fonte de Recursos (atualizada)]]=""),"Não apto","Apto6") -> Não apto | AZ39: =IF(OR(Tabela1[[#This Row],[Sigla Unidade Orçamentária]]=""),"Não apto","Apto6") -> Apto6 | BA39: =IF(OR(Tabela1[[#This Row],[Categoria (PO)]]=""),"Não apto","Apto7") -> Apto7 | BB39: =IF(OR(Tabela1[[#This Row],[Descrição da Despesa]]=""),"Não apto","Apto8") -> Apto8 | BC39: =IF(OR(Tabela1[[#This Row],[Função]]=""),"Não apto","Apto9") -> Apto9 | BD39: =IF(OR(Tabela1[[#This Row],[Subfunção]]=""),"Não apto","Apto10") -> Apto10
A40: =IF(Tabela1[[#This Row],[Sigla Unidade Orçamentária]]<>"",TEXT(MID(A39,1,3)+1,"000")&"-"&Tabela1[[#This Row],[Sigla Unidade Orçamentária]]&"-PLOA23","") -> 067-SMARHS-PLOA23 | B40: =IF(Tabela1[[#This Row],[Sigla Unidade Orçamentária]]<>"",_xlfn.XLOOKUP(Tabela1[[#This Row],[Sigla Unidade Orçamentária]],'Apoio - Lista de UOs'!A:A,'Apoio - Lista de UOs'!C:C),"") ->  | C40: SMARHS | D40: [Não encontrado] | E40: [Não encontrado] | F40: Despesa Administrativa da SMARHS | G40: 18 | H40: =IFERROR(VLOOKUP(Tabela1[[#This Row],[Função]],'Apoio - Funções-Programas'!A:B,2,0),"") -> GESTAO AMBIENTAL | I40: 122 | J40: =IFERROR(VLOOKUP(Tabela1[[#This Row],[Subfunção]],'Apoio - Funções-Programas'!D:E,2,0),"") -> ADMINISTRACAO GERAL | K40: 145 | L40: =IFERROR(VLOOKUP(Tabela1[[#This Row],[Programa]],'Apoio - Funções-Programas'!G:H,2,0),"") -> APOIO ADMINISTRATIVO | M40: 4191 | N40: =IFERROR(VLOOKUP(Tabela1[[#This Row],[Ação Orçamentária]],'Apoio - Lista de Ações'!A:B,2,0),"") -> Administração da Unidade | O40: 3 | P40: 90 | Q40: 39 | R40: =IFERROR(VLOOKUP(Tabela1[[#This Row],[Elemento de Despesa]],'Apoio - Lista de NDs'!$A$25:$C$65,2,0),"") -> OUTROS SERVICOS DE TERCEIROS-PESSOA JURIDICA | S40: =IFERROR(_xlfn.IFS(Tabela1[[#This Row],[Sigla Unidade Orçamentária]]="FME","FME",Tabela1[[#This Row],[Sigla Unidade Orçamentária]]="FMAS","FMAS",Tabela1[[#This Row],[Sigla Unidade Orçamentária]]="FUNDOSAUDE","FUNDOSAUDE",Tabela1[[#This Row],[Sigla Unidade Orçamentária]]="FUNDACAOSAUDE","FUNDACAOSAUDE",Tabela1[[#This Row],[Sigla Unidade Orçamentária]]="NITPREVFIN","NITPREVFIN",Tabela1[[#This Row],[Sigla Unidade Orçamentária]]="NITPREVPREV","NITPREVPREV",Tabela1[[#This Row],[Sigla Unidade Orçamentária]]="NITPREV","NITPREV",Tabela1[[#This Row],[Sigla Unidade Orçamentária]]="EMUSA","EMUSA",Tabela1[[#This Row],[Sigla Unidade Orçamentária]]="FIA","FIA",Tabela1[[#This Row],[Sigla Unidade Orçamentária]]="CMN","CMN",(_xlfn.XLOOKUP(Tabela1[[#This Row],[Sigla Unidade Orçamentária]],'Apoio - Lista de UOs'!A:A,'Apoio - Lista de UOs'!E:E)="01"),"Direta"),"INDIRETAS_GERAL") -> INDIRETAS_GERAL | T40: 138 | U40: =IFERROR(VLOOKUP(Tabela1[[#This Row],[Fonte de Recursos (antiga)]],'ListaFontes (Interno)'!BP:BQ,2,0),"") -> Compensação Financeira Pela Exploração E Produção do Petróleo | V40: =IFERROR(IF(Tabela1[[#This Row],[Fonte de Recursos (antiga)]]<>"",_xlfn.CONCAT("FONTE",Tabela1[[#This Row],[Fonte de Recursos (antiga)]],Tabela1[[#This Row],[Classif Fonte]]),""),"") ->  | X40: =IFERROR(VLOOKUP(Tabela1[[#This Row],[Fonte de Recursos (atualizada)]],'Apoio - Lista de Novas Fontes'!B:C,2,0),"") ->  | Y40: =IFERROR(IF(Tabela1[[#This Row],[Fonte de Recursos (antiga)]]<>"",_xlfn.CONCAT("DETALHAMENTO",Tabela1[[#This Row],[Fonte de Recursos (atualizada)]]),""),"") ->  | AA40: =IFERROR(VLOOKUP(Tabela1[[#This Row],[Detalhamento da Fonte de Recursos (atualizada)]],'Apoio - Detalhamentos Fontes'!B:C,2,0),"") ->  | AE40: 50000 | AF40: Despesa cvom taxas , licença e títulos que envolvam certificados do meio ambiente e demais despesas . | AG40: Não | AN40: =IFERROR(VLOOKUP(Tabela1[[#This Row],[Subfunção]],'Apoio - Funções-Programas'!AH:AI,2,0),"") ->  | AU40: =IF(Tabela1[[#This Row],[Programa]]="","Não apto","Apto") -> Apto | AV40: =IF(Tabela1[[#This Row],[Ação Orçamentária]]="","Não apto","Apto1") -> Apto1 | AW40: =IF(Tabela1[[#This Row],[Grupo de Natureza de Despesa (GND)]]="","Não apto","Apto4") -> Apto4 | AX40: =IF(Tabela1[[#This Row],[Modalidade de Aplicação (MA)]]="","Não apto","Apto5") -> Apto5 | AY40: =IF(OR(Tabela1[[#This Row],[Fonte de Recursos (antiga)]]="",Tabela1[[#This Row],[Fonte de Recursos (atualizada)]]="",Tabela1[[#This Row],[Detalhamento da Fonte de Recursos (atualizada)]]=""),"Não apto","Apto6") -> Não apto | AZ40: =IF(OR(Tabela1[[#This Row],[Sigla Unidade Orçamentária]]=""),"Não apto","Apto6") -> Apto6 | BA40: =IF(OR(Tabela1[[#This Row],[Categoria (PO)]]=""),"Não apto","Apto7") -> Apto7 | BB40: =IF(OR(Tabela1[[#This Row],[Descrição da Despesa]]=""),"Não apto","Apto8") -> Apto8 | BC40: =IF(OR(Tabela1[[#This Row],[Função]]=""),"Não apto","Apto9") -> Apto9 | BD40: =IF(OR(Tabela1[[#This Row],[Subfunção]]=""),"Não apto","Apto10") -> Apto10
A41: =IF(Tabela1[[#This Row],[Sigla Unidade Orçamentária]]<>"",TEXT(MID(A40,1,3)+1,"000")&"-"&Tabela1[[#This Row],[Sigla Unidade Orçamentária]]&"-PLOA23","") ->  | B41: =IF(Tabela1[[#This Row],[Sigla Unidade Orçamentária]]<>"",_xlfn.XLOOKUP(Tabela1[[#This Row],[Sigla Unidade Orçamentária]],'Apoio - Lista de UOs'!A:A,'Apoio - Lista de UOs'!C:C),"") ->  | H41: =IFERROR(VLOOKUP(Tabela1[[#This Row],[Função]],'Apoio - Funções-Programas'!A:B,2,0),"") ->  | J41: =IFERROR(VLOOKUP(Tabela1[[#This Row],[Subfunção]],'Apoio - Funções-Programas'!D:E,2,0),"") ->  | L41: =IFERROR(VLOOKUP(Tabela1[[#This Row],[Programa]],'Apoio - Funções-Programas'!G:H,2,0),"") ->  | N41: =IFERROR(VLOOKUP(Tabela1[[#This Row],[Ação Orçamentária]],'Apoio - Lista de Ações'!A:B,2,0),"") ->  | R41: =IFERROR(VLOOKUP(Tabela1[[#This Row],[Elemento de Despesa]],'Apoio - Lista de NDs'!$A$25:$C$65,2,0),"") ->  | S41: =IFERROR(_xlfn.IFS(Tabela1[[#This Row],[Sigla Unidade Orçamentária]]="FME","FME",Tabela1[[#This Row],[Sigla Unidade Orçamentária]]="FMAS","FMAS",Tabela1[[#This Row],[Sigla Unidade Orçamentária]]="FUNDOSAUDE","FUNDOSAUDE",Tabela1[[#This Row],[Sigla Unidade Orçamentária]]="FUNDACAOSAUDE","FUNDACAOSAUDE",Tabela1[[#This Row],[Sigla Unidade Orçamentária]]="NITPREVFIN","NITPREVFIN",Tabela1[[#This Row],[Sigla Unidade Orçamentária]]="NITPREVPREV","NITPREVPREV",Tabela1[[#This Row],[Sigla Unidade Orçamentária]]="NITPREV","NITPREV",Tabela1[[#This Row],[Sigla Unidade Orçamentária]]="EMUSA","EMUSA",Tabela1[[#This Row],[Sigla Unidade Orçamentária]]="FIA","FIA",Tabela1[[#This Row],[Sigla Unidade Orçamentária]]="CMN","CMN",(_xlfn.XLOOKUP(Tabela1[[#This Row],[Sigla Unidade Orçamentária]],'Apoio - Lista de UOs'!A:A,'Apoio - Lista de UOs'!E:E)="01"),"Direta"),"INDIRETAS_GERAL") -> INDIRETAS_GERAL | U41: =IFERROR(VLOOKUP(Tabela1[[#This Row],[Fonte de Recursos (antiga)]],'ListaFontes (Interno)'!BP:BQ,2,0),"") ->  | V41: =IFERROR(IF(Tabela1[[#This Row],[Fonte de Recursos (antiga)]]<>"",_xlfn.CONCAT("FONTE",Tabela1[[#This Row],[Fonte de Recursos (antiga)]],Tabela1[[#This Row],[Classif Fonte]]),""),"") ->  | X41: =IFERROR(VLOOKUP(Tabela1[[#This Row],[Fonte de Recursos (atualizada)]],'Apoio - Lista de Novas Fontes'!B:C,2,0),"") ->  | Y41: =IFERROR(IF(Tabela1[[#This Row],[Fonte de Recursos (antiga)]]<>"",_xlfn.CONCAT("DETALHAMENTO",Tabela1[[#This Row],[Fonte de Recursos (atualizada)]]),""),"") ->  | AA41: =IFERROR(VLOOKUP(Tabela1[[#This Row],[Detalhamento da Fonte de Recursos (atualizada)]],'Apoio - Detalhamentos Fontes'!B:C,2,0),"") ->  | AN41: =IFERROR(VLOOKUP(Tabela1[[#This Row],[Subfunção]],'Apoio - Funções-Programas'!AH:AI,2,0),"") ->  | AU41: =IF(Tabela1[[#This Row],[Programa]]="","Não apto","Apto") -> Não apto | AV41: =IF(Tabela1[[#This Row],[Ação Orçamentária]]="","Não apto","Apto1") -> Não apto | AW41: =IF(Tabela1[[#This Row],[Grupo de Natureza de Despesa (GND)]]="","Não apto","Apto4") -> Não apto | AX41: =IF(Tabela1[[#This Row],[Modalidade de Aplicação (MA)]]="","Não apto","Apto5") -> Não apto | AY41: =IF(OR(Tabela1[[#This Row],[Fonte de Recursos (antiga)]]="",Tabela1[[#This Row],[Fonte de Recursos (atualizada)]]="",Tabela1[[#This Row],[Detalhamento da Fonte de Recursos (atualizada)]]=""),"Não apto","Apto6") -> Não apto | AZ41: =IF(OR(Tabela1[[#This Row],[Sigla Unidade Orçamentária]]=""),"Não apto","Apto6") -> Não apto | BA41: =IF(OR(Tabela1[[#This Row],[Categoria (PO)]]=""),"Não apto","Apto7") -> Não apto | BB41: =IF(OR(Tabela1[[#This Row],[Descrição da Despesa]]=""),"Não apto","Apto8") -> Não apto | BC41: =IF(OR(Tabela1[[#This Row],[Função]]=""),"Não apto","Apto9") -> Não apto | BD41: =IF(OR(Tabela1[[#This Row],[Subfunção]]=""),"Não apto","Apto10") -> Não apto
A42: =IF(Tabela1[[#This Row],[Sigla Unidade Orçamentária]]<>"",TEXT(MID(A41,1,3)+1,"000")&"-"&Tabela1[[#This Row],[Sigla Unidade Orçamentária]]&"-PLOA23","") ->  | B42: =IF(Tabela1[[#This Row],[Sigla Unidade Orçamentária]]<>"",_xlfn.XLOOKUP(Tabela1[[#This Row],[Sigla Unidade Orçamentária]],'Apoio - Lista de UOs'!A:A,'Apoio - Lista de UOs'!C:C),"") ->  | H42: =IFERROR(VLOOKUP(Tabela1[[#This Row],[Função]],'Apoio - Funções-Programas'!A:B,2,0),"") ->  | J42: =IFERROR(VLOOKUP(Tabela1[[#This Row],[Subfunção]],'Apoio - Funções-Programas'!D:E,2,0),"") ->  | L42: =IFERROR(VLOOKUP(Tabela1[[#This Row],[Programa]],'Apoio - Funções-Programas'!G:H,2,0),"") ->  | N42: =IFERROR(VLOOKUP(Tabela1[[#This Row],[Ação Orçamentária]],'Apoio - Lista de Ações'!A:B,2,0),"") ->  | R42: =IFERROR(VLOOKUP(Tabela1[[#This Row],[Elemento de Despesa]],'Apoio - Lista de NDs'!$A$25:$C$65,2,0),"") ->  | S42: =IFERROR(_xlfn.IFS(Tabela1[[#This Row],[Sigla Unidade Orçamentária]]="FME","FME",Tabela1[[#This Row],[Sigla Unidade Orçamentária]]="FMAS","FMAS",Tabela1[[#This Row],[Sigla Unidade Orçamentária]]="FUNDOSAUDE","FUNDOSAUDE",Tabela1[[#This Row],[Sigla Unidade Orçamentária]]="FUNDACAOSAUDE","FUNDACAOSAUDE",Tabela1[[#This Row],[Sigla Unidade Orçamentária]]="NITPREVFIN","NITPREVFIN",Tabela1[[#This Row],[Sigla Unidade Orçamentária]]="NITPREVPREV","NITPREVPREV",Tabela1[[#This Row],[Sigla Unidade Orçamentária]]="NITPREV","NITPREV",Tabela1[[#This Row],[Sigla Unidade Orçamentária]]="EMUSA","EMUSA",Tabela1[[#This Row],[Sigla Unidade Orçamentária]]="FIA","FIA",Tabela1[[#This Row],[Sigla Unidade Orçamentária]]="CMN","CMN",(_xlfn.XLOOKUP(Tabela1[[#This Row],[Sigla Unidade Orçamentária]],'Apoio - Lista de UOs'!A:A,'Apoio - Lista de UOs'!E:E)="01"),"Direta"),"INDIRETAS_GERAL") -> INDIRETAS_GERAL | U42: =IFERROR(VLOOKUP(Tabela1[[#This Row],[Fonte de Recursos (antiga)]],'ListaFontes (Interno)'!BP:BQ,2,0),"") ->  | V42: =IFERROR(IF(Tabela1[[#This Row],[Fonte de Recursos (antiga)]]<>"",_xlfn.CONCAT("FONTE",Tabela1[[#This Row],[Fonte de Recursos (antiga)]],Tabela1[[#This Row],[Classif Fonte]]),""),"") ->  | X42: =IFERROR(VLOOKUP(Tabela1[[#This Row],[Fonte de Recursos (atualizada)]],'Apoio - Lista de Novas Fontes'!B:C,2,0),"") ->  | Y42: =IFERROR(IF(Tabela1[[#This Row],[Fonte de Recursos (antiga)]]<>"",_xlfn.CONCAT("DETALHAMENTO",Tabela1[[#This Row],[Fonte de Recursos (atualizada)]]),""),"") ->  | AA42: =IFERROR(VLOOKUP(Tabela1[[#This Row],[Detalhamento da Fonte de Recursos (atualizada)]],'Apoio - Detalhamentos Fontes'!B:C,2,0),"") ->  | AN42: =IFERROR(VLOOKUP(Tabela1[[#This Row],[Subfunção]],'Apoio - Funções-Programas'!AH:AI,2,0),"") ->  | AU42: =IF(Tabela1[[#This Row],[Programa]]="","Não apto","Apto") -> Não apto | AV42: =IF(Tabela1[[#This Row],[Ação Orçamentária]]="","Não apto","Apto1") -> Não apto | AW42: =IF(Tabela1[[#This Row],[Grupo de Natureza de Despesa (GND)]]="","Não apto","Apto4") -> Não apto | AX42: =IF(Tabela1[[#This Row],[Modalidade de Aplicação (MA)]]="","Não apto","Apto5") -> Não apto | AY42: =IF(OR(Tabela1[[#This Row],[Fonte de Recursos (antiga)]]="",Tabela1[[#This Row],[Fonte de Recursos (atualizada)]]="",Tabela1[[#This Row],[Detalhamento da Fonte de Recursos (atualizada)]]=""),"Não apto","Apto6") -> Não apto | AZ42: =IF(OR(Tabela1[[#This Row],[Sigla Unidade Orçamentária]]=""),"Não apto","Apto6") -> Não apto | BA42: =IF(OR(Tabela1[[#This Row],[Categoria (PO)]]=""),"Não apto","Apto7") -> Não apto | BB42: =IF(OR(Tabela1[[#This Row],[Descrição da Despesa]]=""),"Não apto","Apto8") -> Não apto | BC42: =IF(OR(Tabela1[[#This Row],[Função]]=""),"Não apto","Apto9") -> Não apto | BD42: =IF(OR(Tabela1[[#This Row],[Subfunção]]=""),"Não apto","Apto10") -> Não apto
A43: =IF(Tabela1[[#This Row],[Sigla Unidade Orçamentária]]<>"",TEXT(MID(A42,1,3)+1,"000")&"-"&Tabela1[[#This Row],[Sigla Unidade Orçamentária]]&"-PLOA23","") ->  | B43: =IF(Tabela1[[#This Row],[Sigla Unidade Orçamentária]]<>"",_xlfn.XLOOKUP(Tabela1[[#This Row],[Sigla Unidade Orçamentária]],'Apoio - Lista de UOs'!A:A,'Apoio - Lista de UOs'!C:C),"") ->  | H43: =IFERROR(VLOOKUP(Tabela1[[#This Row],[Função]],'Apoio - Funções-Programas'!A:B,2,0),"") ->  | J43: =IFERROR(VLOOKUP(Tabela1[[#This Row],[Subfunção]],'Apoio - Funções-Programas'!D:E,2,0),"") ->  | L43: =IFERROR(VLOOKUP(Tabela1[[#This Row],[Programa]],'Apoio - Funções-Programas'!G:H,2,0),"") ->  | N43: =IFERROR(VLOOKUP(Tabela1[[#This Row],[Ação Orçamentária]],'Apoio - Lista de Ações'!A:B,2,0),"") ->  | R43: =IFERROR(VLOOKUP(Tabela1[[#This Row],[Elemento de Despesa]],'Apoio - Lista de NDs'!$A$25:$C$65,2,0),"") ->  | S43: =IFERROR(_xlfn.IFS(Tabela1[[#This Row],[Sigla Unidade Orçamentária]]="FME","FME",Tabela1[[#This Row],[Sigla Unidade Orçamentária]]="FMAS","FMAS",Tabela1[[#This Row],[Sigla Unidade Orçamentária]]="FUNDOSAUDE","FUNDOSAUDE",Tabela1[[#This Row],[Sigla Unidade Orçamentária]]="FUNDACAOSAUDE","FUNDACAOSAUDE",Tabela1[[#This Row],[Sigla Unidade Orçamentária]]="NITPREVFIN","NITPREVFIN",Tabela1[[#This Row],[Sigla Unidade Orçamentária]]="NITPREVPREV","NITPREVPREV",Tabela1[[#This Row],[Sigla Unidade Orçamentária]]="NITPREV","NITPREV",Tabela1[[#This Row],[Sigla Unidade Orçamentária]]="EMUSA","EMUSA",Tabela1[[#This Row],[Sigla Unidade Orçamentária]]="FIA","FIA",Tabela1[[#This Row],[Sigla Unidade Orçamentária]]="CMN","CMN",(_xlfn.XLOOKUP(Tabela1[[#This Row],[Sigla Unidade Orçamentária]],'Apoio - Lista de UOs'!A:A,'Apoio - Lista de UOs'!E:E)="01"),"Direta"),"INDIRETAS_GERAL") -> INDIRETAS_GERAL | U43: =IFERROR(VLOOKUP(Tabela1[[#This Row],[Fonte de Recursos (antiga)]],'ListaFontes (Interno)'!BP:BQ,2,0),"") ->  | V43: =IFERROR(IF(Tabela1[[#This Row],[Fonte de Recursos (antiga)]]<>"",_xlfn.CONCAT("FONTE",Tabela1[[#This Row],[Fonte de Recursos (antiga)]],Tabela1[[#This Row],[Classif Fonte]]),""),"") ->  | X43: =IFERROR(VLOOKUP(Tabela1[[#This Row],[Fonte de Recursos (atualizada)]],'Apoio - Lista de Novas Fontes'!B:C,2,0),"") ->  | Y43: =IFERROR(IF(Tabela1[[#This Row],[Fonte de Recursos (antiga)]]<>"",_xlfn.CONCAT("DETALHAMENTO",Tabela1[[#This Row],[Fonte de Recursos (atualizada)]]),""),"") ->  | AA43: =IFERROR(VLOOKUP(Tabela1[[#This Row],[Detalhamento da Fonte de Recursos (atualizada)]],'Apoio - Detalhamentos Fontes'!B:C,2,0),"") ->  | AN43: =IFERROR(VLOOKUP(Tabela1[[#This Row],[Subfunção]],'Apoio - Funções-Programas'!AH:AI,2,0),"") ->  | AU43: =IF(Tabela1[[#This Row],[Programa]]="","Não apto","Apto") -> Não apto | AV43: =IF(Tabela1[[#This Row],[Ação Orçamentária]]="","Não apto","Apto1") -> Não apto | AW43: =IF(Tabela1[[#This Row],[Grupo de Natureza de Despesa (GND)]]="","Não apto","Apto4") -> Não apto | AX43: =IF(Tabela1[[#This Row],[Modalidade de Aplicação (MA)]]="","Não apto","Apto5") -> Não apto | AY43: =IF(OR(Tabela1[[#This Row],[Fonte de Recursos (antiga)]]="",Tabela1[[#This Row],[Fonte de Recursos (atualizada)]]="",Tabela1[[#This Row],[Detalhamento da Fonte de Recursos (atualizada)]]=""),"Não apto","Apto6") -> Não apto | AZ43: =IF(OR(Tabela1[[#This Row],[Sigla Unidade Orçamentária]]=""),"Não apto","Apto6") -> Não apto | BA43: =IF(OR(Tabela1[[#This Row],[Categoria (PO)]]=""),"Não apto","Apto7") -> Não apto | BB43: =IF(OR(Tabela1[[#This Row],[Descrição da Despesa]]=""),"Não apto","Apto8") -> Não apto | BC43: =IF(OR(Tabela1[[#This Row],[Função]]=""),"Não apto","Apto9") -> Não apto | BD43: =IF(OR(Tabela1[[#This Row],[Subfunção]]=""),"Não apto","Apto10") -> Não apto
A44: =IF(Tabela1[[#This Row],[Sigla Unidade Orçamentária]]<>"",TEXT(MID(A43,1,3)+1,"000")&"-"&Tabela1[[#This Row],[Sigla Unidade Orçamentária]]&"-PLOA23","") ->  | B44: =IF(Tabela1[[#This Row],[Sigla Unidade Orçamentária]]<>"",_xlfn.XLOOKUP(Tabela1[[#This Row],[Sigla Unidade Orçamentária]],'Apoio - Lista de UOs'!A:A,'Apoio - Lista de UOs'!C:C),"") ->  | H44: =IFERROR(VLOOKUP(Tabela1[[#This Row],[Função]],'Apoio - Funções-Programas'!A:B,2,0),"") ->  | J44: =IFERROR(VLOOKUP(Tabela1[[#This Row],[Subfunção]],'Apoio - Funções-Programas'!D:E,2,0),"") ->  | L44: =IFERROR(VLOOKUP(Tabela1[[#This Row],[Programa]],'Apoio - Funções-Programas'!G:H,2,0),"") ->  | N44: =IFERROR(VLOOKUP(Tabela1[[#This Row],[Ação Orçamentária]],'Apoio - Lista de Ações'!A:B,2,0),"") ->  | R44: =IFERROR(VLOOKUP(Tabela1[[#This Row],[Elemento de Despesa]],'Apoio - Lista de NDs'!$A$25:$C$65,2,0),"") ->  | S44: =IFERROR(_xlfn.IFS(Tabela1[[#This Row],[Sigla Unidade Orçamentária]]="FME","FME",Tabela1[[#This Row],[Sigla Unidade Orçamentária]]="FMAS","FMAS",Tabela1[[#This Row],[Sigla Unidade Orçamentária]]="FUNDOSAUDE","FUNDOSAUDE",Tabela1[[#This Row],[Sigla Unidade Orçamentária]]="FUNDACAOSAUDE","FUNDACAOSAUDE",Tabela1[[#This Row],[Sigla Unidade Orçamentária]]="NITPREVFIN","NITPREVFIN",Tabela1[[#This Row],[Sigla Unidade Orçamentária]]="NITPREVPREV","NITPREVPREV",Tabela1[[#This Row],[Sigla Unidade Orçamentária]]="NITPREV","NITPREV",Tabela1[[#This Row],[Sigla Unidade Orçamentária]]="EMUSA","EMUSA",Tabela1[[#This Row],[Sigla Unidade Orçamentária]]="FIA","FIA",Tabela1[[#This Row],[Sigla Unidade Orçamentária]]="CMN","CMN",(_xlfn.XLOOKUP(Tabela1[[#This Row],[Sigla Unidade Orçamentária]],'Apoio - Lista de UOs'!A:A,'Apoio - Lista de UOs'!E:E)="01"),"Direta"),"INDIRETAS_GERAL") -> INDIRETAS_GERAL | U44: =IFERROR(VLOOKUP(Tabela1[[#This Row],[Fonte de Recursos (antiga)]],'ListaFontes (Interno)'!BP:BQ,2,0),"") ->  | V44: =IFERROR(IF(Tabela1[[#This Row],[Fonte de Recursos (antiga)]]<>"",_xlfn.CONCAT("FONTE",Tabela1[[#This Row],[Fonte de Recursos (antiga)]],Tabela1[[#This Row],[Classif Fonte]]),""),"") ->  | X44: =IFERROR(VLOOKUP(Tabela1[[#This Row],[Fonte de Recursos (atualizada)]],'Apoio - Lista de Novas Fontes'!B:C,2,0),"") ->  | Y44: =IFERROR(IF(Tabela1[[#This Row],[Fonte de Recursos (antiga)]]<>"",_xlfn.CONCAT("DETALHAMENTO",Tabela1[[#This Row],[Fonte de Recursos (atualizada)]]),""),"") ->  | AA44: =IFERROR(VLOOKUP(Tabela1[[#This Row],[Detalhamento da Fonte de Recursos (atualizada)]],'Apoio - Detalhamentos Fontes'!B:C,2,0),"") ->  | AN44: =IFERROR(VLOOKUP(Tabela1[[#This Row],[Subfunção]],'Apoio - Funções-Programas'!AH:AI,2,0),"") ->  | AU44: =IF(Tabela1[[#This Row],[Programa]]="","Não apto","Apto") -> Não apto | AV44: =IF(Tabela1[[#This Row],[Ação Orçamentária]]="","Não apto","Apto1") -> Não apto | AW44: =IF(Tabela1[[#This Row],[Grupo de Natureza de Despesa (GND)]]="","Não apto","Apto4") -> Não apto | AX44: =IF(Tabela1[[#This Row],[Modalidade de Aplicação (MA)]]="","Não apto","Apto5") -> Não apto | AY44: =IF(OR(Tabela1[[#This Row],[Fonte de Recursos (antiga)]]="",Tabela1[[#This Row],[Fonte de Recursos (atualizada)]]="",Tabela1[[#This Row],[Detalhamento da Fonte de Recursos (atualizada)]]=""),"Não apto","Apto6") -> Não apto | AZ44: =IF(OR(Tabela1[[#This Row],[Sigla Unidade Orçamentária]]=""),"Não apto","Apto6") -> Não apto | BA44: =IF(OR(Tabela1[[#This Row],[Categoria (PO)]]=""),"Não apto","Apto7") -> Não apto | BB44: =IF(OR(Tabela1[[#This Row],[Descrição da Despesa]]=""),"Não apto","Apto8") -> Não apto | BC44: =IF(OR(Tabela1[[#This Row],[Função]]=""),"Não apto","Apto9") -> Não apto | BD44: =IF(OR(Tabela1[[#This Row],[Subfunção]]=""),"Não apto","Apto10") -> Não apto
A45: =IF(Tabela1[[#This Row],[Sigla Unidade Orçamentária]]<>"",TEXT(MID(A44,1,3)+1,"000")&"-"&Tabela1[[#This Row],[Sigla Unidade Orçamentária]]&"-PLOA23","") ->  | B45: =IF(Tabela1[[#This Row],[Sigla Unidade Orçamentária]]<>"",_xlfn.XLOOKUP(Tabela1[[#This Row],[Sigla Unidade Orçamentária]],'Apoio - Lista de UOs'!A:A,'Apoio - Lista de UOs'!C:C),"") ->  | H45: =IFERROR(VLOOKUP(Tabela1[[#This Row],[Função]],'Apoio - Funções-Programas'!A:B,2,0),"") ->  | J45: =IFERROR(VLOOKUP(Tabela1[[#This Row],[Subfunção]],'Apoio - Funções-Programas'!D:E,2,0),"") ->  | L45: =IFERROR(VLOOKUP(Tabela1[[#This Row],[Programa]],'Apoio - Funções-Programas'!G:H,2,0),"") ->  | N45: =IFERROR(VLOOKUP(Tabela1[[#This Row],[Ação Orçamentária]],'Apoio - Lista de Ações'!A:B,2,0),"") ->  | R45: =IFERROR(VLOOKUP(Tabela1[[#This Row],[Elemento de Despesa]],'Apoio - Lista de NDs'!$A$25:$C$65,2,0),"") ->  | S45: =IFERROR(_xlfn.IFS(Tabela1[[#This Row],[Sigla Unidade Orçamentária]]="FME","FME",Tabela1[[#This Row],[Sigla Unidade Orçamentária]]="FMAS","FMAS",Tabela1[[#This Row],[Sigla Unidade Orçamentária]]="FUNDOSAUDE","FUNDOSAUDE",Tabela1[[#This Row],[Sigla Unidade Orçamentária]]="FUNDACAOSAUDE","FUNDACAOSAUDE",Tabela1[[#This Row],[Sigla Unidade Orçamentária]]="NITPREVFIN","NITPREVFIN",Tabela1[[#This Row],[Sigla Unidade Orçamentária]]="NITPREVPREV","NITPREVPREV",Tabela1[[#This Row],[Sigla Unidade Orçamentária]]="NITPREV","NITPREV",Tabela1[[#This Row],[Sigla Unidade Orçamentária]]="EMUSA","EMUSA",Tabela1[[#This Row],[Sigla Unidade Orçamentária]]="FIA","FIA",Tabela1[[#This Row],[Sigla Unidade Orçamentária]]="CMN","CMN",(_xlfn.XLOOKUP(Tabela1[[#This Row],[Sigla Unidade Orçamentária]],'Apoio - Lista de UOs'!A:A,'Apoio - Lista de UOs'!E:E)="01"),"Direta"),"INDIRETAS_GERAL") -> INDIRETAS_GERAL | U45: =IFERROR(VLOOKUP(Tabela1[[#This Row],[Fonte de Recursos (antiga)]],'ListaFontes (Interno)'!BP:BQ,2,0),"") ->  | V45: =IFERROR(IF(Tabela1[[#This Row],[Fonte de Recursos (antiga)]]<>"",_xlfn.CONCAT("FONTE",Tabela1[[#This Row],[Fonte de Recursos (antiga)]],Tabela1[[#This Row],[Classif Fonte]]),""),"") ->  | X45: =IFERROR(VLOOKUP(Tabela1[[#This Row],[Fonte de Recursos (atualizada)]],'Apoio - Lista de Novas Fontes'!B:C,2,0),"") ->  | Y45: =IFERROR(IF(Tabela1[[#This Row],[Fonte de Recursos (antiga)]]<>"",_xlfn.CONCAT("DETALHAMENTO",Tabela1[[#This Row],[Fonte de Recursos (atualizada)]]),""),"") ->  | AA45: =IFERROR(VLOOKUP(Tabela1[[#This Row],[Detalhamento da Fonte de Recursos (atualizada)]],'Apoio - Detalhamentos Fontes'!B:C,2,0),"") ->  | AN45: =IFERROR(VLOOKUP(Tabela1[[#This Row],[Subfunção]],'Apoio - Funções-Programas'!AH:AI,2,0),"") ->  | AU45: =IF(Tabela1[[#This Row],[Programa]]="","Não apto","Apto") -> Não apto | AV45: =IF(Tabela1[[#This Row],[Ação Orçamentária]]="","Não apto","Apto1") -> Não apto | AW45: =IF(Tabela1[[#This Row],[Grupo de Natureza de Despesa (GND)]]="","Não apto","Apto4") -> Não apto | AX45: =IF(Tabela1[[#This Row],[Modalidade de Aplicação (MA)]]="","Não apto","Apto5") -> Não apto | AY45: =IF(OR(Tabela1[[#This Row],[Fonte de Recursos (antiga)]]="",Tabela1[[#This Row],[Fonte de Recursos (atualizada)]]="",Tabela1[[#This Row],[Detalhamento da Fonte de Recursos (atualizada)]]=""),"Não apto","Apto6") -> Não apto | AZ45: =IF(OR(Tabela1[[#This Row],[Sigla Unidade Orçamentária]]=""),"Não apto","Apto6") -> Não apto | BA45: =IF(OR(Tabela1[[#This Row],[Categoria (PO)]]=""),"Não apto","Apto7") -> Não apto | BB45: =IF(OR(Tabela1[[#This Row],[Descrição da Despesa]]=""),"Não apto","Apto8") -> Não apto | BC45: =IF(OR(Tabela1[[#This Row],[Função]]=""),"Não apto","Apto9") -> Não apto | BD45: =IF(OR(Tabela1[[#This Row],[Subfunção]]=""),"Não apto","Apto10") -> Não apto
A46: =IF(Tabela1[[#This Row],[Sigla Unidade Orçamentária]]<>"",TEXT(MID(A45,1,3)+1,"000")&"-"&Tabela1[[#This Row],[Sigla Unidade Orçamentária]]&"-PLOA23","") ->  | B46: =IF(Tabela1[[#This Row],[Sigla Unidade Orçamentária]]<>"",_xlfn.XLOOKUP(Tabela1[[#This Row],[Sigla Unidade Orçamentária]],'Apoio - Lista de UOs'!A:A,'Apoio - Lista de UOs'!C:C),"") ->  | H46: =IFERROR(VLOOKUP(Tabela1[[#This Row],[Função]],'Apoio - Funções-Programas'!A:B,2,0),"") ->  | J46: =IFERROR(VLOOKUP(Tabela1[[#This Row],[Subfunção]],'Apoio - Funções-Programas'!D:E,2,0),"") ->  | L46: =IFERROR(VLOOKUP(Tabela1[[#This Row],[Programa]],'Apoio - Funções-Programas'!G:H,2,0),"") ->  | N46: =IFERROR(VLOOKUP(Tabela1[[#This Row],[Ação Orçamentária]],'Apoio - Lista de Ações'!A:B,2,0),"") ->  | R46: =IFERROR(VLOOKUP(Tabela1[[#This Row],[Elemento de Despesa]],'Apoio - Lista de NDs'!$A$25:$C$65,2,0),"") ->  | S46: =IFERROR(_xlfn.IFS(Tabela1[[#This Row],[Sigla Unidade Orçamentária]]="FME","FME",Tabela1[[#This Row],[Sigla Unidade Orçamentária]]="FMAS","FMAS",Tabela1[[#This Row],[Sigla Unidade Orçamentária]]="FUNDOSAUDE","FUNDOSAUDE",Tabela1[[#This Row],[Sigla Unidade Orçamentária]]="FUNDACAOSAUDE","FUNDACAOSAUDE",Tabela1[[#This Row],[Sigla Unidade Orçamentária]]="NITPREVFIN","NITPREVFIN",Tabela1[[#This Row],[Sigla Unidade Orçamentária]]="NITPREVPREV","NITPREVPREV",Tabela1[[#This Row],[Sigla Unidade Orçamentária]]="NITPREV","NITPREV",Tabela1[[#This Row],[Sigla Unidade Orçamentária]]="EMUSA","EMUSA",Tabela1[[#This Row],[Sigla Unidade Orçamentária]]="FIA","FIA",Tabela1[[#This Row],[Sigla Unidade Orçamentária]]="CMN","CMN",(_xlfn.XLOOKUP(Tabela1[[#This Row],[Sigla Unidade Orçamentária]],'Apoio - Lista de UOs'!A:A,'Apoio - Lista de UOs'!E:E)="01"),"Direta"),"INDIRETAS_GERAL") -> INDIRETAS_GERAL | U46: =IFERROR(VLOOKUP(Tabela1[[#This Row],[Fonte de Recursos (antiga)]],'ListaFontes (Interno)'!BP:BQ,2,0),"") ->  | V46: =IFERROR(IF(Tabela1[[#This Row],[Fonte de Recursos (antiga)]]<>"",_xlfn.CONCAT("FONTE",Tabela1[[#This Row],[Fonte de Recursos (antiga)]],Tabela1[[#This Row],[Classif Fonte]]),""),"") ->  | X46: =IFERROR(VLOOKUP(Tabela1[[#This Row],[Fonte de Recursos (atualizada)]],'Apoio - Lista de Novas Fontes'!B:C,2,0),"") ->  | Y46: =IFERROR(IF(Tabela1[[#This Row],[Fonte de Recursos (antiga)]]<>"",_xlfn.CONCAT("DETALHAMENTO",Tabela1[[#This Row],[Fonte de Recursos (atualizada)]]),""),"") ->  | AA46: =IFERROR(VLOOKUP(Tabela1[[#This Row],[Detalhamento da Fonte de Recursos (atualizada)]],'Apoio - Detalhamentos Fontes'!B:C,2,0),"") ->  | AN46: =IFERROR(VLOOKUP(Tabela1[[#This Row],[Subfunção]],'Apoio - Funções-Programas'!AH:AI,2,0),"") ->  | AU46: =IF(Tabela1[[#This Row],[Programa]]="","Não apto","Apto") -> Não apto | AV46: =IF(Tabela1[[#This Row],[Ação Orçamentária]]="","Não apto","Apto1") -> Não apto | AW46: =IF(Tabela1[[#This Row],[Grupo de Natureza de Despesa (GND)]]="","Não apto","Apto4") -> Não apto | AX46: =IF(Tabela1[[#This Row],[Modalidade de Aplicação (MA)]]="","Não apto","Apto5") -> Não apto | AY46: =IF(OR(Tabela1[[#This Row],[Fonte de Recursos (antiga)]]="",Tabela1[[#This Row],[Fonte de Recursos (atualizada)]]="",Tabela1[[#This Row],[Detalhamento da Fonte de Recursos (atualizada)]]=""),"Não apto","Apto6") -> Não apto | AZ46: =IF(OR(Tabela1[[#This Row],[Sigla Unidade Orçamentária]]=""),"Não apto","Apto6") -> Não apto | BA46: =IF(OR(Tabela1[[#This Row],[Categoria (PO)]]=""),"Não apto","Apto7") -> Não apto | BB46: =IF(OR(Tabela1[[#This Row],[Descrição da Despesa]]=""),"Não apto","Apto8") -> Não apto | BC46: =IF(OR(Tabela1[[#This Row],[Função]]=""),"Não apto","Apto9") -> Não apto | BD46: =IF(OR(Tabela1[[#This Row],[Subfunção]]=""),"Não apto","Apto10") -> Não apto
A47: =IF(Tabela1[[#This Row],[Sigla Unidade Orçamentária]]<>"",TEXT(MID(A46,1,3)+1,"000")&"-"&Tabela1[[#This Row],[Sigla Unidade Orçamentária]]&"-PLOA23","") ->  | B47: =IF(Tabela1[[#This Row],[Sigla Unidade Orçamentária]]<>"",_xlfn.XLOOKUP(Tabela1[[#This Row],[Sigla Unidade Orçamentária]],'Apoio - Lista de UOs'!A:A,'Apoio - Lista de UOs'!C:C),"") ->  | H47: =IFERROR(VLOOKUP(Tabela1[[#This Row],[Função]],'Apoio - Funções-Programas'!A:B,2,0),"") ->  | J47: =IFERROR(VLOOKUP(Tabela1[[#This Row],[Subfunção]],'Apoio - Funções-Programas'!D:E,2,0),"") ->  | L47: =IFERROR(VLOOKUP(Tabela1[[#This Row],[Programa]],'Apoio - Funções-Programas'!G:H,2,0),"") ->  | N47: =IFERROR(VLOOKUP(Tabela1[[#This Row],[Ação Orçamentária]],'Apoio - Lista de Ações'!A:B,2,0),"") ->  | R47: =IFERROR(VLOOKUP(Tabela1[[#This Row],[Elemento de Despesa]],'Apoio - Lista de NDs'!$A$25:$C$65,2,0),"") ->  | S47: =IFERROR(_xlfn.IFS(Tabela1[[#This Row],[Sigla Unidade Orçamentária]]="FME","FME",Tabela1[[#This Row],[Sigla Unidade Orçamentária]]="FMAS","FMAS",Tabela1[[#This Row],[Sigla Unidade Orçamentária]]="FUNDOSAUDE","FUNDOSAUDE",Tabela1[[#This Row],[Sigla Unidade Orçamentária]]="FUNDACAOSAUDE","FUNDACAOSAUDE",Tabela1[[#This Row],[Sigla Unidade Orçamentária]]="NITPREVFIN","NITPREVFIN",Tabela1[[#This Row],[Sigla Unidade Orçamentária]]="NITPREVPREV","NITPREVPREV",Tabela1[[#This Row],[Sigla Unidade Orçamentária]]="NITPREV","NITPREV",Tabela1[[#This Row],[Sigla Unidade Orçamentária]]="EMUSA","EMUSA",Tabela1[[#This Row],[Sigla Unidade Orçamentária]]="FIA","FIA",Tabela1[[#This Row],[Sigla Unidade Orçamentária]]="CMN","CMN",(_xlfn.XLOOKUP(Tabela1[[#This Row],[Sigla Unidade Orçamentária]],'Apoio - Lista de UOs'!A:A,'Apoio - Lista de UOs'!E:E)="01"),"Direta"),"INDIRETAS_GERAL") -> INDIRETAS_GERAL | U47: =IFERROR(VLOOKUP(Tabela1[[#This Row],[Fonte de Recursos (antiga)]],'ListaFontes (Interno)'!BP:BQ,2,0),"") ->  | V47: =IFERROR(IF(Tabela1[[#This Row],[Fonte de Recursos (antiga)]]<>"",_xlfn.CONCAT("FONTE",Tabela1[[#This Row],[Fonte de Recursos (antiga)]],Tabela1[[#This Row],[Classif Fonte]]),""),"") ->  | X47: =IFERROR(VLOOKUP(Tabela1[[#This Row],[Fonte de Recursos (atualizada)]],'Apoio - Lista de Novas Fontes'!B:C,2,0),"") ->  | Y47: =IFERROR(IF(Tabela1[[#This Row],[Fonte de Recursos (antiga)]]<>"",_xlfn.CONCAT("DETALHAMENTO",Tabela1[[#This Row],[Fonte de Recursos (atualizada)]]),""),"") ->  | AA47: =IFERROR(VLOOKUP(Tabela1[[#This Row],[Detalhamento da Fonte de Recursos (atualizada)]],'Apoio - Detalhamentos Fontes'!B:C,2,0),"") ->  | AN47: =IFERROR(VLOOKUP(Tabela1[[#This Row],[Subfunção]],'Apoio - Funções-Programas'!AH:AI,2,0),"") ->  | AU47: =IF(Tabela1[[#This Row],[Programa]]="","Não apto","Apto") -> Não apto | AV47: =IF(Tabela1[[#This Row],[Ação Orçamentária]]="","Não apto","Apto1") -> Não apto | AW47: =IF(Tabela1[[#This Row],[Grupo de Natureza de Despesa (GND)]]="","Não apto","Apto4") -> Não apto | AX47: =IF(Tabela1[[#This Row],[Modalidade de Aplicação (MA)]]="","Não apto","Apto5") -> Não apto | AY47: =IF(OR(Tabela1[[#This Row],[Fonte de Recursos (antiga)]]="",Tabela1[[#This Row],[Fonte de Recursos (atualizada)]]="",Tabela1[[#This Row],[Detalhamento da Fonte de Recursos (atualizada)]]=""),"Não apto","Apto6") -> Não apto | AZ47: =IF(OR(Tabela1[[#This Row],[Sigla Unidade Orçamentária]]=""),"Não apto","Apto6") -> Não apto | BA47: =IF(OR(Tabela1[[#This Row],[Categoria (PO)]]=""),"Não apto","Apto7") -> Não apto | BB47: =IF(OR(Tabela1[[#This Row],[Descrição da Despesa]]=""),"Não apto","Apto8") -> Não apto | BC47: =IF(OR(Tabela1[[#This Row],[Função]]=""),"Não apto","Apto9") -> Não apto | BD47: =IF(OR(Tabela1[[#This Row],[Subfunção]]=""),"Não apto","Apto10") -> Não apto
A48: =IF(Tabela1[[#This Row],[Sigla Unidade Orçamentária]]<>"",TEXT(MID(A47,1,3)+1,"000")&"-"&Tabela1[[#This Row],[Sigla Unidade Orçamentária]]&"-PLOA23","") ->  | B48: =IF(Tabela1[[#This Row],[Sigla Unidade Orçamentária]]<>"",_xlfn.XLOOKUP(Tabela1[[#This Row],[Sigla Unidade Orçamentária]],'Apoio - Lista de UOs'!A:A,'Apoio - Lista de UOs'!C:C),"") ->  | H48: =IFERROR(VLOOKUP(Tabela1[[#This Row],[Função]],'Apoio - Funções-Programas'!A:B,2,0),"") ->  | J48: =IFERROR(VLOOKUP(Tabela1[[#This Row],[Subfunção]],'Apoio - Funções-Programas'!D:E,2,0),"") ->  | L48: =IFERROR(VLOOKUP(Tabela1[[#This Row],[Programa]],'Apoio - Funções-Programas'!G:H,2,0),"") ->  | N48: =IFERROR(VLOOKUP(Tabela1[[#This Row],[Ação Orçamentária]],'Apoio - Lista de Ações'!A:B,2,0),"") ->  | R48: =IFERROR(VLOOKUP(Tabela1[[#This Row],[Elemento de Despesa]],'Apoio - Lista de NDs'!$A$25:$C$65,2,0),"") ->  | S48: =IFERROR(_xlfn.IFS(Tabela1[[#This Row],[Sigla Unidade Orçamentária]]="FME","FME",Tabela1[[#This Row],[Sigla Unidade Orçamentária]]="FMAS","FMAS",Tabela1[[#This Row],[Sigla Unidade Orçamentária]]="FUNDOSAUDE","FUNDOSAUDE",Tabela1[[#This Row],[Sigla Unidade Orçamentária]]="FUNDACAOSAUDE","FUNDACAOSAUDE",Tabela1[[#This Row],[Sigla Unidade Orçamentária]]="NITPREVFIN","NITPREVFIN",Tabela1[[#This Row],[Sigla Unidade Orçamentária]]="NITPREVPREV","NITPREVPREV",Tabela1[[#This Row],[Sigla Unidade Orçamentária]]="NITPREV","NITPREV",Tabela1[[#This Row],[Sigla Unidade Orçamentária]]="EMUSA","EMUSA",Tabela1[[#This Row],[Sigla Unidade Orçamentária]]="FIA","FIA",Tabela1[[#This Row],[Sigla Unidade Orçamentária]]="CMN","CMN",(_xlfn.XLOOKUP(Tabela1[[#This Row],[Sigla Unidade Orçamentária]],'Apoio - Lista de UOs'!A:A,'Apoio - Lista de UOs'!E:E)="01"),"Direta"),"INDIRETAS_GERAL") -> INDIRETAS_GERAL | U48: =IFERROR(VLOOKUP(Tabela1[[#This Row],[Fonte de Recursos (antiga)]],'ListaFontes (Interno)'!BP:BQ,2,0),"") ->  | V48: =IFERROR(IF(Tabela1[[#This Row],[Fonte de Recursos (antiga)]]<>"",_xlfn.CONCAT("FONTE",Tabela1[[#This Row],[Fonte de Recursos (antiga)]],Tabela1[[#This Row],[Classif Fonte]]),""),"") ->  | X48: =IFERROR(VLOOKUP(Tabela1[[#This Row],[Fonte de Recursos (atualizada)]],'Apoio - Lista de Novas Fontes'!B:C,2,0),"") ->  | Y48: =IFERROR(IF(Tabela1[[#This Row],[Fonte de Recursos (antiga)]]<>"",_xlfn.CONCAT("DETALHAMENTO",Tabela1[[#This Row],[Fonte de Recursos (atualizada)]]),""),"") ->  | AA48: =IFERROR(VLOOKUP(Tabela1[[#This Row],[Detalhamento da Fonte de Recursos (atualizada)]],'Apoio - Detalhamentos Fontes'!B:C,2,0),"") ->  | AN48: =IFERROR(VLOOKUP(Tabela1[[#This Row],[Subfunção]],'Apoio - Funções-Programas'!AH:AI,2,0),"") ->  | AU48: =IF(Tabela1[[#This Row],[Programa]]="","Não apto","Apto") -> Não apto | AV48: =IF(Tabela1[[#This Row],[Ação Orçamentária]]="","Não apto","Apto1") -> Não apto | AW48: =IF(Tabela1[[#This Row],[Grupo de Natureza de Despesa (GND)]]="","Não apto","Apto4") -> Não apto | AX48: =IF(Tabela1[[#This Row],[Modalidade de Aplicação (MA)]]="","Não apto","Apto5") -> Não apto | AY48: =IF(OR(Tabela1[[#This Row],[Fonte de Recursos (antiga)]]="",Tabela1[[#This Row],[Fonte de Recursos (atualizada)]]="",Tabela1[[#This Row],[Detalhamento da Fonte de Recursos (atualizada)]]=""),"Não apto","Apto6") -> Não apto | AZ48: =IF(OR(Tabela1[[#This Row],[Sigla Unidade Orçamentária]]=""),"Não apto","Apto6") -> Não apto | BA48: =IF(OR(Tabela1[[#This Row],[Categoria (PO)]]=""),"Não apto","Apto7") -> Não apto | BB48: =IF(OR(Tabela1[[#This Row],[Descrição da Despesa]]=""),"Não apto","Apto8") -> Não apto | BC48: =IF(OR(Tabela1[[#This Row],[Função]]=""),"Não apto","Apto9") -> Não apto | BD48: =IF(OR(Tabela1[[#This Row],[Subfunção]]=""),"Não apto","Apto10") -> Não apto
A49: =IF(Tabela1[[#This Row],[Sigla Unidade Orçamentária]]<>"",TEXT(MID(A48,1,3)+1,"000")&"-"&Tabela1[[#This Row],[Sigla Unidade Orçamentária]]&"-PLOA23","") ->  | B49: =IF(Tabela1[[#This Row],[Sigla Unidade Orçamentária]]<>"",_xlfn.XLOOKUP(Tabela1[[#This Row],[Sigla Unidade Orçamentária]],'Apoio - Lista de UOs'!A:A,'Apoio - Lista de UOs'!C:C),"") ->  | H49: =IFERROR(VLOOKUP(Tabela1[[#This Row],[Função]],'Apoio - Funções-Programas'!A:B,2,0),"") ->  | J49: =IFERROR(VLOOKUP(Tabela1[[#This Row],[Subfunção]],'Apoio - Funções-Programas'!D:E,2,0),"") ->  | L49: =IFERROR(VLOOKUP(Tabela1[[#This Row],[Programa]],'Apoio - Funções-Programas'!G:H,2,0),"") ->  | N49: =IFERROR(VLOOKUP(Tabela1[[#This Row],[Ação Orçamentária]],'Apoio - Lista de Ações'!A:B,2,0),"") ->  | R49: =IFERROR(VLOOKUP(Tabela1[[#This Row],[Elemento de Despesa]],'Apoio - Lista de NDs'!$A$25:$C$65,2,0),"") ->  | S49: =IFERROR(_xlfn.IFS(Tabela1[[#This Row],[Sigla Unidade Orçamentária]]="FME","FME",Tabela1[[#This Row],[Sigla Unidade Orçamentária]]="FMAS","FMAS",Tabela1[[#This Row],[Sigla Unidade Orçamentária]]="FUNDOSAUDE","FUNDOSAUDE",Tabela1[[#This Row],[Sigla Unidade Orçamentária]]="FUNDACAOSAUDE","FUNDACAOSAUDE",Tabela1[[#This Row],[Sigla Unidade Orçamentária]]="NITPREVFIN","NITPREVFIN",Tabela1[[#This Row],[Sigla Unidade Orçamentária]]="NITPREVPREV","NITPREVPREV",Tabela1[[#This Row],[Sigla Unidade Orçamentária]]="NITPREV","NITPREV",Tabela1[[#This Row],[Sigla Unidade Orçamentária]]="EMUSA","EMUSA",Tabela1[[#This Row],[Sigla Unidade Orçamentária]]="FIA","FIA",Tabela1[[#This Row],[Sigla Unidade Orçamentária]]="CMN","CMN",(_xlfn.XLOOKUP(Tabela1[[#This Row],[Sigla Unidade Orçamentária]],'Apoio - Lista de UOs'!A:A,'Apoio - Lista de UOs'!E:E)="01"),"Direta"),"INDIRETAS_GERAL") -> INDIRETAS_GERAL | U49: =IFERROR(VLOOKUP(Tabela1[[#This Row],[Fonte de Recursos (antiga)]],'ListaFontes (Interno)'!BP:BQ,2,0),"") ->  | V49: =IFERROR(IF(Tabela1[[#This Row],[Fonte de Recursos (antiga)]]<>"",_xlfn.CONCAT("FONTE",Tabela1[[#This Row],[Fonte de Recursos (antiga)]],Tabela1[[#This Row],[Classif Fonte]]),""),"") ->  | X49: =IFERROR(VLOOKUP(Tabela1[[#This Row],[Fonte de Recursos (atualizada)]],'Apoio - Lista de Novas Fontes'!B:C,2,0),"") ->  | Y49: =IFERROR(IF(Tabela1[[#This Row],[Fonte de Recursos (antiga)]]<>"",_xlfn.CONCAT("DETALHAMENTO",Tabela1[[#This Row],[Fonte de Recursos (atualizada)]]),""),"") ->  | AA49: =IFERROR(VLOOKUP(Tabela1[[#This Row],[Detalhamento da Fonte de Recursos (atualizada)]],'Apoio - Detalhamentos Fontes'!B:C,2,0),"") ->  | AN49: =IFERROR(VLOOKUP(Tabela1[[#This Row],[Subfunção]],'Apoio - Funções-Programas'!AH:AI,2,0),"") ->  | AU49: =IF(Tabela1[[#This Row],[Programa]]="","Não apto","Apto") -> Não apto | AV49: =IF(Tabela1[[#This Row],[Ação Orçamentária]]="","Não apto","Apto1") -> Não apto | AW49: =IF(Tabela1[[#This Row],[Grupo de Natureza de Despesa (GND)]]="","Não apto","Apto4") -> Não apto | AX49: =IF(Tabela1[[#This Row],[Modalidade de Aplicação (MA)]]="","Não apto","Apto5") -> Não apto | AY49: =IF(OR(Tabela1[[#This Row],[Fonte de Recursos (antiga)]]="",Tabela1[[#This Row],[Fonte de Recursos (atualizada)]]="",Tabela1[[#This Row],[Detalhamento da Fonte de Recursos (atualizada)]]=""),"Não apto","Apto6") -> Não apto | AZ49: =IF(OR(Tabela1[[#This Row],[Sigla Unidade Orçamentária]]=""),"Não apto","Apto6") -> Não apto | BA49: =IF(OR(Tabela1[[#This Row],[Categoria (PO)]]=""),"Não apto","Apto7") -> Não apto | BB49: =IF(OR(Tabela1[[#This Row],[Descrição da Despesa]]=""),"Não apto","Apto8") -> Não apto | BC49: =IF(OR(Tabela1[[#This Row],[Função]]=""),"Não apto","Apto9") -> Não apto | BD49: =IF(OR(Tabela1[[#This Row],[Subfunção]]=""),"Não apto","Apto10") -> Não apto
A50: =IF(Tabela1[[#This Row],[Sigla Unidade Orçamentária]]<>"",TEXT(MID(A49,1,3)+1,"000")&"-"&Tabela1[[#This Row],[Sigla Unidade Orçamentária]]&"-PLOA23","") ->  | B50: =IF(Tabela1[[#This Row],[Sigla Unidade Orçamentária]]<>"",_xlfn.XLOOKUP(Tabela1[[#This Row],[Sigla Unidade Orçamentária]],'Apoio - Lista de UOs'!A:A,'Apoio - Lista de UOs'!C:C),"") ->  | H50: =IFERROR(VLOOKUP(Tabela1[[#This Row],[Função]],'Apoio - Funções-Programas'!A:B,2,0),"") ->  | J50: =IFERROR(VLOOKUP(Tabela1[[#This Row],[Subfunção]],'Apoio - Funções-Programas'!D:E,2,0),"") ->  | L50: =IFERROR(VLOOKUP(Tabela1[[#This Row],[Programa]],'Apoio - Funções-Programas'!G:H,2,0),"") ->  | N50: =IFERROR(VLOOKUP(Tabela1[[#This Row],[Ação Orçamentária]],'Apoio - Lista de Ações'!A:B,2,0),"") ->  | R50: =IFERROR(VLOOKUP(Tabela1[[#This Row],[Elemento de Despesa]],'Apoio - Lista de NDs'!$A$25:$C$65,2,0),"") ->  | S50: =IFERROR(_xlfn.IFS(Tabela1[[#This Row],[Sigla Unidade Orçamentária]]="FME","FME",Tabela1[[#This Row],[Sigla Unidade Orçamentária]]="FMAS","FMAS",Tabela1[[#This Row],[Sigla Unidade Orçamentária]]="FUNDOSAUDE","FUNDOSAUDE",Tabela1[[#This Row],[Sigla Unidade Orçamentária]]="FUNDACAOSAUDE","FUNDACAOSAUDE",Tabela1[[#This Row],[Sigla Unidade Orçamentária]]="NITPREVFIN","NITPREVFIN",Tabela1[[#This Row],[Sigla Unidade Orçamentária]]="NITPREVPREV","NITPREVPREV",Tabela1[[#This Row],[Sigla Unidade Orçamentária]]="NITPREV","NITPREV",Tabela1[[#This Row],[Sigla Unidade Orçamentária]]="EMUSA","EMUSA",Tabela1[[#This Row],[Sigla Unidade Orçamentária]]="FIA","FIA",Tabela1[[#This Row],[Sigla Unidade Orçamentária]]="CMN","CMN",(_xlfn.XLOOKUP(Tabela1[[#This Row],[Sigla Unidade Orçamentária]],'Apoio - Lista de UOs'!A:A,'Apoio - Lista de UOs'!E:E)="01"),"Direta"),"INDIRETAS_GERAL") -> INDIRETAS_GERAL | U50: =IFERROR(VLOOKUP(Tabela1[[#This Row],[Fonte de Recursos (antiga)]],'ListaFontes (Interno)'!BP:BQ,2,0),"") ->  | V50: =IFERROR(IF(Tabela1[[#This Row],[Fonte de Recursos (antiga)]]<>"",_xlfn.CONCAT("FONTE",Tabela1[[#This Row],[Fonte de Recursos (antiga)]],Tabela1[[#This Row],[Classif Fonte]]),""),"") ->  | X50: =IFERROR(VLOOKUP(Tabela1[[#This Row],[Fonte de Recursos (atualizada)]],'Apoio - Lista de Novas Fontes'!B:C,2,0),"") ->  | Y50: =IFERROR(IF(Tabela1[[#This Row],[Fonte de Recursos (antiga)]]<>"",_xlfn.CONCAT("DETALHAMENTO",Tabela1[[#This Row],[Fonte de Recursos (atualizada)]]),""),"") ->  | AA50: =IFERROR(VLOOKUP(Tabela1[[#This Row],[Detalhamento da Fonte de Recursos (atualizada)]],'Apoio - Detalhamentos Fontes'!B:C,2,0),"") ->  | AN50: =IFERROR(VLOOKUP(Tabela1[[#This Row],[Subfunção]],'Apoio - Funções-Programas'!AH:AI,2,0),"") ->  | AU50: =IF(Tabela1[[#This Row],[Programa]]="","Não apto","Apto") -> Não apto | AV50: =IF(Tabela1[[#This Row],[Ação Orçamentária]]="","Não apto","Apto1") -> Não apto | AW50: =IF(Tabela1[[#This Row],[Grupo de Natureza de Despesa (GND)]]="","Não apto","Apto4") -> Não apto | AX50: =IF(Tabela1[[#This Row],[Modalidade de Aplicação (MA)]]="","Não apto","Apto5") -> Não apto | AY50: =IF(OR(Tabela1[[#This Row],[Fonte de Recursos (antiga)]]="",Tabela1[[#This Row],[Fonte de Recursos (atualizada)]]="",Tabela1[[#This Row],[Detalhamento da Fonte de Recursos (atualizada)]]=""),"Não apto","Apto6") -> Não apto | AZ50: =IF(OR(Tabela1[[#This Row],[Sigla Unidade Orçamentária]]=""),"Não apto","Apto6") -> Não apto | BA50: =IF(OR(Tabela1[[#This Row],[Categoria (PO)]]=""),"Não apto","Apto7") -> Não apto | BB50: =IF(OR(Tabela1[[#This Row],[Descrição da Despesa]]=""),"Não apto","Apto8") -> Não apto | BC50: =IF(OR(Tabela1[[#This Row],[Função]]=""),"Não apto","Apto9") -> Não apto | BD50: =IF(OR(Tabela1[[#This Row],[Subfunção]]=""),"Não apto","Apto10") -> Não apto
A51: =IF(Tabela1[[#This Row],[Sigla Unidade Orçamentária]]<>"",TEXT(MID(A50,1,3)+1,"000")&"-"&Tabela1[[#This Row],[Sigla Unidade Orçamentária]]&"-PLOA23","") ->  | B51: =IF(Tabela1[[#This Row],[Sigla Unidade Orçamentária]]<>"",_xlfn.XLOOKUP(Tabela1[[#This Row],[Sigla Unidade Orçamentária]],'Apoio - Lista de UOs'!A:A,'Apoio - Lista de UOs'!C:C),"") ->  | H51: =IFERROR(VLOOKUP(Tabela1[[#This Row],[Função]],'Apoio - Funções-Programas'!A:B,2,0),"") ->  | J51: =IFERROR(VLOOKUP(Tabela1[[#This Row],[Subfunção]],'Apoio - Funções-Programas'!D:E,2,0),"") ->  | L51: =IFERROR(VLOOKUP(Tabela1[[#This Row],[Programa]],'Apoio - Funções-Programas'!G:H,2,0),"") ->  | N51: =IFERROR(VLOOKUP(Tabela1[[#This Row],[Ação Orçamentária]],'Apoio - Lista de Ações'!A:B,2,0),"") ->  | R51: =IFERROR(VLOOKUP(Tabela1[[#This Row],[Elemento de Despesa]],'Apoio - Lista de NDs'!$A$25:$C$65,2,0),"") ->  | S51: =IFERROR(_xlfn.IFS(Tabela1[[#This Row],[Sigla Unidade Orçamentária]]="FME","FME",Tabela1[[#This Row],[Sigla Unidade Orçamentária]]="FMAS","FMAS",Tabela1[[#This Row],[Sigla Unidade Orçamentária]]="FUNDOSAUDE","FUNDOSAUDE",Tabela1[[#This Row],[Sigla Unidade Orçamentária]]="FUNDACAOSAUDE","FUNDACAOSAUDE",Tabela1[[#This Row],[Sigla Unidade Orçamentária]]="NITPREVFIN","NITPREVFIN",Tabela1[[#This Row],[Sigla Unidade Orçamentária]]="NITPREVPREV","NITPREVPREV",Tabela1[[#This Row],[Sigla Unidade Orçamentária]]="NITPREV","NITPREV",Tabela1[[#This Row],[Sigla Unidade Orçamentária]]="EMUSA","EMUSA",Tabela1[[#This Row],[Sigla Unidade Orçamentária]]="FIA","FIA",Tabela1[[#This Row],[Sigla Unidade Orçamentária]]="CMN","CMN",(_xlfn.XLOOKUP(Tabela1[[#This Row],[Sigla Unidade Orçamentária]],'Apoio - Lista de UOs'!A:A,'Apoio - Lista de UOs'!E:E)="01"),"Direta"),"INDIRETAS_GERAL") -> INDIRETAS_GERAL | U51: =IFERROR(VLOOKUP(Tabela1[[#This Row],[Fonte de Recursos (antiga)]],'ListaFontes (Interno)'!BP:BQ,2,0),"") ->  | V51: =IFERROR(IF(Tabela1[[#This Row],[Fonte de Recursos (antiga)]]<>"",_xlfn.CONCAT("FONTE",Tabela1[[#This Row],[Fonte de Recursos (antiga)]],Tabela1[[#This Row],[Classif Fonte]]),""),"") ->  | X51: =IFERROR(VLOOKUP(Tabela1[[#This Row],[Fonte de Recursos (atualizada)]],'Apoio - Lista de Novas Fontes'!B:C,2,0),"") ->  | Y51: =IFERROR(IF(Tabela1[[#This Row],[Fonte de Recursos (antiga)]]<>"",_xlfn.CONCAT("DETALHAMENTO",Tabela1[[#This Row],[Fonte de Recursos (atualizada)]]),""),"") ->  | AA51: =IFERROR(VLOOKUP(Tabela1[[#This Row],[Detalhamento da Fonte de Recursos (atualizada)]],'Apoio - Detalhamentos Fontes'!B:C,2,0),"") ->  | AN51: =IFERROR(VLOOKUP(Tabela1[[#This Row],[Subfunção]],'Apoio - Funções-Programas'!AH:AI,2,0),"") ->  | AU51: =IF(Tabela1[[#This Row],[Programa]]="","Não apto","Apto") -> Não apto | AV51: =IF(Tabela1[[#This Row],[Ação Orçamentária]]="","Não apto","Apto1") -> Não apto | AW51: =IF(Tabela1[[#This Row],[Grupo de Natureza de Despesa (GND)]]="","Não apto","Apto4") -> Não apto | AX51: =IF(Tabela1[[#This Row],[Modalidade de Aplicação (MA)]]="","Não apto","Apto5") -> Não apto | AY51: =IF(OR(Tabela1[[#This Row],[Fonte de Recursos (antiga)]]="",Tabela1[[#This Row],[Fonte de Recursos (atualizada)]]="",Tabela1[[#This Row],[Detalhamento da Fonte de Recursos (atualizada)]]=""),"Não apto","Apto6") -> Não apto | AZ51: =IF(OR(Tabela1[[#This Row],[Sigla Unidade Orçamentária]]=""),"Não apto","Apto6") -> Não apto | BA51: =IF(OR(Tabela1[[#This Row],[Categoria (PO)]]=""),"Não apto","Apto7") -> Não apto | BB51: =IF(OR(Tabela1[[#This Row],[Descrição da Despesa]]=""),"Não apto","Apto8") -> Não apto | BC51: =IF(OR(Tabela1[[#This Row],[Função]]=""),"Não apto","Apto9") -> Não apto | BD51: =IF(OR(Tabela1[[#This Row],[Subfunção]]=""),"Não apto","Apto10") -> Não apto
A52: =IF(Tabela1[[#This Row],[Sigla Unidade Orçamentária]]<>"",TEXT(MID(A51,1,3)+1,"000")&"-"&Tabela1[[#This Row],[Sigla Unidade Orçamentária]]&"-PLOA23","") ->  | B52: =IF(Tabela1[[#This Row],[Sigla Unidade Orçamentária]]<>"",_xlfn.XLOOKUP(Tabela1[[#This Row],[Sigla Unidade Orçamentária]],'Apoio - Lista de UOs'!A:A,'Apoio - Lista de UOs'!C:C),"") ->  | H52: =IFERROR(VLOOKUP(Tabela1[[#This Row],[Função]],'Apoio - Funções-Programas'!A:B,2,0),"") ->  | J52: =IFERROR(VLOOKUP(Tabela1[[#This Row],[Subfunção]],'Apoio - Funções-Programas'!D:E,2,0),"") ->  | L52: =IFERROR(VLOOKUP(Tabela1[[#This Row],[Programa]],'Apoio - Funções-Programas'!G:H,2,0),"") ->  | N52: =IFERROR(VLOOKUP(Tabela1[[#This Row],[Ação Orçamentária]],'Apoio - Lista de Ações'!A:B,2,0),"") ->  | R52: =IFERROR(VLOOKUP(Tabela1[[#This Row],[Elemento de Despesa]],'Apoio - Lista de NDs'!$A$25:$C$65,2,0),"") ->  | S52: =IFERROR(_xlfn.IFS(Tabela1[[#This Row],[Sigla Unidade Orçamentária]]="FME","FME",Tabela1[[#This Row],[Sigla Unidade Orçamentária]]="FMAS","FMAS",Tabela1[[#This Row],[Sigla Unidade Orçamentária]]="FUNDOSAUDE","FUNDOSAUDE",Tabela1[[#This Row],[Sigla Unidade Orçamentária]]="FUNDACAOSAUDE","FUNDACAOSAUDE",Tabela1[[#This Row],[Sigla Unidade Orçamentária]]="NITPREVFIN","NITPREVFIN",Tabela1[[#This Row],[Sigla Unidade Orçamentária]]="NITPREVPREV","NITPREVPREV",Tabela1[[#This Row],[Sigla Unidade Orçamentária]]="NITPREV","NITPREV",Tabela1[[#This Row],[Sigla Unidade Orçamentária]]="EMUSA","EMUSA",Tabela1[[#This Row],[Sigla Unidade Orçamentária]]="FIA","FIA",Tabela1[[#This Row],[Sigla Unidade Orçamentária]]="CMN","CMN",(_xlfn.XLOOKUP(Tabela1[[#This Row],[Sigla Unidade Orçamentária]],'Apoio - Lista de UOs'!A:A,'Apoio - Lista de UOs'!E:E)="01"),"Direta"),"INDIRETAS_GERAL") -> INDIRETAS_GERAL | U52: =IFERROR(VLOOKUP(Tabela1[[#This Row],[Fonte de Recursos (antiga)]],'ListaFontes (Interno)'!BP:BQ,2,0),"") ->  | V52: =IFERROR(IF(Tabela1[[#This Row],[Fonte de Recursos (antiga)]]<>"",_xlfn.CONCAT("FONTE",Tabela1[[#This Row],[Fonte de Recursos (antiga)]],Tabela1[[#This Row],[Classif Fonte]]),""),"") ->  | X52: =IFERROR(VLOOKUP(Tabela1[[#This Row],[Fonte de Recursos (atualizada)]],'Apoio - Lista de Novas Fontes'!B:C,2,0),"") ->  | Y52: =IFERROR(IF(Tabela1[[#This Row],[Fonte de Recursos (antiga)]]<>"",_xlfn.CONCAT("DETALHAMENTO",Tabela1[[#This Row],[Fonte de Recursos (atualizada)]]),""),"") ->  | AA52: =IFERROR(VLOOKUP(Tabela1[[#This Row],[Detalhamento da Fonte de Recursos (atualizada)]],'Apoio - Detalhamentos Fontes'!B:C,2,0),"") ->  | AN52: =IFERROR(VLOOKUP(Tabela1[[#This Row],[Subfunção]],'Apoio - Funções-Programas'!AH:AI,2,0),"") ->  | AU52: =IF(Tabela1[[#This Row],[Programa]]="","Não apto","Apto") -> Não apto | AV52: =IF(Tabela1[[#This Row],[Ação Orçamentária]]="","Não apto","Apto1") -> Não apto | AW52: =IF(Tabela1[[#This Row],[Grupo de Natureza de Despesa (GND)]]="","Não apto","Apto4") -> Não apto | AX52: =IF(Tabela1[[#This Row],[Modalidade de Aplicação (MA)]]="","Não apto","Apto5") -> Não apto | AY52: =IF(OR(Tabela1[[#This Row],[Fonte de Recursos (antiga)]]="",Tabela1[[#This Row],[Fonte de Recursos (atualizada)]]="",Tabela1[[#This Row],[Detalhamento da Fonte de Recursos (atualizada)]]=""),"Não apto","Apto6") -> Não apto | AZ52: =IF(OR(Tabela1[[#This Row],[Sigla Unidade Orçamentária]]=""),"Não apto","Apto6") -> Não apto | BA52: =IF(OR(Tabela1[[#This Row],[Categoria (PO)]]=""),"Não apto","Apto7") -> Não apto | BB52: =IF(OR(Tabela1[[#This Row],[Descrição da Despesa]]=""),"Não apto","Apto8") -> Não apto | BC52: =IF(OR(Tabela1[[#This Row],[Função]]=""),"Não apto","Apto9") -> Não apto | BD52: =IF(OR(Tabela1[[#This Row],[Subfunção]]=""),"Não apto","Apto10") -> Não apto
A53: =IF(Tabela1[[#This Row],[Sigla Unidade Orçamentária]]<>"",TEXT(MID(A52,1,3)+1,"000")&"-"&Tabela1[[#This Row],[Sigla Unidade Orçamentária]]&"-PLOA23","") ->  | B53: =IF(Tabela1[[#This Row],[Sigla Unidade Orçamentária]]<>"",_xlfn.XLOOKUP(Tabela1[[#This Row],[Sigla Unidade Orçamentária]],'Apoio - Lista de UOs'!A:A,'Apoio - Lista de UOs'!C:C),"") ->  | H53: =IFERROR(VLOOKUP(Tabela1[[#This Row],[Função]],'Apoio - Funções-Programas'!A:B,2,0),"") ->  | J53: =IFERROR(VLOOKUP(Tabela1[[#This Row],[Subfunção]],'Apoio - Funções-Programas'!D:E,2,0),"") ->  | L53: =IFERROR(VLOOKUP(Tabela1[[#This Row],[Programa]],'Apoio - Funções-Programas'!G:H,2,0),"") ->  | N53: =IFERROR(VLOOKUP(Tabela1[[#This Row],[Ação Orçamentária]],'Apoio - Lista de Ações'!A:B,2,0),"") ->  | R53: =IFERROR(VLOOKUP(Tabela1[[#This Row],[Elemento de Despesa]],'Apoio - Lista de NDs'!$A$25:$C$65,2,0),"") ->  | S53: =IFERROR(_xlfn.IFS(Tabela1[[#This Row],[Sigla Unidade Orçamentária]]="FME","FME",Tabela1[[#This Row],[Sigla Unidade Orçamentária]]="FMAS","FMAS",Tabela1[[#This Row],[Sigla Unidade Orçamentária]]="FUNDOSAUDE","FUNDOSAUDE",Tabela1[[#This Row],[Sigla Unidade Orçamentária]]="FUNDACAOSAUDE","FUNDACAOSAUDE",Tabela1[[#This Row],[Sigla Unidade Orçamentária]]="NITPREVFIN","NITPREVFIN",Tabela1[[#This Row],[Sigla Unidade Orçamentária]]="NITPREVPREV","NITPREVPREV",Tabela1[[#This Row],[Sigla Unidade Orçamentária]]="NITPREV","NITPREV",Tabela1[[#This Row],[Sigla Unidade Orçamentária]]="EMUSA","EMUSA",Tabela1[[#This Row],[Sigla Unidade Orçamentária]]="FIA","FIA",Tabela1[[#This Row],[Sigla Unidade Orçamentária]]="CMN","CMN",(_xlfn.XLOOKUP(Tabela1[[#This Row],[Sigla Unidade Orçamentária]],'Apoio - Lista de UOs'!A:A,'Apoio - Lista de UOs'!E:E)="01"),"Direta"),"INDIRETAS_GERAL") -> INDIRETAS_GERAL | U53: =IFERROR(VLOOKUP(Tabela1[[#This Row],[Fonte de Recursos (antiga)]],'ListaFontes (Interno)'!BP:BQ,2,0),"") ->  | V53: =IFERROR(IF(Tabela1[[#This Row],[Fonte de Recursos (antiga)]]<>"",_xlfn.CONCAT("FONTE",Tabela1[[#This Row],[Fonte de Recursos (antiga)]],Tabela1[[#This Row],[Classif Fonte]]),""),"") ->  | X53: =IFERROR(VLOOKUP(Tabela1[[#This Row],[Fonte de Recursos (atualizada)]],'Apoio - Lista de Novas Fontes'!B:C,2,0),"") ->  | Y53: =IFERROR(IF(Tabela1[[#This Row],[Fonte de Recursos (antiga)]]<>"",_xlfn.CONCAT("DETALHAMENTO",Tabela1[[#This Row],[Fonte de Recursos (atualizada)]]),""),"") ->  | AA53: =IFERROR(VLOOKUP(Tabela1[[#This Row],[Detalhamento da Fonte de Recursos (atualizada)]],'Apoio - Detalhamentos Fontes'!B:C,2,0),"") ->  | AN53: =IFERROR(VLOOKUP(Tabela1[[#This Row],[Subfunção]],'Apoio - Funções-Programas'!AH:AI,2,0),"") ->  | AU53: =IF(Tabela1[[#This Row],[Programa]]="","Não apto","Apto") -> Não apto | AV53: =IF(Tabela1[[#This Row],[Ação Orçamentária]]="","Não apto","Apto1") -> Não apto | AW53: =IF(Tabela1[[#This Row],[Grupo de Natureza de Despesa (GND)]]="","Não apto","Apto4") -> Não apto | AX53: =IF(Tabela1[[#This Row],[Modalidade de Aplicação (MA)]]="","Não apto","Apto5") -> Não apto | AY53: =IF(OR(Tabela1[[#This Row],[Fonte de Recursos (antiga)]]="",Tabela1[[#This Row],[Fonte de Recursos (atualizada)]]="",Tabela1[[#This Row],[Detalhamento da Fonte de Recursos (atualizada)]]=""),"Não apto","Apto6") -> Não apto | AZ53: =IF(OR(Tabela1[[#This Row],[Sigla Unidade Orçamentária]]=""),"Não apto","Apto6") -> Não apto | BA53: =IF(OR(Tabela1[[#This Row],[Categoria (PO)]]=""),"Não apto","Apto7") -> Não apto | BB53: =IF(OR(Tabela1[[#This Row],[Descrição da Despesa]]=""),"Não apto","Apto8") -> Não apto | BC53: =IF(OR(Tabela1[[#This Row],[Função]]=""),"Não apto","Apto9") -> Não apto | BD53: =IF(OR(Tabela1[[#This Row],[Subfunção]]=""),"Não apto","Apto10") -> Não apto
A54: =IF(Tabela1[[#This Row],[Sigla Unidade Orçamentária]]<>"",TEXT(COUNTIF(INDIRECT(TEXT("C3:C",0)&ROW()),Tabela1[[#This Row],[Sigla Unidade Orçamentária]]),"000")&"-"&Tabela1[[#This Row],[Sigla Unidade Orçamentária]]&"-PLOA23","") ->  | B54: =IF(Tabela1[[#This Row],[Sigla Unidade Orçamentária]]<>"",_xlfn.XLOOKUP(Tabela1[[#This Row],[Sigla Unidade Orçamentária]],'Apoio - Lista de UOs'!A:A,'Apoio - Lista de UOs'!C:C),"") ->  | H54: =IFERROR(VLOOKUP(Tabela1[[#This Row],[Função]],'Apoio - Funções-Programas'!A:B,2,0),"") ->  | J54: =IFERROR(VLOOKUP(Tabela1[[#This Row],[Subfunção]],'Apoio - Funções-Programas'!D:E,2,0),"") ->  | L54: =IFERROR(VLOOKUP(Tabela1[[#This Row],[Programa]],'Apoio - Funções-Programas'!G:H,2,0),"") ->  | N54: =IFERROR(VLOOKUP(Tabela1[[#This Row],[Ação Orçamentária]],'Apoio - Lista de Ações'!A:B,2,0),"") ->  | R54: =IFERROR(VLOOKUP(Tabela1[[#This Row],[Elemento de Despesa]],'Apoio - Lista de NDs'!$A$25:$C$65,2,0),"") ->  | S54: =IFERROR(_xlfn.IFS(Tabela1[[#This Row],[Sigla Unidade Orçamentária]]="FME","FME",Tabela1[[#This Row],[Sigla Unidade Orçamentária]]="FMAS","FMAS",Tabela1[[#This Row],[Sigla Unidade Orçamentária]]="FUNDOSAUDE","FUNDOSAUDE",Tabela1[[#This Row],[Sigla Unidade Orçamentária]]="FUNDACAOSAUDE","FUNDACAOSAUDE",Tabela1[[#This Row],[Sigla Unidade Orçamentária]]="NITPREVFIN","NITPREVFIN",Tabela1[[#This Row],[Sigla Unidade Orçamentária]]="NITPREVPREV","NITPREVPREV",Tabela1[[#This Row],[Sigla Unidade Orçamentária]]="NITPREV","NITPREV",Tabela1[[#This Row],[Sigla Unidade Orçamentária]]="EMUSA","EMUSA",Tabela1[[#This Row],[Sigla Unidade Orçamentária]]="FIA","FIA",Tabela1[[#This Row],[Sigla Unidade Orçamentária]]="CMN","CMN",(_xlfn.XLOOKUP(Tabela1[[#This Row],[Sigla Unidade Orçamentária]],'Apoio - Lista de UOs'!A:A,'Apoio - Lista de UOs'!E:E)="01"),"Direta"),"INDIRETAS_GERAL") -> INDIRETAS_GERAL | U54: =IFERROR(VLOOKUP(Tabela1[[#This Row],[Fonte de Recursos (antiga)]],'ListaFontes (Interno)'!BP:BQ,2,0),"") ->  | V54: =IFERROR(IF(Tabela1[[#This Row],[Fonte de Recursos (antiga)]]<>"",_xlfn.CONCAT("FONTE",Tabela1[[#This Row],[Fonte de Recursos (antiga)]],Tabela1[[#This Row],[Classif Fonte]]),""),"") ->  | W54: =IFERROR(VLOOKUP(Tabela1[[#This Row],[Fonte de Recursos (antiga)]],#REF!,3,0),"") ->  | X54: =IFERROR(VLOOKUP(Tabela1[[#This Row],[Fonte de Recursos (atualizada)]],'Apoio - Lista de Novas Fontes'!B:C,2,0),"") ->  | Y54: =IFERROR(IF(Tabela1[[#This Row],[Fonte de Recursos (antiga)]]<>"",_xlfn.CONCAT("DETALHAMENTO",Tabela1[[#This Row],[Fonte de Recursos (atualizada)]]),""),"") ->  | AA54: =IFERROR(VLOOKUP(Tabela1[[#This Row],[Detalhamento da Fonte de Recursos (atualizada)]],'Apoio - Detalhamentos Fontes'!B:C,2,0),"") ->  | AN54: =IFERROR(VLOOKUP(Tabela1[[#This Row],[Subfunção]],'Apoio - Funções-Programas'!AH:AI,2,0),"") ->  | AU54: =IF(Tabela1[[#This Row],[Programa]]="","Não apto","Apto") -> Não apto | AV54: =IF(Tabela1[[#This Row],[Ação Orçamentária]]="","Não apto","Apto1") -> Não apto | AW54: =IF(Tabela1[[#This Row],[Grupo de Natureza de Despesa (GND)]]="","Não apto","Apto4") -> Não apto | AX54: =IF(Tabela1[[#This Row],[Modalidade de Aplicação (MA)]]="","Não apto","Apto5") -> Não apto | AY54: =IF(OR(Tabela1[[#This Row],[Fonte de Recursos (antiga)]]="",Tabela1[[#This Row],[Fonte de Recursos (atualizada)]]="",Tabela1[[#This Row],[Detalhamento da Fonte de Recursos (atualizada)]]=""),"Não apto","Apto6") -> Não apto | AZ54: =IF(OR(Tabela1[[#This Row],[Sigla Unidade Orçamentária]]=""),"Não apto","Apto6") -> Não apto | BA54: =IF(OR(Tabela1[[#This Row],[Categoria (PO)]]=""),"Não apto","Apto7") -> Não apto | BB54: =IF(OR(Tabela1[[#This Row],[Descrição da Despesa]]=""),"Não apto","Apto8") -> Não apto | BC54: =IF(OR(Tabela1[[#This Row],[Função]]=""),"Não apto","Apto9") -> Não apto | BD54: =IF(OR(Tabela1[[#This Row],[Subfunção]]=""),"Não apto","Apto10") -> Não apto
A55: =IF(Tabela1[[#This Row],[Sigla Unidade Orçamentária]]<>"",TEXT(COUNTIF(INDIRECT(TEXT("C3:C",0)&ROW()),Tabela1[[#This Row],[Sigla Unidade Orçamentária]]),"000")&"-"&Tabela1[[#This Row],[Sigla Unidade Orçamentária]]&"-PLOA23","") ->  | B55: =IF(Tabela1[[#This Row],[Sigla Unidade Orçamentária]]<>"",_xlfn.XLOOKUP(Tabela1[[#This Row],[Sigla Unidade Orçamentária]],'Apoio - Lista de UOs'!A:A,'Apoio - Lista de UOs'!C:C),"") ->  | H55: =IFERROR(VLOOKUP(Tabela1[[#This Row],[Função]],'Apoio - Funções-Programas'!A:B,2,0),"") ->  | J55: =IFERROR(VLOOKUP(Tabela1[[#This Row],[Subfunção]],'Apoio - Funções-Programas'!D:E,2,0),"") ->  | L55: =IFERROR(VLOOKUP(Tabela1[[#This Row],[Programa]],'Apoio - Funções-Programas'!G:H,2,0),"") ->  | N55: =IFERROR(VLOOKUP(Tabela1[[#This Row],[Ação Orçamentária]],'Apoio - Lista de Ações'!A:B,2,0),"") ->  | R55: =IFERROR(VLOOKUP(Tabela1[[#This Row],[Elemento de Despesa]],'Apoio - Lista de NDs'!$A$25:$C$65,2,0),"") ->  | S55: =IFERROR(_xlfn.IFS(Tabela1[[#This Row],[Sigla Unidade Orçamentária]]="FME","FME",Tabela1[[#This Row],[Sigla Unidade Orçamentária]]="FMAS","FMAS",Tabela1[[#This Row],[Sigla Unidade Orçamentária]]="FUNDOSAUDE","FUNDOSAUDE",Tabela1[[#This Row],[Sigla Unidade Orçamentária]]="FUNDACAOSAUDE","FUNDACAOSAUDE",Tabela1[[#This Row],[Sigla Unidade Orçamentária]]="NITPREVFIN","NITPREVFIN",Tabela1[[#This Row],[Sigla Unidade Orçamentária]]="NITPREVPREV","NITPREVPREV",Tabela1[[#This Row],[Sigla Unidade Orçamentária]]="NITPREV","NITPREV",Tabela1[[#This Row],[Sigla Unidade Orçamentária]]="EMUSA","EMUSA",Tabela1[[#This Row],[Sigla Unidade Orçamentária]]="FIA","FIA",Tabela1[[#This Row],[Sigla Unidade Orçamentária]]="CMN","CMN",(_xlfn.XLOOKUP(Tabela1[[#This Row],[Sigla Unidade Orçamentária]],'Apoio - Lista de UOs'!A:A,'Apoio - Lista de UOs'!E:E)="01"),"Direta"),"INDIRETAS_GERAL") -> INDIRETAS_GERAL | U55: =IFERROR(VLOOKUP(Tabela1[[#This Row],[Fonte de Recursos (antiga)]],'ListaFontes (Interno)'!BP:BQ,2,0),"") ->  | V55: =IFERROR(IF(Tabela1[[#This Row],[Fonte de Recursos (antiga)]]<>"",_xlfn.CONCAT("FONTE",Tabela1[[#This Row],[Fonte de Recursos (antiga)]],Tabela1[[#This Row],[Classif Fonte]]),""),"") ->  | W55: =IFERROR(VLOOKUP(Tabela1[[#This Row],[Fonte de Recursos (antiga)]],#REF!,3,0),"") ->  | X55: =IFERROR(VLOOKUP(Tabela1[[#This Row],[Fonte de Recursos (atualizada)]],'Apoio - Lista de Novas Fontes'!B:C,2,0),"") ->  | Y55: =IFERROR(IF(Tabela1[[#This Row],[Fonte de Recursos (antiga)]]<>"",_xlfn.CONCAT("DETALHAMENTO",Tabela1[[#This Row],[Fonte de Recursos (atualizada)]]),""),"") ->  | AA55: =IFERROR(VLOOKUP(Tabela1[[#This Row],[Detalhamento da Fonte de Recursos (atualizada)]],'Apoio - Detalhamentos Fontes'!B:C,2,0),"") ->  | AN55: =IFERROR(VLOOKUP(Tabela1[[#This Row],[Subfunção]],'Apoio - Funções-Programas'!AH:AI,2,0),"") ->  | AU55: =IF(Tabela1[[#This Row],[Programa]]="","Não apto","Apto") -> Não apto | AV55: =IF(Tabela1[[#This Row],[Ação Orçamentária]]="","Não apto","Apto1") -> Não apto | AW55: =IF(Tabela1[[#This Row],[Grupo de Natureza de Despesa (GND)]]="","Não apto","Apto4") -> Não apto | AX55: =IF(Tabela1[[#This Row],[Modalidade de Aplicação (MA)]]="","Não apto","Apto5") -> Não apto | AY55: =IF(OR(Tabela1[[#This Row],[Fonte de Recursos (antiga)]]="",Tabela1[[#This Row],[Fonte de Recursos (atualizada)]]="",Tabela1[[#This Row],[Detalhamento da Fonte de Recursos (atualizada)]]=""),"Não apto","Apto6") -> Não apto | AZ55: =IF(OR(Tabela1[[#This Row],[Sigla Unidade Orçamentária]]=""),"Não apto","Apto6") -> Não apto | BA55: =IF(OR(Tabela1[[#This Row],[Categoria (PO)]]=""),"Não apto","Apto7") -> Não apto | BB55: =IF(OR(Tabela1[[#This Row],[Descrição da Despesa]]=""),"Não apto","Apto8") -> Não apto | BC55: =IF(OR(Tabela1[[#This Row],[Função]]=""),"Não apto","Apto9") -> Não apto | BD55: =IF(OR(Tabela1[[#This Row],[Subfunção]]=""),"Não apto","Apto10") -> Não apto
A56: =IF(Tabela1[[#This Row],[Sigla Unidade Orçamentária]]<>"",TEXT(COUNTIF(INDIRECT(TEXT("C3:C",0)&ROW()),Tabela1[[#This Row],[Sigla Unidade Orçamentária]]),"000")&"-"&Tabela1[[#This Row],[Sigla Unidade Orçamentária]]&"-PLOA23","") ->  | B56: =IF(Tabela1[[#This Row],[Sigla Unidade Orçamentária]]<>"",_xlfn.XLOOKUP(Tabela1[[#This Row],[Sigla Unidade Orçamentária]],'Apoio - Lista de UOs'!A:A,'Apoio - Lista de UOs'!C:C),"") ->  | H56: =IFERROR(VLOOKUP(Tabela1[[#This Row],[Função]],'Apoio - Funções-Programas'!A:B,2,0),"") ->  | J56: =IFERROR(VLOOKUP(Tabela1[[#This Row],[Subfunção]],'Apoio - Funções-Programas'!D:E,2,0),"") ->  | L56: =IFERROR(VLOOKUP(Tabela1[[#This Row],[Programa]],'Apoio - Funções-Programas'!G:H,2,0),"") ->  | N56: =IFERROR(VLOOKUP(Tabela1[[#This Row],[Ação Orçamentária]],'Apoio - Lista de Ações'!A:B,2,0),"") ->  | R56: =IFERROR(VLOOKUP(Tabela1[[#This Row],[Elemento de Despesa]],'Apoio - Lista de NDs'!$A$25:$C$65,2,0),"") ->  | S56: =IFERROR(_xlfn.IFS(Tabela1[[#This Row],[Sigla Unidade Orçamentária]]="FME","FME",Tabela1[[#This Row],[Sigla Unidade Orçamentária]]="FMAS","FMAS",Tabela1[[#This Row],[Sigla Unidade Orçamentária]]="FUNDOSAUDE","FUNDOSAUDE",Tabela1[[#This Row],[Sigla Unidade Orçamentária]]="FUNDACAOSAUDE","FUNDACAOSAUDE",Tabela1[[#This Row],[Sigla Unidade Orçamentária]]="NITPREVFIN","NITPREVFIN",Tabela1[[#This Row],[Sigla Unidade Orçamentária]]="NITPREVPREV","NITPREVPREV",Tabela1[[#This Row],[Sigla Unidade Orçamentária]]="NITPREV","NITPREV",Tabela1[[#This Row],[Sigla Unidade Orçamentária]]="EMUSA","EMUSA",Tabela1[[#This Row],[Sigla Unidade Orçamentária]]="FIA","FIA",Tabela1[[#This Row],[Sigla Unidade Orçamentária]]="CMN","CMN",(_xlfn.XLOOKUP(Tabela1[[#This Row],[Sigla Unidade Orçamentária]],'Apoio - Lista de UOs'!A:A,'Apoio - Lista de UOs'!E:E)="01"),"Direta"),"INDIRETAS_GERAL") -> INDIRETAS_GERAL | U56: =IFERROR(VLOOKUP(Tabela1[[#This Row],[Fonte de Recursos (antiga)]],'ListaFontes (Interno)'!BP:BQ,2,0),"") ->  | V56: =IFERROR(IF(Tabela1[[#This Row],[Fonte de Recursos (antiga)]]<>"",_xlfn.CONCAT("FONTE",Tabela1[[#This Row],[Fonte de Recursos (antiga)]],Tabela1[[#This Row],[Classif Fonte]]),""),"") ->  | W56: =IFERROR(VLOOKUP(Tabela1[[#This Row],[Fonte de Recursos (antiga)]],#REF!,3,0),"") ->  | X56: =IFERROR(VLOOKUP(Tabela1[[#This Row],[Fonte de Recursos (atualizada)]],'Apoio - Lista de Novas Fontes'!B:C,2,0),"") ->  | Y56: =IFERROR(IF(Tabela1[[#This Row],[Fonte de Recursos (antiga)]]<>"",_xlfn.CONCAT("DETALHAMENTO",Tabela1[[#This Row],[Fonte de Recursos (atualizada)]]),""),"") ->  | AA56: =IFERROR(VLOOKUP(Tabela1[[#This Row],[Detalhamento da Fonte de Recursos (atualizada)]],'Apoio - Detalhamentos Fontes'!B:C,2,0),"") ->  | AN56: =IFERROR(VLOOKUP(Tabela1[[#This Row],[Subfunção]],'Apoio - Funções-Programas'!AH:AI,2,0),"") ->  | AU56: =IF(Tabela1[[#This Row],[Programa]]="","Não apto","Apto") -> Não apto | AV56: =IF(Tabela1[[#This Row],[Ação Orçamentária]]="","Não apto","Apto1") -> Não apto | AW56: =IF(Tabela1[[#This Row],[Grupo de Natureza de Despesa (GND)]]="","Não apto","Apto4") -> Não apto | AX56: =IF(Tabela1[[#This Row],[Modalidade de Aplicação (MA)]]="","Não apto","Apto5") -> Não apto | AY56: =IF(OR(Tabela1[[#This Row],[Fonte de Recursos (antiga)]]="",Tabela1[[#This Row],[Fonte de Recursos (atualizada)]]="",Tabela1[[#This Row],[Detalhamento da Fonte de Recursos (atualizada)]]=""),"Não apto","Apto6") -> Não apto | AZ56: =IF(OR(Tabela1[[#This Row],[Sigla Unidade Orçamentária]]=""),"Não apto","Apto6") -> Não apto | BA56: =IF(OR(Tabela1[[#This Row],[Categoria (PO)]]=""),"Não apto","Apto7") -> Não apto | BB56: =IF(OR(Tabela1[[#This Row],[Descrição da Despesa]]=""),"Não apto","Apto8") -> Não apto | BC56: =IF(OR(Tabela1[[#This Row],[Função]]=""),"Não apto","Apto9") -> Não apto | BD56: =IF(OR(Tabela1[[#This Row],[Subfunção]]=""),"Não apto","Apto10") -> Não apto

Sheet Resumo por Fonte (interno) (hidden)
D1: =SUBTOTAL(9,D3:D27) -> 5451095 | E1: =SUBTOTAL(9,E3:E27) -> 0 | F1: =SUBTOTAL(9,F3:F27) -> 6301240 | G1: 50000 | H1: 0 | I1: 0 | J1: 0 | K1: 5451095 | L1: 0 | M1: 3834789.67 | N1: 230000 | O1: 0 | P1: 0 | Q1: 0 | R1: 0 | S1: 0 | T1: 2466450.33 | U1: -180000 | V1: 0 | W1: 0 | X1: 0
A2: Unidade Orçamentária | B2: Fonte antiga | C2: Fonte nova | D2: SSO-GND-1 | E2: SSO-GND-2 | F2: SSO-GND-3 | G2: SSO-GND-4 | H2: SSO-GND-5 | I2: SSO-GND-6 | J2: SSO-GND-9 | K2: UO-GND-1 | L2: UO-GND-2 | M2: UO-GND-3 | N2: UO-GND-4 | O2: UO-GND-5 | P2: UO-GND-6 | Q2: UO-GND-9 | R2: Diferença-GND-1 | S2: Diferença-GND-2 | T2: Diferença-GND-3 | U2: Diferença-GND-4 | V2: Diferença-GND-5 | W2: Diferença-GND-6 | X2: Diferença-GND-9
A3: ='Pré-LOA 2023'!C3 -> SMARHS | B3: 100 | C3: 500 | D3: =SUMIFS('Pré-LOA 2023'!$AD:$AD,'Pré-LOA 2023'!$C:$C,'Resumo por Fonte (interno)'!A3,'Pré-LOA 2023'!$T:$T,'Resumo por Fonte (interno)'!B3,'Pré-LOA 2023'!$W:$W,'Resumo por Fonte (interno)'!C3,'Pré-LOA 2023'!$O:$O,RIGHT($D$2,1)) -> 0 | E3: =SUMIFS('Pré-LOA 2023'!$AD:$AD,'Pré-LOA 2023'!$C:$C,'Resumo por Fonte (interno)'!A3,'Pré-LOA 2023'!$T:$T,'Resumo por Fonte (interno)'!B3,'Pré-LOA 2023'!$W:$W,'Resumo por Fonte (interno)'!C3,'Pré-LOA 2023'!$O:$O,RIGHT($E$2,1)) -> 0 | F3: =SUMIFS('Pré-LOA 2023'!$AD:$AD,'Pré-LOA 2023'!$C:$C,'Resumo por Fonte (interno)'!A3,'Pré-LOA 2023'!$T:$T,'Resumo por Fonte (interno)'!B3,'Pré-LOA 2023'!$W:$W,'Resumo por Fonte (interno)'!C3,'Pré-LOA 2023'!$O:$O,RIGHT($F$2,1)) -> 49913 | G3: =SUMIFS('Pré-LOA 2023'!$AD:$AD,'Pré-LOA 2023'!$C:$C,'Resumo por Fonte (interno)'!A3,'Pré-LOA 2023'!$T:$T,'Resumo por Fonte (interno)'!B3,'Pré-LOA 2023'!$W:$W,'Resumo por Fonte (interno)'!C3,'Pré-LOA 2023'!$O:$O,RIGHT($G$2,1)) -> 0 | H3: =SUMIFS('Pré-LOA 2023'!$AD:$AD,'Pré-LOA 2023'!$C:$C,'Resumo por Fonte (interno)'!A3,'Pré-LOA 2023'!$T:$T,'Resumo por Fonte (interno)'!B3,'Pré-LOA 2023'!$W:$W,'Resumo por Fonte (interno)'!C3,'Pré-LOA 2023'!$O:$O,RIGHT($H$2,1)) -> 0 | I3: =SUMIFS('Pré-LOA 2023'!$AD:$AD,'Pré-LOA 2023'!$C:$C,'Resumo por Fonte (interno)'!A3,'Pré-LOA 2023'!$T:$T,'Resumo por Fonte (interno)'!B3,'Pré-LOA 2023'!$W:$W,'Resumo por Fonte (interno)'!C3,'Pré-LOA 2023'!$O:$O,RIGHT($I$2,1)) -> 0 | J3: =SUMIFS('Pré-LOA 2023'!$AD:$AD,'Pré-LOA 2023'!$C:$C,'Resumo por Fonte (interno)'!A3,'Pré-LOA 2023'!$T:$T,'Resumo por Fonte (interno)'!B3,'Pré-LOA 2023'!$W:$W,'Resumo por Fonte (interno)'!C3,'Pré-LOA 2023'!$O:$O,RIGHT($J$2,1)) -> 0 | K3: =SUMIFS('Pré-LOA 2023'!$AE:$AE,'Pré-LOA 2023'!$C:$C,'Resumo por Fonte (interno)'!A3,'Pré-LOA 2023'!$T:$T,'Resumo por Fonte (interno)'!B3,'Pré-LOA 2023'!$W:$W,'Resumo por Fonte (interno)'!C3,'Pré-LOA 2023'!$O:$O,RIGHT($K$2,1)) -> 0 | L3: =SUMIFS('Pré-LOA 2023'!$AE:$AE,'Pré-LOA 2023'!$C:$C,'Resumo por Fonte (interno)'!A3,'Pré-LOA 2023'!$T:$T,'Resumo por Fonte (interno)'!B3,'Pré-LOA 2023'!$W:$W,'Resumo por Fonte (interno)'!C3,'Pré-LOA 2023'!$O:$O,RIGHT($L$2,1)) -> 0 | M3: =SUMIFS('Pré-LOA 2023'!$AE:$AE,'Pré-LOA 2023'!$C:$C,'Resumo por Fonte (interno)'!A3,'Pré-LOA 2023'!$T:$T,'Resumo por Fonte (interno)'!B3,'Pré-LOA 2023'!$W:$W,'Resumo por Fonte (interno)'!C3,'Pré-LOA 2023'!$O:$O,RIGHT($M$2,1)) -> 49913 | N3: =SUMIFS('Pré-LOA 2023'!$AE:$AE,'Pré-LOA 2023'!$C:$C,'Resumo por Fonte (interno)'!A3,'Pré-LOA 2023'!$T:$T,'Resumo por Fonte (interno)'!B3,'Pré-LOA 2023'!$W:$W,'Resumo por Fonte (interno)'!C3,'Pré-LOA 2023'!$O:$O,RIGHT($N$2,1)) -> 0 | O3: =SUMIFS('Pré-LOA 2023'!$AE:$AE,'Pré-LOA 2023'!$C:$C,'Resumo por Fonte (interno)'!A3,'Pré-LOA 2023'!$T:$T,'Resumo por Fonte (interno)'!B3,'Pré-LOA 2023'!$W:$W,'Resumo por Fonte (interno)'!C3,'Pré-LOA 2023'!$O:$O,RIGHT($O$2,1)) -> 0 | P3: =SUMIFS('Pré-LOA 2023'!$AE:$AE,'Pré-LOA 2023'!$C:$C,'Resumo por Fonte (interno)'!A3,'Pré-LOA 2023'!$T:$T,'Resumo por Fonte (interno)'!B3,'Pré-LOA 2023'!$W:$W,'Resumo por Fonte (interno)'!C3,'Pré-LOA 2023'!$O:$O,RIGHT($P$2,1)) -> 0 | Q3: =SUMIFS('Pré-LOA 2023'!$AE:$AE,'Pré-LOA 2023'!$C:$C,'Resumo por Fonte (interno)'!A3,'Pré-LOA 2023'!$T:$T,'Resumo por Fonte (interno)'!B3,'Pré-LOA 2023'!$W:$W,'Resumo por Fonte (interno)'!C3,'Pré-LOA 2023'!$O:$O,RIGHT($Q$2,1)) -> 0 | R3: =$D3-$K3 -> 0 | S3: =$E3-$L3 -> 0 | T3: =$F3-$M3 -> 0 | U3: =$G3-$N3 -> 0 | V3: =$H3-$O3 -> 0 | W3: =$I3-$P3 -> 0 | X3: =$J3-$Q3 -> 0
A4: =A3 -> SMARHS | B4: 101 | C4: 574 | D4: =SUMIFS('Pré-LOA 2023'!$AD:$AD,'Pré-LOA 2023'!$C:$C,'Resumo por Fonte (interno)'!A4,'Pré-LOA 2023'!$T:$T,'Resumo por Fonte (interno)'!B4,'Pré-LOA 2023'!W:W,'Resumo por Fonte (interno)'!C4,'Pré-LOA 2023'!$O:$O,RIGHT($D$2,1)) -> 0 | E4: =SUMIFS('Pré-LOA 2023'!$AD:$AD,'Pré-LOA 2023'!$C:$C,'Resumo por Fonte (interno)'!A4,'Pré-LOA 2023'!$T:$T,'Resumo por Fonte (interno)'!B4,'Pré-LOA 2023'!$W:$W,'Resumo por Fonte (interno)'!C4,'Pré-LOA 2023'!$O:$O,RIGHT($E$2,1)) -> 0 | F4: =SUMIFS('Pré-LOA 2023'!$AD:$AD,'Pré-LOA 2023'!$C:$C,'Resumo por Fonte (interno)'!A4,'Pré-LOA 2023'!$T:$T,'Resumo por Fonte (interno)'!B4,'Pré-LOA 2023'!$W:$W,'Resumo por Fonte (interno)'!C4,'Pré-LOA 2023'!$O:$O,RIGHT($F$2,1)) -> 0 | G4: =SUMIFS('Pré-LOA 2023'!$AD:$AD,'Pré-LOA 2023'!$C:$C,'Resumo por Fonte (interno)'!A4,'Pré-LOA 2023'!$T:$T,'Resumo por Fonte (interno)'!B4,'Pré-LOA 2023'!$W:$W,'Resumo por Fonte (interno)'!C4,'Pré-LOA 2023'!$O:$O,RIGHT($G$2,1)) -> 0 | H4: =SUMIFS('Pré-LOA 2023'!$AD:$AD,'Pré-LOA 2023'!$C:$C,'Resumo por Fonte (interno)'!A4,'Pré-LOA 2023'!$T:$T,'Resumo por Fonte (interno)'!B4,'Pré-LOA 2023'!$W:$W,'Resumo por Fonte (interno)'!C4,'Pré-LOA 2023'!$O:$O,RIGHT($H$2,1)) -> 0 | I4: =SUMIFS('Pré-LOA 2023'!$AD:$AD,'Pré-LOA 2023'!$C:$C,'Resumo por Fonte (interno)'!A4,'Pré-LOA 2023'!$T:$T,'Resumo por Fonte (interno)'!B4,'Pré-LOA 2023'!$W:$W,'Resumo por Fonte (interno)'!C4,'Pré-LOA 2023'!$O:$O,RIGHT($I$2,1)) -> 0 | J4: =SUMIFS('Pré-LOA 2023'!$AD:$AD,'Pré-LOA 2023'!$C:$C,'Resumo por Fonte (interno)'!A4,'Pré-LOA 2023'!$T:$T,'Resumo por Fonte (interno)'!B4,'Pré-LOA 2023'!$W:$W,'Resumo por Fonte (interno)'!C4,'Pré-LOA 2023'!$O:$O,RIGHT($J$2,1)) -> 0 | K4: =SUMIFS('Pré-LOA 2023'!$AE:$AE,'Pré-LOA 2023'!$C:$C,'Resumo por Fonte (interno)'!A4,'Pré-LOA 2023'!$T:$T,'Resumo por Fonte (interno)'!B4,'Pré-LOA 2023'!$W:$W,'Resumo por Fonte (interno)'!C4,'Pré-LOA 2023'!$O:$O,RIGHT($K$2,1)) -> 0 | L4: =SUMIFS('Pré-LOA 2023'!$AE:$AE,'Pré-LOA 2023'!$C:$C,'Resumo por Fonte (interno)'!A4,'Pré-LOA 2023'!$T:$T,'Resumo por Fonte (interno)'!B4,'Pré-LOA 2023'!$W:$W,'Resumo por Fonte (interno)'!C4,'Pré-LOA 2023'!$O:$O,RIGHT($L$2,1)) -> 0 | M4: =SUMIFS('Pré-LOA 2023'!$AE:$AE,'Pré-LOA 2023'!$C:$C,'Resumo por Fonte (interno)'!A4,'Pré-LOA 2023'!$T:$T,'Resumo por Fonte (interno)'!B4,'Pré-LOA 2023'!$W:$W,'Resumo por Fonte (interno)'!C4,'Pré-LOA 2023'!$O:$O,RIGHT($M$2,1)) -> 0 | N4: =SUMIFS('Pré-LOA 2023'!$AE:$AE,'Pré-LOA 2023'!$C:$C,'Resumo por Fonte (interno)'!A4,'Pré-LOA 2023'!$T:$T,'Resumo por Fonte (interno)'!B4,'Pré-LOA 2023'!$W:$W,'Resumo por Fonte (interno)'!C4,'Pré-LOA 2023'!$O:$O,RIGHT($N$2,1)) -> 0 | O4: =SUMIFS('Pré-LOA 2023'!$AE:$AE,'Pré-LOA 2023'!$C:$C,'Resumo por Fonte (interno)'!A4,'Pré-LOA 2023'!$T:$T,'Resumo por Fonte (interno)'!B4,'Pré-LOA 2023'!$W:$W,'Resumo por Fonte (interno)'!C4,'Pré-LOA 2023'!$O:$O,RIGHT($O$2,1)) -> 0 | P4: =SUMIFS('Pré-LOA 2023'!$AE:$AE,'Pré-LOA 2023'!$C:$C,'Resumo por Fonte (interno)'!A4,'Pré-LOA 2023'!$T:$T,'Resumo por Fonte (interno)'!B4,'Pré-LOA 2023'!$W:$W,'Resumo por Fonte (interno)'!C4,'Pré-LOA 2023'!$O:$O,RIGHT($P$2,1)) -> 0 | Q4: =SUMIFS('Pré-LOA 2023'!$AE:$AE,'Pré-LOA 2023'!$C:$C,'Resumo por Fonte (interno)'!A4,'Pré-LOA 2023'!$T:$T,'Resumo por Fonte (interno)'!B4,'Pré-LOA 2023'!$W:$W,'Resumo por Fonte (interno)'!C4,'Pré-LOA 2023'!$O:$O,RIGHT($Q$2,1)) -> 0 | R4: =$D4-$K4 -> 0 | S4: =$E4-$L4 -> 0 | T4: =$F4-$M4 -> 0 | U4: =$G4-$N4 -> 0 | V4: =$H4-$O4 -> 0 | W4: =$I4-$P4 -> 0 | X4: =$J4-$Q4 -> 0
A5: =A4 -> SMARHS | B5: 101 | C5: 634 | D5: =SUMIFS('Pré-LOA 2023'!$AD:$AD,'Pré-LOA 2023'!$C:$C,'Resumo por Fonte (interno)'!A5,'Pré-LOA 2023'!$T:$T,'Resumo por Fonte (interno)'!B5,'Pré-LOA 2023'!W:W,'Resumo por Fonte (interno)'!C5,'Pré-LOA 2023'!$O:$O,RIGHT($D$2,1)) -> 0 | E5: =SUMIFS('Pré-LOA 2023'!$AD:$AD,'Pré-LOA 2023'!$C:$C,'Resumo por Fonte (interno)'!A5,'Pré-LOA 2023'!$T:$T,'Resumo por Fonte (interno)'!B5,'Pré-LOA 2023'!$W:$W,'Resumo por Fonte (interno)'!C5,'Pré-LOA 2023'!$O:$O,RIGHT($E$2,1)) -> 0 | F5: =SUMIFS('Pré-LOA 2023'!$AD:$AD,'Pré-LOA 2023'!$C:$C,'Resumo por Fonte (interno)'!A5,'Pré-LOA 2023'!$T:$T,'Resumo por Fonte (interno)'!B5,'Pré-LOA 2023'!$W:$W,'Resumo por Fonte (interno)'!C5,'Pré-LOA 2023'!$O:$O,RIGHT($F$2,1)) -> 0 | G5: =SUMIFS('Pré-LOA 2023'!$AD:$AD,'Pré-LOA 2023'!$C:$C,'Resumo por Fonte (interno)'!A5,'Pré-LOA 2023'!$T:$T,'Resumo por Fonte (interno)'!B5,'Pré-LOA 2023'!$W:$W,'Resumo por Fonte (interno)'!C5,'Pré-LOA 2023'!$O:$O,RIGHT($G$2,1)) -> 0 | H5: =SUMIFS('Pré-LOA 2023'!$AD:$AD,'Pré-LOA 2023'!$C:$C,'Resumo por Fonte (interno)'!A5,'Pré-LOA 2023'!$T:$T,'Resumo por Fonte (interno)'!B5,'Pré-LOA 2023'!$W:$W,'Resumo por Fonte (interno)'!C5,'Pré-LOA 2023'!$O:$O,RIGHT($H$2,1)) -> 0 | I5: =SUMIFS('Pré-LOA 2023'!$AD:$AD,'Pré-LOA 2023'!$C:$C,'Resumo por Fonte (interno)'!A5,'Pré-LOA 2023'!$T:$T,'Resumo por Fonte (interno)'!B5,'Pré-LOA 2023'!$W:$W,'Resumo por Fonte (interno)'!C5,'Pré-LOA 2023'!$O:$O,RIGHT($I$2,1)) -> 0 | J5: =SUMIFS('Pré-LOA 2023'!$AD:$AD,'Pré-LOA 2023'!$C:$C,'Resumo por Fonte (interno)'!A5,'Pré-LOA 2023'!$T:$T,'Resumo por Fonte (interno)'!B5,'Pré-LOA 2023'!$W:$W,'Resumo por Fonte (interno)'!C5,'Pré-LOA 2023'!$O:$O,RIGHT($J$2,1)) -> 0 | K5: =SUMIFS('Pré-LOA 2023'!$AE:$AE,'Pré-LOA 2023'!$C:$C,'Resumo por Fonte (interno)'!A5,'Pré-LOA 2023'!$T:$T,'Resumo por Fonte (interno)'!B5,'Pré-LOA 2023'!$W:$W,'Resumo por Fonte (interno)'!C5,'Pré-LOA 2023'!$O:$O,RIGHT($K$2,1)) -> 0 | L5: =SUMIFS('Pré-LOA 2023'!$AE:$AE,'Pré-LOA 2023'!$C:$C,'Resumo por Fonte (interno)'!A5,'Pré-LOA 2023'!$T:$T,'Resumo por Fonte (interno)'!B5,'Pré-LOA 2023'!$W:$W,'Resumo por Fonte (interno)'!C5,'Pré-LOA 2023'!$O:$O,RIGHT($L$2,1)) -> 0 | M5: =SUMIFS('Pré-LOA 2023'!$AE:$AE,'Pré-LOA 2023'!$C:$C,'Resumo por Fonte (interno)'!A5,'Pré-LOA 2023'!$T:$T,'Resumo por Fonte (interno)'!B5,'Pré-LOA 2023'!$W:$W,'Resumo por Fonte (interno)'!C5,'Pré-LOA 2023'!$O:$O,RIGHT($M$2,1)) -> 0 | N5: =SUMIFS('Pré-LOA 2023'!$AE:$AE,'Pré-LOA 2023'!$C:$C,'Resumo por Fonte (interno)'!A5,'Pré-LOA 2023'!$T:$T,'Resumo por Fonte (interno)'!B5,'Pré-LOA 2023'!$W:$W,'Resumo por Fonte (interno)'!C5,'Pré-LOA 2023'!$O:$O,RIGHT($N$2,1)) -> 0 | O5: =SUMIFS('Pré-LOA 2023'!$AE:$AE,'Pré-LOA 2023'!$C:$C,'Resumo por Fonte (interno)'!A5,'Pré-LOA 2023'!$T:$T,'Resumo por Fonte (interno)'!B5,'Pré-LOA 2023'!$W:$W,'Resumo por Fonte (interno)'!C5,'Pré-LOA 2023'!$O:$O,RIGHT($O$2,1)) -> 0 | P5: =SUMIFS('Pré-LOA 2023'!$AE:$AE,'Pré-LOA 2023'!$C:$C,'Resumo por Fonte (interno)'!A5,'Pré-LOA 2023'!$T:$T,'Resumo por Fonte (interno)'!B5,'Pré-LOA 2023'!$W:$W,'Resumo por Fonte (interno)'!C5,'Pré-LOA 2023'!$O:$O,RIGHT($P$2,1)) -> 0 | Q5: =SUMIFS('Pré-LOA 2023'!$AE:$AE,'Pré-LOA 2023'!$C:$C,'Resumo por Fonte (interno)'!A5,'Pré-LOA 2023'!$T:$T,'Resumo por Fonte (interno)'!B5,'Pré-LOA 2023'!$W:$W,'Resumo por Fonte (interno)'!C5,'Pré-LOA 2023'!$O:$O,RIGHT($Q$2,1)) -> 0 | R5: 0 | S5: 0 | T5: 0 | U5: 0 | V5: 0 | W5: 0 | X5: 0
A6: =A5 -> SMARHS | B6: 101 | C6: 754 | D6: =SUMIFS('Pré-LOA 2023'!$AD:$AD,'Pré-LOA 2023'!$C:$C,'Resumo por Fonte (interno)'!A6,'Pré-LOA 2023'!$T:$T,'Resumo por Fonte (interno)'!B6,'Pré-LOA 2023'!W:W,'Resumo por Fonte (interno)'!C6,'Pré-LOA 2023'!$O:$O,RIGHT($D$2,1)) -> 0 | E6: =SUMIFS('Pré-LOA 2023'!$AD:$AD,'Pré-LOA 2023'!$C:$C,'Resumo por Fonte (interno)'!A6,'Pré-LOA 2023'!$T:$T,'Resumo por Fonte (interno)'!B6,'Pré-LOA 2023'!$W:$W,'Resumo por Fonte (interno)'!C6,'Pré-LOA 2023'!$O:$O,RIGHT($E$2,1)) -> 0 | F6: =SUMIFS('Pré-LOA 2023'!$AD:$AD,'Pré-LOA 2023'!$C:$C,'Resumo por Fonte (interno)'!A6,'Pré-LOA 2023'!$T:$T,'Resumo por Fonte (interno)'!B6,'Pré-LOA 2023'!$W:$W,'Resumo por Fonte (interno)'!C6,'Pré-LOA 2023'!$O:$O,RIGHT($F$2,1)) -> 0 | G6: =SUMIFS('Pré-LOA 2023'!$AD:$AD,'Pré-LOA 2023'!$C:$C,'Resumo por Fonte (interno)'!A6,'Pré-LOA 2023'!$T:$T,'Resumo por Fonte (interno)'!B6,'Pré-LOA 2023'!$W:$W,'Resumo por Fonte (interno)'!C6,'Pré-LOA 2023'!$O:$O,RIGHT($G$2,1)) -> 0 | H6: =SUMIFS('Pré-LOA 2023'!$AD:$AD,'Pré-LOA 2023'!$C:$C,'Resumo por Fonte (interno)'!A6,'Pré-LOA 2023'!$T:$T,'Resumo por Fonte (interno)'!B6,'Pré-LOA 2023'!$W:$W,'Resumo por Fonte (interno)'!C6,'Pré-LOA 2023'!$O:$O,RIGHT($H$2,1)) -> 0 | I6: =SUMIFS('Pré-LOA 2023'!$AD:$AD,'Pré-LOA 2023'!$C:$C,'Resumo por Fonte (interno)'!A6,'Pré-LOA 2023'!$T:$T,'Resumo por Fonte (interno)'!B6,'Pré-LOA 2023'!$W:$W,'Resumo por Fonte (interno)'!C6,'Pré-LOA 2023'!$O:$O,RIGHT($I$2,1)) -> 0 | J6: =SUMIFS('Pré-LOA 2023'!$AD:$AD,'Pré-LOA 2023'!$C:$C,'Resumo por Fonte (interno)'!A6,'Pré-LOA 2023'!$T:$T,'Resumo por Fonte (interno)'!B6,'Pré-LOA 2023'!$W:$W,'Resumo por Fonte (interno)'!C6,'Pré-LOA 2023'!$O:$O,RIGHT($J$2,1)) -> 0 | K6: =SUMIFS('Pré-LOA 2023'!$AE:$AE,'Pré-LOA 2023'!$C:$C,'Resumo por Fonte (interno)'!A6,'Pré-LOA 2023'!$T:$T,'Resumo por Fonte (interno)'!B6,'Pré-LOA 2023'!$W:$W,'Resumo por Fonte (interno)'!C6,'Pré-LOA 2023'!$O:$O,RIGHT($K$2,1)) -> 0 | L6: =SUMIFS('Pré-LOA 2023'!$AE:$AE,'Pré-LOA 2023'!$C:$C,'Resumo por Fonte (interno)'!A6,'Pré-LOA 2023'!$T:$T,'Resumo por Fonte (interno)'!B6,'Pré-LOA 2023'!$W:$W,'Resumo por Fonte (interno)'!C6,'Pré-LOA 2023'!$O:$O,RIGHT($L$2,1)) -> 0 | M6: =SUMIFS('Pré-LOA 2023'!$AE:$AE,'Pré-LOA 2023'!$C:$C,'Resumo por Fonte (interno)'!A6,'Pré-LOA 2023'!$T:$T,'Resumo por Fonte (interno)'!B6,'Pré-LOA 2023'!$W:$W,'Resumo por Fonte (interno)'!C6,'Pré-LOA 2023'!$O:$O,RIGHT($M$2,1)) -> 0 | N6: =SUMIFS('Pré-LOA 2023'!$AE:$AE,'Pré-LOA 2023'!$C:$C,'Resumo por Fonte (interno)'!A6,'Pré-LOA 2023'!$T:$T,'Resumo por Fonte (interno)'!B6,'Pré-LOA 2023'!$W:$W,'Resumo por Fonte (interno)'!C6,'Pré-LOA 2023'!$O:$O,RIGHT($N$2,1)) -> 0 | O6: =SUMIFS('Pré-LOA 2023'!$AE:$AE,'Pré-LOA 2023'!$C:$C,'Resumo por Fonte (interno)'!A6,'Pré-LOA 2023'!$T:$T,'Resumo por Fonte (interno)'!B6,'Pré-LOA 2023'!$W:$W,'Resumo por Fonte (interno)'!C6,'Pré-LOA 2023'!$O:$O,RIGHT($O$2,1)) -> 0 | P6: =SUMIFS('Pré-LOA 2023'!$AE:$AE,'Pré-LOA 2023'!$C:$C,'Resumo por Fonte (interno)'!A6,'Pré-LOA 2023'!$T:$T,'Resumo por Fonte (interno)'!B6,'Pré-LOA 2023'!$W:$W,'Resumo por Fonte (interno)'!C6,'Pré-LOA 2023'!$O:$O,RIGHT($P$2,1)) -> 0 | Q6: =SUMIFS('Pré-LOA 2023'!$AE:$AE,'Pré-LOA 2023'!$C:$C,'Resumo por Fonte (interno)'!A6,'Pré-LOA 2023'!$T:$T,'Resumo por Fonte (interno)'!B6,'Pré-LOA 2023'!$W:$W,'Resumo por Fonte (interno)'!C6,'Pré-LOA 2023'!$O:$O,RIGHT($Q$2,1)) -> 0 | R6: 0 | S6: 0 | T6: 0 | U6: 0 | V6: 0 | W6: 0 | X6: 0
A7: SMARHS | B7: 102 | C7: 700 | D7: =SUMIFS('Pré-LOA 2023'!$AD:$AD,'Pré-LOA 2023'!$C:$C,'Resumo por Fonte (interno)'!A7,'Pré-LOA 2023'!$T:$T,'Resumo por Fonte (interno)'!B7,'Pré-LOA 2023'!W:W,'Resumo por Fonte (interno)'!C7,'Pré-LOA 2023'!$O:$O,RIGHT($D$2,1)) -> 0 | E7: =SUMIFS('Pré-LOA 2023'!$AD:$AD,'Pré-LOA 2023'!$C:$C,'Resumo por Fonte (interno)'!A7,'Pré-LOA 2023'!$T:$T,'Resumo por Fonte (interno)'!B7,'Pré-LOA 2023'!$W:$W,'Resumo por Fonte (interno)'!C7,'Pré-LOA 2023'!$O:$O,RIGHT($E$2,1)) -> 0 | F7: =SUMIFS('Pré-LOA 2023'!$AD:$AD,'Pré-LOA 2023'!$C:$C,'Resumo por Fonte (interno)'!A7,'Pré-LOA 2023'!$T:$T,'Resumo por Fonte (interno)'!B7,'Pré-LOA 2023'!$W:$W,'Resumo por Fonte (interno)'!C7,'Pré-LOA 2023'!$O:$O,RIGHT($F$2,1)) -> 4130978 | G7: =SUMIFS('Pré-LOA 2023'!$AD:$AD,'Pré-LOA 2023'!$C:$C,'Resumo por Fonte (interno)'!A7,'Pré-LOA 2023'!$T:$T,'Resumo por Fonte (interno)'!B7,'Pré-LOA 2023'!$W:$W,'Resumo por Fonte (interno)'!C7,'Pré-LOA 2023'!$O:$O,RIGHT($G$2,1)) -> 0 | H7: =SUMIFS('Pré-LOA 2023'!$AD:$AD,'Pré-LOA 2023'!$C:$C,'Resumo por Fonte (interno)'!A7,'Pré-LOA 2023'!$T:$T,'Resumo por Fonte (interno)'!B7,'Pré-LOA 2023'!$W:$W,'Resumo por Fonte (interno)'!C7,'Pré-LOA 2023'!$O:$O,RIGHT($H$2,1)) -> 0 | I7: =SUMIFS('Pré-LOA 2023'!$AD:$AD,'Pré-LOA 2023'!$C:$C,'Resumo por Fonte (interno)'!A7,'Pré-LOA 2023'!$T:$T,'Resumo por Fonte (interno)'!B7,'Pré-LOA 2023'!$W:$W,'Resumo por Fonte (interno)'!C7,'Pré-LOA 2023'!$O:$O,RIGHT($I$2,1)) -> 0 | J7: =SUMIFS('Pré-LOA 2023'!$AD:$AD,'Pré-LOA 2023'!$C:$C,'Resumo por Fonte (interno)'!A7,'Pré-LOA 2023'!$T:$T,'Resumo por Fonte (interno)'!B7,'Pré-LOA 2023'!$W:$W,'Resumo por Fonte (interno)'!C7,'Pré-LOA 2023'!$O:$O,RIGHT($J$2,1)) -> 0 | K7: =SUMIFS('Pré-LOA 2023'!$AE:$AE,'Pré-LOA 2023'!$C:$C,'Resumo por Fonte (interno)'!A7,'Pré-LOA 2023'!$T:$T,'Resumo por Fonte (interno)'!B7,'Pré-LOA 2023'!$W:$W,'Resumo por Fonte (interno)'!C7,'Pré-LOA 2023'!$O:$O,RIGHT($K$2,1)) -> 0 | L7: =SUMIFS('Pré-LOA 2023'!$AE:$AE,'Pré-LOA 2023'!$C:$C,'Resumo por Fonte (interno)'!A7,'Pré-LOA 2023'!$T:$T,'Resumo por Fonte (interno)'!B7,'Pré-LOA 2023'!$W:$W,'Resumo por Fonte (interno)'!C7,'Pré-LOA 2023'!$O:$O,RIGHT($L$2,1)) -> 0 | M7: =SUMIFS('Pré-LOA 2023'!$AE:$AE,'Pré-LOA 2023'!$C:$C,'Resumo por Fonte (interno)'!A7,'Pré-LOA 2023'!$T:$T,'Resumo por Fonte (interno)'!B7,'Pré-LOA 2023'!$W:$W,'Resumo por Fonte (interno)'!C7,'Pré-LOA 2023'!$O:$O,RIGHT($M$2,1)) -> 1737027.67 | N7: =SUMIFS('Pré-LOA 2023'!$AE:$AE,'Pré-LOA 2023'!$C:$C,'Resumo por Fonte (interno)'!A7,'Pré-LOA 2023'!$T:$T,'Resumo por Fonte (interno)'!B7,'Pré-LOA 2023'!$W:$W,'Resumo por Fonte (interno)'!C7,'Pré-LOA 2023'!$O:$O,RIGHT($N$2,1)) -> 80000 | O7: =SUMIFS('Pré-LOA 2023'!$AE:$AE,'Pré-LOA 2023'!$C:$C,'Resumo por Fonte (interno)'!A7,'Pré-LOA 2023'!$T:$T,'Resumo por Fonte (interno)'!B7,'Pré-LOA 2023'!$W:$W,'Resumo por Fonte (interno)'!C7,'Pré-LOA 2023'!$O:$O,RIGHT($O$2,1)) -> 0 | P7: =SUMIFS('Pré-LOA 2023'!$AE:$AE,'Pré-LOA 2023'!$C:$C,'Resumo por Fonte (interno)'!A7,'Pré-LOA 2023'!$T:$T,'Resumo por Fonte (interno)'!B7,'Pré-LOA 2023'!$W:$W,'Resumo por Fonte (interno)'!C7,'Pré-LOA 2023'!$O:$O,RIGHT($P$2,1)) -> 0 | Q7: =SUMIFS('Pré-LOA 2023'!$AE:$AE,'Pré-LOA 2023'!$C:$C,'Resumo por Fonte (interno)'!A7,'Pré-LOA 2023'!$T:$T,'Resumo por Fonte (interno)'!B7,'Pré-LOA 2023'!$W:$W,'Resumo por Fonte (interno)'!C7,'Pré-LOA 2023'!$O:$O,RIGHT($Q$2,1)) -> 0 | R7: 0 | S7: 0 | T7: 2393950.33 | U7: -80000 | V7: 0 | W7: 0 | X7: 0
A8: SMARHS | B8: 102 | C8: 701 | D8: =SUMIFS('Pré-LOA 2023'!$AD:$AD,'Pré-LOA 2023'!$C:$C,'Resumo por Fonte (interno)'!A8,'Pré-LOA 2023'!$T:$T,'Resumo por Fonte (interno)'!B8,'Pré-LOA 2023'!W:W,'Resumo por Fonte (interno)'!C8,'Pré-LOA 2023'!$O:$O,RIGHT($D$2,1)) -> 0 | E8: =SUMIFS('Pré-LOA 2023'!$AD:$AD,'Pré-LOA 2023'!$C:$C,'Resumo por Fonte (interno)'!A8,'Pré-LOA 2023'!$T:$T,'Resumo por Fonte (interno)'!B8,'Pré-LOA 2023'!$W:$W,'Resumo por Fonte (interno)'!C8,'Pré-LOA 2023'!$O:$O,RIGHT($E$2,1)) -> 0 | F8: =SUMIFS('Pré-LOA 2023'!$AD:$AD,'Pré-LOA 2023'!$C:$C,'Resumo por Fonte (interno)'!A8,'Pré-LOA 2023'!$T:$T,'Resumo por Fonte (interno)'!B8,'Pré-LOA 2023'!$W:$W,'Resumo por Fonte (interno)'!C8,'Pré-LOA 2023'!$O:$O,RIGHT($F$2,1)) -> 0 | G8: =SUMIFS('Pré-LOA 2023'!$AD:$AD,'Pré-LOA 2023'!$C:$C,'Resumo por Fonte (interno)'!A8,'Pré-LOA 2023'!$T:$T,'Resumo por Fonte (interno)'!B8,'Pré-LOA 2023'!$W:$W,'Resumo por Fonte (interno)'!C8,'Pré-LOA 2023'!$O:$O,RIGHT($G$2,1)) -> 0 | H8: =SUMIFS('Pré-LOA 2023'!$AD:$AD,'Pré-LOA 2023'!$C:$C,'Resumo por Fonte (interno)'!A8,'Pré-LOA 2023'!$T:$T,'Resumo por Fonte (interno)'!B8,'Pré-LOA 2023'!$W:$W,'Resumo por Fonte (interno)'!C8,'Pré-LOA 2023'!$O:$O,RIGHT($H$2,1)) -> 0 | I8: =SUMIFS('Pré-LOA 2023'!$AD:$AD,'Pré-LOA 2023'!$C:$C,'Resumo por Fonte (interno)'!A8,'Pré-LOA 2023'!$T:$T,'Resumo por Fonte (interno)'!B8,'Pré-LOA 2023'!$W:$W,'Resumo por Fonte (interno)'!C8,'Pré-LOA 2023'!$O:$O,RIGHT($I$2,1)) -> 0 | J8: =SUMIFS('Pré-LOA 2023'!$AD:$AD,'Pré-LOA 2023'!$C:$C,'Resumo por Fonte (interno)'!A8,'Pré-LOA 2023'!$T:$T,'Resumo por Fonte (interno)'!B8,'Pré-LOA 2023'!$W:$W,'Resumo por Fonte (interno)'!C8,'Pré-LOA 2023'!$O:$O,RIGHT($J$2,1)) -> 0 | K8: =SUMIFS('Pré-LOA 2023'!$AE:$AE,'Pré-LOA 2023'!$C:$C,'Resumo por Fonte (interno)'!A8,'Pré-LOA 2023'!$T:$T,'Resumo por Fonte (interno)'!B8,'Pré-LOA 2023'!$W:$W,'Resumo por Fonte (interno)'!C8,'Pré-LOA 2023'!$O:$O,RIGHT($K$2,1)) -> 0 | L8: =SUMIFS('Pré-LOA 2023'!$AE:$AE,'Pré-LOA 2023'!$C:$C,'Resumo por Fonte (interno)'!A8,'Pré-LOA 2023'!$T:$T,'Resumo por Fonte (interno)'!B8,'Pré-LOA 2023'!$W:$W,'Resumo por Fonte (interno)'!C8,'Pré-LOA 2023'!$O:$O,RIGHT($L$2,1)) -> 0 | M8: =SUMIFS('Pré-LOA 2023'!$AE:$AE,'Pré-LOA 2023'!$C:$C,'Resumo por Fonte (interno)'!A8,'Pré-LOA 2023'!$T:$T,'Resumo por Fonte (interno)'!B8,'Pré-LOA 2023'!$W:$W,'Resumo por Fonte (interno)'!C8,'Pré-LOA 2023'!$O:$O,RIGHT($M$2,1)) -> 0 | N8: =SUMIFS('Pré-LOA 2023'!$AE:$AE,'Pré-LOA 2023'!$C:$C,'Resumo por Fonte (interno)'!A8,'Pré-LOA 2023'!$T:$T,'Resumo por Fonte (interno)'!B8,'Pré-LOA 2023'!$W:$W,'Resumo por Fonte (interno)'!C8,'Pré-LOA 2023'!$O:$O,RIGHT($N$2,1)) -> 0 | O8: =SUMIFS('Pré-LOA 2023'!$AE:$AE,'Pré-LOA 2023'!$C:$C,'Resumo por Fonte (interno)'!A8,'Pré-LOA 2023'!$T:$T,'Resumo por Fonte (interno)'!B8,'Pré-LOA 2023'!$W:$W,'Resumo por Fonte (interno)'!C8,'Pré-LOA 2023'!$O:$O,RIGHT($O$2,1)) -> 0 | P8: =SUMIFS('Pré-LOA 2023'!$AE:$AE,'Pré-LOA 2023'!$C:$C,'Resumo por Fonte (interno)'!A8,'Pré-LOA 2023'!$T:$T,'Resumo por Fonte (interno)'!B8,'Pré-LOA 2023'!$W:$W,'Resumo por Fonte (interno)'!C8,'Pré-LOA 2023'!$O:$O,RIGHT($P$2,1)) -> 0 | Q8: =SUMIFS('Pré-LOA 2023'!$AE:$AE,'Pré-LOA 2023'!$C:$C,'Resumo por Fonte (interno)'!A8,'Pré-LOA 2023'!$T:$T,'Resumo por Fonte (interno)'!B8,'Pré-LOA 2023'!$W:$W,'Resumo por Fonte (interno)'!C8,'Pré-LOA 2023'!$O:$O,RIGHT($Q$2,1)) -> 0 | R8: 0 | S8: 0 | T8: 0 | U8: 0 | V8: 0 | W8: 0 | X8: 0
A9: SMARHS | B9: 102 | C9: 702 | D9: =SUMIFS('Pré-LOA 2023'!$AD:$AD,'Pré-LOA 2023'!$C:$C,'Resumo por Fonte (interno)'!A9,'Pré-LOA 2023'!$T:$T,'Resumo por Fonte (interno)'!B9,'Pré-LOA 2023'!W:W,'Resumo por Fonte (interno)'!C9,'Pré-LOA 2023'!$O:$O,RIGHT($D$2,1)) -> 0 | E9: =SUMIFS('Pré-LOA 2023'!$AD:$AD,'Pré-LOA 2023'!$C:$C,'Resumo por Fonte (interno)'!A9,'Pré-LOA 2023'!$T:$T,'Resumo por Fonte (interno)'!B9,'Pré-LOA 2023'!$W:$W,'Resumo por Fonte (interno)'!C9,'Pré-LOA 2023'!$O:$O,RIGHT($E$2,1)) -> 0 | F9: =SUMIFS('Pré-LOA 2023'!$AD:$AD,'Pré-LOA 2023'!$C:$C,'Resumo por Fonte (interno)'!A9,'Pré-LOA 2023'!$T:$T,'Resumo por Fonte (interno)'!B9,'Pré-LOA 2023'!$W:$W,'Resumo por Fonte (interno)'!C9,'Pré-LOA 2023'!$O:$O,RIGHT($F$2,1)) -> 0 | G9: =SUMIFS('Pré-LOA 2023'!$AD:$AD,'Pré-LOA 2023'!$C:$C,'Resumo por Fonte (interno)'!A9,'Pré-LOA 2023'!$T:$T,'Resumo por Fonte (interno)'!B9,'Pré-LOA 2023'!$W:$W,'Resumo por Fonte (interno)'!C9,'Pré-LOA 2023'!$O:$O,RIGHT($G$2,1)) -> 0 | H9: =SUMIFS('Pré-LOA 2023'!$AD:$AD,'Pré-LOA 2023'!$C:$C,'Resumo por Fonte (interno)'!A9,'Pré-LOA 2023'!$T:$T,'Resumo por Fonte (interno)'!B9,'Pré-LOA 2023'!$W:$W,'Resumo por Fonte (interno)'!C9,'Pré-LOA 2023'!$O:$O,RIGHT($H$2,1)) -> 0 | I9: =SUMIFS('Pré-LOA 2023'!$AD:$AD,'Pré-LOA 2023'!$C:$C,'Resumo por Fonte (interno)'!A9,'Pré-LOA 2023'!$T:$T,'Resumo por Fonte (interno)'!B9,'Pré-LOA 2023'!$W:$W,'Resumo por Fonte (interno)'!C9,'Pré-LOA 2023'!$O:$O,RIGHT($I$2,1)) -> 0 | J9: =SUMIFS('Pré-LOA 2023'!$AD:$AD,'Pré-LOA 2023'!$C:$C,'Resumo por Fonte (interno)'!A9,'Pré-LOA 2023'!$T:$T,'Resumo por Fonte (interno)'!B9,'Pré-LOA 2023'!$W:$W,'Resumo por Fonte (interno)'!C9,'Pré-LOA 2023'!$O:$O,RIGHT($J$2,1)) -> 0 | K9: =SUMIFS('Pré-LOA 2023'!$AE:$AE,'Pré-LOA 2023'!$C:$C,'Resumo por Fonte (interno)'!A9,'Pré-LOA 2023'!$T:$T,'Resumo por Fonte (interno)'!B9,'Pré-LOA 2023'!$W:$W,'Resumo por Fonte (interno)'!C9,'Pré-LOA 2023'!$O:$O,RIGHT($K$2,1)) -> 0 | L9: =SUMIFS('Pré-LOA 2023'!$AE:$AE,'Pré-LOA 2023'!$C:$C,'Resumo por Fonte (interno)'!A9,'Pré-LOA 2023'!$T:$T,'Resumo por Fonte (interno)'!B9,'Pré-LOA 2023'!$W:$W,'Resumo por Fonte (interno)'!C9,'Pré-LOA 2023'!$O:$O,RIGHT($L$2,1)) -> 0 | M9: =SUMIFS('Pré-LOA 2023'!$AE:$AE,'Pré-LOA 2023'!$C:$C,'Resumo por Fonte (interno)'!A9,'Pré-LOA 2023'!$T:$T,'Resumo por Fonte (interno)'!B9,'Pré-LOA 2023'!$W:$W,'Resumo por Fonte (interno)'!C9,'Pré-LOA 2023'!$O:$O,RIGHT($M$2,1)) -> 0 | N9: =SUMIFS('Pré-LOA 2023'!$AE:$AE,'Pré-LOA 2023'!$C:$C,'Resumo por Fonte (interno)'!A9,'Pré-LOA 2023'!$T:$T,'Resumo por Fonte (interno)'!B9,'Pré-LOA 2023'!$W:$W,'Resumo por Fonte (interno)'!C9,'Pré-LOA 2023'!$O:$O,RIGHT($N$2,1)) -> 0 | O9: =SUMIFS('Pré-LOA 2023'!$AE:$AE,'Pré-LOA 2023'!$C:$C,'Resumo por Fonte (interno)'!A9,'Pré-LOA 2023'!$T:$T,'Resumo por Fonte (interno)'!B9,'Pré-LOA 2023'!$W:$W,'Resumo por Fonte (interno)'!C9,'Pré-LOA 2023'!$O:$O,RIGHT($O$2,1)) -> 0 | P9: =SUMIFS('Pré-LOA 2023'!$AE:$AE,'Pré-LOA 2023'!$C:$C,'Resumo por Fonte (interno)'!A9,'Pré-LOA 2023'!$T:$T,'Resumo por Fonte (interno)'!B9,'Pré-LOA 2023'!$W:$W,'Resumo por Fonte (interno)'!C9,'Pré-LOA 2023'!$O:$O,RIGHT($P$2,1)) -> 0 | Q9: =SUMIFS('Pré-LOA 2023'!$AE:$AE,'Pré-LOA 2023'!$C:$C,'Resumo por Fonte (interno)'!A9,'Pré-LOA 2023'!$T:$T,'Resumo por Fonte (interno)'!B9,'Pré-LOA 2023'!$W:$W,'Resumo por Fonte (interno)'!C9,'Pré-LOA 2023'!$O:$O,RIGHT($Q$2,1)) -> 0 | R9: 0 | S9: 0 | T9: 0 | U9: 0 | V9: 0 | W9: 0 | X9: 0
A10: SMARHS | B10: 102 | C10: 703 | D10: =SUMIFS('Pré-LOA 2023'!$AD:$AD,'Pré-LOA 2023'!$C:$C,'Resumo por Fonte (interno)'!A10,'Pré-LOA 2023'!$T:$T,'Resumo por Fonte (interno)'!B10,'Pré-LOA 2023'!W:W,'Resumo por Fonte (interno)'!C10,'Pré-LOA 2023'!$O:$O,RIGHT($D$2,1)) -> 0 | E10: =SUMIFS('Pré-LOA 2023'!$AD:$AD,'Pré-LOA 2023'!$C:$C,'Resumo por Fonte (interno)'!A10,'Pré-LOA 2023'!$T:$T,'Resumo por Fonte (interno)'!B10,'Pré-LOA 2023'!$W:$W,'Resumo por Fonte (interno)'!C10,'Pré-LOA 2023'!$O:$O,RIGHT($E$2,1)) -> 0 | F10: =SUMIFS('Pré-LOA 2023'!$AD:$AD,'Pré-LOA 2023'!$C:$C,'Resumo por Fonte (interno)'!A10,'Pré-LOA 2023'!$T:$T,'Resumo por Fonte (interno)'!B10,'Pré-LOA 2023'!$W:$W,'Resumo por Fonte (interno)'!C10,'Pré-LOA 2023'!$O:$O,RIGHT($F$2,1)) -> 0 | G10: =SUMIFS('Pré-LOA 2023'!$AD:$AD,'Pré-LOA 2023'!$C:$C,'Resumo por Fonte (interno)'!A10,'Pré-LOA 2023'!$T:$T,'Resumo por Fonte (interno)'!B10,'Pré-LOA 2023'!$W:$W,'Resumo por Fonte (interno)'!C10,'Pré-LOA 2023'!$O:$O,RIGHT($G$2,1)) -> 0 | H10: =SUMIFS('Pré-LOA 2023'!$AD:$AD,'Pré-LOA 2023'!$C:$C,'Resumo por Fonte (interno)'!A10,'Pré-LOA 2023'!$T:$T,'Resumo por Fonte (interno)'!B10,'Pré-LOA 2023'!$W:$W,'Resumo por Fonte (interno)'!C10,'Pré-LOA 2023'!$O:$O,RIGHT($H$2,1)) -> 0 | I10: =SUMIFS('Pré-LOA 2023'!$AD:$AD,'Pré-LOA 2023'!$C:$C,'Resumo por Fonte (interno)'!A10,'Pré-LOA 2023'!$T:$T,'Resumo por Fonte (interno)'!B10,'Pré-LOA 2023'!$W:$W,'Resumo por Fonte (interno)'!C10,'Pré-LOA 2023'!$O:$O,RIGHT($I$2,1)) -> 0 | J10: =SUMIFS('Pré-LOA 2023'!$AD:$AD,'Pré-LOA 2023'!$C:$C,'Resumo por Fonte (interno)'!A10,'Pré-LOA 2023'!$T:$T,'Resumo por Fonte (interno)'!B10,'Pré-LOA 2023'!$W:$W,'Resumo por Fonte (interno)'!C10,'Pré-LOA 2023'!$O:$O,RIGHT($J$2,1)) -> 0 | K10: =SUMIFS('Pré-LOA 2023'!$AE:$AE,'Pré-LOA 2023'!$C:$C,'Resumo por Fonte (interno)'!A10,'Pré-LOA 2023'!$T:$T,'Resumo por Fonte (interno)'!B10,'Pré-LOA 2023'!$W:$W,'Resumo por Fonte (interno)'!C10,'Pré-LOA 2023'!$O:$O,RIGHT($K$2,1)) -> 0 | L10: =SUMIFS('Pré-LOA 2023'!$AE:$AE,'Pré-LOA 2023'!$C:$C,'Resumo por Fonte (interno)'!A10,'Pré-LOA 2023'!$T:$T,'Resumo por Fonte (interno)'!B10,'Pré-LOA 2023'!$W:$W,'Resumo por Fonte (interno)'!C10,'Pré-LOA 2023'!$O:$O,RIGHT($L$2,1)) -> 0 | M10: =SUMIFS('Pré-LOA 2023'!$AE:$AE,'Pré-LOA 2023'!$C:$C,'Resumo por Fonte (interno)'!A10,'Pré-LOA 2023'!$T:$T,'Resumo por Fonte (interno)'!B10,'Pré-LOA 2023'!$W:$W,'Resumo por Fonte (interno)'!C10,'Pré-LOA 2023'!$O:$O,RIGHT($M$2,1)) -> 0 | N10: =SUMIFS('Pré-LOA 2023'!$AE:$AE,'Pré-LOA 2023'!$C:$C,'Resumo por Fonte (interno)'!A10,'Pré-LOA 2023'!$T:$T,'Resumo por Fonte (interno)'!B10,'Pré-LOA 2023'!$W:$W,'Resumo por Fonte (interno)'!C10,'Pré-LOA 2023'!$O:$O,RIGHT($N$2,1)) -> 0 | O10: =SUMIFS('Pré-LOA 2023'!$AE:$AE,'Pré-LOA 2023'!$C:$C,'Resumo por Fonte (interno)'!A10,'Pré-LOA 2023'!$T:$T,'Resumo por Fonte (interno)'!B10,'Pré-LOA 2023'!$W:$W,'Resumo por Fonte (interno)'!C10,'Pré-LOA 2023'!$O:$O,RIGHT($O$2,1)) -> 0 | P10: =SUMIFS('Pré-LOA 2023'!$AE:$AE,'Pré-LOA 2023'!$C:$C,'Resumo por Fonte (interno)'!A10,'Pré-LOA 2023'!$T:$T,'Resumo por Fonte (interno)'!B10,'Pré-LOA 2023'!$W:$W,'Resumo por Fonte (interno)'!C10,'Pré-LOA 2023'!$O:$O,RIGHT($P$2,1)) -> 0 | Q10: =SUMIFS('Pré-LOA 2023'!$AE:$AE,'Pré-LOA 2023'!$C:$C,'Resumo por Fonte (interno)'!A10,'Pré-LOA 2023'!$T:$T,'Resumo por Fonte (interno)'!B10,'Pré-LOA 2023'!$W:$W,'Resumo por Fonte (interno)'!C10,'Pré-LOA 2023'!$O:$O,RIGHT($Q$2,1)) -> 0 | R10: 0 | S10: 0 | T10: 0 | U10: 0 | V10: 0 | W10: 0 | X10: 0
A11: SMARHS | B11: 102 | C11: 706 | D11: =SUMIFS('Pré-LOA 2023'!$AD:$AD,'Pré-LOA 2023'!$C:$C,'Resumo por Fonte (interno)'!A11,'Pré-LOA 2023'!$T:$T,'Resumo por Fonte (interno)'!B11,'Pré-LOA 2023'!W:W,'Resumo por Fonte (interno)'!C11,'Pré-LOA 2023'!$O:$O,RIGHT($D$2,1)) -> 0 | E11: =SUMIFS('Pré-LOA 2023'!$AD:$AD,'Pré-LOA 2023'!$C:$C,'Resumo por Fonte (interno)'!A11,'Pré-LOA 2023'!$T:$T,'Resumo por Fonte (interno)'!B11,'Pré-LOA 2023'!$W:$W,'Resumo por Fonte (interno)'!C11,'Pré-LOA 2023'!$O:$O,RIGHT($E$2,1)) -> 0 | F11: =SUMIFS('Pré-LOA 2023'!$AD:$AD,'Pré-LOA 2023'!$C:$C,'Resumo por Fonte (interno)'!A11,'Pré-LOA 2023'!$T:$T,'Resumo por Fonte (interno)'!B11,'Pré-LOA 2023'!$W:$W,'Resumo por Fonte (interno)'!C11,'Pré-LOA 2023'!$O:$O,RIGHT($F$2,1)) -> 0 | G11: =SUMIFS('Pré-LOA 2023'!$AD:$AD,'Pré-LOA 2023'!$C:$C,'Resumo por Fonte (interno)'!A11,'Pré-LOA 2023'!$T:$T,'Resumo por Fonte (interno)'!B11,'Pré-LOA 2023'!$W:$W,'Resumo por Fonte (interno)'!C11,'Pré-LOA 2023'!$O:$O,RIGHT($G$2,1)) -> 0 | H11: =SUMIFS('Pré-LOA 2023'!$AD:$AD,'Pré-LOA 2023'!$C:$C,'Resumo por Fonte (interno)'!A11,'Pré-LOA 2023'!$T:$T,'Resumo por Fonte (interno)'!B11,'Pré-LOA 2023'!$W:$W,'Resumo por Fonte (interno)'!C11,'Pré-LOA 2023'!$O:$O,RIGHT($H$2,1)) -> 0 | I11: =SUMIFS('Pré-LOA 2023'!$AD:$AD,'Pré-LOA 2023'!$C:$C,'Resumo por Fonte (interno)'!A11,'Pré-LOA 2023'!$T:$T,'Resumo por Fonte (interno)'!B11,'Pré-LOA 2023'!$W:$W,'Resumo por Fonte (interno)'!C11,'Pré-LOA 2023'!$O:$O,RIGHT($I$2,1)) -> 0 | J11: =SUMIFS('Pré-LOA 2023'!$AD:$AD,'Pré-LOA 2023'!$C:$C,'Resumo por Fonte (interno)'!A11,'Pré-LOA 2023'!$T:$T,'Resumo por Fonte (interno)'!B11,'Pré-LOA 2023'!$W:$W,'Resumo por Fonte (interno)'!C11,'Pré-LOA 2023'!$O:$O,RIGHT($J$2,1)) -> 0 | K11: =SUMIFS('Pré-LOA 2023'!$AE:$AE,'Pré-LOA 2023'!$C:$C,'Resumo por Fonte (interno)'!A11,'Pré-LOA 2023'!$T:$T,'Resumo por Fonte (interno)'!B11,'Pré-LOA 2023'!$W:$W,'Resumo por Fonte (interno)'!C11,'Pré-LOA 2023'!$O:$O,RIGHT($K$2,1)) -> 0 | L11: =SUMIFS('Pré-LOA 2023'!$AE:$AE,'Pré-LOA 2023'!$C:$C,'Resumo por Fonte (interno)'!A11,'Pré-LOA 2023'!$T:$T,'Resumo por Fonte (interno)'!B11,'Pré-LOA 2023'!$W:$W,'Resumo por Fonte (interno)'!C11,'Pré-LOA 2023'!$O:$O,RIGHT($L$2,1)) -> 0 | M11: =SUMIFS('Pré-LOA 2023'!$AE:$AE,'Pré-LOA 2023'!$C:$C,'Resumo por Fonte (interno)'!A11,'Pré-LOA 2023'!$T:$T,'Resumo por Fonte (interno)'!B11,'Pré-LOA 2023'!$W:$W,'Resumo por Fonte (interno)'!C11,'Pré-LOA 2023'!$O:$O,RIGHT($M$2,1)) -> 0 | N11: =SUMIFS('Pré-LOA 2023'!$AE:$AE,'Pré-LOA 2023'!$C:$C,'Resumo por Fonte (interno)'!A11,'Pré-LOA 2023'!$T:$T,'Resumo por Fonte (interno)'!B11,'Pré-LOA 2023'!$W:$W,'Resumo por Fonte (interno)'!C11,'Pré-LOA 2023'!$O:$O,RIGHT($N$2,1)) -> 0 | O11: =SUMIFS('Pré-LOA 2023'!$AE:$AE,'Pré-LOA 2023'!$C:$C,'Resumo por Fonte (interno)'!A11,'Pré-LOA 2023'!$T:$T,'Resumo por Fonte (interno)'!B11,'Pré-LOA 2023'!$W:$W,'Resumo por Fonte (interno)'!C11,'Pré-LOA 2023'!$O:$O,RIGHT($O$2,1)) -> 0 | P11: =SUMIFS('Pré-LOA 2023'!$AE:$AE,'Pré-LOA 2023'!$C:$C,'Resumo por Fonte (interno)'!A11,'Pré-LOA 2023'!$T:$T,'Resumo por Fonte (interno)'!B11,'Pré-LOA 2023'!$W:$W,'Resumo por Fonte (interno)'!C11,'Pré-LOA 2023'!$O:$O,RIGHT($P$2,1)) -> 0 | Q11: =SUMIFS('Pré-LOA 2023'!$AE:$AE,'Pré-LOA 2023'!$C:$C,'Resumo por Fonte (interno)'!A11,'Pré-LOA 2023'!$T:$T,'Resumo por Fonte (interno)'!B11,'Pré-LOA 2023'!$W:$W,'Resumo por Fonte (interno)'!C11,'Pré-LOA 2023'!$O:$O,RIGHT($Q$2,1)) -> 0 | R11: 0 | S11: 0 | T11: 0 | U11: 0 | V11: 0 | W11: 0 | X11: 0
A12: SMARHS | B12: 102 | C12: 710 | D12: =SUMIFS('Pré-LOA 2023'!$AD:$AD,'Pré-LOA 2023'!$C:$C,'Resumo por Fonte (interno)'!A12,'Pré-LOA 2023'!$T:$T,'Resumo por Fonte (interno)'!B12,'Pré-LOA 2023'!W:W,'Resumo por Fonte (interno)'!C12,'Pré-LOA 2023'!$O:$O,RIGHT($D$2,1)) -> 0 | E12: =SUMIFS('Pré-LOA 2023'!$AD:$AD,'Pré-LOA 2023'!$C:$C,'Resumo por Fonte (interno)'!A12,'Pré-LOA 2023'!$T:$T,'Resumo por Fonte (interno)'!B12,'Pré-LOA 2023'!$W:$W,'Resumo por Fonte (interno)'!C12,'Pré-LOA 2023'!$O:$O,RIGHT($E$2,1)) -> 0 | F12: =SUMIFS('Pré-LOA 2023'!$AD:$AD,'Pré-LOA 2023'!$C:$C,'Resumo por Fonte (interno)'!A12,'Pré-LOA 2023'!$T:$T,'Resumo por Fonte (interno)'!B12,'Pré-LOA 2023'!$W:$W,'Resumo por Fonte (interno)'!C12,'Pré-LOA 2023'!$O:$O,RIGHT($F$2,1)) -> 0 | G12: =SUMIFS('Pré-LOA 2023'!$AD:$AD,'Pré-LOA 2023'!$C:$C,'Resumo por Fonte (interno)'!A12,'Pré-LOA 2023'!$T:$T,'Resumo por Fonte (interno)'!B12,'Pré-LOA 2023'!$W:$W,'Resumo por Fonte (interno)'!C12,'Pré-LOA 2023'!$O:$O,RIGHT($G$2,1)) -> 0 | H12: =SUMIFS('Pré-LOA 2023'!$AD:$AD,'Pré-LOA 2023'!$C:$C,'Resumo por Fonte (interno)'!A12,'Pré-LOA 2023'!$T:$T,'Resumo por Fonte (interno)'!B12,'Pré-LOA 2023'!$W:$W,'Resumo por Fonte (interno)'!C12,'Pré-LOA 2023'!$O:$O,RIGHT($H$2,1)) -> 0 | I12: =SUMIFS('Pré-LOA 2023'!$AD:$AD,'Pré-LOA 2023'!$C:$C,'Resumo por Fonte (interno)'!A12,'Pré-LOA 2023'!$T:$T,'Resumo por Fonte (interno)'!B12,'Pré-LOA 2023'!$W:$W,'Resumo por Fonte (interno)'!C12,'Pré-LOA 2023'!$O:$O,RIGHT($I$2,1)) -> 0 | J12: =SUMIFS('Pré-LOA 2023'!$AD:$AD,'Pré-LOA 2023'!$C:$C,'Resumo por Fonte (interno)'!A12,'Pré-LOA 2023'!$T:$T,'Resumo por Fonte (interno)'!B12,'Pré-LOA 2023'!$W:$W,'Resumo por Fonte (interno)'!C12,'Pré-LOA 2023'!$O:$O,RIGHT($J$2,1)) -> 0 | K12: =SUMIFS('Pré-LOA 2023'!$AE:$AE,'Pré-LOA 2023'!$C:$C,'Resumo por Fonte (interno)'!A12,'Pré-LOA 2023'!$T:$T,'Resumo por Fonte (interno)'!B12,'Pré-LOA 2023'!$W:$W,'Resumo por Fonte (interno)'!C12,'Pré-LOA 2023'!$O:$O,RIGHT($K$2,1)) -> 0 | L12: =SUMIFS('Pré-LOA 2023'!$AE:$AE,'Pré-LOA 2023'!$C:$C,'Resumo por Fonte (interno)'!A12,'Pré-LOA 2023'!$T:$T,'Resumo por Fonte (interno)'!B12,'Pré-LOA 2023'!$W:$W,'Resumo por Fonte (interno)'!C12,'Pré-LOA 2023'!$O:$O,RIGHT($L$2,1)) -> 0 | M12: =SUMIFS('Pré-LOA 2023'!$AE:$AE,'Pré-LOA 2023'!$C:$C,'Resumo por Fonte (interno)'!A12,'Pré-LOA 2023'!$T:$T,'Resumo por Fonte (interno)'!B12,'Pré-LOA 2023'!$W:$W,'Resumo por Fonte (interno)'!C12,'Pré-LOA 2023'!$O:$O,RIGHT($M$2,1)) -> 0 | N12: =SUMIFS('Pré-LOA 2023'!$AE:$AE,'Pré-LOA 2023'!$C:$C,'Resumo por Fonte (interno)'!A12,'Pré-LOA 2023'!$T:$T,'Resumo por Fonte (interno)'!B12,'Pré-LOA 2023'!$W:$W,'Resumo por Fonte (interno)'!C12,'Pré-LOA 2023'!$O:$O,RIGHT($N$2,1)) -> 0 | O12: =SUMIFS('Pré-LOA 2023'!$AE:$AE,'Pré-LOA 2023'!$C:$C,'Resumo por Fonte (interno)'!A12,'Pré-LOA 2023'!$T:$T,'Resumo por Fonte (interno)'!B12,'Pré-LOA 2023'!$W:$W,'Resumo por Fonte (interno)'!C12,'Pré-LOA 2023'!$O:$O,RIGHT($O$2,1)) -> 0 | P12: =SUMIFS('Pré-LOA 2023'!$AE:$AE,'Pré-LOA 2023'!$C:$C,'Resumo por Fonte (interno)'!A12,'Pré-LOA 2023'!$T:$T,'Resumo por Fonte (interno)'!B12,'Pré-LOA 2023'!$W:$W,'Resumo por Fonte (interno)'!C12,'Pré-LOA 2023'!$O:$O,RIGHT($P$2,1)) -> 0 | Q12: =SUMIFS('Pré-LOA 2023'!$AE:$AE,'Pré-LOA 2023'!$C:$C,'Resumo por Fonte (interno)'!A12,'Pré-LOA 2023'!$T:$T,'Resumo por Fonte (interno)'!B12,'Pré-LOA 2023'!$W:$W,'Resumo por Fonte (interno)'!C12,'Pré-LOA 2023'!$O:$O,RIGHT($Q$2,1)) -> 0 | R12: 0 | S12: 0 | T12: 0 | U12: 0 | V12: 0 | W12: 0 | X12: 0
A13: SMARHS | B13: 110 | C13: 759 | D13: =SUMIFS('Pré-LOA 2023'!$AD:$AD,'Pré-LOA 2023'!$C:$C,'Resumo por Fonte (interno)'!A13,'Pré-LOA 2023'!$T:$T,'Resumo por Fonte (interno)'!B13,'Pré-LOA 2023'!W:W,'Resumo por Fonte (interno)'!C13,'Pré-LOA 2023'!$O:$O,RIGHT($D$2,1)) -> 0 | E13: =SUMIFS('Pré-LOA 2023'!$AD:$AD,'Pré-LOA 2023'!$C:$C,'Resumo por Fonte (interno)'!A13,'Pré-LOA 2023'!$T:$T,'Resumo por Fonte (interno)'!B13,'Pré-LOA 2023'!$W:$W,'Resumo por Fonte (interno)'!C13,'Pré-LOA 2023'!$O:$O,RIGHT($E$2,1)) -> 0 | F13: =SUMIFS('Pré-LOA 2023'!$AD:$AD,'Pré-LOA 2023'!$C:$C,'Resumo por Fonte (interno)'!A13,'Pré-LOA 2023'!$T:$T,'Resumo por Fonte (interno)'!B13,'Pré-LOA 2023'!$W:$W,'Resumo por Fonte (interno)'!C13,'Pré-LOA 2023'!$O:$O,RIGHT($F$2,1)) -> 0 | G13: =SUMIFS('Pré-LOA 2023'!$AD:$AD,'Pré-LOA 2023'!$C:$C,'Resumo por Fonte (interno)'!A13,'Pré-LOA 2023'!$T:$T,'Resumo por Fonte (interno)'!B13,'Pré-LOA 2023'!$W:$W,'Resumo por Fonte (interno)'!C13,'Pré-LOA 2023'!$O:$O,RIGHT($G$2,1)) -> 0 | H13: =SUMIFS('Pré-LOA 2023'!$AD:$AD,'Pré-LOA 2023'!$C:$C,'Resumo por Fonte (interno)'!A13,'Pré-LOA 2023'!$T:$T,'Resumo por Fonte (interno)'!B13,'Pré-LOA 2023'!$W:$W,'Resumo por Fonte (interno)'!C13,'Pré-LOA 2023'!$O:$O,RIGHT($H$2,1)) -> 0 | I13: =SUMIFS('Pré-LOA 2023'!$AD:$AD,'Pré-LOA 2023'!$C:$C,'Resumo por Fonte (interno)'!A13,'Pré-LOA 2023'!$T:$T,'Resumo por Fonte (interno)'!B13,'Pré-LOA 2023'!$W:$W,'Resumo por Fonte (interno)'!C13,'Pré-LOA 2023'!$O:$O,RIGHT($I$2,1)) -> 0 | J13: =SUMIFS('Pré-LOA 2023'!$AD:$AD,'Pré-LOA 2023'!$C:$C,'Resumo por Fonte (interno)'!A13,'Pré-LOA 2023'!$T:$T,'Resumo por Fonte (interno)'!B13,'Pré-LOA 2023'!$W:$W,'Resumo por Fonte (interno)'!C13,'Pré-LOA 2023'!$O:$O,RIGHT($J$2,1)) -> 0 | K13: =SUMIFS('Pré-LOA 2023'!$AE:$AE,'Pré-LOA 2023'!$C:$C,'Resumo por Fonte (interno)'!A13,'Pré-LOA 2023'!$T:$T,'Resumo por Fonte (interno)'!B13,'Pré-LOA 2023'!$W:$W,'Resumo por Fonte (interno)'!C13,'Pré-LOA 2023'!$O:$O,RIGHT($K$2,1)) -> 0 | L13: =SUMIFS('Pré-LOA 2023'!$AE:$AE,'Pré-LOA 2023'!$C:$C,'Resumo por Fonte (interno)'!A13,'Pré-LOA 2023'!$T:$T,'Resumo por Fonte (interno)'!B13,'Pré-LOA 2023'!$W:$W,'Resumo por Fonte (interno)'!C13,'Pré-LOA 2023'!$O:$O,RIGHT($L$2,1)) -> 0 | M13: =SUMIFS('Pré-LOA 2023'!$AE:$AE,'Pré-LOA 2023'!$C:$C,'Resumo por Fonte (interno)'!A13,'Pré-LOA 2023'!$T:$T,'Resumo por Fonte (interno)'!B13,'Pré-LOA 2023'!$W:$W,'Resumo por Fonte (interno)'!C13,'Pré-LOA 2023'!$O:$O,RIGHT($M$2,1)) -> 0 | N13: =SUMIFS('Pré-LOA 2023'!$AE:$AE,'Pré-LOA 2023'!$C:$C,'Resumo por Fonte (interno)'!A13,'Pré-LOA 2023'!$T:$T,'Resumo por Fonte (interno)'!B13,'Pré-LOA 2023'!$W:$W,'Resumo por Fonte (interno)'!C13,'Pré-LOA 2023'!$O:$O,RIGHT($N$2,1)) -> 0 | O13: =SUMIFS('Pré-LOA 2023'!$AE:$AE,'Pré-LOA 2023'!$C:$C,'Resumo por Fonte (interno)'!A13,'Pré-LOA 2023'!$T:$T,'Resumo por Fonte (interno)'!B13,'Pré-LOA 2023'!$W:$W,'Resumo por Fonte (interno)'!C13,'Pré-LOA 2023'!$O:$O,RIGHT($O$2,1)) -> 0 | P13: =SUMIFS('Pré-LOA 2023'!$AE:$AE,'Pré-LOA 2023'!$C:$C,'Resumo por Fonte (interno)'!A13,'Pré-LOA 2023'!$T:$T,'Resumo por Fonte (interno)'!B13,'Pré-LOA 2023'!$W:$W,'Resumo por Fonte (interno)'!C13,'Pré-LOA 2023'!$O:$O,RIGHT($P$2,1)) -> 0 | Q13: =SUMIFS('Pré-LOA 2023'!$AE:$AE,'Pré-LOA 2023'!$C:$C,'Resumo por Fonte (interno)'!A13,'Pré-LOA 2023'!$T:$T,'Resumo por Fonte (interno)'!B13,'Pré-LOA 2023'!$W:$W,'Resumo por Fonte (interno)'!C13,'Pré-LOA 2023'!$O:$O,RIGHT($Q$2,1)) -> 0 | R13: 0 | S13: 0 | T13: 0 | U13: 0 | V13: 0 | W13: 0 | X13: 0
A14: SMARHS | B14: 112 | C14: 799 | D14: =SUMIFS('Pré-LOA 2023'!$AD:$AD,'Pré-LOA 2023'!$C:$C,'Resumo por Fonte (interno)'!A14,'Pré-LOA 2023'!$T:$T,'Resumo por Fonte (interno)'!B14,'Pré-LOA 2023'!W:W,'Resumo por Fonte (interno)'!C14,'Pré-LOA 2023'!$O:$O,RIGHT($D$2,1)) -> 0 | E14: =SUMIFS('Pré-LOA 2023'!$AD:$AD,'Pré-LOA 2023'!$C:$C,'Resumo por Fonte (interno)'!A14,'Pré-LOA 2023'!$T:$T,'Resumo por Fonte (interno)'!B14,'Pré-LOA 2023'!$W:$W,'Resumo por Fonte (interno)'!C14,'Pré-LOA 2023'!$O:$O,RIGHT($E$2,1)) -> 0 | F14: =SUMIFS('Pré-LOA 2023'!$AD:$AD,'Pré-LOA 2023'!$C:$C,'Resumo por Fonte (interno)'!A14,'Pré-LOA 2023'!$T:$T,'Resumo por Fonte (interno)'!B14,'Pré-LOA 2023'!$W:$W,'Resumo por Fonte (interno)'!C14,'Pré-LOA 2023'!$O:$O,RIGHT($F$2,1)) -> 0 | G14: =SUMIFS('Pré-LOA 2023'!$AD:$AD,'Pré-LOA 2023'!$C:$C,'Resumo por Fonte (interno)'!A14,'Pré-LOA 2023'!$T:$T,'Resumo por Fonte (interno)'!B14,'Pré-LOA 2023'!$W:$W,'Resumo por Fonte (interno)'!C14,'Pré-LOA 2023'!$O:$O,RIGHT($G$2,1)) -> 0 | H14: =SUMIFS('Pré-LOA 2023'!$AD:$AD,'Pré-LOA 2023'!$C:$C,'Resumo por Fonte (interno)'!A14,'Pré-LOA 2023'!$T:$T,'Resumo por Fonte (interno)'!B14,'Pré-LOA 2023'!$W:$W,'Resumo por Fonte (interno)'!C14,'Pré-LOA 2023'!$O:$O,RIGHT($H$2,1)) -> 0 | I14: =SUMIFS('Pré-LOA 2023'!$AD:$AD,'Pré-LOA 2023'!$C:$C,'Resumo por Fonte (interno)'!A14,'Pré-LOA 2023'!$T:$T,'Resumo por Fonte (interno)'!B14,'Pré-LOA 2023'!$W:$W,'Resumo por Fonte (interno)'!C14,'Pré-LOA 2023'!$O:$O,RIGHT($I$2,1)) -> 0 | J14: =SUMIFS('Pré-LOA 2023'!$AD:$AD,'Pré-LOA 2023'!$C:$C,'Resumo por Fonte (interno)'!A14,'Pré-LOA 2023'!$T:$T,'Resumo por Fonte (interno)'!B14,'Pré-LOA 2023'!$W:$W,'Resumo por Fonte (interno)'!C14,'Pré-LOA 2023'!$O:$O,RIGHT($J$2,1)) -> 0 | K14: =SUMIFS('Pré-LOA 2023'!$AE:$AE,'Pré-LOA 2023'!$C:$C,'Resumo por Fonte (interno)'!A14,'Pré-LOA 2023'!$T:$T,'Resumo por Fonte (interno)'!B14,'Pré-LOA 2023'!$W:$W,'Resumo por Fonte (interno)'!C14,'Pré-LOA 2023'!$O:$O,RIGHT($K$2,1)) -> 0 | L14: =SUMIFS('Pré-LOA 2023'!$AE:$AE,'Pré-LOA 2023'!$C:$C,'Resumo por Fonte (interno)'!A14,'Pré-LOA 2023'!$T:$T,'Resumo por Fonte (interno)'!B14,'Pré-LOA 2023'!$W:$W,'Resumo por Fonte (interno)'!C14,'Pré-LOA 2023'!$O:$O,RIGHT($L$2,1)) -> 0 | M14: =SUMIFS('Pré-LOA 2023'!$AE:$AE,'Pré-LOA 2023'!$C:$C,'Resumo por Fonte (interno)'!A14,'Pré-LOA 2023'!$T:$T,'Resumo por Fonte (interno)'!B14,'Pré-LOA 2023'!$W:$W,'Resumo por Fonte (interno)'!C14,'Pré-LOA 2023'!$O:$O,RIGHT($M$2,1)) -> 0 | N14: =SUMIFS('Pré-LOA 2023'!$AE:$AE,'Pré-LOA 2023'!$C:$C,'Resumo por Fonte (interno)'!A14,'Pré-LOA 2023'!$T:$T,'Resumo por Fonte (interno)'!B14,'Pré-LOA 2023'!$W:$W,'Resumo por Fonte (interno)'!C14,'Pré-LOA 2023'!$O:$O,RIGHT($N$2,1)) -> 0 | O14: =SUMIFS('Pré-LOA 2023'!$AE:$AE,'Pré-LOA 2023'!$C:$C,'Resumo por Fonte (interno)'!A14,'Pré-LOA 2023'!$T:$T,'Resumo por Fonte (interno)'!B14,'Pré-LOA 2023'!$W:$W,'Resumo por Fonte (interno)'!C14,'Pré-LOA 2023'!$O:$O,RIGHT($O$2,1)) -> 0 | P14: =SUMIFS('Pré-LOA 2023'!$AE:$AE,'Pré-LOA 2023'!$C:$C,'Resumo por Fonte (interno)'!A14,'Pré-LOA 2023'!$T:$T,'Resumo por Fonte (interno)'!B14,'Pré-LOA 2023'!$W:$W,'Resumo por Fonte (interno)'!C14,'Pré-LOA 2023'!$O:$O,RIGHT($P$2,1)) -> 0 | Q14: =SUMIFS('Pré-LOA 2023'!$AE:$AE,'Pré-LOA 2023'!$C:$C,'Resumo por Fonte (interno)'!A14,'Pré-LOA 2023'!$T:$T,'Resumo por Fonte (interno)'!B14,'Pré-LOA 2023'!$W:$W,'Resumo por Fonte (interno)'!C14,'Pré-LOA 2023'!$O:$O,RIGHT($Q$2,1)) -> 0 | R14: 0 | S14: 0 | T14: 0 | U14: 0 | V14: 0 | W14: 0 | X14: 0
A15: SMARHS | B15: 113 | C15: 501 | D15: =SUMIFS('Pré-LOA 2023'!$AD:$AD,'Pré-LOA 2023'!$C:$C,'Resumo por Fonte (interno)'!A15,'Pré-LOA 2023'!$T:$T,'Resumo por Fonte (interno)'!B15,'Pré-LOA 2023'!W:W,'Resumo por Fonte (interno)'!C15,'Pré-LOA 2023'!$O:$O,RIGHT($D$2,1)) -> 0 | E15: =SUMIFS('Pré-LOA 2023'!$AD:$AD,'Pré-LOA 2023'!$C:$C,'Resumo por Fonte (interno)'!A15,'Pré-LOA 2023'!$T:$T,'Resumo por Fonte (interno)'!B15,'Pré-LOA 2023'!$W:$W,'Resumo por Fonte (interno)'!C15,'Pré-LOA 2023'!$O:$O,RIGHT($E$2,1)) -> 0 | F15: =SUMIFS('Pré-LOA 2023'!$AD:$AD,'Pré-LOA 2023'!$C:$C,'Resumo por Fonte (interno)'!A15,'Pré-LOA 2023'!$T:$T,'Resumo por Fonte (interno)'!B15,'Pré-LOA 2023'!$W:$W,'Resumo por Fonte (interno)'!C15,'Pré-LOA 2023'!$O:$O,RIGHT($F$2,1)) -> 0 | G15: =SUMIFS('Pré-LOA 2023'!$AD:$AD,'Pré-LOA 2023'!$C:$C,'Resumo por Fonte (interno)'!A15,'Pré-LOA 2023'!$T:$T,'Resumo por Fonte (interno)'!B15,'Pré-LOA 2023'!$W:$W,'Resumo por Fonte (interno)'!C15,'Pré-LOA 2023'!$O:$O,RIGHT($G$2,1)) -> 0 | H15: =SUMIFS('Pré-LOA 2023'!$AD:$AD,'Pré-LOA 2023'!$C:$C,'Resumo por Fonte (interno)'!A15,'Pré-LOA 2023'!$T:$T,'Resumo por Fonte (interno)'!B15,'Pré-LOA 2023'!$W:$W,'Resumo por Fonte (interno)'!C15,'Pré-LOA 2023'!$O:$O,RIGHT($H$2,1)) -> 0 | I15: =SUMIFS('Pré-LOA 2023'!$AD:$AD,'Pré-LOA 2023'!$C:$C,'Resumo por Fonte (interno)'!A15,'Pré-LOA 2023'!$T:$T,'Resumo por Fonte (interno)'!B15,'Pré-LOA 2023'!$W:$W,'Resumo por Fonte (interno)'!C15,'Pré-LOA 2023'!$O:$O,RIGHT($I$2,1)) -> 0 | J15: =SUMIFS('Pré-LOA 2023'!$AD:$AD,'Pré-LOA 2023'!$C:$C,'Resumo por Fonte (interno)'!A15,'Pré-LOA 2023'!$T:$T,'Resumo por Fonte (interno)'!B15,'Pré-LOA 2023'!$W:$W,'Resumo por Fonte (interno)'!C15,'Pré-LOA 2023'!$O:$O,RIGHT($J$2,1)) -> 0 | K15: =SUMIFS('Pré-LOA 2023'!$AE:$AE,'Pré-LOA 2023'!$C:$C,'Resumo por Fonte (interno)'!A15,'Pré-LOA 2023'!$T:$T,'Resumo por Fonte (interno)'!B15,'Pré-LOA 2023'!$W:$W,'Resumo por Fonte (interno)'!C15,'Pré-LOA 2023'!$O:$O,RIGHT($K$2,1)) -> 0 | L15: =SUMIFS('Pré-LOA 2023'!$AE:$AE,'Pré-LOA 2023'!$C:$C,'Resumo por Fonte (interno)'!A15,'Pré-LOA 2023'!$T:$T,'Resumo por Fonte (interno)'!B15,'Pré-LOA 2023'!$W:$W,'Resumo por Fonte (interno)'!C15,'Pré-LOA 2023'!$O:$O,RIGHT($L$2,1)) -> 0 | M15: =SUMIFS('Pré-LOA 2023'!$AE:$AE,'Pré-LOA 2023'!$C:$C,'Resumo por Fonte (interno)'!A15,'Pré-LOA 2023'!$T:$T,'Resumo por Fonte (interno)'!B15,'Pré-LOA 2023'!$W:$W,'Resumo por Fonte (interno)'!C15,'Pré-LOA 2023'!$O:$O,RIGHT($M$2,1)) -> 0 | N15: =SUMIFS('Pré-LOA 2023'!$AE:$AE,'Pré-LOA 2023'!$C:$C,'Resumo por Fonte (interno)'!A15,'Pré-LOA 2023'!$T:$T,'Resumo por Fonte (interno)'!B15,'Pré-LOA 2023'!$W:$W,'Resumo por Fonte (interno)'!C15,'Pré-LOA 2023'!$O:$O,RIGHT($N$2,1)) -> 0 | O15: =SUMIFS('Pré-LOA 2023'!$AE:$AE,'Pré-LOA 2023'!$C:$C,'Resumo por Fonte (interno)'!A15,'Pré-LOA 2023'!$T:$T,'Resumo por Fonte (interno)'!B15,'Pré-LOA 2023'!$W:$W,'Resumo por Fonte (interno)'!C15,'Pré-LOA 2023'!$O:$O,RIGHT($O$2,1)) -> 0 | P15: =SUMIFS('Pré-LOA 2023'!$AE:$AE,'Pré-LOA 2023'!$C:$C,'Resumo por Fonte (interno)'!A15,'Pré-LOA 2023'!$T:$T,'Resumo por Fonte (interno)'!B15,'Pré-LOA 2023'!$W:$W,'Resumo por Fonte (interno)'!C15,'Pré-LOA 2023'!$O:$O,RIGHT($P$2,1)) -> 0 | Q15: =SUMIFS('Pré-LOA 2023'!$AE:$AE,'Pré-LOA 2023'!$C:$C,'Resumo por Fonte (interno)'!A15,'Pré-LOA 2023'!$T:$T,'Resumo por Fonte (interno)'!B15,'Pré-LOA 2023'!$W:$W,'Resumo por Fonte (interno)'!C15,'Pré-LOA 2023'!$O:$O,RIGHT($Q$2,1)) -> 0 | R15: 0 | S15: 0 | T15: 0 | U15: 0 | V15: 0 | W15: 0 | X15: 0
A16: SMARHS | B16: 114 | C16: 500 | D16: =SUMIFS('Pré-LOA 2023'!$AD:$AD,'Pré-LOA 2023'!$C:$C,'Resumo por Fonte (interno)'!A16,'Pré-LOA 2023'!$T:$T,'Resumo por Fonte (interno)'!B16,'Pré-LOA 2023'!W:W,'Resumo por Fonte (interno)'!C16,'Pré-LOA 2023'!$O:$O,RIGHT($D$2,1)) -> 5451095 | E16: =SUMIFS('Pré-LOA 2023'!$AD:$AD,'Pré-LOA 2023'!$C:$C,'Resumo por Fonte (interno)'!A16,'Pré-LOA 2023'!$T:$T,'Resumo por Fonte (interno)'!B16,'Pré-LOA 2023'!$W:$W,'Resumo por Fonte (interno)'!C16,'Pré-LOA 2023'!$O:$O,RIGHT($E$2,1)) -> 0 | F16: =SUMIFS('Pré-LOA 2023'!$AD:$AD,'Pré-LOA 2023'!$C:$C,'Resumo por Fonte (interno)'!A16,'Pré-LOA 2023'!$T:$T,'Resumo por Fonte (interno)'!B16,'Pré-LOA 2023'!$W:$W,'Resumo por Fonte (interno)'!C16,'Pré-LOA 2023'!$O:$O,RIGHT($F$2,1)) -> 0 | G16: =SUMIFS('Pré-LOA 2023'!$AD:$AD,'Pré-LOA 2023'!$C:$C,'Resumo por Fonte (interno)'!A16,'Pré-LOA 2023'!$T:$T,'Resumo por Fonte (interno)'!B16,'Pré-LOA 2023'!$W:$W,'Resumo por Fonte (interno)'!C16,'Pré-LOA 2023'!$O:$O,RIGHT($G$2,1)) -> 0 | H16: =SUMIFS('Pré-LOA 2023'!$AD:$AD,'Pré-LOA 2023'!$C:$C,'Resumo por Fonte (interno)'!A16,'Pré-LOA 2023'!$T:$T,'Resumo por Fonte (interno)'!B16,'Pré-LOA 2023'!$W:$W,'Resumo por Fonte (interno)'!C16,'Pré-LOA 2023'!$O:$O,RIGHT($H$2,1)) -> 0 | I16: =SUMIFS('Pré-LOA 2023'!$AD:$AD,'Pré-LOA 2023'!$C:$C,'Resumo por Fonte (interno)'!A16,'Pré-LOA 2023'!$T:$T,'Resumo por Fonte (interno)'!B16,'Pré-LOA 2023'!$W:$W,'Resumo por Fonte (interno)'!C16,'Pré-LOA 2023'!$O:$O,RIGHT($I$2,1)) -> 0 | J16: =SUMIFS('Pré-LOA 2023'!$AD:$AD,'Pré-LOA 2023'!$C:$C,'Resumo por Fonte (interno)'!A16,'Pré-LOA 2023'!$T:$T,'Resumo por Fonte (interno)'!B16,'Pré-LOA 2023'!$W:$W,'Resumo por Fonte (interno)'!C16,'Pré-LOA 2023'!$O:$O,RIGHT($J$2,1)) -> 0 | K16: =SUMIFS('Pré-LOA 2023'!$AE:$AE,'Pré-LOA 2023'!$C:$C,'Resumo por Fonte (interno)'!A16,'Pré-LOA 2023'!$T:$T,'Resumo por Fonte (interno)'!B16,'Pré-LOA 2023'!$W:$W,'Resumo por Fonte (interno)'!C16,'Pré-LOA 2023'!$O:$O,RIGHT($K$2,1)) -> 5451095 | L16: =SUMIFS('Pré-LOA 2023'!$AE:$AE,'Pré-LOA 2023'!$C:$C,'Resumo por Fonte (interno)'!A16,'Pré-LOA 2023'!$T:$T,'Resumo por Fonte (interno)'!B16,'Pré-LOA 2023'!$W:$W,'Resumo por Fonte (interno)'!C16,'Pré-LOA 2023'!$O:$O,RIGHT($L$2,1)) -> 0 | M16: =SUMIFS('Pré-LOA 2023'!$AE:$AE,'Pré-LOA 2023'!$C:$C,'Resumo por Fonte (interno)'!A16,'Pré-LOA 2023'!$T:$T,'Resumo por Fonte (interno)'!B16,'Pré-LOA 2023'!$W:$W,'Resumo por Fonte (interno)'!C16,'Pré-LOA 2023'!$O:$O,RIGHT($M$2,1)) -> 0 | N16: =SUMIFS('Pré-LOA 2023'!$AE:$AE,'Pré-LOA 2023'!$C:$C,'Resumo por Fonte (interno)'!A16,'Pré-LOA 2023'!$T:$T,'Resumo por Fonte (interno)'!B16,'Pré-LOA 2023'!$W:$W,'Resumo por Fonte (interno)'!C16,'Pré-LOA 2023'!$O:$O,RIGHT($N$2,1)) -> 0 | O16: =SUMIFS('Pré-LOA 2023'!$AE:$AE,'Pré-LOA 2023'!$C:$C,'Resumo por Fonte (interno)'!A16,'Pré-LOA 2023'!$T:$T,'Resumo por Fonte (interno)'!B16,'Pré-LOA 2023'!$W:$W,'Resumo por Fonte (interno)'!C16,'Pré-LOA 2023'!$O:$O,RIGHT($O$2,1)) -> 0 | P16: =SUMIFS('Pré-LOA 2023'!$AE:$AE,'Pré-LOA 2023'!$C:$C,'Resumo por Fonte (interno)'!A16,'Pré-LOA 2023'!$T:$T,'Resumo por Fonte (interno)'!B16,'Pré-LOA 2023'!$W:$W,'Resumo por Fonte (interno)'!C16,'Pré-LOA 2023'!$O:$O,RIGHT($P$2,1)) -> 0 | Q16: =SUMIFS('Pré-LOA 2023'!$AE:$AE,'Pré-LOA 2023'!$C:$C,'Resumo por Fonte (interno)'!A16,'Pré-LOA 2023'!$T:$T,'Resumo por Fonte (interno)'!B16,'Pré-LOA 2023'!$W:$W,'Resumo por Fonte (interno)'!C16,'Pré-LOA 2023'!$O:$O,RIGHT($Q$2,1)) -> 0 | R16: 0 | S16: 0 | T16: 0 | U16: 0 | V16: 0 | W16: 0 | X16: 0
A17: SMARHS | B17: 114 | C17: 750 | D17: =SUMIFS('Pré-LOA 2023'!$AD:$AD,'Pré-LOA 2023'!$C:$C,'Resumo por Fonte (interno)'!A17,'Pré-LOA 2023'!$T:$T,'Resumo por Fonte (interno)'!B17,'Pré-LOA 2023'!W:W,'Resumo por Fonte (interno)'!C17,'Pré-LOA 2023'!$O:$O,RIGHT($D$2,1)) -> 0 | E17: =SUMIFS('Pré-LOA 2023'!$AD:$AD,'Pré-LOA 2023'!$C:$C,'Resumo por Fonte (interno)'!A17,'Pré-LOA 2023'!$T:$T,'Resumo por Fonte (interno)'!B17,'Pré-LOA 2023'!$W:$W,'Resumo por Fonte (interno)'!C17,'Pré-LOA 2023'!$O:$O,RIGHT($E$2,1)) -> 0 | F17: =SUMIFS('Pré-LOA 2023'!$AD:$AD,'Pré-LOA 2023'!$C:$C,'Resumo por Fonte (interno)'!A17,'Pré-LOA 2023'!$T:$T,'Resumo por Fonte (interno)'!B17,'Pré-LOA 2023'!$W:$W,'Resumo por Fonte (interno)'!C17,'Pré-LOA 2023'!$O:$O,RIGHT($F$2,1)) -> 0 | G17: =SUMIFS('Pré-LOA 2023'!$AD:$AD,'Pré-LOA 2023'!$C:$C,'Resumo por Fonte (interno)'!A17,'Pré-LOA 2023'!$T:$T,'Resumo por Fonte (interno)'!B17,'Pré-LOA 2023'!$W:$W,'Resumo por Fonte (interno)'!C17,'Pré-LOA 2023'!$O:$O,RIGHT($G$2,1)) -> 0 | H17: =SUMIFS('Pré-LOA 2023'!$AD:$AD,'Pré-LOA 2023'!$C:$C,'Resumo por Fonte (interno)'!A17,'Pré-LOA 2023'!$T:$T,'Resumo por Fonte (interno)'!B17,'Pré-LOA 2023'!$W:$W,'Resumo por Fonte (interno)'!C17,'Pré-LOA 2023'!$O:$O,RIGHT($H$2,1)) -> 0 | I17: =SUMIFS('Pré-LOA 2023'!$AD:$AD,'Pré-LOA 2023'!$C:$C,'Resumo por Fonte (interno)'!A17,'Pré-LOA 2023'!$T:$T,'Resumo por Fonte (interno)'!B17,'Pré-LOA 2023'!$W:$W,'Resumo por Fonte (interno)'!C17,'Pré-LOA 2023'!$O:$O,RIGHT($I$2,1)) -> 0 | J17: =SUMIFS('Pré-LOA 2023'!$AD:$AD,'Pré-LOA 2023'!$C:$C,'Resumo por Fonte (interno)'!A17,'Pré-LOA 2023'!$T:$T,'Resumo por Fonte (interno)'!B17,'Pré-LOA 2023'!$W:$W,'Resumo por Fonte (interno)'!C17,'Pré-LOA 2023'!$O:$O,RIGHT($J$2,1)) -> 0 | K17: =SUMIFS('Pré-LOA 2023'!$AE:$AE,'Pré-LOA 2023'!$C:$C,'Resumo por Fonte (interno)'!A17,'Pré-LOA 2023'!$T:$T,'Resumo por Fonte (interno)'!B17,'Pré-LOA 2023'!$W:$W,'Resumo por Fonte (interno)'!C17,'Pré-LOA 2023'!$O:$O,RIGHT($K$2,1)) -> 0 | L17: =SUMIFS('Pré-LOA 2023'!$AE:$AE,'Pré-LOA 2023'!$C:$C,'Resumo por Fonte (interno)'!A17,'Pré-LOA 2023'!$T:$T,'Resumo por Fonte (interno)'!B17,'Pré-LOA 2023'!$W:$W,'Resumo por Fonte (interno)'!C17,'Pré-LOA 2023'!$O:$O,RIGHT($L$2,1)) -> 0 | M17: =SUMIFS('Pré-LOA 2023'!$AE:$AE,'Pré-LOA 2023'!$C:$C,'Resumo por Fonte (interno)'!A17,'Pré-LOA 2023'!$T:$T,'Resumo por Fonte (interno)'!B17,'Pré-LOA 2023'!$W:$W,'Resumo por Fonte (interno)'!C17,'Pré-LOA 2023'!$O:$O,RIGHT($M$2,1)) -> 0 | N17: =SUMIFS('Pré-LOA 2023'!$AE:$AE,'Pré-LOA 2023'!$C:$C,'Resumo por Fonte (interno)'!A17,'Pré-LOA 2023'!$T:$T,'Resumo por Fonte (interno)'!B17,'Pré-LOA 2023'!$W:$W,'Resumo por Fonte (interno)'!C17,'Pré-LOA 2023'!$O:$O,RIGHT($N$2,1)) -> 0 | O17: =SUMIFS('Pré-LOA 2023'!$AE:$AE,'Pré-LOA 2023'!$C:$C,'Resumo por Fonte (interno)'!A17,'Pré-LOA 2023'!$T:$T,'Resumo por Fonte (interno)'!B17,'Pré-LOA 2023'!$W:$W,'Resumo por Fonte (interno)'!C17,'Pré-LOA 2023'!$O:$O,RIGHT($O$2,1)) -> 0 | P17: =SUMIFS('Pré-LOA 2023'!$AE:$AE,'Pré-LOA 2023'!$C:$C,'Resumo por Fonte (interno)'!A17,'Pré-LOA 2023'!$T:$T,'Resumo por Fonte (interno)'!B17,'Pré-LOA 2023'!$W:$W,'Resumo por Fonte (interno)'!C17,'Pré-LOA 2023'!$O:$O,RIGHT($P$2,1)) -> 0 | Q17: =SUMIFS('Pré-LOA 2023'!$AE:$AE,'Pré-LOA 2023'!$C:$C,'Resumo por Fonte (interno)'!A17,'Pré-LOA 2023'!$T:$T,'Resumo por Fonte (interno)'!B17,'Pré-LOA 2023'!$W:$W,'Resumo por Fonte (interno)'!C17,'Pré-LOA 2023'!$O:$O,RIGHT($Q$2,1)) -> 0 | R17: 0 | S17: 0 | T17: 0 | U17: 0 | V17: 0 | W17: 0 | X17: 0
A18: SMARHS | B18: 117 | C18: 707 | D18: =SUMIFS('Pré-LOA 2023'!$AD:$AD,'Pré-LOA 2023'!$C:$C,'Resumo por Fonte (interno)'!A18,'Pré-LOA 2023'!$T:$T,'Resumo por Fonte (interno)'!B18,'Pré-LOA 2023'!W:W,'Resumo por Fonte (interno)'!C18,'Pré-LOA 2023'!$O:$O,RIGHT($D$2,1)) -> 0 | E18: =SUMIFS('Pré-LOA 2023'!$AD:$AD,'Pré-LOA 2023'!$C:$C,'Resumo por Fonte (interno)'!A18,'Pré-LOA 2023'!$T:$T,'Resumo por Fonte (interno)'!B18,'Pré-LOA 2023'!$W:$W,'Resumo por Fonte (interno)'!C18,'Pré-LOA 2023'!$O:$O,RIGHT($E$2,1)) -> 0 | F18: =SUMIFS('Pré-LOA 2023'!$AD:$AD,'Pré-LOA 2023'!$C:$C,'Resumo por Fonte (interno)'!A18,'Pré-LOA 2023'!$T:$T,'Resumo por Fonte (interno)'!B18,'Pré-LOA 2023'!$W:$W,'Resumo por Fonte (interno)'!C18,'Pré-LOA 2023'!$O:$O,RIGHT($F$2,1)) -> 0 | G18: =SUMIFS('Pré-LOA 2023'!$AD:$AD,'Pré-LOA 2023'!$C:$C,'Resumo por Fonte (interno)'!A18,'Pré-LOA 2023'!$T:$T,'Resumo por Fonte (interno)'!B18,'Pré-LOA 2023'!$W:$W,'Resumo por Fonte (interno)'!C18,'Pré-LOA 2023'!$O:$O,RIGHT($G$2,1)) -> 0 | H18: =SUMIFS('Pré-LOA 2023'!$AD:$AD,'Pré-LOA 2023'!$C:$C,'Resumo por Fonte (interno)'!A18,'Pré-LOA 2023'!$T:$T,'Resumo por Fonte (interno)'!B18,'Pré-LOA 2023'!$W:$W,'Resumo por Fonte (interno)'!C18,'Pré-LOA 2023'!$O:$O,RIGHT($H$2,1)) -> 0 | I18: =SUMIFS('Pré-LOA 2023'!$AD:$AD,'Pré-LOA 2023'!$C:$C,'Resumo por Fonte (interno)'!A18,'Pré-LOA 2023'!$T:$T,'Resumo por Fonte (interno)'!B18,'Pré-LOA 2023'!$W:$W,'Resumo por Fonte (interno)'!C18,'Pré-LOA 2023'!$O:$O,RIGHT($I$2,1)) -> 0 | J18: =SUMIFS('Pré-LOA 2023'!$AD:$AD,'Pré-LOA 2023'!$C:$C,'Resumo por Fonte (interno)'!A18,'Pré-LOA 2023'!$T:$T,'Resumo por Fonte (interno)'!B18,'Pré-LOA 2023'!$W:$W,'Resumo por Fonte (interno)'!C18,'Pré-LOA 2023'!$O:$O,RIGHT($J$2,1)) -> 0 | K18: =SUMIFS('Pré-LOA 2023'!$AE:$AE,'Pré-LOA 2023'!$C:$C,'Resumo por Fonte (interno)'!A18,'Pré-LOA 2023'!$T:$T,'Resumo por Fonte (interno)'!B18,'Pré-LOA 2023'!$W:$W,'Resumo por Fonte (interno)'!C18,'Pré-LOA 2023'!$O:$O,RIGHT($K$2,1)) -> 0 | L18: =SUMIFS('Pré-LOA 2023'!$AE:$AE,'Pré-LOA 2023'!$C:$C,'Resumo por Fonte (interno)'!A18,'Pré-LOA 2023'!$T:$T,'Resumo por Fonte (interno)'!B18,'Pré-LOA 2023'!$W:$W,'Resumo por Fonte (interno)'!C18,'Pré-LOA 2023'!$O:$O,RIGHT($L$2,1)) -> 0 | M18: =SUMIFS('Pré-LOA 2023'!$AE:$AE,'Pré-LOA 2023'!$C:$C,'Resumo por Fonte (interno)'!A18,'Pré-LOA 2023'!$T:$T,'Resumo por Fonte (interno)'!B18,'Pré-LOA 2023'!$W:$W,'Resumo por Fonte (interno)'!C18,'Pré-LOA 2023'!$O:$O,RIGHT($M$2,1)) -> 0 | N18: =SUMIFS('Pré-LOA 2023'!$AE:$AE,'Pré-LOA 2023'!$C:$C,'Resumo por Fonte (interno)'!A18,'Pré-LOA 2023'!$T:$T,'Resumo por Fonte (interno)'!B18,'Pré-LOA 2023'!$W:$W,'Resumo por Fonte (interno)'!C18,'Pré-LOA 2023'!$O:$O,RIGHT($N$2,1)) -> 0 | O18: =SUMIFS('Pré-LOA 2023'!$AE:$AE,'Pré-LOA 2023'!$C:$C,'Resumo por Fonte (interno)'!A18,'Pré-LOA 2023'!$T:$T,'Resumo por Fonte (interno)'!B18,'Pré-LOA 2023'!$W:$W,'Resumo por Fonte (interno)'!C18,'Pré-LOA 2023'!$O:$O,RIGHT($O$2,1)) -> 0 | P18: =SUMIFS('Pré-LOA 2023'!$AE:$AE,'Pré-LOA 2023'!$C:$C,'Resumo por Fonte (interno)'!A18,'Pré-LOA 2023'!$T:$T,'Resumo por Fonte (interno)'!B18,'Pré-LOA 2023'!$W:$W,'Resumo por Fonte (interno)'!C18,'Pré-LOA 2023'!$O:$O,RIGHT($P$2,1)) -> 0 | Q18: =SUMIFS('Pré-LOA 2023'!$AE:$AE,'Pré-LOA 2023'!$C:$C,'Resumo por Fonte (interno)'!A18,'Pré-LOA 2023'!$T:$T,'Resumo por Fonte (interno)'!B18,'Pré-LOA 2023'!$W:$W,'Resumo por Fonte (interno)'!C18,'Pré-LOA 2023'!$O:$O,RIGHT($Q$2,1)) -> 0 | R18: 0 | S18: 0 | T18: 0 | U18: 0 | V18: 0 | W18: 0 | X18: 0
A19: SMARHS | B19: 117 | C19: 749 | D19: =SUMIFS('Pré-LOA 2023'!$AD:$AD,'Pré-LOA 2023'!$C:$C,'Resumo por Fonte (interno)'!A19,'Pré-LOA 2023'!$T:$T,'Resumo por Fonte (interno)'!B19,'Pré-LOA 2023'!W:W,'Resumo por Fonte (interno)'!C19,'Pré-LOA 2023'!$O:$O,RIGHT($D$2,1)) -> 0 | E19: =SUMIFS('Pré-LOA 2023'!$AD:$AD,'Pré-LOA 2023'!$C:$C,'Resumo por Fonte (interno)'!A19,'Pré-LOA 2023'!$T:$T,'Resumo por Fonte (interno)'!B19,'Pré-LOA 2023'!$W:$W,'Resumo por Fonte (interno)'!C19,'Pré-LOA 2023'!$O:$O,RIGHT($E$2,1)) -> 0 | F19: =SUMIFS('Pré-LOA 2023'!$AD:$AD,'Pré-LOA 2023'!$C:$C,'Resumo por Fonte (interno)'!A19,'Pré-LOA 2023'!$T:$T,'Resumo por Fonte (interno)'!B19,'Pré-LOA 2023'!$W:$W,'Resumo por Fonte (interno)'!C19,'Pré-LOA 2023'!$O:$O,RIGHT($F$2,1)) -> 0 | G19: =SUMIFS('Pré-LOA 2023'!$AD:$AD,'Pré-LOA 2023'!$C:$C,'Resumo por Fonte (interno)'!A19,'Pré-LOA 2023'!$T:$T,'Resumo por Fonte (interno)'!B19,'Pré-LOA 2023'!$W:$W,'Resumo por Fonte (interno)'!C19,'Pré-LOA 2023'!$O:$O,RIGHT($G$2,1)) -> 0 | H19: =SUMIFS('Pré-LOA 2023'!$AD:$AD,'Pré-LOA 2023'!$C:$C,'Resumo por Fonte (interno)'!A19,'Pré-LOA 2023'!$T:$T,'Resumo por Fonte (interno)'!B19,'Pré-LOA 2023'!$W:$W,'Resumo por Fonte (interno)'!C19,'Pré-LOA 2023'!$O:$O,RIGHT($H$2,1)) -> 0 | I19: =SUMIFS('Pré-LOA 2023'!$AD:$AD,'Pré-LOA 2023'!$C:$C,'Resumo por Fonte (interno)'!A19,'Pré-LOA 2023'!$T:$T,'Resumo por Fonte (interno)'!B19,'Pré-LOA 2023'!$W:$W,'Resumo por Fonte (interno)'!C19,'Pré-LOA 2023'!$O:$O,RIGHT($I$2,1)) -> 0 | J19: =SUMIFS('Pré-LOA 2023'!$AD:$AD,'Pré-LOA 2023'!$C:$C,'Resumo por Fonte (interno)'!A19,'Pré-LOA 2023'!$T:$T,'Resumo por Fonte (interno)'!B19,'Pré-LOA 2023'!$W:$W,'Resumo por Fonte (interno)'!C19,'Pré-LOA 2023'!$O:$O,RIGHT($J$2,1)) -> 0 | K19: =SUMIFS('Pré-LOA 2023'!$AE:$AE,'Pré-LOA 2023'!$C:$C,'Resumo por Fonte (interno)'!A19,'Pré-LOA 2023'!$T:$T,'Resumo por Fonte (interno)'!B19,'Pré-LOA 2023'!$W:$W,'Resumo por Fonte (interno)'!C19,'Pré-LOA 2023'!$O:$O,RIGHT($K$2,1)) -> 0 | L19: =SUMIFS('Pré-LOA 2023'!$AE:$AE,'Pré-LOA 2023'!$C:$C,'Resumo por Fonte (interno)'!A19,'Pré-LOA 2023'!$T:$T,'Resumo por Fonte (interno)'!B19,'Pré-LOA 2023'!$W:$W,'Resumo por Fonte (interno)'!C19,'Pré-LOA 2023'!$O:$O,RIGHT($L$2,1)) -> 0 | M19: =SUMIFS('Pré-LOA 2023'!$AE:$AE,'Pré-LOA 2023'!$C:$C,'Resumo por Fonte (interno)'!A19,'Pré-LOA 2023'!$T:$T,'Resumo por Fonte (interno)'!B19,'Pré-LOA 2023'!$W:$W,'Resumo por Fonte (interno)'!C19,'Pré-LOA 2023'!$O:$O,RIGHT($M$2,1)) -> 0 | N19: =SUMIFS('Pré-LOA 2023'!$AE:$AE,'Pré-LOA 2023'!$C:$C,'Resumo por Fonte (interno)'!A19,'Pré-LOA 2023'!$T:$T,'Resumo por Fonte (interno)'!B19,'Pré-LOA 2023'!$W:$W,'Resumo por Fonte (interno)'!C19,'Pré-LOA 2023'!$O:$O,RIGHT($N$2,1)) -> 0 | O19: =SUMIFS('Pré-LOA 2023'!$AE:$AE,'Pré-LOA 2023'!$C:$C,'Resumo por Fonte (interno)'!A19,'Pré-LOA 2023'!$T:$T,'Resumo por Fonte (interno)'!B19,'Pré-LOA 2023'!$W:$W,'Resumo por Fonte (interno)'!C19,'Pré-LOA 2023'!$O:$O,RIGHT($O$2,1)) -> 0 | P19: =SUMIFS('Pré-LOA 2023'!$AE:$AE,'Pré-LOA 2023'!$C:$C,'Resumo por Fonte (interno)'!A19,'Pré-LOA 2023'!$T:$T,'Resumo por Fonte (interno)'!B19,'Pré-LOA 2023'!$W:$W,'Resumo por Fonte (interno)'!C19,'Pré-LOA 2023'!$O:$O,RIGHT($P$2,1)) -> 0 | Q19: =SUMIFS('Pré-LOA 2023'!$AE:$AE,'Pré-LOA 2023'!$C:$C,'Resumo por Fonte (interno)'!A19,'Pré-LOA 2023'!$T:$T,'Resumo por Fonte (interno)'!B19,'Pré-LOA 2023'!$W:$W,'Resumo por Fonte (interno)'!C19,'Pré-LOA 2023'!$O:$O,RIGHT($Q$2,1)) -> 0 | R19: 0 | S19: 0 | T19: 0 | U19: 0 | V19: 0 | W19: 0 | X19: 0
